{"text_format":"1","workbook":"xlsx","n_sheets":21,"sheets":["Workplan Instructions Final","Goal 1 Workplan","Goal 2 Workplan","Goal 3 Workplan","Goal 4 Workplan","Goal 5 Workplan","Goal 6 Workplan","Explanations Required Mid-Year","Annual Instructions","Goal 1 Reporting","Goal 1 Reporting reverse I & II","Goal 2 Reporting","Goal 3 Reporting","Goal 4 Reporting","Goal 5 Reporting","Goal 6 Reporting","Goal 6 Reporting reverse I & II","Explanations Required Annual","Review Sheet for Field Reps","list","Sheet1"],"not_rendered":{"charts":0,"images":3,"macros":0,"external_links":0,"defined_names":34,"comments":9,"pivot_tables":0},"unopened":[],"bounds":{"document_bytes":16777216,"sheet_cells":100000,"rows_first":2000,"rows_last":500,"rows_between":2000,"halvings":0,"cell_chars":16384,"cell_head_chars":4096},"cells_cut":0,"cells_raw":0,"read":"whole","date_system":"1900"}

{"sheet":"Workplan Instructions Final","index":0,"n_rows":37,"n_cols":5,"rows_kept":37,"cut":false,"hidden":false,"merged":[[7,0,8,0],[7,2,7,11],[8,3,8,11],[9,4,9,11],[0,2,0,11],[2,2,2,11],[4,2,4,13],[5,2,5,19],[32,3,32,19],[33,3,33,19],[34,2,34,11],[36,3,53,3],[10,3,10,11],[22,3,22,11],[23,3,23,11],[24,2,24,11],[26,3,26,11],[27,4,27,11],[31,0,31,11],[11,3,11,11],[12,3,12,11],[15,2,15,11],[19,2,19,11],[20,2,20,11]]}
[]
[]
[null,null,"CSBG/NPI Workplan Instructions"]
[]
[]
["Purpose",null,"The CSBG/NPI Work Plan (CSD 801 W) establishes performance expectations and goals for the contract term. The CSD 801 W must be completed and returned annually with the contract.  "]
[]
["Suggested Tools ",null,"When projecting data for the contract term, use the suggested tools below as a guide:"]
[null,null,null,"Review your Community Action Plan (CAP) data.  "]
[null,null,null,"-","CAP projected work plan must correspond to the contract work plan data."]
[null,null,null,"National Performance Indicators (NPI) Instruction Manual* (October 2015) "]
[null,null,"     ","The Targeting Field Manual*"]
[null,null,null,"*documents accessible on the CSD's Providers' website on the Forms page"]
[]
[]
["Workplan Format ",null,"The CSD 801 W consists of orange tabs within the excel workbook. Complete the applicable work plan Goals 1 - 6 and return with the contract.  There are six goals and under each goal is a list of indicators, problem statement, program activities and delivery strategies that pertain to that goal."]
[]
[null,null,null,"The first orange tab is the Workplan Instructions"]
[null,null,null,"The subsequent orange tabs are the Workplan Goals 1 through 6."]
[null,null,"Note:  The green tabs will be used later in the contract term when reporting the progress on achieving goals during the annual (January – December) reporting period."]
[]
[]
["Completing the NPI Workplan ",null,null,"On the “Goal 1 Workplan” tab enter the contract number, contractor’s name, contact person and title, phone number, e-mail address and fax number. This information will only need to be provided once. The data will automatically populate into all other tabs from the “Goal 1” tab."]
[null,null,null,"Project the number of participants expected to achieve the performance indicator(s) identified in Goals 1 – 6 that represents the outcome(s) of the planned program activities during the contract term.  If the indicator does not apply to the planned program activities leave the cell blank.  "]
[null,null,"CSBG/NPI Workplan Instructions, Con't"]
[]
[null,null,null,"Problem Statement:  In this section clearly and thoroughly describe the problems facing low-income individuals in the community as it relates to achieving each goal. This information should be detailed and include the following:"]
[null,null,null,"      ","What is the problem?"]
[null,null,null,"      ","What is the cause of the problem?"]
[null,null,null,"         ","Who is affected?"]
[null,null,null,"        ","Location of those affected?"]
[]
[null,null,null,"Program Activities and Delivery Strategies:  In this section, provide a detailed description of the planned program activities to be undertaken in order to alleviate the barriers identified in the problem statement. "]
[null,null,null,"Number of Participants Expected to Achieve Outcome in Reporting Period:  This column will be filled out on the CSD 801 W for Goals 1 through 6. Provide the number of participants expected to achieve the goal at the annual reporting periods for each indicator. The workplan numbers will automatically populate into the reporting (green) tabs for Goals 1 through 6. "]
[null,null,"Note:  ALL DATA FIGURES should be NUMERICAL.  Do not use percentages, fractions, abbreviations or alpha text.  "]
[]
["Sample of NPI Workplan"]

{"sheet":"Goal 1 Workplan","index":1,"n_rows":113,"n_cols":18,"rows_kept":113,"cut":false,"hidden":false,"merged":[[5,17,21,22],[25,4,26,9],[29,13,29,15],[40,3,41,15],[32,10,32,12],[22,13,22,15],[112,10,112,12],[107,13,107,15],[112,13,112,15],[111,10,111,12],[108,13,108,15],[111,13,111,15],[109,10,109,12],[109,13,109,15],[110,3,110,15],[103,10,103,12],[104,10,104,12],[102,10,102,12],[104,13,104,15],[103,13,103,15],[102,13,102,15],[97,10,97,12],[93,13,93,15],[108,10,108,12],[107,10,107,12],[106,10,106,12],[106,13,106,15],[105,10,105,12],[105,13,105,15],[1,1,8,1],[10,1,13,1],[91,10,91,12],[62,13,62,15],[59,13,59,15],[30,13,30,15],[10,3,10,7],[13,3,13,7],[21,3,21,15],[25,10,25,12],[18,3,19,15],[27,4,28,9],[28,13,28,15],[26,10,26,12],[91,13,91,15],[26,13,26,15],[27,13,27,15],[30,10,30,12],[96,10,96,12],[59,10,59,12],[92,10,92,12],[63,13,63,15],[69,13,69,15],[66,10,66,12],[67,10,67,12],[67,4,68,9],[68,13,68,15],[68,10,68,12],[67,13,67,15],[66,13,66,15],[64,10,64,12],[64,13,64,15],[65,10,65,12],[65,13,65,15],[65,4,66,9],[63,4,64,9],[63,10,63,12],[60,13,60,15],[69,4,70,9],[69,10,69,12],[77,3,77,15],[71,10,71,12],[76,3,76,15],[61,4,62,9],[61,10,61,12],[61,13,61,15],[92,13,92,15],[62,10,62,12],[55,10,55,12],[57,10,57,12],[35,13,35,15],[100,13,100,15],[101,13,101,15],[101,10,101,12],[99,13,99,15],[98,13,98,15],[100,10,100,12],[98,10,98,12],[99,10,99,12],[97,13,97,15],[94,13,94,15],[93,10,93,12],[94,10,94,12],[75,13,75,15],[70,13,70,15],[73,3,73,15],[71,13,71,15],[72,10,72,12],[70,10,70,12],[71,4,72,9],[74,10,74,12],[74,13,74,15],[59,4,60,9],[55,13,55,15],[56,10,56,12],[47,3,47,9],[43,3,45,15],[46,3,46,9],[54,10,54,12],[57,13,57,15],[56,13,56,15],[60,10,60,12],[53,4,54,9],[53,13,53,15],[52,13,52,15],[53,10,53,12],[58,10,58,12],[57,4,58,9],[52,10,52,12],[50,10,50,12],[48,3,48,9],[46,10,48,12],[47,13,48,15],[55,4,56,9],[54,13,54,15],[58,13,58,15],[49,13,49,15],[22,10,24,12],[23,13,24,15],[22,3,22,9],[50,13,50,15],[51,10,51,12],[51,13,51,15],[37,3,37,15],[38,3,38,15],[33,3,33,15],[51,4,52,9],[35,10,35,12],[34,10,34,12],[10,9,10,15],[11,9,11,15],[12,3,12,7],[12,13,12,15],[13,13,13,15],[15,3,15,15],[17,3,17,15],[25,13,25,15],[29,4,30,9],[29,10,29,12],[20,3,20,15],[16,3,16,15],[23,3,23,9],[24,3,24,9],[102,4,103,9],[104,4,105,9],[106,4,107,9],[108,4,109,9],[2,15,3,15],[96,13,96,15],[88,3,88,15],[95,3,95,15],[86,13,87,15],[90,10,90,12],[90,13,90,15],[89,10,89,12],[89,13,89,15],[87,3,87,9],[86,3,86,9],[85,3,85,9],[85,10,87,12],[85,13,85,15],[79,3,79,15],[31,10,31,12],[32,13,32,15],[5,9,7,9],[31,4,32,9],[31,13,31,15],[111,3,111,9],[74,3,74,9],[34,3,34,9],[16,1,17,1],[39,1,40,1],[100,4,101,9],[98,4,99,9],[96,4,97,9],[93,4,94,9],[89,4,90,9],[91,4,92,9],[82,3,82,15],[83,3,84,15],[79,1,80,1],[78,3,78,15],[75,10,75,12],[34,13,34,15],[49,4,50,9],[46,13,46,15],[80,3,81,15],[72,13,72,15],[27,10,27,12],[28,10,28,12],[49,10,49,12]]}
[]
[null,"Use the tab key to move through the cells that require entry."]
[null,null,null,"State of California"]
[null,null,null,"Department of Community Services and Development",null,null,null,null,null,null,null,null,null,null,"Contract No."]
[null,null,null,null,null,null,null,null,null,null,null,null,null,null,null,null,null,"REPORTING PERIODS"]
[null,null,null,"CSBG/NPI Workplan",null,null,null,null,null,"             CSBG/NPI Workplan",null,null,null,null,null,null,null,"Contract Workplan\nDue January of every year.\n\nReporting Period\nJanuary - December (Only)\nComplete Tan area in the \"Workplan\" column\n\nHow to submit\nUpon completion, the Workplans should be submitted with the Contract.\n\nQuestions\nIf you have any question please contact your Field Representative."]
[]
[null,null,null,"CSD 801 W (Rev.8/16)"]
[]
[]
[null,"Typing information into this block of cells will automatically populate to all of the goal tabs.",null,"Contractor Name:"]
[null,null,null,"Contact Person and Title:"]
[null,null,null,"Phone Number:",null,null,null,null,null,null,"Ext. Number:"]
[null,null,null,"E-mail Address:",null,null,null,null,null,null,"Fax Number:"]
[]
[null,null,null,"Goal 1:  Low-income people become more self-sufficient."]
[null,"See NPI Instruction Manual, pages 1-4",null,"NPI 1.1:  Employment"]
[null,null,null,"Problem Statement:  (If additional space is needed, please attach a separate sheet.)"]
[]
[]
[null,null,null,"Program Activities and Delivery Strategies:  (If additional space is needed, please attach a separate sheet.)"]
[]
[null,null,null,"National Performance\nIndicator 1.1",null,null,null,null,null,null,"Reporting Period",null,null,"WORKPLAN"]
[null,null,null,"Employment",null,null,null,null,null,null,null,null,null,"Number of Participants Expected to Achieve Outcome in Reporting Period\n(#)"]
[null,null,null,"\nThe number and percentage of low-income participants who get a job or become self-employed, as a result of Community Action Assistance, as measured by one or more of the following:"]
[null,null,null,"A.","Unemployed and obtained a job \n",null,null,null,null,null,"Annual "]
[]
[null,null,null,"B.","Employed and maintained a job for at least 90 days\n",null,null,null,null,null,"Annual "]
[]
[null,null,null,"C.","Employed and obtained an increase in employment income and/or benefits",null,null,null,null,null,"Annual "]
[]
[null,null,null,"D.","Achieved \"living wage\" employment and/or benefits",null,null,null,null,null,"Annual "]
[]
[null,null,null,"In the rows below, please include any additional indicators for NPI 1.1 that were not captured above."]
[null,null,null,null,null,null,null,null,null,null,"Annual "]
[]
[]
[null,null,null,"Goal 1:  Low-income people become more self-sufficient."]
[null,null,null,"NPI 1.2:  Employment Supports"]
[null,"See NPI Instruction Manual, pages 5-9",null,"Problem Statement:  (If additional space is needed, please attach a separate sheet.)"]
[]
[]
[null,null,null,"Program Activities and Delivery Strategies:  (If additional space is needed, please attach a separate sheet.)"]
[]
[]
[]
[null,null,null,"National Performance\nIndicator 1.2",null,null,null,null,null,null,"Reporting Period",null,null,"WORKPLAN"]
[null,null,null,"Employment Supports",null,null,null,null,null,null,null,null,null,"Number of Participants Expected to Achieve Outcome in Reporting Period\n(#)"]
[null,null,null,"\nThe number of low-income participants for whom barriers to initial or continuous employment are reduced or eliminated through assistance from Community Action, as measured by one or more of the following:"]
[null,null,null,"A.","Obtained skills/competencies required for employment",null,null,null,null,null,"Annual "]
[null,null,null,null,null,null,null,null,null,null,"Annual "]
[null,null,null,"B.","Completed ABE/GED and received certificate or diploma\n",null,null,null,null,null,"Annual "]
[null,null,null,null,null,null,null,null,null,null,"Annual "]
[null,null,null,"C.","Completed post-secondary education program and obtained certificate or diploma  \n",null,null,null,null,null,"Annual "]
[null,null,null,null,null,null,null,null,null,null,"Annual "]
[null,null,null,"D.","Enrolled children in \"before\" or \"after\" school programs\n",null,null,null,null,null,"Annual "]
[null,null,null,null,null,null,null,null,null,null,"Annual "]
[null,null,null,"E.","Obtained care for child or other dependant\n",null,null,null,null,null,"Annual "]
[null,null,null,null,null,null,null,null,null,null,"Annual "]
[null,null,null,"F.","Obtained access to reliable transportation and/or driver's license\n",null,null,null,null,null,"Annual "]
[null,null,null,null,null,null,null,null,null,null,"Annual "]
[null,null,null,"G.","Obtained health care services for themselves and/or a family member\n",null,null,null,null,null,"Annual "]
[null,null,null,null,null,null,null,null,null,null,"Annual "]
[null,null,null,"H.","Obtained and/or maintained safe and affordable housing ",null,null,null,null,null,"Annual "]
[null,null,null,null,null,null,null,null,null,null,"Annual "]
[null,null,null,"I.","Obtained food assistance \n",null,null,null,null,null,"Annual "]
[null,null,null,null,null,null,null,null,null,null,"Annual "]
[null,null,null,"J.","Obtained non-emergency LIHEAP energy assistance\n",null,null,null,null,null,"Annual "]
[null,null,null,null,null,null,null,null,null,null,"Annual "]
[null,null,null,"K.","Obtained non-emergency WX energy assistance\n",null,null,null,null,null,"Annual "]
[null,null,null,null,null,null,null,null,null,null,"Annual "]
[null,null,null,"L.","Obtained other non-emergency energy assistance (State/local/private energy programs. Do Not Include LIHEAP or WX)",null,null,null,null,null,"Annual "]
[null,null,null,null,null,null,null,null,null,null,"Annual "]
[null,null,null,"In the rows below, please include any additional indicators for NPI 1.1 that were not captured above."]
[null,null,null,null,null,null,null,null,null,null,"Annual "]
[null,null,null,null,null,null,null,null,null,null,"Annual "]
[]
[null,null,null,"Goal 1: Low-income people become more self-sufficient."]
[null,null,null,"NPI 1.3:  Economic Asset Enhancement and Utilization"]
[null,"See NPI Instruction Manual, pages 10-13",null,"Problem Statement:  (If additional space is needed, please attach a separate sheet.)"]
[]
[]
[null,null,null,"Program Activities and Delivery Strategies:  (If additional space is needed, please attach a separate sheet.)"]
[]
[]
[null,null,null,"National Performance\nIndicator 1.3 ",null,null,null,null,null,null,"Reporting Period",null,null,"WORKPLAN"]
[null,null,null,"Economic Asset Enhancement and Utilization",null,null,null,null,null,null,null,null,null,"Number of Participants Expected to Achieve Outcome in Reporting Period\n(#)"]
[null,null,null,"The number and percentage of low-income households that achieve an increase in financial assets and/or financial skills as a result of Community Action assistance, and the aggregated amount of those assets and resources for all participants achieving the outcome, as measured by one or more of the following:"]
[null,null,null," ENHANCEMENT"]
[null,null,null,"A.  ","Number and percent of participants in tax preparation programs who qualified for any type of Federal or State tax credit and the expected aggregated dollar amount of credits ",null,null,null,null,null,"Annual "]
[null,null,null,null,null,null,null,null,null,null,"Annual "]
[null,null,null,"B. ","Number and percent of participants who obtained court-ordered child support payments and the expected annual aggregated dollar amount of payments",null,null,null,null,null,"Annual "]
[null,null,null,null,null,null,null,null,null,null,"Annual "]
[null,null,null,"C.  ","Number and percent of participants who were enrolled in telephone lifeline and/or energy discounts with the assistance of the agency and the expected aggregated dollar amount of savings",null,null,null,null,null,"Annual "]
[null,null,null,null,null,null,null,null,null,null,"Annual "]
[null,null,null," UTILIZATION"]
[null,null,null,"D.  ","Number and percent of participants demonstrating ability to complete and maintain a budget for over 90 days ",null,null,null,null,null,"Annual "]
[null,null,null,null,null,null,null,null,null,null,"Annual "]
[null,null,null,"E. ","Number and percent of participants opening an Individual Development Account (IDA) or other savings account ",null,null,null,null,null,"Annual "]
[null,null,null,null,null,null,null,null,null,null,"Annual "]
[null,null,null,"F. ","Number and percent of participants who increased their savings through IDA or other savings accounts and the aggregated amount of savings",null,null,null,null,null,"Annual "]
[null,null,null,null,null,null,null,null,null,null,"Annual "]
[null,null,null,"G.  ","Number and percent of participants capitalizing a small business with accumulated IDA or other savings ",null,null,null,null,null,"Annual "]
[null,null,null,null,null,null,null,null,null,null,"Annual "]
[null,null,null,"H.  ","Number and percent of participants pursuing post-secondary education with accumulated IDA or other savings ",null,null,null,null,null,"Annual "]
[null,null,null,null,null,null,null,null,null,null,"Annual "]
[null,null,null,"I.      ","Number and percent of participants purchasing a home with accumulated IDA or other savings           ",null,null,null,null,null,"Annual "]
[null,null,null,null,null,null,null,null,null,null,"Annual "]
[null,null,null,"J.  ","Number and percent of participants purchasing other assets with accumulated IDA or other savings   ",null,null,null,null,null,"Annual "]
[null,null,null,null,null,null,null,null,null,null,"Annual "]
[null,null,null,"In the rows below, please include any additional indicators for NPI 1.3 that were not captured above."]
[null,null,null,null,null,null,null,null,null,null,"Annual "]
[null,null,null,null,null,null,null,null,null,null,"Annual "]

{"sheet":"Goal 2 Workplan","index":2,"n_rows":87,"n_cols":19,"rows_kept":87,"cut":false,"hidden":false,"merged":[[5,18,21,23],[48,3,48,16],[49,3,49,16],[33,14,33,16],[34,14,34,16],[21,11,23,13],[25,11,25,13],[26,11,26,13],[27,11,27,13],[28,11,28,13],[22,3,22,10],[32,11,32,13],[12,8,12,10],[11,14,11,16],[12,14,12,16],[5,9,7,10],[36,4,37,10],[34,4,35,10],[32,4,33,10],[30,4,31,10],[35,11,35,13],[19,3,20,16],[23,3,23,10],[21,14,21,16],[46,3,46,16],[47,3,47,16],[1,1,7,1],[9,1,12,1],[16,1,17,1],[9,3,9,7],[10,3,10,7],[11,3,11,7],[12,3,12,7],[14,3,14,16],[9,8,9,16],[3,12,3,14],[3,15,3,16],[15,3,15,16],[16,3,16,16],[18,3,18,16],[17,3,17,16],[10,8,10,16],[11,8,11,10],[41,1,42,1],[41,14,41,16],[38,11,38,13],[39,11,39,13],[36,11,36,13],[38,4,39,10],[42,3,42,16],[40,11,40,13],[41,11,41,13],[40,4,41,10],[22,14,23,16],[24,11,24,13],[24,4,25,10],[26,4,27,10],[28,4,29,10],[29,11,29,13],[37,11,37,13],[40,14,40,16],[24,14,24,16],[25,14,25,16],[35,14,35,16],[36,14,36,16],[37,14,37,16],[38,14,38,16],[39,14,39,16],[21,3,21,10],[33,11,33,13],[34,11,34,13],[30,11,30,13],[31,11,31,13],[30,14,30,16],[31,14,31,16],[26,14,26,16],[27,14,27,16],[28,14,28,16],[32,14,32,16],[29,14,29,16],[58,4,59,10],[57,11,57,13],[58,11,58,13],[59,11,59,13],[55,3,55,10],[56,4,57,10],[56,14,56,16],[44,14,44,16],[50,3,50,16],[43,3,44,10],[53,11,55,13],[45,3,45,16],[53,14,53,16],[54,14,55,16],[56,11,56,13],[53,3,53,10],[54,3,54,10],[57,14,57,16],[43,11,43,13],[59,14,59,16],[43,14,43,16],[44,11,44,13],[51,3,52,16],[58,14,58,16],[60,11,60,13],[62,4,63,10],[75,3,76,16],[77,11,79,13],[68,11,68,13],[69,3,69,16],[67,11,67,13],[64,4,65,10],[65,11,65,13],[60,4,61,10],[64,14,64,16],[65,14,65,16],[67,14,67,16],[68,14,68,16],[63,14,63,16],[63,11,63,13],[64,11,64,13],[61,14,61,16],[62,14,62,16],[61,11,61,13],[62,11,62,13],[60,14,60,16],[73,3,73,16],[101,14,101,16],[100,14,100,16],[99,11,99,13],[78,3,78,10],[79,3,79,10],[77,14,77,16],[70,3,70,16],[71,3,71,16],[72,3,72,16],[74,3,74,16],[95,11,97,13],[83,11,83,13],[93,3,94,16],[82,4,83,10],[87,3,87,16],[88,3,88,16],[89,3,89,16],[98,4,99,10],[100,4,101,10],[100,11,100,13],[101,11,101,13],[99,14,99,16],[85,14,85,16],[86,14,86,16],[46,1,47,1],[70,1,71,1],[1,9,1,10],[104,11,104,13],[95,3,95,10],[96,3,96,10],[97,3,97,10],[84,3,84,16],[66,3,66,16],[77,3,77,10],[67,3,68,10],[80,4,81,10],[82,11,82,13],[81,14,81,16],[78,14,79,16],[80,14,80,16],[80,11,80,13],[104,14,104,16],[81,11,81,13],[103,14,103,16],[103,11,103,13],[103,3,104,10],[82,14,82,16],[83,14,83,16],[90,3,90,16],[92,3,92,16],[91,3,91,16],[96,14,97,16],[95,14,95,16],[98,14,98,16],[98,11,98,13],[85,11,85,13],[86,11,86,13],[85,3,85,10]]}
[]
[null,"Use the tab key to move through the cells that require entry.",null,"State of California",null,null,null,null,null,null,null,{"$f":"'Goal 1 Workplan'!N2","v":0}]
[null,null,null,null,null,null,null,null,null,null,null,{"$f":"'Goal 1 Workplan'!N3","v":0}]
[null,null,null,"Department of Community Services and Development",null,null,null,null,null,null,null,{"$f":"'Goal 1 Workplan'!N4","v":0},"Contract No.",null,null,{"$f":"'Goal 1 Workplan'!P3","v":0}]
[]
[null,null,null,"CSBG/NPI Workplan",null,null,null,null,null,"             CSBG/NPI Workplan",null,null,null,null,null,null,null,null,"Contract Workplan\nDue January of every year.\n\nReporting Period\nJanuary - December (Only)\nComplete Tan area in the \"Workplan\" column\n\nHow to submit\nUpon completion, the Workplans should be submitted with the Contract.\n\nQuestions\nIf you have any question please contact your Field Representative."]
[]
[null,null,null,"CSD 801 W (Rev.8/16)"]
[]
[null,"Use the goal 1 tab to enter information into this block of cells.  ",null,"Contractor Name:",null,null,null,null,{"$f":"'Goal 1 Workplan'!J11","v":0}]
[null,null,null,"Contact Person and Title:",null,null,null,null,{"$f":"'Goal 1 Workplan'!J12","v":0}]
[null,null,null,"Phone Number:",null,null,null,null,{"$f":"'Goal 1 Workplan'!J13","v":0},null,null,"Ext. Number:",null,null,{"$f":"'Goal 1 Workplan'!N13","v":0}]
[null,null,null,"E-mail Address:",null,null,null,null,{"$f":"'Goal 1 Workplan'!J14","v":0},null,null,"Fax Number:",null,null,{"$f":"'Goal 1 Workplan'!N14","v":0}]
[]
[null,null,null,"Goal 2:  The conditions in which low-income people live are improved."]
[null,null,null,"NPI 2.1:  Community Improvement and Revitalization"]
[null,"See NPI Instruction Manual, pages 14-18",null,"Problem Statement:  (If additional space is needed, please attach a separate sheet.)"]
[]
[null,null,null,"Program Activities and Delivery Strategies:  (If additional space is needed, please attach a separate sheet.)"]
[]
[]
[null,null,null,"National Performance\nIndicator 2.1",null,null,null,null,null,null,null,"Reporting Period",null,null,"WORKPLAN"]
[null,null,null,"Community Improvement and Revitalization",null,null,null,null,null,null,null,null,null,null,"Number of Projects or Initiatives Expected to Achieve in Reporting Period\n(#)"]
[null,null,null,"\nIncrease in, or safeguarding of, threatened opportunities and community resources or services for low-income people in the community as a result of Community Action projects/initiatives or advocacy with other public and private agencies, as measured by one or more of the following:"]
[null,null,null,"A.","Jobs created, or saved, from reduction or elimination in the community\n",null,null,null,null,null,null,"Annual "]
[null,null,null,null,null,null,null,null,null,null,null,"Annual"]
[null,null,null,"B.","Accessible \"living wage\" jobs created, or saved, from reduction or elimination in the community",null,null,null,null,null,null,"Annual "]
[null,null,null,null,null,null,null,null,null,null,null,"Annual "]
[null,null,null,"C.","Safe and affordable housing units created in the community",null,null,null,null,null,null,"Annual "]
[null,null,null,null,null,null,null,null,null,null,null,"Annual "]
[null,null,null,"D.","Safe and affordable housing units in the community preserved or improved through construction, weatherization, or rehabilitation achieved by Community Action activity or advocacy ",null,null,null,null,null,null,"Annual "]
[null,null,null,null,null,null,null,null,null,null,null,"Annual "]
[null,null,null,"E.","Accessible safe and affordable health care services/facilities for low-income people created or saved from reduction or elimination\n",null,null,null,null,null,null,"Annual "]
[null,null,null,null,null,null,null,null,null,null,null,"Annual "]
[null,null,null,"F.","Accessible safe and affordable child care or child development placement opportunities for low-income families created or saved from reduction or elimination \n",null,null,null,null,null,null,"Annual "]
[null,null,null,null,null,null,null,null,null,null,null,"Annual "]
[null,null,null,"G.","Accessible \"before school\" and \"after school\" program placement opportunities for low-income families created or saved from reduction or elimination ",null,null,null,null,null,null,"Annual "]
[null,null,null,null,null,null,null,null,null,null,null,"Annual "]
[null,null,null,"H.","Accessible new or expanded transportation resources, or those that are saved from reduction or elimination, that are available to low-income people, including public or private transportation. \n",null,null,null,null,null,null,"Annual "]
[null,null,null,null,null,null,null,null,null,null,null,"Annual "]
[null,null,null,"I.","Accessible or increased educational and training placement opportunities, or those that are saved from reduction or elimination, that are available for low-income people in the community, including vocational, literacy, and life skill training, ABE/GED, and post-secondary education\n\n",null,null,null,null,null,null,"Annual "]
[null,null,null,null,null,null,null,null,null,null,null,"Annual"]
[null,null,null,"In the rows below, please include any additional indicators for NPI 2.1 that were not captured above."]
[null,null,null,null,null,null,null,null,null,null,null,"Annual "]
[null,null,null,null,null,null,null,null,null,null,null,"Annual"]
[]
[null,"See NPI Instruction Manual, pages 19-22",null,"Goal 2:  The conditions in which low-income people live are improved."]
[null,null,null,"NPI 2.2:  Community Quality of Life and Assets"]
[null,null,null,"Problem Statement:  (If additional space is needed, please attach a separate sheet.)"]
[]
[null,null,null,"Program Activities and Delivery Strategies:  (If additional space is needed, please attach a separate sheet.)"]
[]
[]
[null,null,null,"National Performance\nIndicator 2.2",null,null,null,null,null,null,null,"Reporting Period",null,null,"WORKPLAN"]
[null,null,null,"Community Quality of Life and Assets",null,null,null,null,null,null,null,null,null,null,"Number of Program Initiatives or Advocacy Efforts Expected to Achieve in Reporting Period\n(#)"]
[null,null,null,"The quality of life and assets in low-income neighborhoods are improved by Community Action initiative or advocacy, as measured by one or more of the following:"]
[null,null,null,"A.","Increases in community assets as a result of a change in law, regulation, or policy, which results in improvements in quality of life and assets \n",null,null,null,null,null,null,"Annual "]
[null,null,null,null,null,null,null,null,null,null,null,"Annual "]
[null,null,null,"B.","Increase in the availability or preservation of community facilities\n\n",null,null,null,null,null,null,"Annual "]
[null,null,null,null,null,null,null,null,null,null,null,"Annual "]
[null,null,null,"C.","Increase in the availability or preservation of community services to improve public health and safety\n",null,null,null,null,null,null,"Annual "]
[null,null,null,null,null,null,null,null,null,null,null,"Annual "]
[null,null,null,"D.","Increase in the availability or preservation of commercial services within low-income neighborhoods",null,null,null,null,null,null,"Annual "]
[null,null,null,null,null,null,null,null,null,null,null,"Annual "]
[null,null,null,"E.","Increase or preservation of neighborhood quality-of-life resources\n\n",null,null,null,null,null,null,"Annual "]
[null,null,null,null,null,null,null,null,null,null,null,"Annual"]
[null,null,null,"In the rows below, please include any additional indicators for NPI 2.2 that were not captured above."]
[null,null,null,null,null,null,null,null,null,null,null,"Annual "]
[null,null,null,null,null,null,null,null,null,null,null,"Annual"]
[]
[null,"See NPI Instruction Manual, pages 23-24",null,"Goal 2:  The conditions in which low-income people live are improved."]
[null,null,null,"NPI 2.3:  Community Engagement"]
[null,null,null,"Problem Statement:  (If additional space is needed, please attach a separate sheet.)"]
[]
[null,null,null,"Program Activities and Delivery Strategies:  (If additional space is needed, please attach a separate sheet.)"]
[]
[]
[null,null,null,"National Performance\nIndicator 2.3",null,null,null,null,null,null,null,"Reporting Period",null,null,"WORKPLAN"]
[null,null,null,"Community Engagement",null,null,null,null,null,null,null,null,null,null,"Number of Total Contribution by Community Expected to Achieve in Reporting Period\n(#)"]
[null,null,null,"The number of community members working with Community Action to improve conditions in the community."]
[null,null,null,"A.","Number of community members mobilized by Community Action that participate in community revitalization and anti-poverty initiatives\n",null,null,null,null,null,null,"Annual "]
[null,null,null,null,null,null,null,null,null,null,null,"Annual "]
[null,null,null,"B.","Number of volunteer hours donated to the agency (This will be All volunteer hours)",null,null,null,null,null,null,"Annual "]
[null,null,null,null,null,null,null,null,null,null,null,"Annual"]
[null,null,null,"In the rows below, please include any additional indicators for NPI 2.3 that were not captured above."]
[null,null,null,null,null,null,null,null,null,null,null,"Annual "]
[null,null,null,null,null,null,null,null,null,null,null,"Annual"]

{"sheet":"Goal 3 Workplan","index":3,"n_rows":52,"n_cols":21,"rows_kept":52,"cut":false,"hidden":false,"merged":[[1,1,9,1],[10,3,10,7],[11,3,11,7],[9,3,9,7],[12,3,12,7],[16,3,16,18],[17,3,18,18],[25,16,25,18],[7,20,23,25],[2,14,2,16],[3,14,3,16],[3,17,3,18],[9,8,9,18],[12,14,12,18],[12,8,12,10],[11,14,11,18],[14,3,14,18],[11,8,11,10],[25,3,26,12],[22,13,24,15],[24,3,24,12],[27,3,27,18],[29,13,29,15],[28,13,28,15],[28,16,28,18],[28,3,28,12],[26,13,26,15],[26,16,26,18],[25,13,25,15],[43,4,44,12],[45,4,46,12],[45,13,45,15],[45,16,45,18],[46,13,46,15],[46,16,46,18],[43,13,43,15],[43,16,43,18],[44,16,44,18],[44,13,44,15],[41,16,41,18],[33,3,33,18],[34,3,34,18],[51,13,51,15],[51,16,51,18],[47,13,47,15],[47,16,47,18],[48,13,48,15],[48,16,48,18],[50,13,50,15],[50,16,50,18],[49,3,49,18],[47,4,48,12],[50,3,50,12],[35,3,35,18],[36,3,37,18],[39,3,39,12],[40,3,40,12],[41,4,42,12],[41,13,41,15],[42,16,42,18],[38,13,40,15],[38,16,38,18],[39,16,40,18],[42,13,42,15],[38,3,38,12],[17,1,18,1],[34,1,35,1],[13,0,15,1],[1,10,1,11],[31,3,31,18],[30,3,30,18],[19,3,19,18],[20,3,21,18],[29,16,29,18],[22,16,22,18],[23,16,24,18],[22,3,22,12],[15,3,15,18],[6,10,8,11],[10,8,10,18],[32,3,32,18]]}
[]
[null,null,null,null,null,null,null,null,null,null,null,null,null,{"$f":"'Goal 1 Workplan'!N2","v":0}]
[null,null,null,"State of California",null,null,null,null,null,null,null,null,null,{"$f":"('Goal 1 Workplan'!N3)","v":0}]
[null,null,null,"Department of Community Services and Development",null,null,null,null,null,null,null,null,null,{"$f":"'Goal 1 Workplan'!N4","v":0},"Contract No.",null,null,{"$f":"'Goal 1 Workplan'!P3","v":0}]
[]
[null,null,null,"CSBG/NPI Workplan"]
[null,null,null,null,null,null,null,null,null,null,"             CSBG/NPI Workplan"]
[null,null,null,"CSD 801 W (Rev.8/16)",null,null,null,null,null,null,null,null,null,null,null,null,null,null,null,null,"Contract Workplan\nDue January of every year.\n\nReporting Period\nJanuary - December (Only)\nComplete Tan area in the \"Workplan\" column\n\nHow to submit\nUpon completion, the Workplans should be submitted with the Contract.\n\nQuestions\nIf you have any question please contact your Field Representative."]
[]
[null,null,null,"Contractor Name:",null,null,null,null,{"$f":"'Goal 1 Workplan'!J11","v":0}]
[null,null,null,"Contact Person and Title:",null,null,null,null,{"$f":"'Goal 1 Workplan'!J12","v":0}]
[null,null,null,"Phone Number:",null,null,null,null,{"$f":"'Goal 1 Workplan'!J13","v":0},null,null,"Ext. Number:",null,null,{"$f":"'Goal 1 Workplan'!N13","v":0}]
[null,null,null,"E-mail Address:",null,null,null,null,{"$f":"'Goal 1 Workplan'!J14","v":0},null,null,"Fax Number:",null,null,{"$f":"'Goal 1 Workplan'!N14","v":0}]
[]
[null,null,null,"Goal 3:  Low-income people own a stake in their community."]
[null,null,null,"NPI 3.1: Community Enhancement through Maximum Feasible Participation"]
[null,null,null,"Problem Statement:  (If additional space is needed, please attach a separate sheet.)"]
[null,"See NPI Instruction Manual, pages 27-28"]
[]
[null,null,null,"Program Activities and Delivery Strategies:  (If additional space is needed, please attach a separate sheet.)"]
[]
[]
[null,null,null,"National Performance\nIndicator 3.1",null,null,null,null,null,null,null,null,null,"Reporting Period",null,null,"WORKPLAN"]
[null,null,null,"Community Enhancement through Maximum Feasible Participation",null,null,null,null,null,null,null,null,null,null,null,null,"Total Number of Volunteer Hours Expected to Achieve in Reporting Period\n(#)"]
[null,null,null,"The number of volunteer hours donated to Community Action."]
[null,null,null,"The total number of volunteer hours donated by low-income individuals to Community Action. (This is ONLY the number of volunteer hours from individuals who are low-income.)",null,null,null,null,null,null,null,null,null,"Annual"]
[null,null,null,null,null,null,null,null,null,null,null,null,null,"Annual"]
[null,null,null,"In the rows below, please include any additional indicators for NPI 3.1 that were not captured above."]
[null,null,null,null,null,null,null,null,null,null,null,null,null,"Annual"]
[null,null,null,null,null,null,null,null,null,null,null,null,null,"Annual"]
[]
[null,null,null,"Goal 3:  Low-income people own a stake in their community."]
[null,null,null,"NPI 3.2: Community Empowerment through Maximum Feasible Participation"]
[null,null,null,"Problem Statement:  (If additional space is needed, please attach a separate sheet.)"]
[null,"See NPI Instruction Manual, pages 29-31"]
[null,null,null,"Program Activities and Delivery Strategies:  (If additional space is needed, please attach a separate sheet.)"]
[]
[]
[null,null,null,"National Performance\nIndicator 3.2",null,null,null,null,null,null,null,null,null,"Reporting Period",null,null,"WORKPLAN"]
[null,null,null,"Community Empowerment through Maximum Feasible Participation",null,null,null,null,null,null,null,null,null,null,null,null,"Number of Low-Income People Expected to Achieve in Reporting Period\n(#)"]
[null,null,null,"\nThe number of low-income people mobilized as a direct result of Community Action initiative to engage in activities that support and promote their own well-being and that of their community, as measured by one or more of the following:"]
[null,null,null,"A.","Number of low-income people participating in formal community organizations, government, boards, or councils that provide input to decision making and policy setting through community action efforts \n",null,null,null,null,null,null,null,null,"Annual"]
[null,null,null,null,null,null,null,null,null,null,null,null,null,"Annual"]
[null,null,null,"B.","Number of low-income people acquiring businesses in their community as a result of community action assistance \n",null,null,null,null,null,null,null,null,"Annual"]
[null,null,null,null,null,null,null,null,null,null,null,null,null,"Annual"]
[null,null,null,"C.","Number of low-income people purchasing their own home in their community as a result of community action assistance \n",null,null,null,null,null,null,null,null,"Annual"]
[null,null,null,null,null,null,null,null,null,null,null,null,null,"Annual"]
[null,null,null,"D.","Number of low-income people engaged in non-governance community activities or groups created or supported by community action\n",null,null,null,null,null,null,null,null,"Annual"]
[null,null,null,null,null,null,null,null,null,null,null,null,null,"Annual"]
[null,null,null,"In the rows below, please include any additional indicators for NPI 3.2 that were not captured above."]
[null,null,null,null,null,null,null,null,null,null,null,null,null,"Annual"]
[null,null,null,null,null,null,null,null,null,null,null,null,null,"Annual"]

{"sheet":"Goal 4 Workplan","index":4,"n_rows":54,"n_cols":23,"rows_kept":54,"cut":false,"hidden":false,"merged":[[3,19,19,24],[49,3,49,17],[45,4,46,11],[47,4,48,11],[50,12,50,14],[46,12,46,14],[47,12,47,14],[29,4,30,11],[31,4,32,11],[33,4,34,11],[35,4,36,11],[37,4,38,11],[35,15,35,16],[34,15,34,16],[33,15,33,16],[37,15,37,16],[36,15,36,16],[21,3,21,11],[22,3,22,11],[23,4,24,11],[24,12,24,14],[21,15,22,16],[21,17,22,17],[11,15,11,17],[44,15,44,16],[42,15,42,16],[41,15,41,16],[40,15,40,16],[39,15,39,16],[38,15,38,16],[37,12,37,14],[12,15,12,17],[28,12,28,14],[14,3,14,17],[13,3,13,17],[27,4,28,11],[18,3,18,17],[19,3,19,17],[20,12,22,14],[20,15,20,17],[20,3,20,11],[23,12,23,14],[24,15,24,16],[23,15,23,16],[27,15,27,16],[25,12,25,14],[26,12,26,14],[27,12,27,14],[41,12,41,14],[31,12,31,14],[38,12,38,14],[33,12,33,14],[39,12,39,14],[34,12,34,14],[35,12,35,14],[36,12,36,14],[32,15,32,16],[31,15,31,16],[30,15,30,16],[29,15,29,16],[28,15,28,16],[1,11,1,12],[1,13,1,14],[15,1,16,1],[15,3,15,17],[16,3,16,17],[17,3,17,17],[9,8,9,17],[10,8,10,17],[11,8,11,12],[12,8,12,12],[1,1,7,1],[9,1,13,1],[9,3,9,7],[5,11,7,12],[26,15,26,16],[29,12,29,14],[30,12,30,14],[11,3,11,7],[25,4,26,11],[25,15,25,16],[52,12,52,14],[53,12,53,14],[52,15,52,16],[53,15,53,16],[50,3,51,11],[32,12,32,14],[52,3,52,11],[48,12,48,14],[45,12,45,14],[51,12,51,14],[50,15,50,16],[51,15,51,16],[48,15,48,16],[47,15,47,16],[46,15,46,16],[45,15,45,16],[39,4,40,11],[41,4,42,11],[43,4,44,11],[44,12,44,14],[42,12,42,14],[43,12,43,14],[43,15,43,16],[40,12,40,14]]}
[]
[null,"Use the tab key to move through the cells that require entry.",null,null,null,null,null,null,null,null,null,null,null,null,null,{"$f":"'Goal 1 Workplan'!N2","v":0}]
[null,null,null,"State of California",null,null,null,null,null,null,null,null,null,null,null,{"$f":"('Goal 1 Workplan'!N3)","v":0}]
[null,null,null,"Department of Community Services and Development",null,null,null,null,null,null,null,null,null,null,null,{"$f":"'Goal 1 Workplan'!N4","v":0},"Contract No.",{"$f":"'Goal 1 Workplan'!P3","v":0},null,"Contract Workplan\nDue January of every year.\n\nReporting Period\nJanuary - December (Only)\nComplete Tan area in the \"Workplan\" column\n\nHow to submit\nUpon completion, the Workplans should be submitted with the Contract.\n\nQuestions\nIf you have any question please contact your Field Representative."]
[]
[null,null,null,"CSBG/NPI Workplan",null,null,null,null,null,null,null,"             CSBG/NPI Workplan"]
[]
[null,null,null,"CSD 801 W (Rev.8/16)"]
[]
[null,"Use the goal 1 tab to enter information into this block of cells.  ",null,"Contractor Name:",null,null,null,null,{"$f":"'Goal 1 Workplan'!J11","v":0}]
[null,null,null,"Contact Person and Title:",null,null,null,null,{"$f":"'Goal 1 Workplan'!J12","v":0}]
[null,null,null,"Phone Number:",null,null,null,null,{"$f":"'Goal 1 Workplan'!J13","v":0},null,null,null,null,"Ext. Number:",null,{"$f":"'Goal 1 Workplan'!N13","v":0}]
[null,null,null,"E-mail Address:",null,null,null,null,{"$f":"'Goal 1 Workplan'!J14","v":0},null,null,null,null,"Fax Number:",null,{"$f":"'Goal 1 Workplan'!N14","v":0}]
[]
[null,null,null,"Goal 4:  Partnerships among supporters and providers of services to low-income people are achieved."]
[null,"See NPI Instruction Manual, pages 32-34",null,"NPI 4.1:  Expanding Opportunities through Community-Wide Partnerships"]
[null,null,null,"Problem Statement:  (If additional space is needed, please attach a separate sheet.)"]
[]
[null,null,null,"Program Activities and Delivery Strategies:  (If additional space is needed, please attach a separate sheet.)"]
[]
[null,null,null,"National Performance\nIndicator 4.1",null,null,null,null,null,null,null,null,"Reporting Period",null,null,"WORKPLAN"]
[null,null,null,"Expanding Opportunities through Community-Wide Partnerships",null,null,null,null,null,null,null,null,null,null,null,"I\nNumber of Organizations Expected to Achieve in Reporting Period\n(#)",null,"II\nNumber of Partnerships Expected to Achieve \n(#)"]
[null,null,null,"\nThe number of organizations, both public and private, that Community Action actively works with to expand resources and opportunities in order to achieve family and community outcomes."]
[null,null,null,"A.","Non-Profit",null,null,null,null,null,null,null,"Annual",null,null,null,null,null,1]
[null,null,null,null,null,null,null,null,null,null,null,null,"Annual"]
[null,null,null,"B.","Faith Based",null,null,null,null,null,null,null,"Annual"]
[null,null,null,null,null,null,null,null,null,null,null,null,"Annual"]
[null,null,null,"C.","Local Government",null,null,null,null,null,null,null,"Annual"]
[null,null,null,null,null,null,null,null,null,null,null,null,"Annual"]
[null,null,null,"D.","State Government",null,null,null,null,null,null,null,"Annual"]
[null,null,null,null,null,null,null,null,null,null,null,null,"Annual"]
[null,null,null,"E.","Federal Government",null,null,null,null,null,null,null,"Annual"]
[null,null,null,null,null,null,null,null,null,null,null,null,"Annual"]
[null,null,null,"F.","For-Profit Business or Corporation",null,null,null,null,null,null,null,"Annual"]
[null,null,null,null,null,null,null,null,null,null,null,null,"Annual"]
[null,null,null,"G.","Consortiums/Collaboration",null,null,null,null,null,null,null,"Annual"]
[null,null,null,null,null,null,null,null,null,null,null,null,"Annual"]
[null,null,null,"H.","Housing Consortiums/Collaboration",null,null,null,null,null,null,null,"Annual",null,null,null,null,null,null,null,null,null,5]
[null,null,null,null,null,null,null,null,null,null,null,null,"Annual"]
[null,null,null,"I.","School Districts",null,null,null,null,null,null,null,"Annual"]
[null,null,null,null,null,null,null,null,null,null,null,null,"Annual"]
[null,null,null,"J.","Institutions of postsecondary education/training",null,null,null,null,null,null,null,"Annual"]
[null,null,null,null,null,null,null,null,null,null,null,null,"Annual"]
[null,null,null,"K.","Financial/Banking Institutions",null,null,null,null,null,null,null,"Annual"]
[null,null,null,null,null,null,null,null,null,null,null,null,"Annual"]
[null,null,null,"L.","Health Service Institutions",null,null,null,null,null,null,null,"Annual"]
[null,null,null,null,null,null,null,null,null,null,null,null,"Annual"]
[null,null,null,"M.","State wide associations or collaborations",null,null,null,null,null,null,null,"Annual"]
[null,null,null,null,null,null,null,null,null,null,null,null,"Annual"]
[null,null,null,"In the rows below, please add other types of partners with which your CAA has formed relationships that were not captured above. "]
[null,null,null,null,null,null,null,null,null,null,null,null,"Annual"]
[null,null,null,null,null,null,null,null,null,null,null,null,"Annual"]
[null,null,null,"The total number of organizations CAAs work with to promote family and community outcomes (automatically calculates)",null,null,null,null,null,null,null,null,"Annual",null,null,{"$f":"SUM(P24+P26+P28+P30+P32+P34+P36+P38+P40+P42+P44+P46+P48+P51)","v":0},null,{"$f":"SUM(R24+R26+R28+R30+R32+R34+R36+R38+R40+R42+R44+R46+R48+R51)","v":0}]
[null,null,null,null,null,null,null,null,null,null,null,null,"Annual",null,null,{"$f":"SUM(P25+P27+P29+P31+P33+P35+P37+P39+P41+P43+P45+P47+P49+P52)","v":0},null,{"$f":"SUM(R25+R27+R29+R31+R33+R35+R37+R39+R41+R43+R45+R47+R49+R52)","v":0}]

{"sheet":"Goal 5 Workplan","index":5,"n_rows":40,"n_cols":22,"rows_kept":40,"cut":false,"hidden":false,"merged":[[33,4,33,8],[18,14,20,16],[12,3,12,19],[3,21,19,26],[18,3,18,13],[19,3,19,13],[32,17,32,19],[29,14,29,16],[2,19,3,19],[7,8,7,19],[8,8,8,19],[9,8,9,12],[10,8,10,12],[10,16,10,19],[9,16,9,19],[4,11,5,12],[31,14,31,16],[31,17,31,19],[23,14,23,16],[23,17,23,19],[27,14,27,16],[27,17,27,19],[25,14,25,16],[25,17,25,19],[26,17,26,19],[26,14,26,16],[36,14,36,16],[36,17,36,19],[35,17,35,19],[39,14,39,16],[39,17,39,19],[38,14,38,16],[38,17,38,19],[37,3,37,19],[38,3,38,13],[21,14,21,16],[21,17,21,19],[19,17,20,19],[35,14,35,16],[28,17,28,19],[34,14,34,16],[34,17,34,19],[28,14,28,16],[29,17,29,19],[33,14,33,16],[33,17,33,19],[24,14,24,16],[24,17,24,19],[32,14,32,16],[30,14,30,16],[30,17,30,19],[15,1,16,1],[1,8,1,9],[1,14,1,15],[1,11,1,12],[22,14,22,16],[7,3,7,7],[9,3,9,7],[21,4,21,13],[20,3,20,13],[13,3,13,19],[14,3,14,19],[15,3,15,19],[16,3,16,19],[17,3,17,19],[22,17,22,19],[18,17,18,19]]}
[]
[null,null,null,null,null,null,null,null,null,null,null,null,null,null,null,null,{"$f":"'Goal 1 Workplan'!N2","v":0}]
[null,null,null,"State of California",null,null,null,null,null,null,null,null,null,null,null,null,{"$f":"'Goal 1 Workplan'!N3","v":0},null,null,{"$f":"'Goal 1 Workplan'!P3","v":0}]
[null,null,null,"Department of Community Services and Development",null,null,null,null,null,null,null,null,null,null,null,null,{"$f":"'Goal 1 Workplan'!N4","v":0},"Contract No.",null,null,null,"Contract Workplan\nDue January of every year.\n\nReporting Period\nJanuary - December (Only)\nComplete Tan area in the \"Workplan\" column\n\nHow to submit\nUpon completion, the Workplans should be submitted with the Contract.\n\nQuestions\nIf you have any question please contact your Field Representative."]
[null,null,null,"CSBG/NPI Workplan",null,null,null,null,null,null,null,"CSBG/NPI Workplan"]
[null,null,null,"CSD 801 W (Rev.8/16)"]
[]
[null,null,null,"Contractor Name:",null,null,null,null,{"$f":"'Goal 1 Workplan'!J11","v":0}]
[null,null,null,"Contact Person and Title:",null,null,null,null,{"$f":"'Goal 1 Workplan'!J12","v":0}]
[null,null,null,"Phone Number:",null,null,null,null,{"$f":"'Goal 1 Workplan'!J13","v":0},null,null,null,null,"Ext. Number:",null,null,{"$f":"'Goal 1 Workplan'!N13","v":0}]
[null,null,null,"E-mail Address:",null,null,null,null,{"$f":"'Goal 1 Workplan'!J14","v":0},null,null,null,null,"Fax Number:",null,null,{"$f":"'Goal 1 Workplan'!N14","v":0}]
[]
[null,null,null,"Goal 5:  Agencies increase their capacity to achieve results."]
[null,null,null,"NPI 5.1:  Agency Development"]
[null,null,null,"Problem Statement: (If additional space is needed, please attach a separate sheet.)"]
[null,"See NPI Instruction Manual, pages 35-36"]
[null,null,null,"Program Activities and Delivery Strategies: (If additional space is needed, please attach a separate sheet."]
[]
[null,null,null,"National Performance\n Indicator 5.1",null,null,null,null,null,null,null,null,null,null,"Reporting Period",null,null,"WORKPLAN"]
[null,null,null,"Agency Development",null,null,null,null,null,null,null,null,null,null,null,null,null,"Number of Resources in Agency Expected to Achieve in Reporting Period\n(#)"]
[null,null,null,"The number of human capital resources available to Community Action that increase agency capacity to achieve family and community outcomes, as measured by one or more of the following:"]
[null,null,null,"A. ","Number of Certified Community Action Professionals",null,null,null,null,null,null,null,null,null,"Annual"]
[null,null,null,null,null,null,null,null,null,null,null,null,null,null,"Annual"]
[null,null,null,"B.","Number of Nationally Certified ROMA Trainers",null,null,null,null,null,null,null,null,null,"Annual"]
[null,null,null,null,null,null,null,null,null,null,null,null,null,null,"Annual"]
[null,null,null,"C.","Number of Family Development Certified Trainers",null,null,null,null,null,null,null,null,null,"Annual"]
[null,null,null,null,null,null,null,null,null,null,null,null,null,null,"Annual"]
[null,null,null,"D.","Number of Child Development Certified Trainers",null,null,null,null,null,null,null,null,null,"Annual"]
[null,null,null,null,null,null,null,null,null,null,null,null,null,null,"Annual"]
[null,null,null,"E.","Number of staff attending trainings",null,null,null,null,null,null,null,null,null,"Annual"]
[null,null,null,null,null,null,null,null,null,null,null,null,null,null,"Annual"]
[null,null,null,"F.","Number of Board Members attending trainings",null,null,null,null,null,null,null,null,null,"Annual"]
[null,null,null,null,null,null,null,null,null,null,null,null,null,null,"Annual"]
[null,null,null,"G.","Hours of staff in trainings",null,null,null,null,null,null,null,null,null,"Annual"]
[null,null,null,null,null,null,null,null,null,null,null,null,null,null,"Annual"]
[null,null,null,"H.","Hours of Board Members in trainings",null,null,null,null,null,null,null,null,null,"Annual"]
[null,null,null,null,null,null,null,null,null,null,null,null,null,null,"Annual"]
[null,null,null,"In the rows below, please include any additional indicators that were not captured above. "]
[null,null,null,null,null,null,null,null,null,null,null,null,null,null,"Annual"]
[null,null,null,null,null,null,null,null,null,null,null,null,null,null,"Annual"]

{"sheet":"Goal 6 Workplan","index":6,"n_rows":169,"n_cols":24,"rows_kept":169,"cut":false,"hidden":false,"merged":[[3,23,19,28],[73,3,73,21],[83,3,83,15],[84,3,84,15],[85,3,85,15],[94,16,94,18],[94,19,94,21],[92,16,92,18],[92,19,92,21],[88,16,88,18],[81,3,81,21],[86,3,86,21],[83,16,85,18],[83,19,83,21],[53,4,54,15],[55,4,56,15],[63,4,64,15],[65,4,66,15],[79,3,79,21],[84,19,85,21],[80,3,80,21],[51,16,51,18],[51,19,51,21],[48,16,50,18],[100,19,100,21],[130,4,130,15],[149,3,149,21],[104,16,104,18],[104,19,104,21],[111,3,111,21],[121,19,121,21],[122,19,123,21],[105,16,105,18],[105,19,105,21],[108,16,108,18],[108,19,108,21],[106,3,106,21],[109,4,110,15],[109,16,109,18],[109,19,109,21],[141,16,141,18],[137,16,137,18],[120,3,120,21],[140,4,141,15],[141,19,141,21],[101,16,101,18],[143,19,143,21],[144,19,144,21],[151,3,151,21],[127,19,127,21],[150,3,150,21],[102,16,102,18],[102,19,102,21],[96,4,97,15],[98,4,99,15],[100,4,101,15],[96,19,96,21],[98,19,98,21],[97,16,97,18],[97,19,97,21],[100,16,100,18],[112,16,112,18],[112,19,112,21],[113,16,113,18],[113,19,113,21],[119,3,119,21],[116,3,116,21],[115,3,115,21],[107,19,107,21],[110,19,110,21],[96,16,96,18],[101,19,101,21],[155,3,155,15],[161,16,161,18],[161,19,161,21],[156,4,157,15],[156,16,156,18],[156,19,156,21],[157,16,157,18],[157,19,157,21],[153,19,153,21],[154,3,154,15],[167,16,167,18],[168,16,168,18],[162,16,162,18],[158,16,158,18],[158,19,158,21],[166,3,166,21],[160,16,160,18],[160,19,160,21],[168,19,168,21],[164,16,164,18],[164,19,164,21],[165,16,165,18],[165,19,165,21],[163,16,163,18],[163,19,163,21],[167,19,167,21],[162,19,162,21],[158,4,159,15],[159,19,159,21],[160,4,161,15],[162,4,163,15],[164,4,165,15],[159,16,159,18],[74,16,74,18],[74,19,74,21],[90,16,90,18],[77,3,77,21],[88,19,88,21],[89,4,90,15],[99,16,99,18],[99,19,99,21],[98,16,98,18],[95,3,95,21],[91,16,91,18],[91,19,91,21],[93,16,93,18],[93,19,93,21],[90,19,90,21],[91,4,92,15],[93,4,94,15],[89,16,89,18],[78,3,78,21],[75,16,75,18],[87,4,88,15],[89,19,89,21],[82,3,82,21],[75,19,75,21],[61,4,62,15],[71,4,72,15],[55,16,55,18],[55,19,55,21],[58,16,58,18],[64,16,64,18],[64,19,64,21],[56,16,56,18],[56,19,56,21],[72,16,72,18],[72,19,72,21],[67,16,67,18],[67,19,67,21],[70,16,70,18],[70,19,70,21],[71,16,71,18],[68,19,68,21],[69,16,69,18],[66,16,66,18],[66,19,66,21],[110,16,110,18],[136,16,136,18],[122,3,122,15],[130,16,130,18],[118,3,118,21],[133,16,133,18],[136,19,136,21],[117,3,117,21],[121,16,123,18],[128,16,128,18],[128,19,128,21],[126,16,126,18],[135,16,135,18],[132,4,133,15],[134,4,135,15],[136,4,137,15],[134,16,134,18],[132,19,132,21],[134,19,134,21],[133,19,133,21],[126,19,126,21],[123,3,123,15],[129,16,129,18],[135,19,135,21],[138,4,139,15],[137,19,137,21],[153,16,155,18],[154,19,155,21],[153,3,153,15],[121,3,121,12],[145,3,146,21],[143,16,143,18],[147,3,147,21],[142,3,142,21],[152,3,152,21],[139,16,139,18],[139,19,139,21],[124,4,125,15],[126,4,127,15],[130,19,130,21],[125,19,125,21],[128,4,129,15],[131,16,131,18],[131,19,131,21],[127,16,127,18],[124,16,124,18],[124,19,124,21],[125,16,125,18],[29,3,30,4],[29,5,30,15],[30,16,30,18],[30,19,30,21],[39,16,39,18],[31,19,31,21],[32,16,32,18],[148,3,148,21],[144,16,144,18],[87,16,87,18],[87,19,87,21],[65,16,65,18],[65,19,65,21],[71,19,71,21],[68,16,68,18],[69,19,69,21],[53,19,53,21],[107,16,107,18],[103,16,103,18],[54,16,54,18],[54,19,54,21],[52,16,52,18],[52,19,52,21],[53,16,53,18],[27,19,27,21],[28,3,28,4],[32,19,32,21],[42,3,42,21],[43,3,43,21],[63,16,63,18],[63,19,63,21],[61,19,61,21],[62,16,62,18],[62,19,62,21],[59,19,59,21],[60,16,60,18],[41,3,41,21],[60,19,60,21],[59,16,59,18],[61,16,61,18],[57,16,57,18],[57,19,57,21],[58,19,58,21],[48,3,48,15],[49,3,49,15],[48,19,48,21],[57,4,58,15],[59,4,60,15],[1,1,7,1],[9,1,12,1],[11,3,11,7],[10,3,10,7],[9,3,9,7],[9,8,9,21],[17,1,18,1],[10,8,10,21],[11,8,11,14],[12,8,12,14],[3,20,3,21],[5,12,7,15],[12,17,12,21],[1,12,1,15],[12,3,12,7],[14,3,14,21],[17,3,17,21],[18,3,18,21],[19,3,19,21],[31,3,32,4],[31,5,32,15],[29,19,29,21],[31,16,31,18],[51,4,52,15],[39,19,39,21],[44,3,45,21],[46,3,46,21],[47,3,47,21],[49,19,50,21],[33,16,33,18],[34,16,34,18],[38,16,38,18],[38,19,38,21],[33,5,34,15],[35,3,36,15],[33,19,33,21],[33,3,34,4],[35,16,35,18],[36,16,36,18],[23,4,24,15],[50,3,50,15],[29,16,29,18],[138,16,138,18],[138,19,138,21],[21,3,21,15],[11,17,11,21],[28,16,28,18],[26,16,26,18],[27,16,27,18],[20,16,22,18],[15,3,15,21],[20,3,20,15],[23,16,23,18],[24,16,24,18],[26,19,26,21],[25,19,25,21],[23,19,23,21],[22,3,22,15],[25,16,25,18],[20,19,20,21],[21,19,22,21],[24,19,24,21],[38,3,38,15],[16,3,16,21],[74,3,74,15],[28,19,28,21],[112,3,112,15],[143,3,143,15],[167,3,167,15],[25,4,25,15],[43,1,44,1],[80,1,81,1],[115,1,116,1],[150,1,151,1],[59,1,62,1],[27,1,29,1],[37,3,37,21],[102,4,103,15],[104,4,105,15],[107,4,108,15],[34,19,34,21],[35,19,35,21],[36,19,36,21],[103,19,103,21],[69,4,70,15],[67,4,68,15],[140,16,140,18],[140,19,140,21],[129,19,129,21],[132,16,132,18]]}
[]
[null,"Use the tab key to move through the cells that require entry.",null,null,null,null,null,null,null,null,null,null,null,null,null,null,null,{"$f":"'Goal 1 Workplan'!N2","v":0}]
[null,null,null,"State of California",null,null,null,null,null,null,null,null,null,null,null,null,null,{"$f":"'Goal 1 Workplan'!N3","v":0}]
[null,null,null,"Department of Community Services and Development",null,null,null,null,null,null,null,null,null,null,null,null,null,{"$f":"'Goal 1 Workplan'!N4","v":0},"Contract No.",null,{"$f":"'Goal 1 Workplan'!P3","v":0},null,null,"Contract Workplan\nDue January of every year.\n\nReporting Period\nJanuary - December (Only)\nComplete Tan area in the \"Workplan\" column\n\nHow to submit\nUpon completion the Workplans should be submitted with the Contract.\n\nQuestions\nIf you have any question please contact your Field Representative."]
[]
[null,null,null,"CSBG/NPI Workplan",null,null,null,null,null,null,null,null,"         CSBG/NPI Workplan"]
[]
[null,null,null,"CSD 801 W (Rev.8/16)"]
[]
[null,"Use the goal 1 tab to enter information into this block of cells.  ",null,"Contractor Name:",null,null,null,null,{"$f":"'Goal 1 Workplan'!J11","v":0}]
[null,null,null,"Contact Person and Title:",null,null,null,null,{"$f":"'Goal 1 Workplan'!J12","v":0}]
[null,null,null,"Phone Number:",null,null,null,null,{"$f":"'Goal 1 Workplan'!J13","v":0},null,null,null,null,null,null,"Ext. Number: ",null,{"$f":"'Goal 1 Workplan'!N13","v":0}]
[null,null,null,"E-mail Address:",null,null,null,null,{"$f":"'Goal 1 Workplan'!J14","v":0},null,null,null,null,null,null,"Fax Number:",null,{"$f":"'Goal 1 Workplan'!N14","v":0}]
[]
[null,null,null,"Goal 6:  Low-income people, especially vulnerable populations, achieve their potential by strengthening family and other supportive environments."]
[null,null,null,"NPI 6.1:  Independent Living"]
[null,null,null,"Problem Statement:  (If additional space is needed, please attach a separate sheet.)"]
[null,"See NPI Instruction Manual, pages 37-40"]
[null,null,null,"Program Activities and Delivery Strategies:  (If additional space is needed, please attach a separate sheet.)"]
[]
[null,null,null,"National Performance\nIndicator 6.1",null,null,null,null,null,null,null,null,null,null,null,null,"Reporting Period",null,null,"WORKPLAN"]
[null,null,null,"Independent Living",null,null,null,null,null,null,null,null,null,null,null,null,null,null,null,"Number of Vulnerable Individuals Living Independently Expected to Achieve in Reporting Period\n(#)"]
[null,null,null,"\nThe number of vulnerable individuals receiving services from Community Action who maintain an independent living situation as a result of those services:"]
[null,null,null,"A.","Senior Citizens (seniors can be reported twice, once under Senior Citizens and again, if they are disabled, under Individuals with Disabilities, ages 55-over.)",null,null,null,null,null,null,null,null,null,null,null,"Annual"]
[null,null,null,null,null,null,null,null,null,null,null,null,null,null,null,null,"Annual"]
[null,null,null,"B.","Individuals with Disabilities ",null,null,null,null,null,null,null,null,null,null,null,"Annual"]
[null,null,null,null,null,null,null,null,null,null,null,null,null,null,null,null,"Annual"]
[null,null,null,"Ages: "]
[null,null,null,"a.",null,"0-17",null,null,null,null,null,null,null,null,null,null,"Annual"]
[null,null,null,"b.",null,"18-54",null,null,null,null,null,null,null,null,null,null,"Annual"]
[null,null,null,null,null,null,null,null,null,null,null,null,null,null,null,null,"Annual"]
[null,null,null,"c.",null,"55-over",null,null,null,null,null,null,null,null,null,null,"Annual"]
[null,null,null,null,null,null,null,null,null,null,null,null,null,null,null,null,"Annual"]
[null,null,null,"d.",null,"Age Unknown",null,null,null,null,null,null,null,null,null,null,"Annual"]
[null,null,null,null,null,null,null,null,null,null,null,null,null,null,null,null,"Annual"]
[null,null,null,"TOTAL Individuals with Disabilities (automatically calculates)",null,null,null,null,null,null,null,null,null,null,null,null,"Annual",null,null,{"$f":"SUM(T29+T30+T32+T34)","v":0}]
[null,null,null,null,null,null,null,null,null,null,null,null,null,null,null,null,"Annual",null,null,{"$f":"SUM(T29+T31+T33+T35)","v":0}]
[null,null,null,"In the rows below, please include any additional indicators for NPI 6.1 that were not captured above."]
[null,null,null,null,null,null,null,null,null,null,null,null,null,null,null,null,"Annual"]
[null,null,null,null,null,null,null,null,null,null,null,null,null,null,null,null,"Annual"]
[]
[null,null,null,"Goal 6:  Low-income people, especially vulnerable populations, achieve their potential by strengthening family and other supportive environments."]
[null,null,null,"NPI 6.2:  Emergency Assistance"]
[null,"See NPI Instruction Manual, pages 41-45",null,"Problem Statement:  (If additional space is needed, please attach a separate sheet.)"]
[]
[]
[null,null,null,"Program Activities and Delivery Strategies:  (If additional space is needed, please attach a separate sheet.)"]
[]
[null,null,null,"National Performance\nIndicator 6.2",null,null,null,null,null,null,null,null,null,null,null,null,"Reporting Period",null,null,"WORKPLAN"]
[null,null,null,"Emergency Assistance",null,null,null,null,null,null,null,null,null,null,null,null,null,null,null,"Number of Individuals Expected to Achieve in Reporting Period\n(#)"]
[null,null,null,"\nThe number of low-income individuals served by Community Action who sought emergency assistance and the number of those individuals for whom assistance was provided, including such service as:"]
[null,null,null,"A.","Emergency Food\n",null,null,null,null,null,null,null,null,null,null,null,"Annual"]
[null,null,null,null,null,null,null,null,null,null,null,null,null,null,null,null,"Annual"]
[null,null,null,"B.","Emergency fuel or utility payments funded by LIHEAP or other public and private funding sources",null,null,null,null,null,null,null,null,null,null,null,"Annual"]
[null,null,null,null,null,null,null,null,null,null,null,null,null,null,null,null,"Annual"]
[null,null,null,"C.","Emergency Rent or Mortgage Assistance\n",null,null,null,null,null,null,null,null,null,null,null,"Annual"]
[null,null,null,null,null,null,null,null,null,null,null,null,null,null,null,null,"Annual"]
[null,null,null,"D.","Emergency Car or Home Repair (i.e. structural appliance, heating systems, etc.)",null,null,null,null,null,null,null,null,null,null,null,"Annual"]
[null,null,null,null,null,null,null,null,null,null,null,null,null,null,null,null,"Annual"]
[null,null,null,"E.","Emergency Temporary Shelter",null,null,null,null,null,null,null,null,null,null,null,"Annual"]
[null,null,null,null,null,null,null,null,null,null,null,null,null,null,null,null,"Annual"]
[null,null,null,"F.","Emergency  Medical Care",null,null,null,null,null,null,null,null,null,null,null,"Annual"]
[null,null,null,null,null,null,null,null,null,null,null,null,null,null,null,null,"Annual"]
[null,null,null,"G.","Emergency Protection from Violence",null,null,null,null,null,null,null,null,null,null,null,"Annual"]
[null,null,null,null,null,null,null,null,null,null,null,null,null,null,null,null,"Annual"]
[null,null,null,"H.","Emergency Legal Assistance",null,null,null,null,null,null,null,null,null,null,null,"Annual"]
[null,null,null,null,null,null,null,null,null,null,null,null,null,null,null,null,"Annual"]
[null,null,null,"I.","Emergency Transportation",null,null,null,null,null,null,null,null,null,null,null,"Annual"]
[null,null,null,null,null,null,null,null,null,null,null,null,null,null,null,null,"Annual"]
[null,null,null,"J","Emergency Disaster Relief",null,null,null,null,null,null,null,null,null,null,null,"Annual"]
[null,null,null,null,null,null,null,null,null,null,null,null,null,null,null,null,"Annual"]
[null,null,null,"K","Emergency Clothing",null,null,null,null,null,null,null,null,null,null,null,"Annual"]
[null,null,null,null,null,null,null,null,null,null,null,null,null,null,null,null,"Annual"]
[null,null,null,"In the rows below, please include any additional indicators for NPI 6.2 that were not captured above."]
[null,null,null,null,null,null,null,null,null,null,null,null,null,null,null,null,"Annual"]
[null,null,null,null,null,null,null,null,null,null,null,null,null,null,null,null,"Annual"]
[]
[null,null,null,"Goal 6:  Low-income people, especially vulnerable populations, achieve their potential by strengthening family and other supportive environments."]
[null,null,null,"NPI 6.3:  Child and Family Development"]
[null,null,null,"Problem Statement:  (If additional space is needed, please attach a separate sheet.)"]
[null,"See NPI Instruction Manual, pages 46-50"]
[null,null,null,"Program Activities and Delivery Strategies:  (If additional space is needed, please attach a separate sheet.)"]
[]
[null,null,null,"National Performance\nIndicator 6.3",null,null,null,null,null,null,null,null,null,null,null,null,"Reporting Period",null,null,"WORKPLAN"]
[null,null,null,"Child and Family Development",null,null,null,null,null,null,null,null,null,null,null,null,null,null,null,"Number of Participants Expected to Achieve Outcome in Reporting Period\n(#)"]
[null,null,null,"The number and percentage of all infants, children, youth, parents, and other adults participating in developmental or enrichment programs that achieve program goals, as measured by one or more of the following:"]
[null,null,null,"INFANTS & CHILDREN"]
[null,null,null,"A.  ","Infants and children obtain age appropriate immunizations, medical, and dental care ",null,null,null,null,null,null,null,null,null,null,null,"Annual "]
[null,null,null,null,null,null,null,null,null,null,null,null,null,null,null,null,"Annual "]
[null,null,null,"B. ","Infant and child health and physical development are improved as a result of adequate nutrition ",null,null,null,null,null,null,null,null,null,null,null,"Annual "]
[null,null,null,null,null,null,null,null,null,null,null,null,null,null,null,null,"Annual "]
[null,null,null,"C.  ","Children participate in pre-school activities to develop school readiness skills",null,null,null,null,null,null,null,null,null,null,null,"Annual "]
[null,null,null,null,null,null,null,null,null,null,null,null,null,null,null,null,"Annual "]
[null,null,null,"D.  ","Children who participate in pre-school activities are developmentally ready to enter Kindergarten or 1st Grade ",null,null,null,null,null,null,null,null,null,null,null,"Annual "]
[null,null,null,null,null,null,null,null,null,null,null,null,null,null,null,null,"Annual "]
[null,null,null," YOUTH"]
[null,null,null,"E. "," Youth improve health and physical development ",null,null,null,null,null,null,null,null,null,null,null,"Annual "]
[null,null,null,null,null,null,null,null,null,null,null,null,null,null,null,null,"Annual "]
[null,null,null,"F. "," Youth improve social/emotional development ",null,null,null,null,null,null,null,null,null,null,null,"Annual "]
[null,null,null,null,null,null,null,null,null,null,null,null,null,null,null,null,"Annual "]
[null,null,null,"G.  ","Youth avoid risk-taking behavior for a defined period of time ",null,null,null,null,null,null,null,null,null,null,null,"Annual "]
[null,null,null,null,null,null,null,null,null,null,null,null,null,null,null,null,"Annual "]
[null,null,null,"H. "," Youth have reduced involvement with criminal justice system ",null,null,null,null,null,null,null,null,null,null,null,"Annual "]
[null,null,null,null,null,null,null,null,null,null,null,null,null,null,null,null,"Annual "]
[null,null,null,"I.  "," Youth increase academic, athletic, or social skills for school success ",null,null,null,null,null,null,null,null,null,null,null,"Annual "]
[null,null,null,null,null,null,null,null,null,null,null,null,null,null,null,null,"Annual "]
[null,null,null,"PARENTS AND OTHER ADULTS"]
[null,null,null,"J.  ","Parents and other adults learn and exhibit  improved parenting skills",null,null,null,null,null,null,null,null,null,null,null,"Annual "]
[null,null,null,null,null,null,null,null,null,null,null,null,null,null,null,null,"Annual "]
[null,null,null,"K.  ","Parents and other adults learn and exhibit improved family functioning skills",null,null,null,null,null,null,null,null,null,null,null,"Annual "]
[null,null,null,null,null,null,null,null,null,null,null,null,null,null,null,null,"Annual "]
[null,null,null,"In the rows below, please include any additional indicators for NPI 6.3 that were not captured above."]
[null,null,null,null,null,null,null,null,null,null,null,null,null,null,null,null,"Annual "]
[null,null,null,null,null,null,null,null,null,null,null,null,null,null,null,null,"Annual "]
[]
[null,"See NPI Instruction Manual, pages 51-54",null,"Goal 6:  Low-income people, especially vulnerable populations, achieve their potential by strengthening family and other supportive environments."]
[null,null,null,"NPI 6.4:  Family Supports"]
[]
[]
[null,null,null,"Program Activities and Delivery Strategies:  (If additional space is needed, please attach a separate sheet.)"]
[]
[null,null,null,"National Performance\nIndicator 6.4",null,null,null,null,null,null,null,null,null,null,null,null,"Reporting Period",null,null,"WORKPLAN"]
[null,null,null,"Family Supports (Seniors, Disabled and Caregivers)",null,null,null,null,null,null,null,null,null,null,null,null,null,null,null,"Number of Participants Expected to Achieve Outcome in Reporting Period\n(#)"]
[null,null,null,"Low-income people who are unable to work, especially seniors, adults with disabilities, and caregivers, for whom barriers to family stability are reduced or eliminated, as measured by one or more of the following:"]
[null,null,null,"A.","Enrolled children in before or after school programs",null,null,null,null,null,null,null,null,null,null,null,"Annual "]
[null,null,null,null,null,null,null,null,null,null,null,null,null,null,null,null,"Annual "]
[null,null,null,"B.","Obtained care for child or other dependent",null,null,null,null,null,null,null,null,null,null,null,"Annual "]
[null,null,null,null,null,null,null,null,null,null,null,null,null,null,null,null,"Annual "]
[null,null,null,"C.","Obtained access to reliable transportation and/or driver's license",null,null,null,null,null,null,null,null,null,null,null,"Annual "]
[null,null,null,null,null,null,null,null,null,null,null,null,null,null,null,null,"Annual "]
[null,null,null,"D.","Obtained health care services for themselves and/or family member",null,null,null,null,null,null,null,null,null,null,null,"Annual "]
[null,null,null,null,null,null,null,null,null,null,null,null,null,null,null,null,"Annual "]
[null,null,null,"E.","Obtained and/or maintained safe and affordable housing",null,null,null,null,null,null,null,null,null,null,null,"Annual "]
[null,null,null,null,null,null,null,null,null,null,null,null,null,null,null,null,"Annual "]
[null,null,null,"F. ","Obtained food assistance",null,null,null,null,null,null,null,null,null,null,null,"Annual "]
[null,null,null,null,null,null,null,null,null,null,null,null,null,null,null,null,"Annual "]
[null,null,null,"G. ","Obtained non-emergency LIHEAP energy assistance",null,null,null,null,null,null,null,null,null,null,null,"Annual "]
[null,null,null,null,null,null,null,null,null,null,null,null,null,null,null,null,"Annual "]
[null,null,null,"H.","Obtained non-emergency WX energy assistance",null,null,null,null,null,null,null,null,null,null,null,"Annual "]
[null,null,null,null,null,null,null,null,null,null,null,null,null,null,null,null,"Annual "]
[null,null,null,"I. ","Obtained other non-emergency energy assistance. (State/local/private energy programs. Do Not Include LIHEAP or WX)",null,null,null,null,null,null,null,null,null,null,null,"Annual "]
[null,null,null,null,null,null,null,null,null,null,null,null,null,null,null,null,"Annual "]
[null,null,null,"In the rows below, please include any additional indicators for NPI 6.4 that were not captured above."]
[null,null,null,null,null,null,null,null,null,null,null,null,null,null,null,null,"Annual "]
[null,null,null,null,null,null,null,null,null,null,null,null,null,null,null,null,"Annual "]
[]
[]
[null,null,null,"Goal 6:  Low-income people, especially vulnerable populations, achieve their potential by strengthening family and other supportive environments."]
[null,null,null,"NPI 6.5:  Service Counts"]
[null,null,null,"Problem Statement:  (If additional space is needed, please attach a separate sheet.)"]
[null,"See NPI Instruction Manual, pages 55-57"]
[null,null,null,"Program Activities and Delivery Strategies:  (If additional space is needed, please attach a separate sheet.)"]
[]
[null,null,null,"National Performance\nIndicator 6.5",null,null,null,null,null,null,null,null,null,null,null,null,"Reporting Period",null,null,"WORKPLAN"]
[null,null,null,"Service Counts",null,null,null,null,null,null,null,null,null,null,null,null,null,null,null,"Number of Services Expected in Reporting Period\n(#)"]
[null,null,null,"The number of services provided to low-income individuals and/or families, as measured by one or more of the following:"]
[null,null,null,"A.","Food Boxes",null,null,null,null,null,null,null,null,null,null,null,"Annual "]
[null,null,null,null,null,null,null,null,null,null,null,null,null,null,null,null,"Annual "]
[null,null,null,"B.","Pounds of Food",null,null,null,null,null,null,null,null,null,null,null,"Annual "]
[null,null,null,null,null,null,null,null,null,null,null,null,null,null,null,null,"Annual "]
[null,null,null,"C.","Units of Clothing",null,null,null,null,null,null,null,null,null,null,null,"Annual "]
[null,null,null,null,null,null,null,null,null,null,null,null,null,null,null,null,"Annual "]
[null,null,null,"D.","Rides Provided",null,null,null,null,null,null,null,null,null,null,null,"Annual "]
[null,null,null,null,null,null,null,null,null,null,null,null,null,null,null,null,"Annual "]
[null,null,null,"E.","Information and Referral Calls",null,null,null,null,null,null,null,null,null,null,null,"Annual "]
[null,null,null,null,null,null,null,null,null,null,null,null,null,null,null,null,"Annual "]
[null,null,null,"In the rows below, please include any additional indicators for NPI 6.5 that were not captured above."]
[null,null,null,null,null,null,null,null,null,null,null,null,null,null,null,null,"Annual "]
[null,null,null,null,null,null,null,null,null,null,null,null,null,null,null,null,"Annual "]

{"sheet":"Explanations Required Mid-Year","index":7,"n_rows":26,"n_cols":25,"rows_kept":26,"cut":false,"hidden":true,"merged":[[41,15,41,25],[41,6,41,14],[19,6,19,14],[20,6,20,14],[21,6,21,14],[22,6,22,14],[23,6,23,14],[24,6,24,14],[39,6,39,14],[40,6,40,14],[36,15,36,25],[37,15,37,25],[38,15,38,25],[39,15,39,25],[40,15,40,25],[29,15,29,25],[38,3,38,5],[39,3,39,5],[40,3,40,5],[38,6,38,14],[41,3,41,5],[36,3,36,5],[37,3,37,5],[35,6,35,14],[36,6,36,14],[37,6,37,14],[35,3,35,5],[30,15,30,25],[31,15,31,25],[32,15,32,25],[33,15,33,25],[35,15,35,25],[34,15,34,25],[32,3,32,5],[33,3,33,5],[34,3,34,5],[32,6,32,14],[33,6,33,14],[34,6,34,14],[29,3,29,5],[30,3,30,5],[31,3,31,5],[29,6,29,14],[30,6,30,14],[31,6,31,14],[28,3,28,5],[26,6,26,14],[27,6,27,14],[28,6,28,14],[19,15,19,25],[20,15,20,25],[21,15,21,25],[22,15,22,25],[23,15,23,25],[24,15,24,25],[25,15,25,25],[26,15,26,25],[28,15,28,25],[21,3,21,5],[22,3,22,5],[18,1,23,1],[18,3,18,5],[19,3,19,5],[20,3,20,5],[26,3,26,5],[14,3,14,25],[15,3,15,25],[16,3,16,25],[17,3,17,25],[27,15,27,25],[23,3,23,5],[24,3,24,5],[25,3,25,5],[25,6,25,14],[18,15,18,25],[18,6,18,14],[27,3,27,5],[1,1,8,1],[3,24,3,25],[8,3,8,25],[10,1,13,1],[10,8,10,25],[11,8,11,25],[12,8,12,17],[12,18,12,20],[12,21,12,25],[13,8,13,17],[13,18,13,20],[13,21,13,25],[3,21,3,23],[5,22,5,25]]}
[]
[null,"Use the tab key to move through the cells that require entry.",null,"State of California"]
[]
[null,null,null,"Department of Community Services and Development",null,null,null,null,null,null,null,null,null,null,null,null,null,null,null,null," ",{"$f":"'Goal 1 Workplan'!P3","v":0},null,null,"Contract No."]
[]
[null,null,null,"CSBG/NPI Programs Report",null,null,null,null,null,null,null,null,null,null,null,null,null,null,null,null,null,{"$f":"'Goal 1 Reporting'!AB4","v":0},"Mid-Year Report (Jan-June)"]
[null,null,null,null,null,null,null,null,null,null,null,null,null,null,null,null,null,null,null,null,null,{"$f":"'Goal 1 Reporting'!AB6","v":0}]
[null,null,null,"CSD 801 (Rev. 10/15)"]
[]
[]
[null,"Use the goal 1 tab to enter information into this block of cells.  ",null,"Contractor Name:",null,null,null,null,{"$f":" 'Goal 1 Workplan'!J11","v":0}]
[null,null,null,"Contact Person and Title:",null,null,null,null,{"$f":"'Goal 1 Workplan'!J12","v":0}]
[null,null,null,"Phone Number:",null,null,null,null,{"$f":"'Goal 1 Workplan'!J13","v":0},null,null,null,null,null,null,null,null,null,"Ext. Number:",null,null,{"$f":"'Goal 1 Workplan'!N13","v":0}]
[null,null,null,"E-mail Address:",null,null,null,null,{"$f":"'Goal 1 Workplan'!J14","v":0},null,null,null,null,null,null,null,null,null,"Fax Number:",null,null,{"$f":"'Goal 1 Workplan'!N14","v":0}]
[]
[null,null,null,"Mid-Year NPI Explanations"]
[]
[null,null,null,"This space is to record an explanation for not meeting or exceeding your projections. This information should includes any program changes, achievement trends or reductions or additions in funding. In addition, this space is available to provide any significant narrative information for national goals."]
[null,"If all of your TEXT is not visible:\n\nHold down ALT key and hit ENTER at various points throughout your narrative.",null,"NPI ",null,null,"Select the reason from the dropdown menu",null,null,null,null,null,null,null,null,"Additional Detail"]
[]
[]
[]
[]
[]
[]
[null,"Use the arrow to have the drop down menu to selection your explanation."]

{"sheet":"Annual Instructions","index":8,"n_rows":33,"n_cols":4,"rows_kept":33,"cut":false,"hidden":false,"merged":[[1,2,1,11],[3,2,3,13],[4,2,4,19],[7,0,8,0],[7,2,7,11],[8,3,8,11],[9,3,9,11],[10,3,10,11],[23,3,23,11],[13,2,13,11],[15,0,16,0],[15,3,15,11],[17,3,17,11],[19,3,19,11],[21,3,21,11],[25,3,25,11],[27,3,27,11],[29,2,29,11],[31,0,36,0],[32,2,32,11]]}
[]
[null,null,"CSBG/NPI Program Report Instructions"]
[]
[]
["Purpose",null,"The CSD 801 captures the progress and achieved outcomes that an agency has performed over the reporting time frame. The CSD 801 annual report is to be completed and submitted electronically by the due date to CSBGReports@csd.ca.gov.           \n"]
[]
[]
["Suggested Tools ",null,"Suggested tools needed to assist you when reporting your progress and achieved outcomes Annual Report\n"]
[null,null,null,"Review your contract workplan"]
[null,null,"     ","National Performance Indicators (NPI) Instruction Manual* (October 2015) "]
[null,null,null,"*documents accessible on the CSD's Providers' website on the Forms page"]
[]
[]
[null,null,"CSBG/NPI Program Report Instructions, Con't"]
[]
["Completing the NPI Annual Report ",null,null,"On the “Goal 1 Reporting” tab enter an X in the upper right hand box indicating Annual Report. The Annual Report covers the term of January through December and is due January 20th. Each Report will reflect the agency’s success in achieving the outcomes. "]
[]
[null,null,null,"The Annual Report covering January through December, report data on the Tan sections. "]
[]
[null,null,null,"Number of Participants/Units Expected to Achieve Outcome in Reporting Period: The Workplan numbers will be automatically populated into the Reporting Document for Goals 1 through 6. "]
[]
[null,null,null,"Number of Participants/Units Enrolled in Program(s) in Reporting Period: Enter actual number enrolled in program (s) for the reporting period. "]
[]
[null,null,null,"Number of Participants/Units Achieving Outcome in Reporting Period: Enter the number that achieved the outcome for the reporting period. "]
[]
[null,null,null,"Percentage Achieving Outcome in Reporting Period: This field requires no data entry and will be automatically calculated from previous columns."]
[]
[null,null,null,"Required Explanation: This field requires no data entry and will be automatically calculated from previous columns. If a response is required, provide the explanation for the variance on the  \"Explanations Required Annual\" tab. The acceptable range for achievement for each reporting period is 80% to 120% of what the agency expected to achieve. "]
[]
[null,null,"ALL DATA FIGURES should be NUMERICAL. If the indicator does not apply to your agency’s work, or data pertaining to that question is not available, leave the cell blank. Do not use percentages, fraction, abbreviations or alpha text."]
[]
["Sample of NPI Report for Annual"]
[null,null,"Goal 1: Low-income people become more self-sufficient."]

{"sheet":"Goal 1 Reporting","index":9,"n_rows":113,"n_cols":50,"rows_kept":113,"cut":false,"hidden":false,"merged":[[20,40,21,47],[21,3,21,31],[12,24,12,31],[13,3,13,7],[13,9,13,20],[13,21,13,23],[13,24,13,31],[15,3,15,31],[1,1,8,1],[1,29,1,30],[5,12,7,21],[10,1,13,1],[10,3,10,7],[10,9,10,31],[11,9,11,31],[12,3,12,7],[12,9,12,20],[12,21,12,23],[1,41,9,45],[27,14,27,16],[16,3,16,31],[17,3,17,31],[18,3,18,31],[19,3,19,31],[20,3,20,31],[22,3,22,31],[27,35,27,39],[26,4,27,13],[27,17,27,19],[27,20,27,22],[27,23,27,25],[27,26,27,28],[27,29,27,31],[27,32,27,34],[26,14,26,16],[26,17,26,19],[26,20,26,22],[26,23,26,25],[26,26,26,28],[28,35,28,39],[29,32,29,34],[29,35,29,39],[22,40,22,45],[23,3,23,13],[23,14,25,16],[23,17,23,19],[23,20,23,22],[23,23,23,25],[23,26,23,28],[23,29,23,31],[23,32,23,34],[23,35,25,39],[24,3,24,13],[24,17,25,19],[24,20,25,22],[24,23,25,25],[24,26,25,28],[24,29,25,31],[24,32,25,34],[25,3,25,13],[26,29,26,31],[26,32,26,34],[26,35,26,39],[30,4,31,13],[30,14,30,16],[30,17,30,19],[30,20,30,22],[30,23,30,25],[30,26,30,28],[30,29,30,31],[30,32,30,34],[29,14,29,16],[29,17,29,19],[29,20,29,22],[29,23,29,25],[29,26,29,28],[29,29,29,31],[28,4,29,13],[28,14,28,16],[28,17,28,19],[28,20,28,22],[28,23,28,25],[28,26,28,28],[28,29,28,31],[28,32,28,34],[33,20,33,22],[33,23,33,25],[33,26,33,28],[33,29,33,31],[33,32,33,34],[32,14,32,16],[32,17,32,19],[32,20,32,22],[32,23,32,25],[32,26,32,28],[30,35,30,39],[31,14,31,16],[31,17,31,19],[31,20,31,22],[31,23,31,25],[31,26,31,28],[31,29,31,31],[31,32,31,34],[31,35,31,39],[32,4,33,13],[35,35,35,39],[36,14,36,16],[36,17,36,19],[36,20,36,22],[36,23,36,25],[36,26,36,28],[36,29,36,31],[36,32,36,34],[36,35,36,39],[34,3,34,31],[35,14,35,16],[35,17,35,19],[35,20,35,22],[35,23,35,25],[35,26,35,28],[35,29,35,31],[35,32,35,34],[32,29,32,31],[32,32,32,34],[32,35,32,39],[33,14,33,16],[33,17,33,19],[33,35,33,39],[44,3,44,31],[45,3,45,12],[45,14,47,16],[45,17,45,19],[45,20,45,22],[45,23,45,25],[45,26,45,28],[45,29,45,31],[38,3,38,31],[39,3,39,31],[40,3,40,31],[41,3,41,31],[42,3,42,31],[43,3,43,31],[45,32,45,34],[45,35,47,39],[46,3,46,11],[46,17,47,19],[46,20,47,22],[46,23,47,25],[46,26,47,28],[46,29,47,31],[46,32,47,34],[47,3,47,13],[48,29,48,31],[48,32,48,34],[48,35,48,39],[49,14,49,16],[49,17,49,19],[49,20,49,22],[49,23,49,25],[49,26,49,28],[49,29,49,31],[49,32,49,34],[48,14,48,16],[48,17,48,19],[48,20,48,22],[48,23,48,25],[48,26,48,28],[49,35,49,39],[50,4,51,13],[50,14,50,16],[50,17,50,19],[50,20,50,22],[50,23,50,25],[50,26,50,28],[50,29,50,31],[50,32,50,34],[50,35,50,39],[48,4,49,13],[51,32,51,34],[51,35,51,39],[52,4,53,13],[52,14,52,16],[52,17,52,19],[52,20,52,22],[52,23,52,25],[52,26,52,28],[52,29,52,31],[52,32,52,34],[51,14,51,16],[51,17,51,19],[51,20,51,22],[51,23,51,25],[51,26,51,28],[51,29,51,31],[52,35,52,39],[53,14,53,16],[53,17,53,19],[53,20,53,22],[53,23,53,25],[53,26,53,28],[53,29,53,31],[53,32,53,34],[53,35,53,39],[54,29,54,31],[54,32,54,34],[54,35,54,39],[55,14,55,16],[55,17,55,19],[55,20,55,22],[55,23,55,25],[55,26,55,28],[55,29,55,31],[55,32,55,34],[54,14,54,16],[54,17,54,19],[54,20,54,22],[54,23,54,25],[54,26,54,28],[55,35,55,39],[56,4,57,13],[56,14,56,16],[56,17,56,19],[56,20,56,22],[56,23,56,25],[56,26,56,28],[56,29,56,31],[56,32,56,34],[56,35,56,39],[54,4,55,13],[57,32,57,34],[57,35,57,39],[58,4,59,13],[58,14,58,16],[58,17,58,19],[58,20,58,22],[58,23,58,25],[58,26,58,28],[58,29,58,31],[58,32,58,34],[57,14,57,16],[57,17,57,19],[57,20,57,22],[57,23,57,25],[57,26,57,28],[57,29,57,31],[58,35,58,39],[59,14,59,16],[59,17,59,19],[59,20,59,22],[59,23,59,25],[59,26,59,28],[59,29,59,31],[59,32,59,34],[59,35,59,39],[60,29,60,31],[60,32,60,34],[60,35,60,39],[61,14,61,16],[61,17,61,19],[61,20,61,22],[61,23,61,25],[61,26,61,28],[61,29,61,31],[61,32,61,34],[60,14,60,16],[60,17,60,19],[60,20,60,22],[60,23,60,25],[60,26,60,28],[61,35,61,39],[62,4,63,13],[62,14,62,16],[62,17,62,19],[62,20,62,22],[62,23,62,25],[62,26,62,28],[62,29,62,31],[62,32,62,34],[62,35,62,39],[60,4,61,13],[63,32,63,34],[63,35,63,39],[64,4,65,13],[64,14,64,16],[64,17,64,19],[64,20,64,22],[64,23,64,25],[64,26,64,28],[64,29,64,31],[64,32,64,34],[63,14,63,16],[63,17,63,19],[63,20,63,22],[63,23,63,25],[63,26,63,28],[63,29,63,31],[64,35,64,39],[65,14,65,16],[65,17,65,19],[65,20,65,22],[65,23,65,25],[65,26,65,28],[65,29,65,31],[68,32,68,34],[68,35,68,39],[65,32,65,34],[65,35,65,39],[66,29,66,31],[66,32,66,34],[66,35,66,39],[67,14,67,16],[67,17,67,19],[67,20,67,22],[67,23,67,25],[67,26,67,28],[67,29,67,31],[67,32,67,34],[66,14,66,16],[66,17,66,19],[66,20,66,22],[66,23,66,25],[66,26,66,28],[67,35,67,39],[66,4,67,13],[69,32,69,34],[69,35,69,39],[70,4,71,13],[70,14,70,16],[70,17,70,19],[70,20,70,22],[70,23,70,25],[70,26,70,28],[70,29,70,31],[70,32,70,34],[69,14,69,16],[69,17,69,19],[69,20,69,22],[69,23,69,25],[69,26,69,28],[69,29,69,31],[68,4,69,13],[68,14,68,16],[68,17,68,19],[68,20,68,22],[68,23,68,25],[68,26,68,28],[68,29,68,31],[72,3,72,31],[73,14,73,16],[73,17,73,19],[73,20,73,22],[73,23,73,25],[73,26,73,28],[73,29,73,31],[70,35,70,39],[71,14,71,16],[71,17,71,19],[71,20,71,22],[71,23,71,25],[71,26,71,28],[71,29,71,31],[71,32,71,34],[71,35,71,39],[75,3,75,31],[76,3,76,31],[77,3,77,31],[78,3,78,31],[79,3,79,31],[80,3,80,31],[73,32,73,34],[73,35,73,39],[74,14,74,16],[74,17,74,19],[74,20,74,22],[74,23,74,25],[74,26,74,28],[74,29,74,31],[74,32,74,34],[74,35,74,39],[81,26,81,28],[81,29,81,31],[81,32,81,34],[81,35,83,39],[82,3,82,10],[82,14,83,16],[82,17,83,19],[82,20,83,22],[82,23,83,25],[82,26,83,28],[81,3,81,10],[81,11,83,13],[81,14,81,16],[81,17,81,19],[81,20,81,22],[81,23,81,25],[82,29,83,31],[82,32,83,34],[83,3,83,10],[84,3,84,31],[85,4,86,10],[85,11,85,13],[85,14,85,16],[85,17,85,19],[85,20,85,22],[85,23,85,25],[85,26,85,28],[85,29,85,31],[85,32,85,34],[85,35,85,39],[86,11,86,13],[86,14,86,16],[86,17,86,19],[86,20,86,22],[86,23,86,25],[86,26,86,28],[86,29,86,31],[86,32,86,34],[86,35,86,39],[87,35,87,39],[88,11,88,13],[88,14,88,16],[88,17,88,19],[88,20,88,22],[88,23,88,25],[88,26,88,28],[88,29,88,31],[88,32,88,34],[88,35,88,39],[87,29,87,31],[87,4,88,10],[87,11,87,13],[87,14,87,16],[87,17,87,19],[87,20,87,22],[87,23,87,25],[87,26,87,28],[87,32,87,34],[95,3,95,31],[93,3,93,10],[93,14,94,16],[93,17,94,19],[93,20,94,22],[93,23,94,25],[93,26,94,28],[96,4,97,10],[96,11,96,13],[96,14,96,16],[96,17,96,19],[96,20,96,22],[96,23,96,25],[96,26,96,28],[96,29,97,31],[96,32,96,34],[96,35,96,39],[97,11,97,13],[97,14,97,16],[97,17,97,19],[97,20,97,22],[97,23,97,25],[97,26,97,28],[97,32,97,34],[97,35,97,39],[98,4,99,10],[98,26,98,28],[98,29,99,31],[98,32,98,34],[98,35,98,39],[99,11,99,13],[99,14,99,16],[99,17,99,19],[99,20,99,22],[99,23,99,25],[99,26,99,28],[98,11,98,13],[98,14,98,16],[98,17,98,19],[98,20,98,22],[98,23,98,25],[99,32,99,34],[99,35,99,39],[103,32,103,34],[102,11,102,13],[102,14,102,16],[102,17,102,19],[102,20,102,22],[102,23,102,25],[102,26,102,28],[100,4,101,10],[100,11,100,13],[100,14,100,16],[100,17,100,19],[100,20,100,22],[100,23,100,25],[100,26,100,28],[100,29,100,31],[102,29,102,31],[102,4,103,10],[102,32,102,34],[103,26,103,28],[103,29,103,31],[101,35,101,39],[100,32,100,34],[100,35,100,39],[101,11,101,13],[101,14,101,16],[101,17,101,19],[101,20,101,22],[101,23,101,25],[101,26,101,28],[101,29,101,31],[101,32,101,34],[104,35,104,39],[105,11,105,13],[105,14,105,16],[105,17,105,19],[105,20,105,22],[105,23,105,25],[105,26,105,28],[105,29,105,31],[105,32,105,34],[105,35,105,39],[104,4,105,10],[104,11,104,13],[104,14,104,16],[104,17,104,19],[104,20,104,22],[104,23,104,25],[104,26,104,28],[104,29,104,31],[104,32,104,34],[102,35,102,39],[103,11,103,13],[103,14,103,16],[106,29,106,31],[106,32,106,34],[106,35,106,39],[107,11,107,13],[107,14,107,16],[107,17,107,19],[107,20,107,22],[107,23,107,25],[107,26,107,28],[106,11,106,13],[106,14,106,16],[106,17,106,19],[106,20,106,22],[106,23,106,25],[107,29,107,31],[107,32,107,34],[107,35,107,39],[103,35,103,39],[103,17,103,19],[103,20,103,22],[103,23,103,25],[108,26,108,28],[106,4,107,10],[111,11,111,13],[111,14,111,16],[111,17,111,19],[111,20,111,22],[111,23,111,25],[111,26,111,28],[106,26,106,28],[112,32,112,34],[112,35,112,39],[92,3,92,10],[92,11,94,13],[92,14,92,16],[92,17,92,19],[92,20,92,22],[92,23,92,25],[92,26,92,28],[92,29,92,31],[111,29,111,31],[111,32,111,34],[111,35,111,39],[112,11,112,13],[112,14,112,16],[112,17,112,19],[112,20,112,22],[112,23,112,25],[112,26,112,28],[112,29,112,31],[109,32,109,34],[109,35,109,39],[110,3,110,31],[108,29,108,31],[90,35,90,39],[89,32,89,34],[89,35,89,39],[90,11,90,13],[90,14,90,16],[90,17,90,19],[90,20,90,22],[90,23,90,25],[90,26,90,28],[90,29,90,31],[90,32,90,34],[89,11,89,13],[89,14,89,16],[89,17,89,19],[89,20,89,22],[89,23,89,25],[89,26,89,28],[89,29,89,31],[35,3,35,13],[111,3,111,10],[73,3,73,13],[89,4,89,10],[23,40,39,47],[93,29,94,31],[94,3,94,10],[24,1,25,1],[45,1,47,1],[108,32,108,34],[108,35,108,39],[109,11,109,13],[109,14,109,16],[109,17,109,19],[109,20,109,22],[109,23,109,25],[109,26,109,28],[109,29,109,31],[108,4,109,10],[108,11,108,13],[108,14,108,16],[108,17,108,19],[108,20,108,22],[108,23,108,25]]}
[]
[null,"Use the tab key to move through the cells that require entry.",null,"State of California",null,null,null,null,null,null,null,null,null,null,null,null,null,null,null,null,null,null,null,null,null,null,null,"Contract No.",null,{"$f":"'Goal 1 Workplan'!P3","v":0},null,null,null,null,null,null,null,null,null,null,null,"Place an X in the report that is being submitted. This will automatically populate to all other Goal tabs. "]
[]
[null,null,null,"Department of Community Services and Development"]
[]
[null,null,null,"CSBG/NPI Programs Report",null,null,null,null,null,null,null,null,"CSBG/NPI Programs Report"]
[]
[null,null,null,"CSD 801 (Rev.8/16)"]
[]
[]
[null,"Typing information into this block of cells will populate the items on all of the Goal tabs.",null,"Contractor Name:",null,null,null,null,null,{"$f":"'Goal 1 Workplan'!J11","v":0}]
[null,null,null,"Contact Person and Title:",null,null,null,null,null,{"$f":"'Goal 1 Workplan'!J12","v":0}]
[null,null,null,"Phone Number:",null,null,null,null,null,{"$f":"'Goal 1 Workplan'!J13","v":0},null,null,null,null,null,null,null,null,null,null,null,"Ext. Number:",null,null,{"$f":"'Goal 1 Workplan'!N13","v":0}]
[null,null,null,"E-mail Address:",null,null,null,null,null,{"$f":"'Goal 1 Workplan'!J14","v":0},null,null,null,null,null,null,null,null,null,null,null,"Fax Number:",null,null,{"$f":"'Goal 1 Workplan'!N14","v":0}]
[]
[null,null,null,"Goal 1:  Low-income people become more self-sufficient."]
[null,null,null,"NPI 1.1:  Employment"]
[null,null,null,"Problem Statement:  (If additional space is needed, please attach a separate sheet.)"]
[null,null,null,{"$f":"'Goal 1 Workplan'!D19","v":0}]
[null,null,null,"Program Activities and Delivery Strategies:  (If additional space is needed, please attach a separate sheet.)"]
[null,null,null,{"$f":"'Goal 1 Workplan'!D22","v":0},null,null,null,null,null,null,null,null,null,null,null,null,null,null,null,null,null,null,null,null,null,null,null,null,null,null,null,null,null,null,null,null,null,null,null,null,"REPORTING PERIODS",null,null,null,null,null,null,null,null,5]
[]
[]
[null,null,null,"National Performance\nIndicator 1.1",null,null,null,null,null,null,null,null,null,null,"Reporting Period",null,null,"I",null,null,"II",null,null,"III",null,null,"IV",null,null,"V",null,null,"CSD Review",null,null,"NPI Analysis",null,null,null,null,"Annual Report\nDue January 20th of every year.\n\nReporting Period\nJanuary 1 - December 31\n\nHow to Complete\nFill in the Tan cells that are \napplicable to your workplan. \n(Note: the Light Gray \"Column I\" \nautomatically populates from the Workplan tab)\n\nHow to Submit Annual Report\nUpon completion of report, \nthis workbook should be \nE-MAILED to the following address\nCSBGReports@csd.ca.gov\nand copy your assigned Field Representative.\n"]
[null," See NPI Instruction Manual pages 1-5",null,"Employment",null,null,null,null,null,null,null,null,null,null,null,null,null,"Number of Participants Expected to Achieve Outcome in Reporting Period\n(#)",null,null,"Number of Participants Enrolled in Program(s) in Reporting Period\n(#)",null,null,"Number of Participants Achieving Outcome in Reporting Period\n(#) \n",null,null,"Percentage Achieving Outcome in Reporting Period \n(III/I=IV)\n(%)",null,null,"Explanations Required\n\n(Report on explanation tab)",null,null,"Column 3 >/= Column 2"]
[null,null,null,"The number and percentage of low-income participants who get a job or become self-employed, as a result of Community Action Assistance, as measured by one or more of the following:"]
[null,null,null,"A.","Unemployed and obtained a job \n",null,null,null,null,null,null,null,null,null,"Annual ",null,null,{"$f":"'Goal 1 Workplan'!N26","v":0},null,null,null,null,null,null,null,null,{"$f":"IF(R27=\"\",\"\",IF(R27=0,\"\",IF(X27=\"\",\"\",IF(X27=0,\"\",IF(X27=R27,\"100%\",IF(R27=X27,,(X27/R27)))))))","v":""},null,null,{"$f":"IF(R27=X27,\"\",IF(X27=0,\"\",IF(X27/R27<80%,\"Explanation\",IF(X27/R27>120%,\"Explanation\",\"\"))))","v":""},null,null,{"$f":"IF(X27>U27, \"Achieving > Enrolled\", IF(X27=U27,\"\", IF(X27<U27,\"\", IF(X27=0,\"\", IF(U27=0, \"\")))))","v":""}]
[null,null,null,null,null,null,null,null,null,null,null,null,null,null,null,null,null,{"$f":"'Goal 1 Workplan'!N27","v":0},null,null,null,null,null,null,null,null,{"$f":"IF(R28=\"\",\"\",IF(R28=0,\"\",IF(X28=\"\",\"\",IF(X28=0,\"\",IF(X28=R28,\"100%\",IF(R28=X28,,(X28/R28)))))))","v":""},null,null,{"$f":"IF(R28=X28,\"\",IF(X28=0,\"\",IF(X28/R28<80%,\"Explanation\",IF(X28/R28>120%,\"Explanation\",\"\"))))","v":""},null,null,""]
[null,null,null,"B.","Employed and maintained a job for a least 90 days\n",null,null,null,null,null,null,null,null,null,"Annual ",null,null,{"$f":"'Goal 1 Workplan'!N28","v":0},null,null,null,null,null,null,null,null,{"$f":"IF(R29=\"\",\"\",IF(R29=0,\"\",IF(X29=\"\",\"\",IF(X29=0,\"\",IF(X29=R29,\"100%\",IF(R29=X29,,(X29/R29)))))))","v":""},null,null,"",null,null,""]
[null,null,null,null,null,null,null,null,null,null,null,null,null,null,null,null,null,{"$f":"'Goal 1 Workplan'!N29","v":0},null,null,null,null,null,null,null,null,"",null,null,"",null,null,""]
[null,null,null,"C.","Employed and obtained an increase in employment income and/or benefits",null,null,null,null,null,null,null,null,null,"Annual ",null,null,{"$f":"'Goal 1 Workplan'!N30","v":0},null,null,null,null,null,null,null,null,"",null,null,"",null,null,""]
[null,null,null,null,null,null,null,null,null,null,null,null,null,null,null,null,null,{"$f":"'Goal 1 Workplan'!N31","v":0},null,null,null,null,null,null,null,null,"",null,null,"",null,null,""]
[null,null,null,"D.","Achieved \"living wage\" employment and/or benefits",null,null,null,null,null,null,null,null,null,"Annual ",null,null,{"$f":"'Goal 1 Workplan'!N32","v":0},null,null,null,null,null,null,null,null,"",null,null,"",null,null,""]
[null,null,null,null,null,null,null,null,null,null,null,null,null,null,null,null,null,{"$f":"'Goal 1 Workplan'!N33","v":0},null,null,null,null,null,null,null,null,"",null,null,"",null,null,""]
[null,null,null,"In the rows below, please include any additional indicators for NPI 1.1 that were not captured above."]
[null,null,null,{"$f":"'Goal 1 Workplan'!D35","v":0},null,null,null,null,null,null,null,null,null,null,"Annual ",null,null,{"$f":"'Goal 1 Workplan'!N35","v":0},null,null,null,null,null,null,null,null,{"$f":"IF(R36=\"\",\"\",IF(R36=0,\"\",IF(X36=\"\",\"\",IF(X36=0,\"\",IF(X36=R36,\"100%\",IF(R36=X36,,(X36/R36)))))))","v":""},null,null,{"$f":"IF(R36=X36,\"\",IF(X36=0,\"\",IF(X36/R36<80%,\"Explanation\",IF(X36/R36>120%,\"Explanation\",\"\"))))","v":""},null,null,{"$f":"IF(X36>U36, \"Achieving > Enrolled\", IF(X36=U36,\"\", IF(X36<U36,\"\", IF(X36=0,\"\", IF(U36=0, \"\")))))","v":""}]
[null,null,null,null,null,null,null,null,null,null,null,null,null,null,null,null,null,{"$f":"'Goal 1 Workplan'!N36","v":0},null,null,null,null,null,null,null,null,{"$f":"IF(R37=\"\",\"\",IF(R37=0,\"\",IF(X37=\"\",\"\",IF(X37=0,\"\",IF(X37=R37,\"100%\",IF(R37=X37,,(X37/R37)))))))","v":""},null,null,{"$f":"IF(R37=X37,\"\",IF(X37=0,\"\",IF(X37/R37<80%,\"Explanation\",IF(X37/R37>120%,\"Explanation\",\"\"))))","v":""},null,null,{"$f":"IF(X37>U37, \"Achieving > Enrolled\", IF(X37=U37,\"\", IF(X37<U37,\"\", IF(X37=0,\"\", IF(U37=0, \"\")))))","v":""}]
[]
[null,null,null,"Goal 1:  Low-income people become more self-sufficient."]
[null,null,null,"NPI 1.2:  Employment Supports"]
[null,null,null,"Problem Statement:  (If additional space is needed, please attach a separate sheet.)"]
[]
[null,null,null,{"$f":"'Goal 1 Workplan'!D41","v":0}]
[null,null,null,"Program Activities and Delivery Strategies:  (If additional space is needed, please attach a separate sheet.)"]
[null,null,null,{"$f":"'Goal 1 Workplan'!D44","v":0}]
[null,"See NPI Instruction Manual, pages 5-9",null,"National Performance\nIndicator 1.2",null,null,null,null,null,null,null,null,null,null,"Reporting Period",null,null,"I",null,null,"II",null,null,"III",null,null,"IV",null,null,"V",null,null,"CSD Review",null,null,"NPI Analysis"]
[null,null,null,"Employment Supports",null,null,null,null,null,null,null,null,null,null,null,null,null,"Number of Participants Expected to Achieve Outcome in Reporting Period\n(#)",null,null,"Number of Participants Enrolled in Program(s) in Reporting Period\n(#)",null,null,"Number of Participants Achieving Outcome in Reporting Period\n(#) \n",null,null,"Percentage Achieving Outcome in Reporting Period \n(III/I=IV)\n(%)",null,null,"Explanations Required\n\n(Report on explanation tab)",null,null,"Column 3 >/= Column 2"]
[null,null,null,"\nThe number of low-income participants for whom barriers to initial or continuous employment are reduced or eliminated through assistance from Community Action, as measured by one or more of the following:"]
[null,null,null,"A.","Obtained skills/competencies required for employment",null,null,null,null,null,null,null,null,null,"Annual ",null,null,{"$f":"'Goal 1 Workplan'!N50","v":0},null,null,null,null,null,null,null,null,{"$f":"IF(R49=\"\",\"\",IF(R49=0,\"\",IF(X49=\"\",\"\",IF(X49=0,\"\",IF(X49=R49,\"100%\",IF(R49=X49,,(X49/R49)))))))","v":""},null,null,{"$f":"IF(R49=X49,\"\",IF(X49=0,\"\",IF(X49/R49<80%,\"Explanation\",IF(X49/R49>120%,\"Explanation\",\"\"))))","v":""},null,null,{"$f":"IF(X49>U49, \"Achieving > Enrolled\", IF(X49=U49,\"\", IF(X49<U49,\"\", IF(X49=0,\"\", IF(U49=0, \"\")))))","v":""}]
[null,null,null,null,null,null,null,null,null,null,null,null,null,null,null,null,null,{"$f":"'Goal 1 Workplan'!N51","v":0},null,null,null,null,null,null,null,null,"",null,null,{"$f":"IF(R50=X50,\"\",IF(X50=0,\"\",IF(X50/R50<80%,\"Explanation\",IF(X50/R50>120%,\"Explanation\",\"\"))))","v":""},null,null,""]
[null,null,null,"B.","Completed ABE/GED and received certificate or diploma\n",null,null,null,null,null,null,null,null,null,"Annual ",null,null,{"$f":"'Goal 1 Workplan'!N52","v":0},null,null,null,null,null,null,null,null,"",null,null,"",null,null,""]
[null,null,null,null,null,null,null,null,null,null,null,null,null,null,null,null,null,{"$f":"'Goal 1 Workplan'!N53","v":0},null,null,null,null,null,null,null,null,"",null,null,"",null,null,""]
[null,null,null,"C.","Completed post-secondary education program and obtained certificate or diploma  \n",null,null,null,null,null,null,null,null,null,"Annual ",null,null,{"$f":"'Goal 1 Workplan'!N54","v":0},null,null,null,null,null,null,null,null,"",null,null,"",null,null,""]
[null,null,null,null,null,null,null,null,null,null,null,null,null,null,null,null,null,{"$f":"'Goal 1 Workplan'!N55","v":0},null,null,null,null,null,null,null,null,"",null,null,"",null,null,""]
[null,null,null,"D.","Enrolled children in \"before\" or \"after\" school programs\n",null,null,null,null,null,null,null,null,null,"Annual ",null,null,{"$f":"'Goal 1 Workplan'!N56","v":0},null,null,null,null,null,null,null,null,"",null,null,"",null,null,""]
[null,null,null,null,null,null,null,null,null,null,null,null,null,null,null,null,null,{"$f":"'Goal 1 Workplan'!N57","v":0},null,null,null,null,null,null,null,null,"",null,null,"",null,null,""]
[null,null,null,"E.","Obtained care for child or other dependant\n",null,null,null,null,null,null,null,null,null,"Annual ",null,null,{"$f":"'Goal 1 Workplan'!N58","v":0},null,null,null,null,null,null,null,null,"",null,null,"",null,null,""]
[null,null,null,null,null,null,null,null,null,null,null,null,null,null,null,null,null,{"$f":"'Goal 1 Workplan'!N59","v":0},null,null,null,null,null,null,null,null,"",null,null,"",null,null,""]
[null,null,null,"F.","Obtained access to reliable transportation and/or driver's license\n",null,null,null,null,null,null,null,null,null,"Annual ",null,null,{"$f":"'Goal 1 Workplan'!N60","v":0},null,null,null,null,null,null,null,null,"",null,null,"",null,null,""]
[null,null,null,null,null,null,null,null,null,null,null,null,null,null,null,null,null,{"$f":"'Goal 1 Workplan'!N61","v":0},null,null,null,null,null,null,null,null,"",null,null,"",null,null,""]
[null,null,null,"G.","Obtained health care services for themselves and/or a family member\n",null,null,null,null,null,null,null,null,null,"Annual ",null,null,{"$f":"'Goal 1 Workplan'!N62","v":0},null,null,null,null,null,null,null,null,"",null,null,"",null,null,""]
[null,null,null,null,null,null,null,null,null,null,null,null,null,null,null,null,null,{"$f":"'Goal 1 Workplan'!N63","v":0},null,null,null,null,null,null,null,null,"",null,null,"",null,null,""]
[null,null,null,"H.","Obtained and/or maintained safe and affordable housing ",null,null,null,null,null,null,null,null,null,"Annual ",null,null,{"$f":"'Goal 1 Workplan'!N64","v":0},null,null,null,null,null,null,null,null,"",null,null,"",null,null,""]
[null,null,null,null,null,null,null,null,null,null,null,null,null,null,null,null,null,{"$f":"'Goal 1 Workplan'!N65","v":0},null,null,null,null,null,null,null,null,"",null,null,"",null,null,""]
[null,null,null,"I.","Obtained food assistance \n",null,null,null,null,null,null,null,null,null,"Annual ",null,null,{"$f":"'Goal 1 Workplan'!N66","v":0},null,null,null,null,null,null,null,null,"",null,null,"",null,null,""]
[null,null,null,null,null,null,null,null,null,null,null,null,null,null,null,null,null,{"$f":"'Goal 1 Workplan'!N67","v":0},null,null,null,null,null,null,null,null,"",null,null,"",null,null,""]
[null,null,null,"J.","Obtained non-emergency LIHEAP energy assistance\n",null,null,null,null,null,null,null,null,null,"Annual ",null,null,{"$f":"'Goal 1 Workplan'!N68","v":0},null,null,null,null,null,null,null,null,"",null,null,"",null,null,""]
[null,null,null,null,null,null,null,null,null,null,null,null,null,null,null,null,null,{"$f":"'Goal 1 Workplan'!N69","v":0},null,null,null,null,null,null,null,null,"",null,null,"",null,null,""]
[null,null,null,"K.","Obtained non-emergency WX energy assistance\n",null,null,null,null,null,null,null,null,null,"Annual ",null,null,{"$f":"'Goal 1 Workplan'!N70","v":0},null,null,null,null,null,null,null,null,"",null,null,"",null,null,""]
[null,null,null,null,null,null,null,null,null,null,null,null,null,null,null,null,null,{"$f":"'Goal 1 Workplan'!N71","v":0},null,null,null,null,null,null,null,null,"",null,null,"",null,null,""]
[null,null,null,"L.","Obtained other non-emergency energy assistance (State/local/private energy programs. Do Not Include LIHEAP or WX)",null,null,null,null,null,null,null,null,null,"Annual ",null,null,{"$f":"'Goal 1 Workplan'!N72","v":0},null,null,null,null,null,null,null,null,"",null,null,"",null,null,""]
[null,null,null,null,null,null,null,null,null,null,null,null,null,null,null,null,null,{"$f":"'Goal 1 Workplan'!N73","v":0},null,null,null,null,null,null,null,null,"",null,null,"",null,null,""]
[null,null,null,"In the rows below, please include any additional indicators for NPI 1.2 that were not captured above."]
[null,null,null,{"$f":"'Goal 1 Workplan'!D75","v":0},null,null,null,null,null,null,null,null,null,null,"Annual ",null,null,{"$f":"'Goal 1 Workplan'!N75","v":0},null,null,null,null,null,null,null,null,{"$f":"IF(R74=\"\",\"\",IF(R74=0,\"\",IF(X74=\"\",\"\",IF(X74=0,\"\",IF(X74=R74,\"100%\",IF(R74=X74,,(X74/R74)))))))","v":""},null,null,{"$f":"IF(R74=X74,\"\",IF(X74=0,\"\",IF(X74/R74<80%,\"Explanation\",IF(X74/R74>120%,\"Explanation\",\"\"))))","v":""},null,null,{"$f":"IF(X74>U74, \"Achieving > Enrolled\", IF(X74=U74,\"\", IF(X74<U74,\"\", IF(X74=0,\"\", IF(U74=0, \"\")))))","v":""}]
[null,null,null,null,null,null,null,null,null,null,null,null,null,null,null,null,null,{"$f":"'Goal 1 Workplan'!N76","v":0},null,null,null,null,null,null,null,null,{"$f":"IF(R75=\"\",\"\",IF(R75=0,\"\",IF(X75=\"\",\"\",IF(X75=0,\"\",IF(X75=R75,\"100%\",IF(R75=X75,,(X75/R75)))))))","v":""},null,null,{"$f":"IF(R75=X75,\"\",IF(X75=0,\"\",IF(X75/R75<80%,\"Explanation\",IF(X75/R75>120%,\"Explanation\",\"\"))))","v":""},null,null,{"$f":"IF(X75>U75, \"Achieving > Enrolled\", IF(X75=U75,\"\", IF(X75<U75,\"\", IF(X75=0,\"\", IF(U75=0, \"\")))))","v":""}]
[null,null,null,"Goal 1:  Low-income people become more self-sufficient."]
[null,null,null,"NPI 1.3:  Economic Asset Enhancement and Utilization"]
[null,null,null,"Problem Statement:  (If additional space is needed, please attach a separate sheet.)"]
[null,null,null,{"$f":"'Goal 1 Workplan'!D81","v":0}]
[null,null,null,"Program Activities and Delivery Strategies:  (If additional space is needed, please attach a separate sheet.)"]
[null,null,null,{"$f":"'Goal 1 Workplan'!D84","v":0}]
[null,"See NPI Instruction Manual, pages 10-13",null,"National Performance\nIndicator 1.3 ",null,null,null,null,null,null,null,"Reporting Period",null,null,"I",null,null,"II",null,null,"III",null,null,"IV",null,null,"V",null,null,"VI",null,null,"CSD Review",null,null,"NPI Analysis"]
[null,null,null,"Economic Asset Enhancement and Utilization",null,null,null,null,null,null,null,null,null,null,"Number of Participants Expected to Achieve Outcome in Reporting Period\n(#)",null,null,"Number of Participants Enrolled in Program(s) in Reporting Period\n(#)",null,null,"Number of Participants Achieving Outcome in Reporting Period\n(#) \n",null,null,"Percentage Achieving Outcome in Reporting Period \n(III/I=IV)\n(%)",null,null,"Explanations Required\n\n(Report on explanation tab)",null,null,"Aggregated Dollar Amounts (Payments, Credits or Savings) \n($)\nIf no dollars reported please explain",null,null,"Column 3 >/= Column 2"]
[null,null,null,"The number and percentage of low-income households that achieve an increase in financial assets and/or financial skills as a result of Community Action assistance, and the aggregated amount of those assets and resources for all participants achieving the outcome, as measured by one or more of the following:"]
[null,null,null," ENHANCEMENT"]
[null,null,null,"A.  ","Number and percent of participants in tax preparation programs who qualified for any type of Federal or State tax credit and the expected aggregated dollar amount of credits. ",null,null,null,null,null,null,"Annual ",null,null,{"$f":"'Goal 1 Workplan'!N90","v":0},null,null,null,null,null,null,null,null,{"$f":"IF(O86=\"\",\"\",IF(O86=0,\"\",IF(U86=\"\",\"\",IF(U86=0,\"\",IF(U86=O86,\"100%\",IF(O86=U86,,(U86/O86)))))))","v":""},null,null,{"$f":"IF(O86=U86,\"\",IF(U86=0,\"\",IF(U86/O86<80%,\"Explanation\",IF(U86/O86>120%,\"Explanation\",\"\"))))","v":""},null,null,null,null,null,{"$f":"IF(U86>R86, \"Achieving > Enrolled\", IF(U86=R86,\"\", IF(U86<R86,\"\", IF(U86=0,\"\", IF(R86=0, \"\")))))","v":""}]
[null,null,null,null,null,null,null,null,null,null,null,null,null,null,{"$f":"'Goal 1 Workplan'!N91","v":0},null,null,null,null,null,null,null,null,"",null,null,"",null,null,null,null,null,""]
[null,null,null,"B. ","Number and percent of participants who obtained court-ordered child support payments and the expected annual aggregated dollar amount of payments.",null,null,null,null,null,null,"Annual ",null,null,{"$f":"'Goal 1 Workplan'!N92","v":0},null,null,null,null,null,null,null,null,"",null,null,"",null,null,null,null,null,""]
[null,null,null,null,null,null,null,null,null,null,null,null,null,null,{"$f":"'Goal 1 Workplan'!N93","v":0},null,null,null,null,null,null,null,null,"",null,null,"",null,null,null,null,null,""]
[null,null,null,"C.  ","Number and percent of participants who were enrolled in telephone lifeline and/or energy discounts with the assistance of the agency and the expected aggregated dollar amount of savings.",null,null,null,null,null,null,"Annual ",null,null,{"$f":"'Goal 1 Workplan'!N94","v":0},null,null,null,null,null,null,null,null,"",null,null,"",null,null,null,null,null,""]
[null,null,null,null,null,null,null,null,null,null,null,null,null,null,{"$f":"'Goal 1 Workplan'!N95","v":0},null,null,null,null,null,null,null,null,"",null,null,"",null,null,null,null,null,""]
[]
[null,null,null,"National Performance\nIndicator 1.3 ",null,null,null,null,null,null,null,"Reporting Period",null,null,"I",null,null,"II",null,null,"III",null,null,"IV",null,null,"V",null,null,"VI"]
[null,null,null,"Economic Asset Enhancement and Utilization",null,null,null,null,null,null,null,null,null,null,"Number of Participants Expected to Achieve Outcome in Reporting Period\n(#)",null,null,"Number of Participants Enrolled in Program(s) in Reporting Period\n(#)",null,null,"Number of Participants Achieving Outcome in Reporting Period\n(#) \n",null,null,"Percentage Achieving Outcome in Reporting Period \n(III/I=IV)\n(%)",null,null,"Explanations Required\n\n(Report on explanation tab)",null,null,"Aggregated Dollar Amounts (Payments, Credits or Savings) \n($)\nIf no dollars reported please explain"]
[null,null,null,"The number and percentage of low-income households that achieve an increase in financial assets and/or financial skills as a result of community action assistance, and the aggregated amount of those assets and resources for all participants achieving the outcome, as measured by one or more of the following:"]
[null,null,null,"UTILIZATION"]
[null,null,null,"D. "," Number and percent of participants demonstrating ability to complete and maintain a budget for over 90 days ",null,null,null,null,null,null,"Annual ",null,null,{"$f":"'Goal 1 Workplan'!N97","v":0},null,null,null,null,null,null,null,null,{"$f":"IF(O97=\"\",\"\",IF(O97=0,\"\",IF(U97=\"\",\"\",IF(U97=0,\"\",IF(U97=O97,\"100%\",IF(O97=U97,,(U97/O97)))))))","v":""},null,null,{"$f":"IF(O97=U97,\"\",IF(U97=0,\"\",IF(U97/O97<80%,\"Explanation\",IF(U97/O97>120%,\"Explanation\",\"\"))))","v":""},null,null,"N/A",null,null,{"$f":"IF(U97>R97, \"Achieving > Enrolled\", IF(U97=R97,\"\", IF(U97<R97,\"\", IF(U97=0,\"\", IF(R97=0, \"\")))))","v":""}]
[null,null,null,null,null,null,null,null,null,null,null,null,null,null,{"$f":"'Goal 1 Workplan'!N98","v":0},null,null,null,null,null,null,null,null,"",null,null,"",null,null,null,null,null,""]
[null,null,null,"E.  ","Number and percent of participants opening an Individual Development Account (IDA) or other savings account ",null,null,null,null,null,null,"Annual ",null,null,{"$f":"'Goal 1 Workplan'!N99","v":0},null,null,null,null,null,null,null,null,"",null,null,"",null,null,"N/A",null,null,""]
[null,null,null,null,null,null,null,null,null,null,null,null,null,null,{"$f":"'Goal 1 Workplan'!N100","v":0},null,null,null,null,null,25,null,null,"",null,null,{"$error":"#DIV/0!"},null,null,null,null,null,"Achieving > Enrolled"]
[null,null,null,"F.  ","Number and percent of participants who increased their savings through IDA or other savings accounts and the aggregated amount of savings",null,null,null,null,null,null,"Annual ",null,null,{"$f":"'Goal 1 Workplan'!N101","v":0},null,null,null,null,null,null,null,null,"",null,null,"",null,null,null,null,null,""]
[null,null,null,null,null,null,null,null,null,null,null,null,null,null,{"$f":"'Goal 1 Workplan'!N102","v":0},null,null,null,null,null,null,null,null,"",null,null,"",null,null,null,null,null,""]
[null,null,null,"G. ","Number and percent of participants capitalizing a small business with accumulated IDA or other savings ",null,null,null,null,null,null,"Annual ",null,null,{"$f":"'Goal 1 Workplan'!N103","v":0},null,null,null,null,null,null,null,null,{"$f":"IF(O103=\"\",\"\",IF(O103=0,\"\",IF(U103=\"\",\"\",IF(U103=0,\"\",IF(U103=O103,\"100%\",IF(O103=U103,,(U103/O103)))))))","v":""},null,null,{"$f":"IF(O103=U103,\"\",IF(U103=0,\"\",IF(U103/O103<80%,\"Explanation\",IF(U103/O103>120%,\"Explanation\",\"\"))))","v":""},null,null,null,null,null,{"$f":"IF(U103>R103, \"Achieving > Enrolled\", IF(U103=R103,\"\", IF(U103<R103,\"\", IF(U103=0,\"\", IF(R103=0, \"\")))))","v":""}]
[null,null,null,null,null,null,null,null,null,null,null,null,null,null,{"$f":"'Goal 1 Workplan'!N104","v":0},null,null,null,null,null,null,null,null,"",null,null,"",null,null,null,null,null,{"$f":"IF(U104>R104, \"Achieving > Enrolled\", IF(U104=R104,\"\", IF(U104<R104,\"\", IF(U104=0,\"\", IF(R104=0, \"\")))))","v":""}]
[null,null,null,"H.  ","Number and percent of participants pursuing post-secondary education with accumulated IDA or other savings ",null,null,null,null,null,null,"Annual ",null,null,{"$f":"'Goal 1 Workplan'!N105","v":0},null,null,null,null,null,null,null,null,"",null,null,"",null,null,null,null,null,""]
[null,null,null,null,null,null,null,null,null,null,null,null,null,null,{"$f":"'Goal 1 Workplan'!N106","v":0},null,null,null,null,null,null,null,null,"",null,null,"",null,null,null,null,null,""]
[null,null,null,"I.                 ","Number and percent of participants purchasing a home with accumulated IDA or other savings",null,null,null,null,null,null,"Annual ",null,null,{"$f":"'Goal 1 Workplan'!N107","v":0},null,null,null,null,null,null,null,null,"",null,null,"",null,null,null,null,null,""]
[null,null,null,null,null,null,null,null,null,null,null,null,null,null,{"$f":"'Goal 1 Workplan'!N108","v":0},null,null,null,null,null,null,null,null,"",null,null,"",null,null,null,null,null,""]
[null,null,null,"J.  ","Number and percent of participants purchasing other assets with accumulated IDA or other savings   ",null,null,null,null,null,null,"Annual ",null,null,{"$f":"'Goal 1 Workplan'!N109","v":0},null,null,null,null,null,null,null,null,"",null,null,"",null,null,null,null,null,""]
[null,null,null,null,null,null,null,null,null,null,null,null,null,null,{"$f":"'Goal 1 Workplan'!N110","v":0},null,null,null,null,null,null,null,null,"",null,null,"",null,null,null,null,null,""]
[null,null,null,"In the rows below, please include any additional indicators for NPI 1.3 that were not captured above."]
[null,null,null,{"$f":"'Goal 1 Workplan'!D112","v":0},null,null,null,null,null,null,null,"Annual ",null,null,{"$f":"'Goal 1 Workplan'!N112","v":0},null,null,null,null,null,null,null,null,{"$f":"IF(O112=\"\",\"\",IF(O112=0,\"\",IF(U112=\"\",\"\",IF(U112=0,\"\",IF(U112=O112,\"100%\",IF(O112=U112,,(U112/O112)))))))","v":""},null,null,{"$f":"IF(O112=U112,\"\",IF(U112=0,\"\",IF(U112/O112<80%,\"Explanation\",IF(U112/O112>120%,\"Explanation\",\"\"))))","v":""},null,null,null,null,null,{"$f":"IF(U112>R112, \"Achieving > Enrolled\", IF(U112=R112,\"\", IF(U112<R112,\"\", IF(U112=0,\"\", IF(R112=0, \"\")))))","v":""}]
[null,null,null,null,null,null,null,null,null,null,null,null,null,null,{"$f":"'Goal 1 Workplan'!N113","v":0},null,null,null,null,null,null,null,null,{"$f":"IF(O113=\"\",\"\",IF(O113=0,\"\",IF(U113=\"\",\"\",IF(U113=0,\"\",IF(U113=O113,\"100%\",IF(O113=U113,,(U113/O113)))))))","v":""},null,null,{"$f":"IF(O113=U113,\"\",IF(U113=0,\"\",IF(U113/O113<80%,\"Explanation\",IF(U113/O113>120%,\"Explanation\",\"\"))))","v":""},null,null,null,null,null,{"$f":"IF(U113>R113, \"Achieving > Enrolled\", IF(U113=R113,\"\", IF(U113<R113,\"\", IF(U113=0,\"\", IF(R113=0, \"\")))))","v":""}]

{"sheet":"Goal 1 Reporting reverse I & II","index":10,"n_rows":112,"n_cols":50,"rows_kept":112,"cut":false,"hidden":true,"merged":[[111,26,111,28],[108,35,108,39],[109,3,109,31],[110,3,111,10],[110,11,110,13],[110,14,110,16],[110,17,110,19],[110,20,110,22],[110,23,110,25],[110,26,110,28],[111,35,111,39],[110,32,110,34],[110,35,110,39],[111,29,111,31],[111,32,111,34],[111,11,111,13],[111,14,111,16],[111,17,111,19],[111,20,111,22],[111,23,111,25],[110,29,110,31],[106,32,106,34],[106,35,106,39],[107,4,108,10],[107,11,107,13],[107,14,107,16],[107,17,107,19],[107,20,107,22],[107,23,107,25],[107,26,107,28],[107,29,107,31],[107,32,107,34],[107,35,107,39],[108,11,108,13],[108,14,108,16],[108,17,108,19],[108,20,108,22],[108,23,108,25],[108,26,108,28],[108,29,108,31],[108,32,108,34],[103,29,103,31],[103,32,103,34],[103,35,103,39],[104,11,104,13],[104,14,104,16],[104,17,104,19],[104,20,104,22],[104,23,104,25],[106,29,106,31],[104,29,104,31],[104,32,104,34],[104,35,104,39],[105,11,105,13],[105,14,105,16],[105,17,105,19],[105,20,105,22],[105,23,105,25],[104,26,104,28],[105,29,105,31],[105,32,105,34],[105,35,105,39],[106,11,106,13],[106,14,106,16],[106,17,106,19],[103,4,104,10],[103,11,103,13],[103,14,103,16],[103,17,103,19],[103,20,103,22],[103,23,103,25],[105,26,105,28],[103,26,103,28],[105,4,106,10],[106,20,106,22],[106,23,106,25],[106,26,106,28],[101,35,101,39],[102,11,102,13],[102,14,102,16],[102,17,102,19],[102,20,102,22],[102,23,102,25],[102,26,102,28],[102,29,102,31],[102,32,102,34],[102,35,102,39],[101,4,102,10],[101,11,101,13],[101,14,101,16],[101,17,101,19],[101,20,101,22],[101,23,101,25],[101,26,101,28],[101,29,101,31],[101,32,101,34],[99,35,99,39],[100,11,100,13],[100,14,100,16],[100,17,100,19],[100,20,100,22],[100,23,100,25],[100,26,100,28],[100,29,100,31],[100,32,100,34],[100,35,100,39],[99,4,100,10],[99,11,99,13],[99,14,99,16],[99,17,99,19],[99,20,99,22],[99,23,99,25],[99,26,99,28],[99,29,99,31],[99,32,99,34],[97,35,97,39],[98,11,98,13],[98,14,98,16],[98,17,98,19],[98,20,98,22],[98,23,98,25],[98,26,98,28],[98,32,98,34],[98,35,98,39],[97,4,98,10],[97,11,97,13],[97,14,97,16],[97,17,97,19],[97,20,97,22],[97,23,97,25],[97,26,97,28],[97,29,98,31],[97,32,97,34],[95,32,95,34],[95,35,95,39],[96,11,96,13],[96,14,96,16],[96,17,96,19],[96,20,96,22],[96,23,96,25],[96,26,96,28],[96,32,96,34],[96,35,96,39],[94,3,94,31],[95,4,96,10],[95,11,95,13],[95,14,95,16],[95,17,95,19],[95,20,95,22],[95,23,95,25],[95,26,95,28],[95,29,96,31],[91,3,91,10],[91,11,93,13],[91,14,91,16],[91,17,91,19],[91,20,91,22],[91,23,91,25],[91,26,91,28],[91,29,91,31],[92,3,92,10],[92,14,93,16],[92,17,93,19],[92,20,93,22],[92,23,93,25],[92,26,93,28],[92,29,93,31],[93,3,93,10],[88,35,88,39],[89,11,89,13],[89,14,89,16],[89,17,89,19],[89,20,89,22],[89,23,89,25],[89,26,89,28],[89,29,89,31],[89,32,89,34],[89,35,89,39],[88,4,89,10],[88,11,88,13],[88,14,88,16],[88,17,88,19],[88,20,88,22],[88,23,88,25],[88,26,88,28],[88,29,88,31],[88,32,88,34],[86,35,86,39],[87,11,87,13],[87,14,87,16],[87,17,87,19],[87,20,87,22],[87,23,87,25],[87,26,87,28],[87,29,87,31],[87,32,87,34],[87,35,87,39],[86,4,87,10],[86,11,86,13],[86,14,86,16],[86,17,86,19],[86,20,86,22],[86,23,86,25],[86,26,86,28],[86,29,86,31],[86,32,86,34],[84,32,84,34],[84,35,84,39],[85,11,85,13],[85,14,85,16],[85,17,85,19],[85,20,85,22],[85,23,85,25],[85,26,85,28],[85,29,85,31],[85,32,85,34],[85,35,85,39],[83,3,83,31],[84,4,85,10],[84,11,84,13],[84,14,84,16],[84,17,84,19],[84,20,84,22],[84,23,84,25],[84,26,84,28],[84,29,84,31],[80,32,80,34],[80,35,82,39],[81,3,81,10],[81,14,82,16],[81,17,82,19],[81,20,82,22],[81,23,82,25],[81,26,82,28],[81,29,82,31],[81,32,82,34],[82,3,82,10],[74,3,74,31],[75,3,75,31],[76,3,76,31],[77,3,77,31],[78,3,78,31],[79,3,79,31],[80,3,80,10],[80,11,82,13],[80,14,80,16],[80,17,80,19],[80,20,80,22],[80,23,80,25],[80,26,80,28],[80,29,80,31],[72,35,72,39],[73,14,73,16],[73,17,73,19],[73,20,73,22],[73,23,73,25],[73,26,73,28],[73,29,73,31],[73,32,73,34],[73,35,73,39],[69,35,69,39],[70,14,70,16],[70,17,70,19],[70,20,70,22],[70,23,70,25],[70,26,70,28],[70,29,70,31],[70,32,70,34],[70,35,70,39],[69,4,70,13],[69,14,69,16],[69,17,69,19],[69,20,69,22],[69,23,69,25],[69,26,69,28],[69,29,69,31],[69,32,69,34],[72,29,72,31],[72,3,73,13],[72,14,72,16],[72,17,72,19],[72,20,72,22],[72,23,72,25],[72,26,72,28],[72,32,72,34],[71,3,71,31],[67,4,68,13],[67,14,67,16],[67,17,67,19],[67,20,67,22],[67,23,67,25],[67,26,67,28],[67,29,67,31],[67,32,67,34],[67,35,67,39],[68,14,68,16],[68,17,68,19],[68,20,68,22],[68,23,68,25],[68,26,68,28],[68,29,68,31],[68,32,68,34],[68,35,68,39],[65,4,66,13],[65,14,65,16],[65,17,65,19],[65,20,65,22],[65,23,65,25],[65,26,65,28],[65,29,65,31],[65,32,65,34],[65,35,65,39],[66,14,66,16],[66,17,66,19],[66,20,66,22],[66,23,66,25],[66,26,66,28],[66,29,66,31],[66,32,66,34],[66,35,66,39],[63,4,64,13],[63,14,63,16],[63,17,63,19],[63,20,63,22],[63,23,63,25],[63,26,63,28],[63,29,63,31],[63,32,63,34],[63,35,63,39],[64,14,64,16],[64,17,64,19],[64,20,64,22],[64,23,64,25],[64,26,64,28],[64,29,64,31],[64,32,64,34],[64,35,64,39],[61,4,62,13],[61,14,61,16],[61,17,61,19],[61,20,61,22],[61,23,61,25],[61,26,61,28],[61,29,61,31],[61,32,61,34],[61,35,61,39],[62,14,62,16],[62,17,62,19],[62,20,62,22],[62,23,62,25],[62,26,62,28],[62,29,62,31],[62,32,62,34],[62,35,62,39],[59,4,60,13],[59,14,59,16],[59,17,59,19],[59,20,59,22],[59,23,59,25],[59,26,59,28],[59,29,59,31],[59,32,59,34],[59,35,59,39],[60,14,60,16],[60,17,60,19],[60,20,60,22],[60,23,60,25],[60,26,60,28],[60,29,60,31],[60,32,60,34],[60,35,60,39],[57,4,58,13],[57,14,57,16],[57,17,57,19],[57,20,57,22],[57,23,57,25],[57,26,57,28],[57,29,57,31],[57,32,57,34],[57,35,57,39],[58,14,58,16],[58,17,58,19],[58,20,58,22],[58,23,58,25],[58,26,58,28],[58,29,58,31],[58,32,58,34],[58,35,58,39],[55,4,56,13],[55,14,55,16],[55,17,55,19],[55,20,55,22],[55,23,55,25],[55,26,55,28],[55,29,55,31],[55,32,55,34],[55,35,55,39],[56,14,56,16],[56,17,56,19],[56,20,56,22],[56,23,56,25],[56,26,56,28],[56,29,56,31],[56,32,56,34],[56,35,56,39],[53,4,54,13],[53,14,53,16],[53,17,53,19],[53,20,53,22],[53,23,53,25],[53,26,53,28],[53,29,53,31],[53,32,53,34],[53,35,53,39],[54,14,54,16],[54,17,54,19],[54,20,54,22],[54,23,54,25],[54,26,54,28],[54,29,54,31],[54,32,54,34],[54,35,54,39],[51,4,52,13],[51,14,51,16],[51,17,51,19],[51,20,51,22],[51,23,51,25],[51,26,51,28],[51,29,51,31],[51,32,51,34],[51,35,51,39],[52,14,52,16],[52,17,52,19],[52,20,52,22],[52,23,52,25],[52,26,52,28],[52,29,52,31],[52,32,52,34],[52,35,52,39],[49,4,50,13],[49,14,49,16],[49,17,49,19],[49,20,49,22],[49,23,49,25],[49,26,49,28],[49,29,49,31],[49,32,49,34],[49,35,49,39],[50,14,50,16],[50,17,50,19],[50,20,50,22],[50,23,50,25],[50,26,50,28],[50,29,50,31],[50,32,50,34],[50,35,50,39],[47,4,48,13],[47,14,47,16],[47,17,47,19],[47,20,47,22],[47,23,47,25],[47,26,47,28],[47,29,47,31],[47,32,47,34],[47,35,47,39],[48,14,48,16],[48,17,48,19],[48,20,48,22],[48,23,48,25],[48,26,48,28],[48,29,48,31],[48,32,48,34],[48,35,48,39],[44,32,44,34],[44,35,46,39],[45,3,45,11],[45,17,46,19],[45,20,46,22],[45,23,46,25],[45,26,46,28],[45,29,46,31],[45,32,46,34],[46,3,46,13],[37,3,37,31],[38,3,38,31],[39,3,39,31],[40,3,40,31],[41,3,41,31],[42,3,42,31],[43,3,43,31],[44,1,46,1],[44,3,44,12],[44,14,46,16],[44,17,44,19],[44,20,44,22],[44,23,44,25],[44,26,44,28],[44,29,44,31],[35,35,35,39],[36,14,36,16],[36,17,36,19],[36,20,36,22],[36,23,36,25],[36,26,36,28],[36,29,36,31],[36,32,36,34],[36,35,36,39],[34,3,34,31],[35,3,36,13],[35,14,35,16],[35,17,35,19],[35,20,35,22],[35,23,35,25],[35,26,35,28],[35,29,35,31],[35,32,35,34],[32,4,33,13],[32,14,32,16],[32,17,32,19],[32,20,32,22],[32,23,32,25],[32,26,32,28],[32,29,32,31],[32,32,32,34],[32,35,32,39],[33,14,33,16],[33,17,33,19],[33,20,33,22],[33,23,33,25],[33,26,33,28],[33,29,33,31],[33,32,33,34],[33,35,33,39],[30,4,31,13],[30,14,30,16],[30,17,30,19],[30,20,30,22],[30,23,30,25],[30,26,30,28],[30,29,30,31],[30,32,30,34],[30,35,30,39],[31,14,31,16],[31,17,31,19],[31,20,31,22],[31,23,31,25],[31,26,31,28],[31,29,31,31],[31,32,31,34],[31,35,31,39],[27,23,27,25],[27,26,27,28],[27,29,27,31],[27,32,27,34],[27,35,27,39],[28,4,29,13],[28,14,28,16],[28,17,28,19],[28,20,28,22],[28,23,28,25],[28,26,28,28],[28,29,28,31],[28,32,28,34],[28,35,28,39],[29,14,29,16],[29,17,29,19],[29,20,29,22],[29,23,29,25],[29,26,29,28],[29,29,29,31],[29,32,29,34],[29,35,29,39],[24,1,25,1],[24,3,24,13],[24,17,25,19],[24,20,25,22],[24,23,25,25],[24,26,25,28],[24,29,25,31],[24,32,25,34],[25,3,25,13],[22,3,22,31],[22,40,22,45],[23,3,23,13],[23,14,25,16],[23,17,23,19],[23,20,23,22],[23,23,23,25],[23,26,23,28],[23,29,23,31],[23,32,23,34],[23,35,25,39],[23,40,36,47],[26,4,27,13],[26,14,26,16],[26,17,26,19],[26,20,26,22],[26,23,26,25],[26,26,26,28],[26,29,26,31],[26,32,26,34],[26,35,26,39],[27,14,27,16],[27,17,27,19],[27,20,27,22],[15,3,15,31],[16,3,16,31],[17,3,17,31],[18,3,18,31],[19,3,19,31],[20,3,20,31],[20,40,21,47],[1,1,8,1],[1,29,1,30],[1,41,9,45],[5,12,7,21],[10,1,13,1],[10,3,10,7],[10,9,10,31],[11,9,11,31],[12,3,12,7],[12,9,12,20],[12,21,12,23],[12,24,12,31],[13,3,13,7],[13,9,13,20],[13,21,13,23],[13,24,13,31],[21,3,21,31]]}
[]
[null,"Use the tab key to move through the cells that require entry.",null,"State of California",null,null,null,null,null,null,null,null,null,null,null,null,null,null,null,null,null,null,null,null,null,null,null,"Contract No.",null,{"$f":"'Goal 1 Workplan'!P3","v":0},null,null,null,null,null,null,null,null,null,null,null,"Place an X in the report that is being submitted. This will automatically populate to all other Goal tabs. "]
[]
[null,null,null,"Department of Community Services and Development",null,null,null,null,null,null,null,null,null,null,null,"Hidden Tab reverse columns 1 and 2 for 1.1 and 1.3 only",null,null,null,null,null,null,null,null,null,null,null,{"$f":"'Goal 1 Reporting'!AB4","v":0},"Mid-Year Report (Jan-June)"]
[]
[null,null,null,"CSBG/NPI Programs Report",null,null,null,null,null,null,null,null,"CSBG/NPI Programs Report",null,null,null,null,null,null,null,null,null,null,null,null,null,null,{"$f":"'Goal 1 Reporting'!AB6","v":0},"Annual Report (Jan-Dec)"]
[]
[null,null,null,"CSD 801 (Rev.4/13)"]
[]
[]
[null,"Typing information into this block of cells will populate the items on all of the Goal tabs.",null,"Contractor Name:",null,null,null,null,null,{"$f":"'Goal 1 Workplan'!J11","v":0}]
[null,null,null,"Contact Person and Title:",null,null,null,null,null,{"$f":"'Goal 1 Workplan'!J12","v":0}]
[null,null,null,"Phone Number:",null,null,null,null,null,{"$f":"'Goal 1 Workplan'!J13","v":0},null,null,null,null,null,null,null,null,null,null,null,"Ext. Number:",null,null,{"$f":"'Goal 1 Workplan'!N13","v":0}]
[null,null,null,"E-mail Address:",null,null,null,null,null,{"$f":"'Goal 1 Workplan'!J14","v":0},null,null,null,null,null,null,null,null,null,null,null,"Fax Number:",null,null,{"$f":"'Goal 1 Workplan'!N14","v":0}]
[]
[null,null,null,"Goal 1:  Low-income people become more self-sufficient."]
[null,null,null,"NPI 1.1:  Employment"]
[null,null,null,"Problem Statement:  (If additional space is needed, please attach a separate sheet.)"]
[null,null,null,{"$f":"'Goal 1 Workplan'!D19","v":0}]
[null,null,null,"Program Activities and Delivery Strategies:  (If additional space is needed, please attach a separate sheet.)"]
[null,null,null,{"$f":"'Goal 1 Workplan'!D22","v":0},null,null,null,null,null,null,null,null,null,null,null,null,null,null,null,null,null,null,null,null,null,null,null,null,null,null,null,null,null,null,null,null,null,null,null,null,"REPORTING PERIODS",null,null,null,null,null,null,null,null,5]
[]
[]
[null,null,null,"National Performance\nIndicator 1.1",null,null,null,null,null,null,null,null,null,null,"Reporting Period",null,null,"I",null,null,"II",null,null,"III",null,null,"IV",null,null,"V",null,null,"CSD Review",null,null,"NPI Analysis",null,null,null,null,"Mid-Year \n(January - June)\nComplete GREY area in remaining columns\n\nAnnual \n(Cumulative: January - December)\nComplete BLUE area in remaining columns\n\nUpon completion of \nEACH reporting period \nthis workbook should be \nE-MAILED \nto the following address\nCSBGReports@csd.ca.gov"]
[null," See NPI Instruction Manual pages 1-5",null,"Employment",null,null,null,null,null,null,null,null,null,null,null,null,null,"Number of Participants Enrolled in Program(s)  in Reporting Period\n(#)",null,null,"Number of ParticipantsExpected to Achieve Outcome in Reporting Period\n(#)",null,null,"Number of Participants Achieving Outcome in Reporting Period\n(#) \n",null,null,"Percentage Achieving Outcome in Reporting Period \n(III/II=IV)\n(%)",null,null,"Explanations Required\n\n(Report on explanation tab)",null,null,"Column 3 >/= Column 2"]
[null,null,null,"The number and percentage of low-income participants who get a job or become self-employed, as a result of Community Action Assistance, as measured by one or more of the following:"]
[null,null,null,"A.","Unemployed and obtained a job \n",null,null,null,null,null,null,null,null,null,"Mid-Year",null,null,{"$f":"'Goal 1 Reporting'!U27","v":0},null,null,{"$f":"'Goal 1 Workplan'!N26","v":0},null,null,{"$f":"'Goal 1 Reporting'!X27:Z27","v":0},null,null,{"$f":"IF(U27=\"\",\"\",IF(U27=0,\"\",IF(X27=\"\",\"\",IF(X27=0,\"\",IF(X27=U27,\"100%\",IF(U27=X27,,(X27/U27)))))))","v":""},null,null,{"$f":"IF(U27=X27,\"\",IF(X27=0,\"\",IF(X27/U27<80%,\"Explanation\",IF(X27/U27>120%,\"Explanation\",\"\"))))","v":""},null,null,{"$f":"IF(X27>U27, \"Achieving > Enrolled\", IF(X27=U27,\"\", IF(X27<U27,\"\", IF(X27=0,\"\", IF(U27=0, \"\")))))","v":""}]
[null,null,null,null,null,null,null,null,null,null,null,null,null,null,"Annual ",null,null,{"$f":"'Goal 1 Reporting'!U28","v":0},null,null,{"$f":"'Goal 1 Workplan'!N27","v":0},null,null,{"$f":"'Goal 1 Reporting'!X28:Z28","v":0},null,null,{"$f":"IF(U28=\"\",\"\",IF(U28=0,\"\",IF(X28=\"\",\"\",IF(X28=0,\"\",IF(X28=U28,\"100%\",IF(U28=X28,,(X28/U28)))))))","v":""},null,null,{"$f":"IF(U28=X28,\"\",IF(X28=0,\"\",IF(X28/U28<80%,\"Explanation\",IF(X28/U28>120%,\"Explanation\",\"\"))))","v":""},null,null,""]
[null,null,null,"B.","Employed and maintained a job for a least 90 days\n",null,null,null,null,null,null,null,null,null,"Mid-Year",null,null,{"$f":"'Goal 1 Reporting'!U29","v":0},null,null,{"$f":"'Goal 1 Workplan'!N28","v":0},null,null,{"$f":"'Goal 1 Reporting'!X29:Z29","v":0},null,null,"",null,null,"",null,null,""]
[null,null,null,null,null,null,null,null,null,null,null,null,null,null,"Annual ",null,null,{"$f":"'Goal 1 Reporting'!U30","v":0},null,null,{"$f":"'Goal 1 Workplan'!N29","v":0},null,null,{"$f":"'Goal 1 Reporting'!X30:Z30","v":0},null,null,"",null,null,"",null,null,""]
[null,null,null,"C.","Employed and obtained an increase in employment income and/or benefits",null,null,null,null,null,null,null,null,null,"Mid-Year",null,null,{"$f":"'Goal 1 Reporting'!U31","v":0},null,null,{"$f":"'Goal 1 Workplan'!N30","v":0},null,null,{"$f":"'Goal 1 Reporting'!X31:Z31","v":0},null,null,"",null,null,"",null,null,""]
[null,null,null,null,null,null,null,null,null,null,null,null,null,null,"Annual ",null,null,{"$f":"'Goal 1 Reporting'!U32","v":0},null,null,{"$f":"'Goal 1 Workplan'!N31","v":0},null,null,{"$f":"'Goal 1 Reporting'!X32:Z32","v":0},null,null,"",null,null,"",null,null,""]
[null,null,null,"D.","Achieved \"living wage\" employment and/or benefits",null,null,null,null,null,null,null,null,null,"Mid-Year",null,null,{"$f":"'Goal 1 Reporting'!U33","v":0},null,null,{"$f":"'Goal 1 Workplan'!N32","v":0},null,null,{"$f":"'Goal 1 Reporting'!X33:Z33","v":0},null,null,"",null,null,"",null,null,""]
[null,null,null,null,null,null,null,null,null,null,null,null,null,null,"Annual ",null,null,{"$f":"'Goal 1 Reporting'!U34","v":0},null,null,{"$f":"'Goal 1 Workplan'!N33","v":0},null,null,{"$f":"'Goal 1 Reporting'!X34:Z34","v":0},null,null,"",null,null,"",null,null,""]
[null,null,null,"In the rows below, please include any additional indicators for NPI 1.1 that were not captured above."]
[null,null,null,{"$f":"'Goal 1 Workplan'!D35","v":0},null,null,null,null,null,null,null,null,null,null,"Mid-Year",null,null,{"$f":"'Goal 1 Reporting'!U36","v":0},null,null,{"$f":"'Goal 1 Workplan'!N35","v":0},null,null,{"$f":"'Goal 1 Reporting'!X36:Z36","v":0},null,null,{"$f":"IF(U36=\"\",\"\",IF(U36=0,\"\",IF(X36=\"\",\"\",IF(X36=0,\"\",IF(X36=U36,\"100%\",IF(U36=X36,,(X36/U36)))))))","v":""},null,null,{"$f":"IF(U36=X36,\"\",IF(X36=0,\"\",IF(X36/U36<80%,\"Explanation\",IF(X36/U36>120%,\"Explanation\",\"\"))))","v":""},null,null,{"$f":"IF(X36>U36, \"Achieving > Enrolled\", IF(X36=U36,\"\", IF(X36<U36,\"\", IF(X36=0,\"\", IF(U36=0, \"\")))))","v":""}]
[null,null,null,null,null,null,null,null,null,null,null,null,null,null,"Annual ",null,null,{"$f":"'Goal 1 Reporting'!U37","v":0},null,null,{"$f":"'Goal 1 Workplan'!N36","v":0},null,null,{"$f":"'Goal 1 Reporting'!X37:Z37","v":0},null,null,{"$f":"IF(U37=\"\",\"\",IF(U37=0,\"\",IF(X37=\"\",\"\",IF(X37=0,\"\",IF(X37=U37,\"100%\",IF(U37=X37,,(X37/U37)))))))","v":""},null,null,{"$f":"IF(U37=X37,\"\",IF(X37=0,\"\",IF(X37/U37<80%,\"Explanation\",IF(X37/U37>120%,\"Explanation\",\"\"))))","v":""},null,null,{"$f":"IF(X37>U37, \"Achieving > Enrolled\", IF(X37=U37,\"\", IF(X37<U37,\"\", IF(X37=0,\"\", IF(U37=0, \"\")))))","v":""}]
[null,null,null,"Goal 1:  Low-income people become more self-sufficient."]
[null,null,null,"NPI 1.2:  Employment Supports"]
[null,null,null,"Problem Statement:  (If additional space is needed, please attach a separate sheet.)"]
[]
[null,null,null,{"$f":"'Goal 1 Workplan'!D41","v":0}]
[null,null,null,"Program Activities and Delivery Strategies:  (If additional space is needed, please attach a separate sheet.)"]
[null,null,null,{"$f":"'Goal 1 Workplan'!D44","v":0}]
[null,"See NPI Instruction Manual, pages 5-9",null,"National Performance\nIndicator 1.2",null,null,null,null,null,null,null,null,null,null,"Reporting Period",null,null,"I",null,null,"II",null,null,"III",null,null,"IV",null,null,"V",null,null,"CSD Review",null,null,"NPI Analysis"]
[null,null,null,"Employment Supports",null,null,null,null,null,null,null,null,null,null,null,null,null,"Number of Participants Expected to Achieve Outcome in   Reporting Period\n(#)",null,null,"Number of ParticipantsEnrolled in Program(s) in Reporting Period\n(#)",null,null,"Number of Participants Achieving Outcome in Reporting Period\n(#) \n",null,null,"Percentage Achieving Outcome in Reporting Period \n(III/I=IV)\n(%)",null,null,"Explanations Required\n\n(Report on explanation tab)",null,null,"Column 3 >/= Column 2"]
[null,null,null,"\nThe number of low-income participants for whom barriers to initial or continuous employment are reduced or eliminated through assistance from Community Action, as measured by one or more of the following:"]
[null,null,null,"A.","Obtained skills/competencies required for employment",null,null,null,null,null,null,null,null,null,"Mid-Year",null,null,{"$f":"'Goal 1 Workplan'!N50","v":0},null,null,{"$f":"'Goal 1 Reporting'!U49:W49","v":0},null,null,{"$f":"'Goal 1 Reporting'!X49:Z49","v":0},null,null,{"$f":"IF(R48=\"\",\"\",IF(R48=0,\"\",IF(X48=\"\",\"\",IF(X48=0,\"\",IF(X48=R48,\"100%\",IF(R48=X48,,(X48/R48)))))))","v":""},null,null,{"$f":"IF(R48=X48,\"\",IF(X48=0,\"\",IF(X48/R48<80%,\"Explanation\",IF(X48/R48>120%,\"Explanation\",\"\"))))","v":""},null,null,{"$f":"IF(X48>U48, \"Achieving > Enrolled\", IF(X48=U48,\"\", IF(X48<U48,\"\", IF(X48=0,\"\", IF(U48=0, \"\")))))","v":""}]
[null,null,null,null,null,null,null,null,null,null,null,null,null,null,"Annual ",null,null,{"$f":"'Goal 1 Workplan'!N51","v":0},null,null,{"$f":"'Goal 1 Reporting'!U50:W50","v":0},null,null,{"$f":"'Goal 1 Reporting'!X50:Z50","v":0},null,null,{"$f":"IF(R49=\"\",\"\",IF(R49=0,\"\",IF(X49=\"\",\"\",IF(X49=0,\"\",IF(X49=R49,\"100%\",IF(R49=X49,,(X49/R49)))))))","v":""},null,null,{"$f":"IF(R49=X49,\"\",IF(X49=0,\"\",IF(X49/R49<80%,\"Explanation\",IF(X49/R49>120%,\"Explanation\",\"\"))))","v":""},null,null,""]
[null,null,null,"B.","Completed ABE/GED and received certificate or diploma\n",null,null,null,null,null,null,null,null,null,"Mid-Year",null,null,{"$f":"'Goal 1 Workplan'!N52","v":0},null,null,{"$f":"'Goal 1 Reporting'!U51:W51","v":0},null,null,{"$f":"'Goal 1 Reporting'!X51:Z51","v":0},null,null,{"$f":"IF(R50=\"\",\"\",IF(R50=0,\"\",IF(X50=\"\",\"\",IF(X50=0,\"\",IF(X50=R50,\"100%\",IF(R50=X50,,(X50/R50)))))))","v":""},null,null,{"$f":"IF(R50=X50,\"\",IF(X50=0,\"\",IF(X50/R50<80%,\"Explanation\",IF(X50/R50>120%,\"Explanation\",\"\"))))","v":""},null,null,""]
[null,null,null,null,null,null,null,null,null,null,null,null,null,null,"Annual ",null,null,{"$f":"'Goal 1 Workplan'!N53","v":0},null,null,{"$f":"'Goal 1 Reporting'!U52:W52","v":0},null,null,{"$f":"'Goal 1 Reporting'!X52:Z52","v":0},null,null,"",null,null,"",null,null,""]
[null,null,null,"C.","Completed post-secondary education program and obtained certificate or diploma  \n",null,null,null,null,null,null,null,null,null,"Mid-Year",null,null,{"$f":"'Goal 1 Workplan'!N54","v":0},null,null,{"$f":"'Goal 1 Reporting'!U53:W53","v":0},null,null,{"$f":"'Goal 1 Reporting'!X53:Z53","v":0},null,null,"",null,null,"",null,null,""]
[null,null,null,null,null,null,null,null,null,null,null,null,null,null,"Annual ",null,null,{"$f":"'Goal 1 Workplan'!N55","v":0},null,null,{"$f":"'Goal 1 Reporting'!U54:W54","v":0},null,null,{"$f":"'Goal 1 Reporting'!X54:Z54","v":0},null,null,"",null,null,"",null,null,""]
[null,null,null,"D.","Enrolled children in \"before\" or \"after\" school programs\n",null,null,null,null,null,null,null,null,null,"Mid-Year",null,null,{"$f":"'Goal 1 Workplan'!N56","v":0},null,null,{"$f":"'Goal 1 Reporting'!U55:W55","v":0},null,null,{"$f":"'Goal 1 Reporting'!X55:Z55","v":0},null,null,"",null,null,"",null,null,""]
[null,null,null,null,null,null,null,null,null,null,null,null,null,null,"Annual ",null,null,{"$f":"'Goal 1 Workplan'!N57","v":0},null,null,29,null,null,{"$f":"'Goal 1 Reporting'!X56:Z56","v":0},null,null,"",null,null,"",null,null,""]
[null,null,null,"E.","Obtained care for child or other dependant\n",null,null,null,null,null,null,null,null,null,"Mid-Year",null,null,{"$f":"'Goal 1 Workplan'!N58","v":0},null,null,{"$f":"'Goal 1 Reporting'!U57:W57","v":0},null,null,{"$f":"'Goal 1 Reporting'!X57:Z57","v":0},null,null,"",null,null,"",null,null,""]
[null,null,null,null,null,null,null,null,null,null,null,null,null,null,"Annual ",null,null,{"$f":"'Goal 1 Workplan'!N59","v":0},null,null,{"$f":"'Goal 1 Reporting'!U58:W58","v":0},null,null,{"$f":"'Goal 1 Reporting'!X58:Z58","v":0},null,null,"",null,null,"",null,null,""]
[null,null,null,"F.","Obtained access to reliable transportation and/or driver's license\n",null,null,null,null,null,null,null,null,null,"Mid-Year",null,null,{"$f":"'Goal 1 Workplan'!N60","v":0},null,null,{"$f":"'Goal 1 Reporting'!U59:W59","v":0},null,null,{"$f":"'Goal 1 Reporting'!X59:Z59","v":0},null,null,"",null,null,"",null,null,""]
[null,null,null,null,null,null,null,null,null,null,null,null,null,null,"Annual ",null,null,{"$f":"'Goal 1 Workplan'!N61","v":0},null,null,{"$f":"'Goal 1 Reporting'!U60:W60","v":0},null,null,{"$f":"'Goal 1 Reporting'!X60:Z60","v":0},null,null,"",null,null,"",null,null,""]
[null,null,null,"G.","Obtained health care services for themselves and/or a family member\n",null,null,null,null,null,null,null,null,null,"Mid-Year",null,null,{"$f":"'Goal 1 Workplan'!N62","v":0},null,null,{"$f":"'Goal 1 Reporting'!U61:W61","v":0},null,null,{"$f":"'Goal 1 Reporting'!X61:Z61","v":0},null,null,"",null,null,"",null,null,""]
[null,null,null,null,null,null,null,null,null,null,null,null,null,null,"Annual ",null,null,{"$f":"'Goal 1 Workplan'!N63","v":0},null,null,{"$f":"'Goal 1 Reporting'!U62:W62","v":0},null,null,{"$f":"'Goal 1 Reporting'!X62:Z62","v":0},null,null,"",null,null,"",null,null,""]
[null,null,null,"H.","Obtained and/or maintained safe and affordable housing ",null,null,null,null,null,null,null,null,null,"Mid-Year",null,null,{"$f":"'Goal 1 Workplan'!N64","v":0},null,null,{"$f":"'Goal 1 Reporting'!U63:W63","v":0},null,null,{"$f":"'Goal 1 Reporting'!X63:Z63","v":0},null,null,"",null,null,"",null,null,""]
[null,null,null,null,null,null,null,null,null,null,null,null,null,null,"Annual ",null,null,{"$f":"'Goal 1 Workplan'!N65","v":0},null,null,{"$f":"'Goal 1 Reporting'!U64:W64","v":0},null,null,{"$f":"'Goal 1 Reporting'!X64:Z64","v":0},null,null,"",null,null,"",null,null,""]
[null,null,null,"I.","Obtained food assistance \n",null,null,null,null,null,null,null,null,null,"Mid-Year",null,null,{"$f":"'Goal 1 Workplan'!N66","v":0},null,null,{"$f":"'Goal 1 Reporting'!U65:W65","v":0},null,null,{"$f":"'Goal 1 Reporting'!X65:Z65","v":0},null,null,"",null,null,"",null,null,""]
[null,null,null,null,null,null,null,null,null,null,null,null,null,null,"Annual ",null,null,{"$f":"'Goal 1 Workplan'!N67","v":0},null,null,{"$f":"'Goal 1 Reporting'!U66:W66","v":0},null,null,{"$f":"'Goal 1 Reporting'!X66:Z66","v":0},null,null,"",null,null,"",null,null,""]
[null,null,null,"J.","Obtained non-emergency LIHEAP energy assistance\n",null,null,null,null,null,null,null,null,null,"Mid-Year",null,null,{"$f":"'Goal 1 Workplan'!N68","v":0},null,null,{"$f":"'Goal 1 Reporting'!U67:W67","v":0},null,null,{"$f":"'Goal 1 Reporting'!X67:Z67","v":0},null,null,"",null,null,"",null,null,""]
[null,null,null,null,null,null,null,null,null,null,null,null,null,null,"Annual ",null,null,{"$f":"'Goal 1 Workplan'!N69","v":0},null,null,{"$f":"'Goal 1 Reporting'!U68:W68","v":0},null,null,{"$f":"'Goal 1 Reporting'!X68:Z68","v":0},null,null,"",null,null,"",null,null,""]
[null,null,null,"K.","Obtained non-emergency WX energy assistance\n",null,null,null,null,null,null,null,null,null,"Mid-Year",null,null,{"$f":"'Goal 1 Workplan'!N70","v":0},null,null,{"$f":"'Goal 1 Reporting'!U69:W69","v":0},null,null,{"$f":"'Goal 1 Reporting'!X69:Z69","v":0},null,null,"",null,null,"",null,null,""]
[null,null,null,null,null,null,null,null,null,null,null,null,null,null,"Annual ",null,null,{"$f":"'Goal 1 Workplan'!N71","v":0},null,null,{"$f":"'Goal 1 Reporting'!U70:W70","v":0},null,null,{"$f":"'Goal 1 Reporting'!X70:Z70","v":0},null,null,"",null,null,"",null,null,""]
[null,null,null,"L.","Obtained other non-emergency energy assistance (State/local/private energy programs. Do Not Include LIHEAP or WX)",null,null,null,null,null,null,null,null,null,"Mid-Year",null,null,{"$f":"'Goal 1 Workplan'!N72","v":0},null,null,{"$f":"'Goal 1 Reporting'!U71:W71","v":0},null,null,{"$f":"'Goal 1 Reporting'!X71:Z71","v":0},null,null,"",null,null,"",null,null,""]
[null,null,null,null,null,null,null,null,null,null,null,null,null,null,"Annual ",null,null,{"$f":"'Goal 1 Workplan'!N73","v":0},null,null,{"$f":"'Goal 1 Reporting'!U72:W72","v":0},null,null,{"$f":"'Goal 1 Reporting'!X72:Z72","v":0},null,null,"",null,null,"",null,null,""]
[null,null,null,"In the rows below, please include any additional indicators for NPI 1.2 that were not captured above."]
[null,null,null,{"$f":"'Goal 1 Workplan'!D75","v":0},null,null,null,null,null,null,null,null,null,null,"Mid-Year",null,null,{"$f":"'Goal 1 Workplan'!N75","v":0},null,null,{"$f":"'Goal 1 Reporting'!U74:W74","v":0},null,null,{"$f":"'Goal 1 Reporting'!X74:Z74","v":0},null,null,"",null,null,"",null,null,{"$f":"IF(X73>U73, \"Achieving > Enrolled\", IF(X73=U73,\"\", IF(X73<U73,\"\", IF(X73=0,\"\", IF(U73=0, \"\")))))","v":""}]
[null,null,null,null,null,null,null,null,null,null,null,null,null,null,"Annual ",null,null,{"$f":"'Goal 1 Workplan'!N76","v":0},null,null,{"$f":"'Goal 1 Reporting'!U75:W75","v":0},null,null,{"$f":"'Goal 1 Reporting'!X75:Z75","v":0},null,null,"",null,null,"",null,null,{"$f":"IF(X74>U74, \"Achieving > Enrolled\", IF(X74=U74,\"\", IF(X74<U74,\"\", IF(X74=0,\"\", IF(U74=0, \"\")))))","v":""}]
[null,null,null,"Goal 1:  Low-income people become more self-sufficient."]
[null,null,null,"NPI 1.3:  Economic Asset Enhancement and Utilization"]
[null,null,null,"Problem Statement:  (If additional space is needed, please attach a separate sheet.)"]
[null,null,null,{"$f":"'Goal 1 Workplan'!D81","v":0}]
[null,null,null,"Program Activities and Delivery Strategies:  (If additional space is needed, please attach a separate sheet.)"]
[null,null,null,{"$f":"'Goal 1 Workplan'!D84","v":0}]
[null,"See NPI Instruction Manual, pages 10-13",null,"National Performance\nIndicator 1.3 ",null,null,null,null,null,null,null,"Reporting Period",null,null,"I",null,null,"II",null,null,"III",null,null,"IV",null,null,"V",null,null,"VI",null,null,"CSD Review",null,null,"NPI Analysis"]
[null,null,null,"Economic Asset Enhancement and Utilization",null,null,null,null,null,null,null,null,null,null,"Number of ParticipantsEnrolled in Program(s) in Reporting Period\n(#)",null,null,"Number of Participants Expected to Achieve Outcome  in Reporting Period\n(#)",null,null,"Number of Participants Achieving Outcome in Reporting Period\n(#) \n",null,null,"Percentage Achieving Outcome in Reporting Period \n(III/II=IV)\n(%)",null,null,"Explanations Required\n\n(Report on explanation tab)",null,null,"Aggregated Dollar Amounts (Payments, Credits or Savings) \n($)\nIf no dollars reported please explain",null,null,"Column 3 >/= Column 2"]
[null,null,null,"The number and percentage of low-income households that achieve an increase in financial assets and/or financial skills as a result of Community Action assistance, and the aggregated amount of those assets and resources for all participants achieving the outcome, as measured by one or more of the following:"]
[null,null,null," ENHANCEMENT"]
[null,null,null,"A.  ","Number and percent of participants in tax preparation programs who qualified for any type of Federal or State tax credit and the expected aggregated dollar amount of credits. ",null,null,null,null,null,null,"Mid-Year",null,null,26,null,null,{"$f":"'Goal 1 Workplan'!N90","v":0},null,null,{"$f":"'Goal 1 Reporting'!U86:W86","v":0},null,null,{"$f":"IF(R85=\"\",\"\",IF(R85=0,\"\",IF(U85=\"\",\"\",IF(U85=0,\"\",IF(U85=R85,\"100%\",IF(R85=U85,,(U85/R85)))))))","v":""},null,null,{"$f":"IF(R85=U85,\"\",IF(U85=0,\"\",IF(U85/R85<80%,\"Explanation\",IF(U85/R85>120%,\"Explanation\",\"\"))))","v":""},null,null,{"$f":"'Goal 1 Reporting'!AD86:AF86","v":0},null,null,{"$f":"IF(U85>R85, \"Achieving > Enrolled\", IF(U85=R85,\"\", IF(U85<R85,\"\", IF(U85=0,\"\", IF(R85=0, \"\")))))","v":""}]
[null,null,null,null,null,null,null,null,null,null,null,"Annual ",null,null,{"$f":"'Goal 1 Reporting'!R87","v":0},null,null,{"$f":"'Goal 1 Workplan'!N91","v":0},null,null,{"$f":"'Goal 1 Reporting'!U87:W87","v":0},null,null,"",null,null,"",null,null,{"$f":"'Goal 1 Reporting'!AD87:AF87","v":0},null,null,""]
[null,null,null,"B. "," Number and percent of participants who obtained court-ordered child support payments and the expected annual aggregated dollar amount of payments.",null,null,null,null,null,null,"Mid-Year",null,null,{"$f":"'Goal 1 Reporting'!R88","v":0},null,null,{"$f":"'Goal 1 Workplan'!N92","v":0},null,null,{"$f":"'Goal 1 Reporting'!U88:W88","v":0},null,null,"",null,null,"",null,null,{"$f":"'Goal 1 Reporting'!AD88:AF88","v":0},null,null,""]
[null,null,null,null,null,null,null,null,null,null,null,"Annual ",null,null,{"$f":"'Goal 1 Reporting'!R89","v":0},null,null,{"$f":"'Goal 1 Workplan'!N93","v":0},null,null,{"$f":"'Goal 1 Reporting'!U89:W89","v":0},null,null,"",null,null,"",null,null,{"$f":"'Goal 1 Reporting'!AD89:AF89","v":0},null,null,""]
[null,null,null,"C.  ","Number and percent of participants who were enrolled in telephone lifeline and/or energy discounts with the assistance of the agency and the expected aggregated dollar amount of savings.",null,null,null,null,null,null,"Mid-Year",null,null,{"$f":"'Goal 1 Reporting'!R90","v":0},null,null,{"$f":"'Goal 1 Workplan'!N94","v":0},null,null,{"$f":"'Goal 1 Reporting'!U90:W90","v":0},null,null,"",null,null,"",null,null,{"$f":"'Goal 1 Reporting'!AD90:AF90","v":0},null,null,""]
[null,null,null,null,null,null,null,null,null,null,null,"Annual ",null,null,{"$f":"'Goal 1 Reporting'!R91","v":0},null,null,{"$f":"'Goal 1 Workplan'!N95","v":0},null,null,{"$f":"'Goal 1 Reporting'!U91:W91","v":0},null,null,"",null,null,"",null,null,{"$f":"'Goal 1 Reporting'!AD91:AF91","v":0},null,null,""]
[]
[null,null,null,"National Performance\nIndicator 1.3 ",null,null,null,null,null,null,null,"Reporting Period",null,null,"I",null,null,"II",null,null,"III",null,null,"IV",null,null,"V",null,null,"VI"]
[null,null,null,"Economic Asset Enhancement and Utilization",null,null,null,null,null,null,null,null,null,null,"Number of Participants   Enrolled in Program(s) in Reporting Period\n(#)",null,null,"Number of Participants Expected to Achieve Outcome in Reporting Period\n(#)",null,null,"Number of Participants Achieving Outcome in Reporting Period\n(#) \n",null,null,"Percentage Achieving Outcome in Reporting Period \n(III/II=IV)\n(%)",null,null,"Explanations Required\n\n(Report on explanation tab)",null,null,"Aggregated Dollar Amounts (Payments, Credits or Savings) \n($)\nIf no dollars reported please explain"]
[null,null,null,"The number and percentage of low-income households that achieve an increase in financial assets and/or financial skills as a result of community action assistance, and the aggregated amount of those assets and resources for all participants achieving the outcome, as measured by one or more of the following:"]
[null,null,null,"UTILIZATION"]
[null,null,null,"D. "," Number and percent of participants demonstrating ability to complete and maintain a budget for over 90 days ",null,null,null,null,null,null,"Mid-Year",null,null,{"$f":"'Goal 1 Reporting'!R97","v":0},null,null,{"$f":"'Goal 1 Workplan'!N97","v":0},null,null,{"$f":"'Goal 1 Reporting'!U97:W97","v":0},null,null,{"$f":"IF(R96=\"\",\"\",IF(R96=0,\"\",IF(U96=\"\",\"\",IF(U96=0,\"\",IF(U96=R96,\"100%\",IF(R96=U96,,(U96/R96)))))))","v":""},null,null,{"$f":"IF(O96=U96,\"\",IF(U96=0,\"\",IF(U96/O96<80%,\"Explanation\",IF(U96/O96>120%,\"Explanation\",\"\"))))","v":""},null,null,"N/A",null,null,{"$f":"IF(U96>R96, \"Achieving > Enrolled\", IF(U96=R96,\"\", IF(U96<R96,\"\", IF(U96=0,\"\", IF(R96=0, \"\")))))","v":""}]
[null,null,null,null,null,null,null,null,null,null,null,"Annual ",null,null,{"$f":"'Goal 1 Reporting'!R98","v":0},null,null,{"$f":"'Goal 1 Workplan'!N98","v":0},null,null,{"$f":"'Goal 1 Reporting'!U98:W98","v":0},null,null,{"$f":"IF(R97=\"\",\"\",IF(R97=0,\"\",IF(U97=\"\",\"\",IF(U97=0,\"\",IF(U97=R97,\"100%\",IF(R97=U97,,(U97/R97)))))))","v":""},null,null,"",null,null,null,null,null,""]
[null,null,null,"E.  ","Number and percent of participants opening an Individual Development Account (IDA) or other savings account ",null,null,null,null,null,null,"Mid-Year",null,null,{"$f":"'Goal 1 Reporting'!R99","v":0},null,null,{"$f":"'Goal 1 Workplan'!N99","v":0},null,null,{"$f":"'Goal 1 Reporting'!U99:W99","v":0},null,null,"",null,null,"",null,null,"N/A",null,null,""]
[null,null,null,null,null,null,null,null,null,null,null,"Annual ",null,null,{"$f":"'Goal 1 Reporting'!R100","v":0},null,null,{"$f":"'Goal 1 Workplan'!N100","v":0},null,null,{"$f":"'Goal 1 Reporting'!U100:W100","v":25},null,null,"",null,null,{"$error":"#DIV/0!"},null,null,null,null,null,"Achieving > Enrolled"]
[null,null,null,"F.  ","Number and percent of participants who increased their savings through IDA or other savings accounts and the aggregated amount of savings",null,null,null,null,null,null,"Mid-Year",null,null,{"$f":"'Goal 1 Reporting'!R101","v":0},null,null,{"$f":"'Goal 1 Workplan'!N101","v":0},null,null,{"$f":"'Goal 1 Reporting'!U101:W101","v":0},null,null,"",null,null,"",null,null,{"$f":"'Goal 1 Reporting'!AD101:AF101","v":0},null,null,""]
[null,null,null,null,null,null,null,null,null,null,null,"Annual ",null,null,{"$f":"'Goal 1 Reporting'!R102","v":0},null,null,{"$f":"'Goal 1 Workplan'!N102","v":0},null,null,{"$f":"'Goal 1 Reporting'!U102:W102","v":0},null,null,"",null,null,"",null,null,{"$f":"'Goal 1 Reporting'!AD102:AF102","v":0},null,null,""]
[null,null,null,"G. "," Number and percent of participants capitalizing a small business with accumulated IDA or other savings ",null,null,null,null,null,null,"Mid-Year",null,null,{"$f":"'Goal 1 Reporting'!R103","v":0},null,null,{"$f":"'Goal 1 Workplan'!N103","v":0},null,null,{"$f":"'Goal 1 Reporting'!U103:W103","v":0},null,null,"",null,null,"",null,null,{"$f":"'Goal 1 Reporting'!AD103:AF103","v":0},null,null,{"$f":"IF(U102>R102, \"Achieving > Enrolled\", IF(U102=R102,\"\", IF(U102<R102,\"\", IF(U102=0,\"\", IF(R102=0, \"\")))))","v":""}]
[null,null,null,null,null,null,null,null,null,null,null,"Annual ",null,null,{"$f":"'Goal 1 Reporting'!R104","v":0},null,null,{"$f":"'Goal 1 Workplan'!N104","v":0},null,null,{"$f":"'Goal 1 Reporting'!U104:W104","v":0},null,null,"",null,null,"",null,null,{"$f":"'Goal 1 Reporting'!AD104:AF104","v":0},null,null,{"$f":"IF(U103>R103, \"Achieving > Enrolled\", IF(U103=R103,\"\", IF(U103<R103,\"\", IF(U103=0,\"\", IF(R103=0, \"\")))))","v":""}]
[null,null,null,"H.  ","Number and percent of participants pursuing post-secondary education with accumulated IDA or other savings ",null,null,null,null,null,null,"Mid-Year",null,null,{"$f":"'Goal 1 Reporting'!R105","v":0},null,null,{"$f":"'Goal 1 Workplan'!N105","v":0},null,null,{"$f":"'Goal 1 Reporting'!U105:W105","v":0},null,null,"",null,null,"",null,null,{"$f":"'Goal 1 Reporting'!AD105:AF105","v":0},null,null,""]
[null,null,null,null,null,null,null,null,null,null,null,"Annual ",null,null,{"$f":"'Goal 1 Reporting'!R106","v":0},null,null,{"$f":"'Goal 1 Workplan'!N106","v":0},null,null,{"$f":"'Goal 1 Reporting'!U106:W106","v":0},null,null,"",null,null,"",null,null,{"$f":"'Goal 1 Reporting'!AD106:AF106","v":0},null,null,""]
[null,null,null,"I.                 ","Number and percent of participants purchasing a home with accumulated IDA or other savings",null,null,null,null,null,null,"Mid-Year",null,null,{"$f":"'Goal 1 Reporting'!R107","v":0},null,null,{"$f":"'Goal 1 Workplan'!N107","v":0},null,null,{"$f":"'Goal 1 Reporting'!U107:W107","v":0},null,null,"",null,null,"",null,null,{"$f":"'Goal 1 Reporting'!AD107:AF107","v":0},null,null,""]
[null,null,null,null,null,null,null,null,null,null,null,"Annual ",null,null,{"$f":"'Goal 1 Reporting'!R108","v":0},null,null,{"$f":"'Goal 1 Workplan'!N108","v":0},null,null,{"$f":"'Goal 1 Reporting'!U108:W108","v":0},null,null,"",null,null,"",null,null,{"$f":"'Goal 1 Reporting'!AD108:AF108","v":0},null,null,""]
[null,null,null,"J.  ","Number and percent of participants purchasing other assets with accumulated IDA or other savings   ",null,null,null,null,null,null,"Mid-Year",null,null,{"$f":"'Goal 1 Reporting'!R109","v":0},null,null,{"$f":"'Goal 1 Workplan'!N109","v":0},null,null,{"$f":"'Goal 1 Reporting'!U109:W109","v":0},null,null,"",null,null,"",null,null,{"$f":"'Goal 1 Reporting'!AD109:AF109","v":0},null,null,""]
[null,null,null,null,null,null,null,null,null,null,null,"Annual ",null,null,{"$f":"'Goal 1 Reporting'!R110","v":0},null,null,{"$f":"'Goal 1 Workplan'!N110","v":0},null,null,{"$f":"'Goal 1 Reporting'!U110:W110","v":0},null,null,{"$f":"IF(R109=\"\",\"\",IF(R109=0,\"\",IF(U109=\"\",\"\",IF(U109=0,\"\",IF(U109=R109,\"100%\",IF(R109=U109,,(U109/R109)))))))","v":""},null,null,"",null,null,{"$f":"'Goal 1 Reporting'!AD110:AF110","v":0},null,null,""]
[null,null,null,"In the rows below, please include any additional indicators for NPI 1.3 that were not captured above."]
[null,null,null,{"$f":"'Goal 1 Workplan'!D112","v":0},null,null,null,null,null,null,null,"Mid-Year",null,null,{"$f":"'Goal 1 Reporting'!R112","v":0},null,null,{"$f":"'Goal 1 Workplan'!N112","v":0},null,null,{"$f":"'Goal 1 Reporting'!U112:W112","v":0},null,null,{"$f":"IF(R111=\"\",\"\",IF(R111=0,\"\",IF(U111=\"\",\"\",IF(U111=0,\"\",IF(U111=R111,\"100%\",IF(R111=U111,,(U111/R111)))))))","v":""},null,null,{"$f":"IF(O111=U111,\"\",IF(U111=0,\"\",IF(U111/O111<80%,\"Explanation\",IF(U111/O111>120%,\"Explanation\",\"\"))))","v":""},null,null,{"$f":"'Goal 1 Reporting'!AD112:AF112","v":0},null,null,{"$f":"IF(U111>R111, \"Achieving > Enrolled\", IF(U111=R111,\"\", IF(U111<R111,\"\", IF(U111=0,\"\", IF(R111=0, \"\")))))","v":""}]
[null,null,null,null,null,null,null,null,null,null,null,"Annual ",null,null,{"$f":"'Goal 1 Reporting'!R113","v":0},null,null,{"$f":"'Goal 1 Workplan'!N113","v":0},null,null,{"$f":"'Goal 1 Reporting'!U113:W113","v":0},null,null,{"$f":"IF(R112=\"\",\"\",IF(R112=0,\"\",IF(U112=\"\",\"\",IF(U112=0,\"\",IF(U112=R112,\"100%\",IF(R112=U112,,(U112/R112)))))))","v":""},null,null,{"$f":"IF(O112=U112,\"\",IF(U112=0,\"\",IF(U112/O112<80%,\"Explanation\",IF(U112/O112>120%,\"Explanation\",\"\"))))","v":""},null,null,{"$f":"'Goal 1 Reporting'!AD113:AF113","v":0},null,null,{"$f":"IF(U112>R112, \"Achieving > Enrolled\", IF(U112=R112,\"\", IF(U112<R112,\"\", IF(U112=0,\"\", IF(R112=0, \"\")))))","v":""}]

{"sheet":"Goal 2 Reporting","index":11,"n_rows":82,"n_cols":39,"rows_kept":82,"cut":false,"hidden":false,"merged":[[57,29,57,31],[57,32,57,36],[58,29,58,31],[58,32,58,36],[39,29,39,31],[39,32,39,36],[41,29,41,31],[41,32,41,36],[42,29,42,31],[53,29,53,31],[53,32,53,36],[1,38,14,45],[18,38,18,45],[1,26,1,28],[61,29,61,31],[81,32,81,36],[75,32,75,36],[76,32,76,36],[77,32,77,36],[78,32,78,36],[80,32,80,36],[59,29,59,31],[59,32,59,36],[60,29,60,31],[60,32,60,36],[61,32,61,36],[63,29,63,31],[63,32,63,36],[64,29,64,31],[64,32,64,36],[49,29,49,31],[49,32,51,36],[50,29,51,31],[72,32,74,36],[20,37,21,37],[34,29,34,31],[34,32,34,36],[35,29,35,31],[35,32,35,36],[36,29,36,31],[36,32,36,36],[56,32,56,36],[33,29,33,31],[54,29,54,31],[54,32,54,36],[55,29,55,31],[55,32,55,36],[56,29,56,31],[32,29,32,31],[37,29,37,31],[52,29,52,31],[33,32,33,36],[24,29,24,31],[24,32,24,36],[25,29,25,31],[25,32,25,36],[26,29,26,31],[37,32,37,36],[38,29,38,31],[38,32,38,36],[29,29,29,31],[29,32,29,36],[30,29,30,31],[30,32,30,36],[31,29,31,31],[31,32,31,36],[32,32,32,36],[42,32,42,36],[52,32,52,36],[28,29,28,31],[48,3,48,37],[50,37,51,37],[20,29,21,31],[19,29,19,31],[22,29,22,31],[19,32,21,36],[22,32,22,36],[27,32,27,36],[26,32,26,36],[28,32,28,36],[23,29,23,31],[23,32,23,36],[27,29,27,31],[34,26,34,28],[35,11,35,13],[77,23,77,25],[47,3,47,28],[75,20,75,22],[75,23,75,25],[75,26,75,28],[73,23,74,25],[72,17,72,19],[72,20,72,22],[72,23,72,25],[72,26,72,28],[73,3,73,13],[73,17,74,19],[60,4,61,10],[60,11,60,13],[60,14,60,16],[60,17,60,19],[60,20,60,22],[60,23,60,25],[60,26,60,28],[61,11,61,13],[61,14,61,16],[61,17,61,19],[83,3,83,28],[76,23,76,25],[42,17,42,19],[42,20,42,22],[42,23,42,25],[42,26,42,28],[38,26,38,28],[38,11,38,13],[38,14,38,16],[38,17,38,19],[38,20,38,22],[38,23,38,25],[39,11,39,13],[39,14,39,16],[39,17,39,19],[39,20,39,22],[81,14,81,16],[81,17,81,19],[81,20,81,22],[81,23,81,25],[79,3,79,28],[71,3,71,28],[72,3,72,13],[72,14,74,16],[13,3,13,28],[15,3,15,16],[17,3,17,28],[37,11,37,13],[38,4,39,10],[77,26,77,28],[76,14,76,16],[76,17,76,19],[76,20,76,22],[39,26,39,28],[43,3,43,28],[44,3,44,28],[45,3,45,28],[66,3,66,28],[67,3,67,28],[70,3,70,28],[68,3,68,28],[69,3,69,28],[34,4,35,10],[74,3,74,13],[64,17,64,19],[64,20,64,22],[64,23,64,25],[64,26,64,28],[80,14,80,16],[80,17,80,19],[80,20,80,22],[80,23,80,25],[80,26,80,28],[81,26,81,28],[78,14,78,16],[78,17,78,19],[78,20,78,22],[78,23,78,25],[78,26,78,28],[63,20,63,22],[63,23,63,25],[63,26,63,28],[64,11,64,13],[64,14,64,16],[75,4,76,13],[75,14,75,16],[75,17,75,19],[73,20,74,22],[76,26,76,28],[77,4,78,13],[77,14,77,16],[77,17,77,19],[77,20,77,22],[73,26,74,28],[61,23,61,25],[61,26,61,28],[58,4,59,10],[58,11,58,13],[58,14,58,16],[58,17,58,19],[58,20,58,22],[58,23,58,25],[58,26,58,28],[59,11,59,13],[59,14,59,16],[59,17,59,19],[59,20,59,22],[59,23,59,25],[59,26,59,28],[61,20,61,22],[63,11,63,13],[63,14,63,16],[63,17,63,19],[56,4,57,10],[56,11,56,13],[56,14,56,16],[56,17,56,19],[56,20,56,22],[56,23,56,25],[56,26,56,28],[57,11,57,13],[57,14,57,16],[57,17,57,19],[57,20,57,22],[57,23,57,25],[57,26,57,28],[54,4,55,10],[54,11,54,13],[54,14,54,16],[54,17,54,19],[54,20,54,22],[52,4,53,10],[52,11,52,13],[54,23,54,25],[54,26,54,28],[55,11,55,13],[55,14,55,16],[55,17,55,19],[55,20,55,22],[55,23,55,25],[55,26,55,28],[52,23,52,25],[49,1,50,1],[49,3,49,10],[49,11,51,13],[49,14,49,16],[49,17,49,19],[49,20,49,22],[52,26,52,28],[53,11,53,13],[53,14,53,16],[53,17,53,19],[53,20,53,22],[53,23,53,25],[53,26,53,28],[52,14,52,16],[52,17,52,19],[52,20,52,22],[49,26,49,28],[50,3,50,10],[50,14,51,16],[50,17,51,19],[50,20,51,22],[50,23,51,25],[50,26,51,28],[51,3,51,10],[49,23,49,25],[37,14,37,16],[37,17,37,19],[37,20,37,22],[37,23,37,25],[37,26,37,28],[36,4,37,10],[36,11,36,13],[36,14,36,16],[36,17,36,19],[36,20,36,22],[41,11,41,13],[41,14,41,16],[41,17,41,19],[41,20,41,22],[41,23,41,25],[41,26,41,28],[42,11,42,13],[42,14,42,16],[39,23,39,25],[36,23,36,25],[41,3,41,10],[46,3,46,37],[35,14,35,16],[35,17,35,19],[35,20,35,22],[35,23,35,25],[35,26,35,28],[36,26,36,28],[32,4,33,10],[32,11,32,13],[32,14,32,16],[32,17,32,19],[32,20,32,22],[32,23,32,25],[32,26,32,28],[33,11,33,13],[33,14,33,16],[33,17,33,19],[33,20,33,22],[33,23,33,25],[33,26,33,28],[34,11,34,13],[34,14,34,16],[34,17,34,19],[34,20,34,22],[34,23,34,25],[30,4,31,10],[30,11,30,13],[30,14,30,16],[30,17,30,19],[30,20,30,22],[30,23,30,25],[30,26,30,28],[31,11,31,13],[31,14,31,16],[31,17,31,19],[31,20,31,22],[31,23,31,25],[31,26,31,28],[28,4,29,10],[28,11,28,13],[28,14,28,16],[28,17,28,19],[28,20,28,22],[28,23,28,25],[28,26,28,28],[29,11,29,13],[29,14,29,16],[29,17,29,19],[29,20,29,22],[29,23,29,25],[29,26,29,28],[26,4,27,10],[26,11,26,13],[26,14,26,16],[26,17,26,19],[26,20,26,22],[26,23,26,25],[26,26,26,28],[27,11,27,13],[27,14,27,16],[27,17,27,19],[27,20,27,22],[27,23,27,25],[27,26,27,28],[23,17,23,19],[23,20,23,22],[23,23,23,25],[23,26,23,28],[24,4,25,10],[24,11,24,13],[24,14,24,16],[24,17,24,19],[24,20,24,22],[24,23,24,25],[24,26,24,28],[25,11,25,13],[25,14,25,16],[25,17,25,19],[25,20,25,22],[25,23,25,25],[25,26,25,28],[20,3,20,10],[20,14,21,16],[20,17,21,19],[20,20,21,22],[22,4,23,10],[1,1,7,1],[1,23,1,25],[5,10,7,17],[9,1,12,1],[9,3,9,7],[11,8,11,20],[11,21,11,23],[11,24,11,28],[12,3,12,7],[9,8,9,28],[12,24,12,28],[22,11,22,13],[22,14,22,16],[22,17,22,19],[22,20,22,22],[22,23,22,25],[22,26,22,28],[23,11,23,13],[23,14,23,16],[18,3,18,37],[16,3,16,37],[80,3,80,13],[63,3,63,10],[19,38,30,45],[72,1,73,1],[40,26,40,28],[62,26,62,28],[10,3,10,7],[10,8,10,28],[11,3,11,7],[20,23,21,25],[20,26,21,28],[21,3,21,10],[14,3,14,28],[19,23,19,25],[19,26,19,28],[12,8,12,20],[19,1,20,1],[19,3,19,10],[19,11,21,13],[19,14,19,16],[19,17,19,19],[19,20,19,22]]}
[]
[null,"Use the tab key to move through the cells that require entry.",null,"State of California",null,null,null,null,null,null,null,null,null,null,null,null,null,null,null,null,null,null,null,"Contract No.",null,null,{"$f":"'Goal 1 Workplan'!P3","v":0}]
[]
[null,null,null,"Department of Community Services and Development",null,null,null,null,null,null,null,null,null,null,null,null,null,null,null,null,null,null,null," "]
[]
[null,null,null,"CSBG/NPI Programs Report",null,null,null,null,null,null,"CSBG/NPI Programs Report",null,null,null,null,null,null,null,null,null,null,null,null,null,{"$f":"'Goal 1 Reporting'!AB6","v":0}]
[]
[null,null,null,"CSD 801 (Rev.8/16)"]
[]
[null,"Use the goal 1 tab to enter information into this block of cells.  ",null,"Contractor Name:",null,null,null,null,{"$f":"'Goal 1 Workplan'!J11","v":0}]
[null,null,null,"Contact Person and Title:",null,null,null,null,{"$f":"'Goal 1 Workplan'!J12","v":0}]
[null,null,null,"Phone Number:",null,null,null,null,{"$f":"'Goal 1 Workplan'!J13","v":0},null,null,null,null,null,null,null,null,null,null,null,null,"Ext. Number:",null,null,{"$f":"'Goal 1 Workplan'!N13","v":0}]
[null,null,null,"E-mail Address:",null,null,null,null,{"$f":"'Goal 1 Workplan'!J14","v":0},null,null,null,null,null,null,null,null,null,null,null,null,"Fax Number:",null,null,{"$f":"'Goal 1 Workplan'!N14","v":0}]
[null,null,null,"Goal 2:  The conditions in which low-income people live are improved."]
[null,null,null,"NPI 2.1:  Community Improvement and Revitalization"]
[null,null,null,"Problem Statement:  (If additional space is needed, please attach a separate sheet.)"]
[null,null,null,{"$f":"'Goal 2 Workplan'!D18","v":0}]
[null,null,null,"Program Activities and Delivery Strategies:  (If additional space is needed, please attach a separate sheet.)"]
[null,null,null,{"$f":"'Goal 2 Workplan'!D20","v":0},null,null,null,null,null,null,null,null,null,null,null,null,null,null,null,null,null,null,null,null,null,null,null,null,null,null,null,null,null,null,null,null,null,null,"REPORTING PERIOD"]
[null,"See NPI Instruction Manual, pages 14-18",null,"National Performance\nIndicator 2.1",null,null,null,null,null,null,null,"Reporting Period",null,null,"I",null,null,"II",null,null,"III",null,null,"IV",null,null,"V",null,null,"CSD Review",null,null,"NPI Analysis",null,null,null,null,"VI","Annual Report\nDue January 20th of every year.\n\nReporting Period\nJanuary 1 - December 31\n\nHow to Complete\nFill in the Tan cells that are \napplicable to your workplan. \n(Note: the Light Gray \"Column I\" \nautomatically populates from the Workplan tab)\n\nHow to Submit Annual Report\nUpon completion of report, \nthis workbook should be \nE-MAILED to the following address\nCSBGReports@csd.ca.gov\nand copy your assigned Field Representative.\n"]
[null,null,null,"Community Improvement and Revitalization",null,null,null,null,null,null,null,null,null,null,"Number of Projects or Initiatives Expected to Achieve in Reporting Period\n(#)",null,null,"Number of Projects or Initiatives\n(#)",null,null,"Number of Opportunities and/or Community Resources Preserved or Increased\n(#)",null,null,"Percentage Achieving Outcome in Reporting Period \n(II/I=IV)\n(%)",null,null,"Explanations Required\n\n(Report on explanation tab)\n(II/I=V)",null,null,"Column 3 >/= Column 2",null,null,null,null,null,null,null,"Explanations Required for Projects to Opportunities Ratio (II is greater than III) \n(Report on explanation tab)"]
[null,null,null,"\nIncrease in, or safeguarding of, threatened opportunities and community resources or services for low-income people in the community as a result of Community Action projects/initiatives or advocacy with other public and private agencies, as measured by one or more of the following:"]
[null,null,null,"A.","Jobs created, or saved, from reduction or elimination in the community.\n",null,null,null,null,null,null,"Annual ",null,null,{"$f":"'Goal 2 Workplan'!O25:Q25","v":0},null,null,null,null,null,null,null,null,{"$f":"IF(O23=\"\",\"\",IF(O23=0,\"\",IF(R23=\"\",\"\",IF(R23=O23,\"100%\",IF(O23=R23,,(R23/O23))))))","v":""},null,null,{"$f":"IF(O23=R23,\"\",IF(R23=0,\"\",IF(R23/O23<80%,\"Explanation\",IF(R23/O23>120%,\"Explanation\",\"\"))))","v":""},null,null,{"$f":"IF(U23>R23,\"Opportunites > Projects\",IF(U23=R23,\"\",IF(U23<R23,\"\",IF(U23=0,\"\",IF(R23=0,\"\")))))","v":""},null,null,null,null,null,null,null,{"$f":"IF(U23=R23,\"\",IF(R23=0,\"Explanation\",IF(U23<R23,\"Explanation\",\"\")))","v":""}]
[null,null,null,null,null,null,null,null,null,null,null,null,null,null,{"$f":"'Goal 2 Workplan'!O26:Q26","v":0},null,null,null,null,null,null,null,null,{"$f":"IF(O24=\"\",\"\",IF(O24=0,\"\",IF(R24=\"\",\"\",IF(R24=0,\"\",IF(R24=O24,\"100%\",IF(O24=R24,,(R24/O24)))))))","v":""},null,null,{"$f":"IF(O24=R24,\"\",IF(R24=0,\"\",IF(R24/O24<80%,\"Explanation\",IF(R24/O24>120%,\"Explanation\",\"\"))))","v":""},null,null,"",null,null,null,null,null,null,null,{"$f":"IF(U24=R24,\"\",IF(R24=0,\"Explanation\",IF(U24<R24,\"Explanation\",\"\")))","v":""}]
[null,null,null,"B.","Accessible \"living wage\" jobs created, or saved, from reduction or elimination in the community.",null,null,null,null,null,null,"Annual ",null,null,{"$f":"'Goal 2 Workplan'!O27:Q27","v":0},null,null,null,null,null,null,null,null,{"$f":"IF(O25=\"\",\"\",IF(O25=0,\"\",IF(R25=\"\",\"\",IF(R25=O25,\"100%\",IF(O25=R25,,(R25/O25))))))","v":""},null,null,"",null,null,"",null,null,null,null,null,null,null,""]
[null,null,null,null,null,null,null,null,null,null,null,null,null,null,{"$f":"'Goal 2 Workplan'!O28:Q28","v":0},null,null,null,null,null,null,null,null,{"$f":"IF(O26=\"\",\"\",IF(O26=0,\"\",IF(R26=\"\",\"\",IF(R26=0,\"\",IF(R26=O26,\"100%\",IF(O26=R26,,(R26/O26)))))))","v":""},null,null,"",null,null,"",null,null,null,null,null,null,null,""]
[null,null,null,"C.","Safe and affordable housing units created in the community",null,null,null,null,null,null,"Annual ",null,null,{"$f":"'Goal 2 Workplan'!O29:Q29","v":0},null,null,null,null,null,null,null,null,{"$f":"IF(O27=\"\",\"\",IF(O27=0,\"\",IF(R27=\"\",\"\",IF(R27=O27,\"100%\",IF(O27=R27,,(R27/O27))))))","v":""},null,null,"",null,null,"",null,null,null,null,null,null,null,""]
[null,null,null,null,null,null,null,null,null,null,null,null,null,null,{"$f":"'Goal 2 Workplan'!O30:Q30","v":0},null,null,null,null,null,null,null,null,{"$f":"IF(O28=\"\",\"\",IF(O28=0,\"\",IF(R28=\"\",\"\",IF(R28=0,\"\",IF(R28=O28,\"100%\",IF(O28=R28,,(R28/O28)))))))","v":""},null,null,"",null,null,"",null,null,null,null,null,null,null,""]
[null,null,null,"D.","Safe and affordable housing units in the community preserved or improved through construction, weatherization, or rehabilitation achieved by community action activity or advocacy ",null,null,null,null,null,null,"Annual ",null,null,{"$f":"'Goal 2 Workplan'!O31","v":0},null,null,null,null,null,null,null,null,{"$f":"IF(O29=\"\",\"\",IF(O29=0,\"\",IF(R29=\"\",\"\",IF(R29=O29,\"100%\",IF(O29=R29,,(R29/O29))))))","v":""},null,null,"",null,null,"",null,null,null,null,null,null,null,""]
[null,null,null,null,null,null,null,null,null,null,null,null,null,null,{"$f":"'Goal 2 Workplan'!O32","v":0},null,null,null,null,null,null,null,null,{"$f":"IF(O30=\"\",\"\",IF(O30=0,\"\",IF(R30=\"\",\"\",IF(R30=0,\"\",IF(R30=O30,\"100%\",IF(O30=R30,,(R30/O30)))))))","v":""},null,null,"",null,null,"",null,null,null,null,null,null,null,""]
[null,null,null,"E.","Accessible safe and affordable health care services/facilities for low-income people created, or saved from reduction or elimination\n",null,null,null,null,null,null,"Annual ",null,null,{"$f":"'Goal 2 Workplan'!O33","v":0},null,null,null,null,null,null,null,null,{"$f":"IF(O31=\"\",\"\",IF(O31=0,\"\",IF(R31=\"\",\"\",IF(R31=O31,\"100%\",IF(O31=R31,,(R31/O31))))))","v":""},null,null,"",null,null,"",null,null,null,null,null,null,null,""]
[null,null,null,null,null,null,null,null,null,null,null,null,null,null,{"$f":"'Goal 2 Workplan'!O34","v":0},null,null,null,null,null,null,null,null,{"$f":"IF(O32=\"\",\"\",IF(O32=0,\"\",IF(R32=\"\",\"\",IF(R32=0,\"\",IF(R32=O32,\"100%\",IF(O32=R32,,(R32/O32)))))))","v":""},null,null,"",null,null,"",null,null,null,null,null,null,null,""]
[null,null,null,"F.","Accessible safe and affordable child care or child development placement opportunities for low-income families created, or saved from reduction or elimination \n",null,null,null,null,null,null,"Annual ",null,null,{"$f":"'Goal 2 Workplan'!O35","v":0},null,null,null,null,null,null,null,null,{"$f":"IF(O33=\"\",\"\",IF(O33=0,\"\",IF(R33=\"\",\"\",IF(R33=O33,\"100%\",IF(O33=R33,,(R33/O33))))))","v":""},null,null,"",null,null,"",null,null,null,null,null,null,null,""]
[null,null,null,null,null,null,null,null,null,null,null,null,null,null,{"$f":"'Goal 2 Workplan'!O36","v":0},null,null,null,null,null,null,null,null,{"$f":"IF(O34=\"\",\"\",IF(O34=0,\"\",IF(R34=\"\",\"\",IF(R34=0,\"\",IF(R34=O34,\"100%\",IF(O34=R34,,(R34/O34)))))))","v":""},null,null,"",null,null,"",null,null,null,null,null,null,null,""]
[null,null,null,"G.","Accessible \"before school\" and \"after school\" program placement opportunities for low-income families created, or saved from reduction or elimination ",null,null,null,null,null,null,"Annual ",null,null,{"$f":"'Goal 2 Workplan'!O37","v":0},null,null,null,null,null,null,null,null,{"$f":"IF(O35=\"\",\"\",IF(O35=0,\"\",IF(R35=\"\",\"\",IF(R35=O35,\"100%\",IF(O35=R35,,(R35/O35))))))","v":""},null,null,"",null,null,"",null,null,null,null,null,null,null,""]
[null,null,null,null,null,null,null,null,null,null,null,null,null,null,{"$f":"'Goal 2 Workplan'!O38","v":0},null,null,null,null,null,null,null,null,{"$f":"IF(O36=\"\",\"\",IF(O36=0,\"\",IF(R36=\"\",\"\",IF(R36=0,\"\",IF(R36=O36,\"100%\",IF(O36=R36,,(R36/O36)))))))","v":""},null,null,"",null,null,"",null,null,null,null,null,null,null,""]
[null,null,null,"H.","Accessible new or expanded transportation resources, or those that are saved from reduction or elimination, that are available to low-income people, including public or private transportation. \n",null,null,null,null,null,null,"Annual ",null,null,{"$f":"'Goal 2 Workplan'!O39","v":0},null,null,null,null,null,null,null,null,{"$f":"IF(O37=\"\",\"\",IF(O37=0,\"\",IF(R37=\"\",\"\",IF(R37=O37,\"100%\",IF(O37=R37,,(R37/O37))))))","v":""},null,null,"",null,null,"",null,null,null,null,null,null,null,""]
[null,null,null,null,null,null,null,null,null,null,null,null,null,null,{"$f":"'Goal 2 Workplan'!O40","v":0},null,null,null,null,null,null,null,null,{"$f":"IF(O38=\"\",\"\",IF(O38=0,\"\",IF(R38=\"\",\"\",IF(R38=0,\"\",IF(R38=O38,\"100%\",IF(O38=R38,,(R38/O38)))))))","v":""},null,null,"",null,null,"",null,null,null,null,null,null,null,""]
[null,null,null,"I.","Accessible or increased educational and training placement opportunities, or those that are saved from reduction or elimination, that are available for low-income people in the community, including vocational, literacy, and life skill training, ABE/GED, and post-secondary education\n\n",null,null,null,null,null,null,"Annual ",null,null,{"$f":"'Goal 2 Workplan'!O41","v":0},null,null,null,null,null,null,null,null,{"$f":"IF(O39=\"\",\"\",IF(O39=0,\"\",IF(R39=\"\",\"\",IF(R39=O39,\"100%\",IF(O39=R39,,(R39/O39))))))","v":""},null,null,"",null,null,"",null,null,null,null,null,null,null,""]
[null,null,null,null,null,null,null,null,null,null,null,null,null,null,{"$f":"'Goal 2 Workplan'!O42","v":0},null,null,null,null,null,null,null,null,{"$f":"IF(O40=\"\",\"\",IF(O40=0,\"\",IF(R40=\"\",\"\",IF(R40=0,\"\",IF(R40=O40,\"100%\",IF(O40=R40,,(R40/O40)))))))","v":""},null,null,"",null,null,"",null,null,null,null,null,null,null,""]
[null,null,null,"In the rows below, please include any additional indicators for NPI 2.1 that were not captured above.",null,null,null,null,null,null,null,null,null,null,null,null,null,null,null,null,null,null,null,null,null,null,{"$f":"IF(O41=R41,\"\",IF(R41=0,\"\",IF(R41/O41<80%,\"Explanation\",IF(R41/O41>120%,\"Explanation\",\"\"))))","v":""},null,null,null,null,null,null,null,null,null,null,""]
[null,null,null,{"$f":"'Goal 2 Workplan'!D44","v":0},null,null,null,null,null,null,null,"Annual ",null,null,{"$f":"'Goal 2 Workplan'!O44","v":0},null,null,null,null,null,null,null,null,{"$f":"IF(O42=\"\",\"\",IF(O42=0,\"\",IF(R42=\"\",\"\",IF(R42=O42,\"100%\",IF(O42=R42,,(R42/O42))))))","v":""},null,null,{"$f":"IF(O42=R42,\"\",IF(R42=0,\"\",IF(R42/O42<80%,\"Explanation\",IF(R42/O42>120%,\"Explanation\",\"\"))))","v":""},null,null,{"$f":"IF(U42>R42,\"Opportunites > Projects\",IF(U42=R42,\"\",IF(U42<R42,\"\",IF(U42=0,\"\",IF(R42=0,\"\")))))","v":""},null,null,null,null,null,null,null,""]
[null,null,null,null,null,null,null,null,null,null,null,null,null,null,{"$f":"'Goal 2 Workplan'!O45","v":0},null,null,null,null,null,null,null,null,{"$f":"IF(O43=\"\",\"\",IF(O43=0,\"\",IF(R43=\"\",\"\",IF(R43=0,\"\",IF(R43=O43,\"100%\",IF(O43=R43,,(R43/O43)))))))","v":""},null,null,{"$f":"IF(O43=R43,\"\",IF(R43=0,\"\",IF(R43/O43<80%,\"Explanation\",IF(R43/O43>120%,\"Explanation\",\"\"))))","v":""},null,null,{"$f":"IF(U43>R43,\"Opportunites > Projects\",IF(U43=R43,\"\",IF(U43<R43,\"\",IF(U43=0,\"\",IF(R43=0,\"\")))))","v":""},null,null,null,null,null,null,null,""]
[null,null,null,"Goal 2:  The conditions in which low-income people live are improved."]
[null,null,null,"NPI 2.2:  Community Quality of Life and Assets"]
[null,null,null,"Problem Statement:  (If additional space is needed, please attach a separate sheet.)"]
[null,null,null,{"$f":"'Goal 2 Workplan'!D50","v":0}]
[null,null,null,"Program Activities and Delivery Strategies:  (If additional space is needed, please attach a separate sheet.)"]
[null,null,null,{"$f":"'Goal 2 Workplan'!D52","v":0}]
[null,"See NPI Instruction Manual, pages 19-22",null,"National Performance\nIndicator 2.2",null,null,null,null,null,null,null,"Reporting Period",null,null,"I",null,null,"II",null,null,"III",null,null,"IV",null,null,"V",null,null,"CSD Review",null,null,"NPI Analysis",null,null,null,null,"VI"]
[null,null,null,"Community Quality of Life and Assets",null,null,null,null,null,null,null,null,null,null,"Number of Program Initiatives or Advocacy Efforts Expected to Achieve in Reporting Period\n(#)",null,null,"Number of Projects or Initiatives or Advocacy Efforts\n(#)",null,null,"Number of Community Assets, Services or Facilities Preserved or Increased\n(#)",null,null,"Percentage Achieving Outcome in Reporting Period \n(II/I=IV)\n(%)",null,null,"Explanations Required\n\n(Report on explanation tab)",null,null,"Column 3 >/= Column 2",null,null,null,null,null,null,null,"Explanations Required for Project to Opportunity Ratio (II is greater than III) (Report on explanation tab)"]
[null,null,null,"The quality of life and assets in low-income neighborhoods are improved by Community Action initiative or advocacy, as measured by one or more of the following:"]
[null,null,null,"A.","Increases in community assets as a result of a change in law, regulation, or policy, which results in improvements in quality of life and assets \n",null,null,null,null,null,null,"Annual ",null,null,{"$f":"'Goal 2 Workplan'!O57","v":0},null,null,null,null,null,null,null,null,{"$f":"IF(O53=\"\",\"\",IF(O53=0,\"\",IF(R53=\"\",\"\",IF(R53=O53,\"100%\",IF(O53=R53,,(R53/O53))))))","v":""},null,null,{"$f":"IF(O53=R53,\"\",IF(R53=0,\"\",IF(R53/O53<80%,\"Explanation\",IF(R53/O53>120%,\"Explanation\",\"\"))))","v":""},null,null,{"$f":"IF(U53>R53,\"Opportunites > Projects\",IF(U53=R53,\"\",IF(U53<R53,\"\",IF(U53=0,\"\",IF(R53=0,\"\")))))","v":""},null,null,null,null,null,null,null,{"$f":"IF(U53=R53,\"\",IF(R53=0,\"Explanation\",IF(U53<R53,\"Explanation\",\"\")))","v":""}]
[null,null,null,null,null,null,null,null,null,null,null,null,null,null,{"$f":"'Goal 2 Workplan'!O58","v":0},null,null,null,null,null,null,null,null,{"$f":"IF(O54=\"\",\"\",IF(O54=0,\"\",IF(R54=\"\",\"\",IF(R54=0,\"\",IF(R54=O54,\"100%\",IF(O54=R54,,(R54/O54)))))))","v":""},null,null,{"$f":"IF(O54=R54,\"\",IF(R54=0,\"\",IF(R54/O54<80%,\"Explanation\",IF(R54/O54>120%,\"Explanation\",\"\"))))","v":""},null,null,"",null,null,null,null,null,null,null,{"$f":"IF(U54=R54,\"\",IF(R54=0,\"Explanation\",IF(U54<R54,\"Explanation\",\"\")))","v":""}]
[null,null,null,"B.","Increase in the availability or preservation of community facilities\n\n",null,null,null,null,null,null,"Annual ",null,null,{"$f":"'Goal 2 Workplan'!O59","v":0},null,null,null,null,null,null,null,null,{"$f":"IF(O55=\"\",\"\",IF(O55=0,\"\",IF(R55=\"\",\"\",IF(R55=O55,\"100%\",IF(O55=R55,,(R55/O55))))))","v":""},null,null,"",null,null,"",null,null,null,null,null,null,null,""]
[null,null,null,null,null,null,null,null,null,null,null,null,null,null,{"$f":"'Goal 2 Workplan'!O60","v":0},null,null,null,null,null,null,null,null,{"$f":"IF(O56=\"\",\"\",IF(O56=0,\"\",IF(R56=\"\",\"\",IF(R56=0,\"\",IF(R56=O56,\"100%\",IF(O56=R56,,(R56/O56)))))))","v":""},null,null,"",null,null,"",null,null,null,null,null,null,null,""]
[null,null,null,"C.","Increase in the availability or preservation of community services to improve public health and safety\n",null,null,null,null,null,null,"Annual ",null,null,{"$f":"'Goal 2 Workplan'!O61","v":0},null,null,null,null,null,null,null,null,{"$f":"IF(O57=\"\",\"\",IF(O57=0,\"\",IF(R57=\"\",\"\",IF(R57=O57,\"100%\",IF(O57=R57,,(R57/O57))))))","v":""},null,null,"",null,null,"",null,null,null,null,null,null,null,""]
[null,null,null,null,null,null,null,null,null,null,null,null,null,null,{"$f":"'Goal 2 Workplan'!O62","v":0},null,null,null,null,null,null,null,null,{"$f":"IF(O58=\"\",\"\",IF(O58=0,\"\",IF(R58=\"\",\"\",IF(R58=0,\"\",IF(R58=O58,\"100%\",IF(O58=R58,,(R58/O58)))))))","v":""},null,null,"",null,null,"",null,null,null,null,null,null,null,""]
[null,null,null,"D.","Increase in the availability or preservation of commercial services within low-income neighborhoods",null,null,null,null,null,null,"Annual ",null,null,{"$f":"'Goal 2 Workplan'!O63","v":0},null,null,null,null,null,null,null,null,{"$f":"IF(O59=\"\",\"\",IF(O59=0,\"\",IF(R59=\"\",\"\",IF(R59=O59,\"100%\",IF(O59=R59,,(R59/O59))))))","v":""},null,null,"",null,null,"",null,null,null,null,null,null,null,""]
[null,null,null,null,null,null,null,null,null,null,null,null,null,null,{"$f":"'Goal 2 Workplan'!O64","v":0},null,null,null,null,null,null,null,null,{"$f":"IF(O60=\"\",\"\",IF(O60=0,\"\",IF(R60=\"\",\"\",IF(R60=0,\"\",IF(R60=O60,\"100%\",IF(O60=R60,,(R60/O60)))))))","v":""},null,null,"",null,null,"",null,null,null,null,null,null,null,""]
[null,null,null,"E.","Increase or preservation of neighborhood quality-of-life resources\n\n",null,null,null,null,null,null,"Annual ",null,null,{"$f":"'Goal 2 Workplan'!O65","v":0},null,null,null,null,null,null,null,null,{"$f":"IF(O61=\"\",\"\",IF(O61=0,\"\",IF(R61=\"\",\"\",IF(R61=O61,\"100%\",IF(O61=R61,,(R61/O61))))))","v":""},null,null,"",null,null,"",null,null,null,null,null,null,null,""]
[null,null,null,null,null,null,null,null,null,null,null,null,null,null,{"$f":"'Goal 2 Workplan'!O66","v":0},null,null,null,null,null,null,null,null,{"$f":"IF(O62=\"\",\"\",IF(O62=0,\"\",IF(R62=\"\",\"\",IF(R62=0,\"\",IF(R62=O62,\"100%\",IF(O62=R62,,(R62/O62)))))))","v":""},null,null,"",null,null,"",null,null,null,null,null,null,null,""]
[null,null,null,"In the rows below, please include any additional indicators for NPI 2.2 that were not captured above.",null,null,null,null,null,null,null,null,null,null,null,null,null,null,null,null,null,null,null,null,null,null,{"$f":"IF(O63=R63,\"\",IF(R63=0,\"\",IF(R63/O63<80%,\"Explanation\",IF(R63/O63>120%,\"Explanation\",\"\"))))","v":""},null,null,null,null,null,null,null,null,null,null,""]
[null,null,null,{"$f":"'Goal 2 Workplan'!D68","v":0},null,null,null,null,null,null,null,"Annual ",null,null,{"$f":"'Goal 2 Workplan'!O68","v":0},null,null,null,null,null,null,null,null,{"$f":"IF(O64=\"\",\"\",IF(O64=0,\"\",IF(R64=\"\",\"\",IF(R64=O64,\"100%\",IF(O64=R64,,(R64/O64))))))","v":""},null,null,{"$f":"IF(O64=R64,\"\",IF(R64=0,\"\",IF(R64/O64<80%,\"Explanation\",IF(R64/O64>120%,\"Explanation\",\"\"))))","v":""},null,null,{"$f":"IF(U64>R64,\"Opportunites > Projects\",IF(U64=R64,\"\",IF(U64<R64,\"\",IF(U64=0,\"\",IF(R64=0,\"\")))))","v":""},null,null,null,null,null,null,null,""]
[null,null,null,null,null,null,null,null,null,null,null,null,null,null,{"$f":"'Goal 2 Workplan'!O69","v":0},null,null,null,null,null,null,null,null,{"$f":"IF(O65=\"\",\"\",IF(O65=0,\"\",IF(R65=\"\",\"\",IF(R65=0,\"\",IF(R65=O65,\"100%\",IF(O65=R65,,(R65/O65)))))))","v":""},null,null,{"$f":"IF(O65=R65,\"\",IF(R65=0,\"\",IF(R65/O65<80%,\"Explanation\",IF(R65/O65>120%,\"Explanation\",\"\"))))","v":""},null,null,{"$f":"IF(U65>R65,\"Opportunites > Projects\",IF(U65=R65,\"\",IF(U65<R65,\"\",IF(U65=0,\"\",IF(R65=0,\"\")))))","v":""},null,null,null,null,null,null,null,""]
[]
[null,null,null,"Goal 2:  The conditions in which low-income people live are improved."]
[null,null,null,"NPI 2.3:  Community Engagement"]
[null,null,null,"Problem Statement:  (If additional space is needed, please attach a separate sheet.)"]
[null,null,null,{"$f":"'Goal 2 Workplan'!D74","v":0}]
[null,null,null,"Program Activities and Delivery Strategies:  (If additional space is needed, please attach a separate sheet.)"]
[null,null,null,{"$f":"'Goal 2 Workplan'!D76","v":0}]
[null,"See NPI Instruction Manual, pages 23-24",null,"National Performance\nIndicator 2.3",null,null,null,null,null,null,null,null,null,null,"Reporting Period",null,null,"I",null,null,"II",null,null,"III",null,null,"IV",null,null,null,null,null,"NPI Analysis"]
[null,null,null,"Community Engagement",null,null,null,null,null,null,null,null,null,null,null,null,null,"Number of Total Contribution by Community Expected to Achieve in Reporting Period\n(#)",null,null,"Total Contribution by Community",null,null,"Percentage Achieving Outcome in Reporting Period \n(II/I=III)\n(%)",null,null,"Explanations Required\n\n(Report on explanation tab)"]
[null,null,null,"The number of community members working with Community Action to improve conditions in the community."]
[null,null,null,"A.","Number of community members mobilized by Community Action that participate in community revitalization and anti-poverty initiatives\n",null,null,null,null,null,null,null,null,null,"Annual ",null,null,{"$f":"'Goal 2 Workplan'!O81","v":0},null,null,null,null,null,{"$f":"IF(R76=\"\",\"\",IF(R76=0,\"\",IF(U76=\"\",\"\",IF(U76=R76,\"100%\",IF(R76=U76,,(U76/R76))))))","v":""},null,null,{"$f":"IF(R76=U76,\"\",IF(U76=0,\"\",IF(U76/R76<80%,\"Explanation\",IF(U76/R76>120%,\"Explanation\",\"\"))))","v":""}]
[null,null,null,null,null,null,null,null,null,null,null,null,null,null,null,null,null,{"$f":"'Goal 2 Workplan'!O82","v":0},null,null,null,null,null,{"$f":"IF(R77=\"\",\"\",IF(R77=0,\"\",IF(U77=\"\",\"\",IF(U77=0,\"\",IF(U77=R77,\"100%\",IF(R77=U77,,(U77/R77)))))))","v":""},null,null,{"$f":"IF(R77=U77,\"\",IF(U77=0,\"\",IF(U77/R77<80%,\"Explanation\",IF(U77/R77>120%,\"Explanation\",\"\"))))","v":""}]
[null,null,null,"B.","Number of volunteer hours donated to the agency (This will be All volunteer hours)",null,null,null,null,null,null,null,null,null,"Annual ",null,null,{"$f":"'Goal 2 Workplan'!O83","v":0},null,null,null,null,null,{"$f":"IF(R78=\"\",\"\",IF(R78=0,\"\",IF(U78=\"\",\"\",IF(U78=R78,\"100%\",IF(R78=U78,,(U78/R78))))))","v":""},null,null,{"$f":"IF(R78=U78,\"\",IF(U78=0,\"\",IF(U78/R78<80%,\"Explanation\",IF(U78/R78>120%,\"Explanation\",\"\"))))","v":""}]
[null,null,null,null,null,null,null,null,null,null,null,null,null,null,null,null,null,{"$f":"'Goal 2 Workplan'!O84","v":0},null,null,null,null,null,{"$f":"IF(R79=\"\",\"\",IF(R79=0,\"\",IF(U79=\"\",\"\",IF(U79=0,\"\",IF(U79=R79,\"100%\",IF(R79=U79,,(U79/R79)))))))","v":""},null,null,{"$f":"IF(R79=U79,\"\",IF(U79=0,\"\",IF(U79/R79<80%,\"Explanation\",IF(U79/R79>120%,\"Explanation\",\"\"))))","v":""}]
[null,null,null,"In the rows below, please include any additional indicators for NPI 2.3 that were not captured above."]
[null,null,null,{"$f":"'Goal 2 Workplan'!D86","v":0},null,null,null,null,null,null,null,null,null,null,"Annual ",null,null,{"$f":"'Goal 2 Workplan'!O86","v":0},null,null,null,null,null,{"$f":"IF(R81=\"\",\"\",IF(R81=0,\"\",IF(U81=\"\",\"\",IF(U81=0,\"\",IF(U81=R81,\"100%\",IF(R81=U81,,(U81/R81)))))))","v":""},null,null,{"$f":"IF(R81=U81,\"\",IF(U81=0,\"\",IF(U81/R81<80%,\"Explanation\",IF(U81/R81>120%,\"Explanation\",\"\"))))","v":""}]
[null,null,null,null,null,null,null,null,null,null,null,null,null,null,null,null,null,{"$f":"'Goal 2 Workplan'!O87","v":0},null,null,null,null,null,{"$f":"IF(R82=\"\",\"\",IF(R82=0,\"\",IF(U82=\"\",\"\",IF(U82=0,\"\",IF(U82=R82,\"100%\",IF(R82=U82,,(U82/R82)))))))","v":""},null,null,{"$f":"IF(R82=U82,\"\",IF(U82=0,\"\",IF(U82/R82<80%,\"Explanation\",IF(U82/R82>120%,\"Explanation\",\"\"))))","v":""}]

{"sheet":"Goal 3 Reporting","index":12,"n_rows":48,"n_cols":37,"rows_kept":48,"cut":false,"hidden":false,"merged":[[18,36,18,43],[46,30,46,34],[47,30,47,34],[19,30,21,34],[22,30,22,34],[23,30,23,34],[25,30,25,34],[26,30,26,34],[34,30,36,34],[43,30,43,34],[44,30,44,34],[29,3,29,27],[30,3,30,27],[31,3,31,27],[32,3,32,27],[43,4,44,12],[43,13,43,15],[43,16,43,18],[37,30,37,34],[38,30,38,34],[39,30,39,34],[40,30,40,34],[41,30,41,34],[42,30,42,34],[43,25,43,27],[41,25,41,27],[42,19,42,21],[42,22,42,24],[44,22,44,24],[43,19,43,21],[43,22,43,24],[42,25,42,27],[38,25,38,27],[39,4,40,12],[39,13,39,15],[22,3,23,12],[22,13,22,15],[22,16,22,18],[22,19,22,21],[22,22,22,24],[23,19,23,21],[23,22,23,24],[22,25,22,27],[23,13,23,15],[23,16,23,18],[47,16,47,18],[47,19,47,21],[47,22,47,24],[47,25,47,27],[44,16,44,18],[44,19,44,21],[24,3,24,27],[44,25,44,27],[45,3,45,27],[46,13,46,15],[46,16,46,18],[46,19,46,21],[46,22,46,24],[44,13,44,15],[46,25,46,27],[47,13,47,15],[41,4,42,12],[41,13,41,15],[41,16,41,18],[41,19,41,21],[41,22,41,24],[42,13,42,15],[42,16,42,18],[28,3,28,27],[39,16,39,18],[39,19,39,21],[39,22,39,24],[39,25,39,27],[40,13,40,15],[40,16,40,18],[37,25,37,27],[38,13,38,15],[38,16,38,18],[38,19,38,21],[38,22,38,24],[40,22,40,24],[40,25,40,27],[40,19,40,21],[37,4,38,12],[37,13,37,15],[37,16,37,18],[37,19,37,21],[37,22,37,24],[33,3,33,27],[34,3,34,12],[34,13,36,15],[34,16,34,18],[34,19,34,21],[34,22,34,24],[34,25,34,27],[35,3,35,12],[35,16,36,18],[35,19,36,21],[35,22,36,24],[35,25,36,27],[36,3,36,12],[19,16,19,18],[18,3,18,27],[13,3,13,27],[25,13,25,15],[25,16,25,18],[25,19,25,21],[25,22,25,24],[25,25,25,27],[26,13,26,15],[26,16,26,18],[26,19,26,21],[26,22,26,24],[26,25,26,27],[14,3,14,27],[16,3,16,27],[23,25,23,27],[19,25,19,27],[20,16,21,18],[20,19,21,21],[20,22,21,24],[20,25,21,27],[21,3,21,12],[15,3,15,18],[17,3,17,18],[46,3,46,12],[25,3,25,12],[19,36,31,43],[19,1,21,1],[34,1,36,1],[1,1,9,1],[1,22,1,24],[5,11,7,18],[9,3,9,7],[9,8,9,27],[1,25,1,27],[19,19,19,21],[19,22,19,24],[10,3,10,7],[10,8,10,27],[11,3,11,7],[11,8,11,19],[11,20,11,22],[11,23,11,27],[12,3,12,7],[12,8,12,19],[12,23,12,27],[19,3,19,12],[19,13,21,15]]}
[]
[null,null,null,"State of California",null,null,null,null,null,null,null,null,null,null,null,null,null,null,null,null,null,null,"Contract No.",null,null,{"$f":"'Goal 1 Workplan'!P3","v":0}]
[]
[null,null,null,"Department of Community Services and Development",null,null,null,null,null,null,null,null,null,null,null,null,null,null,null," ",null,null," "]
[]
[null,null,null,"CSBG/NPI Programs Report",null,null,null,null,null,null,null,"CSBG/NPI Programs Report",null,null,null,null,null,null,null,null,null,null,null,{"$f":"'Goal 1 Reporting'!AB6","v":0}]
[]
[null,null,null,"CSD 801 (Rev.8/16)"]
[]
[null,null,null,"Contractor Name:",null,null,null,null,{"$f":"'Goal 1 Workplan'!J11","v":0}]
[null,null,null,"Contact Person and Title:",null,null,null,null,{"$f":"'Goal 1 Workplan'!J12","v":0}]
[null,null,null,"Phone Number:",null,null,null,null,{"$f":"'Goal 1 Workplan'!J13","v":0},null,null,null,null,null,null,null,null,null,null,null,"Ext. Number:",null,null,{"$f":"'Goal 1 Workplan'!N13","v":0}]
[null,null,null,"E-mail Address:",null,null,null,null,{"$f":"'Goal 1 Workplan'!J14","v":0},null,null,null,null,null,null,null,null,null,null,null,"Fax Number:",null,null,{"$f":"'Goal 1 Workplan'!N14","v":0}]
[null,null,null,"Goal 3:  Low-income people own a stake in their community."]
[null,null,null,"NPI 3.1: Community Enhancement through Maximum Feasible Participation"]
[null,null,null,"Problem Statement:  (If additional space is needed, please attach a separate sheet.)"]
[null,null,null,{"$f":"'Goal 3 Workplan'!D18","v":0}]
[null,null,null,"Program Activities and Delivery Strategies:  (If additional space is needed, please attach a separate sheet.)"]
[null,null,null,{"$f":"'Goal 3 Workplan'!D21","v":0},null,null,null,null,null,null,null,null,null,null,null,null,null,null,null,null,null,null,null,null,null,null,null,null,null,null,null,null,null,null,null,null,"REPORTING PERIODS"]
[null,"See NPI Instruction Manual, pages 27-28",null,"National Performance\nIndicator 3.1",null,null,null,null,null,null,null,null,null,"Reporting Period",null,null,"I",null,null,"II",null,null,"III",null,null,"IV",null,null,null,null,"NPI Analysis",null,null,null,null,null,"Annual Report\nDue January 20th of every year.\n\nReporting Period\nJanuary 1 - December 31\n\nHow to Complete\nFill in the Tan cells that are \napplicable to your workplan. \n(Note: the Light Gray \"Column I\" \nautomatically populates from the Workplan tab)\n\nHow to Submit Annual Report\nUpon completion of report, \nthis workbook should be \nE-MAILED to the following address\nCSBGReports@csd.ca.gov\nand copy your assigned Field Representative.\n"]
[null,null,null,"Community Enhancement through Maximum Feasible Participation",null,null,null,null,null,null,null,null,null,null,null,null,"Total Number of Volunteer Hours Expected to Achieve in Reporting Period\n(#)",null,null,"Total Number of Volunteer Hours \n(#)",null,null,"Percentage Achieving Outcome in Reporting Period \n(II/I=III)\n(%)",null,null,"Explanations Required\n\n(Report on explanation tab)"]
[null,null,null,"The number of volunteer hours donated to Community Action."]
[null,null,null,"The total number of volunteer hours donated by low-income individuals to Community Action. (This is ONLY the number of volunteer hours from individuals who are low-income.)",null,null,null,null,null,null,null,null,null,"Annual",null,null,{"$f":"'Goal 3 Workplan'!Q26","v":0},null,null,null,null,null,{"$f":"IF(Q23=\"\",\"\",IF(Q23=0,\"\",IF(T23=\"\",\"\",IF(T23=Q23,\"100%\",IF(Q23=T23,,(T23/Q23))))))","v":""},null,null,{"$f":"IF(Q23=T23,\"\",IF(T23=0,\"\",IF(T23/Q23<80%,\"Explanation\",IF(T23/Q23>120%,\"Explanation\",\"\"))))","v":""}]
[null,null,null,null,null,null,null,null,null,null,null,null,null,"Annual",null,null,{"$f":"'Goal 3 Workplan'!Q27","v":0},null,null,null,null,null,{"$f":"IF(Q24=\"\",\"\",IF(Q24=0,\"\",IF(T24=\"\",\"\",IF(T24=0,\"\",IF(T24=Q24,\"100%\",IF(Q24=T24,,(T24/Q24)))))))","v":""},null,null,{"$f":"IF(Q24=T24,\"\",IF(T24=0,\"\",IF(T24/Q24<80%,\"Explanation\",IF(T24/Q24>120%,\"Explanation\",\"\"))))","v":""}]
[null,null,null,"In the rows below, please include any additional indicators for NPI 3.1 that were not captured above."]
[null,null,null,{"$f":"'Goal 3 Workplan'!D29","v":0},null,null,null,null,null,null,null,null,null,"Annual",null,null,{"$f":"'Goal 3 Workplan'!Q29","v":0},null,null,null,null,null,{"$f":"IF(Q26=\"\",\"\",IF(Q26=0,\"\",IF(T26=\"\",\"\",IF(T26=Q26,\"100%\",IF(Q26=T26,,(T26/Q26))))))","v":""},null,null,{"$f":"IF(Q26=T26,\"\",IF(T26=0,\"\",IF(T26/Q26<80%,\"Explanation\",IF(T26/Q26>120%,\"Explanation\",\"\"))))","v":""}]
[null,null,null,null,null,null,null,null,null,null,null,null,null,"Annual",null,null,{"$f":"'Goal 3 Workplan'!Q30","v":0},null,null,null,null,null,{"$f":"IF(Q27=\"\",\"\",IF(Q27=0,\"\",IF(T27=\"\",\"\",IF(T27=0,\"\",IF(T27=Q27,\"100%\",IF(Q27=T27,,(T27/Q27)))))))","v":""},null,null,{"$f":"IF(Q27=T27,\"\",IF(T27=0,\"\",IF(T27/Q27<80%,\"Explanation\",IF(T27/Q27>120%,\"Explanation\",\"\"))))","v":""}]
[]
[null,null,null,"Goal 3:  Low-income people own a stake in their community."]
[null,null,null,"NPI 3.2: Community Empowerment Through Maximum Feasible Participation"]
[null,null,null,"Problem Statement:  (If additional space is needed, please attach a separate sheet.)"]
[null,null,null,{"$f":"'Goal 3 Workplan'!D35","v":0}]
[null,null,null,"Program Activities and Delivery Strategies:  (If additional space is needed, please attach a separate sheet.)"]
[null,null,null,{"$f":"'Goal 3 Workplan'!D37","v":0}]
[null,"See Instruction Manual, pages 29-31",null,"National Performance\nIndicator 3.2",null,null,null,null,null,null,null,null,null,"Reporting Period",null,null,"I",null,null,"II",null,null,"III",null,null,"IV",null,null,null,null,"NPI Analysis"]
[null,null,null,"Community Empowerment through Maximum Feasible Participation",null,null,null,null,null,null,null,null,null,null,null,null,"Number of Low-Income People Expected to Achieve in Reporting Period\n(#)",null,null,"Number of Low-Income People in Reporting Period\n(#)",null,null,"Percentage Achieving Outcome in Reporting Period \n(II/I=III)\n(%)",null,null,"Explanations Required\n\n(Report on explanation tab)"]
[null,null,null,"\nThe number of low-income people mobilized as a direct result of Community Action initiative to engage in activities that support and promote their own well-being and that of their community, as measured by one or more of the following:"]
[null,null,null,"A.","Number of low-income people participating in formal community organizations, government, boards, or councils that provide input to decision making and policy setting through community action efforts \n",null,null,null,null,null,null,null,null,"Annual",null,null,{"$f":"'Goal 3 Workplan'!Q42","v":0},null,null,null,null,null,{"$f":"IF(Q38=\"\",\"\",IF(Q38=0,\"\",IF(T38=\"\",\"\",IF(T38=Q38,\"100%\",IF(Q38=T38,,(T38/Q38))))))","v":""},null,null,{"$f":"IF(Q38=T38,\"\",IF(T38=0,\"\",IF(T38/Q38<80%,\"Explanation\",IF(T38/Q38>120%,\"Explanation\",\"\"))))","v":""}]
[null,null,null,null,null,null,null,null,null,null,null,null,null,"Annual",null,null,{"$f":"'Goal 3 Workplan'!Q43","v":0},null,null,null,null,null,{"$f":"IF(Q39=\"\",\"\",IF(Q39=0,\"\",IF(T39=\"\",\"\",IF(T39=0,\"\",IF(T39=Q39,\"100%\",IF(Q39=T39,,(T39/Q39)))))))","v":""},null,null,""]
[null,null,null,"B.","Number of low-income people acquiring businesses in their community as a result of community action assistance \n",null,null,null,null,null,null,null,null,"Annual",null,null,{"$f":"'Goal 3 Workplan'!Q44","v":0},null,null,null,null,null,{"$f":"IF(Q40=\"\",\"\",IF(Q40=0,\"\",IF(T40=\"\",\"\",IF(T40=Q40,\"100%\",IF(Q40=T40,,(T40/Q40))))))","v":""},null,null,""]
[null,null,null,null,null,null,null,null,null,null,null,null,null,"Annual",null,null,{"$f":"'Goal 3 Workplan'!Q45","v":0},null,null,null,null,null,{"$f":"IF(Q41=\"\",\"\",IF(Q41=0,\"\",IF(T41=\"\",\"\",IF(T41=0,\"\",IF(T41=Q41,\"100%\",IF(Q41=T41,,(T41/Q41)))))))","v":""},null,null,""]
[null,null,null,"C.","Number of low-income people purchasing their own home in their community as a result of community action assistance \n",null,null,null,null,null,null,null,null,"Annual",null,null,{"$f":"'Goal 3 Workplan'!Q46","v":0},null,null,null,null,null,{"$f":"IF(Q42=\"\",\"\",IF(Q42=0,\"\",IF(T42=\"\",\"\",IF(T42=Q42,\"100%\",IF(Q42=T42,,(T42/Q42))))))","v":""},null,null,""]
[null,null,null,null,null,null,null,null,null,null,null,null,null,"Annual",null,null,{"$f":"'Goal 3 Workplan'!Q47","v":0},null,null,null,null,null,{"$f":"IF(Q43=\"\",\"\",IF(Q43=0,\"\",IF(T43=\"\",\"\",IF(T43=0,\"\",IF(T43=Q43,\"100%\",IF(Q43=T43,,(T43/Q43)))))))","v":""},null,null,""]
[null,null,null,"D.","Number of low-income people engaged in non-governance community activities or groups created or supported by community action\n",null,null,null,null,null,null,null,null,"Annual",null,null,{"$f":"'Goal 3 Workplan'!Q48","v":0},null,null,null,null,null,{"$f":"IF(Q44=\"\",\"\",IF(Q44=0,\"\",IF(T44=\"\",\"\",IF(T44=Q44,\"100%\",IF(Q44=T44,,(T44/Q44))))))","v":""},null,null,""]
[null,null,null,null,null,null,null,null,null,null,null,null,null,"Annual",null,null,{"$f":"'Goal 3 Workplan'!Q49","v":0},null,null,null,null,null,{"$f":"IF(Q45=\"\",\"\",IF(Q45=0,\"\",IF(T45=\"\",\"\",IF(T45=0,\"\",IF(T45=Q45,\"100%\",IF(Q45=T45,,(T45/Q45)))))))","v":""},null,null,""]
[null,null,null,"In the rows below, please include any additional indicators for NPI 3.2 that were not captured above."]
[null,null,null,{"$f":"'Goal 3 Workplan'!D51","v":0},null,null,null,null,null,null,null,null,null,"Annual",null,null,{"$f":"'Goal 3 Workplan'!Q51","v":0},null,null,null,null,null,{"$f":"IF(Q47=\"\",\"\",IF(Q47=0,\"\",IF(T47=\"\",\"\",IF(T47=Q47,\"100%\",IF(Q47=T47,,(T47/Q47))))))","v":""},null,null,{"$f":"IF(Q47=T47,\"\",IF(T47=0,\"\",IF(T47/Q47<80%,\"Explanation\",IF(T47/Q47>120%,\"Explanation\",\"\"))))","v":""}]
[null,null,null,null,null,null,null,null,null,null,null,null,null,"Annual",null,null,{"$f":"'Goal 3 Workplan'!Q52","v":0},null,null,null,null,null,{"$f":"IF(Q48=\"\",\"\",IF(Q48=0,\"\",IF(T48=\"\",\"\",IF(T48=0,\"\",IF(T48=Q48,\"100%\",IF(Q48=T48,,(T48/Q48)))))))","v":""},null,null,{"$f":"IF(Q48=T48,\"\",IF(T48=0,\"\",IF(T48/Q48<80%,\"Explanation\",IF(T48/Q48>120%,\"Explanation\",\"\"))))","v":""}]

{"sheet":"Goal 4 Reporting","index":13,"n_rows":54,"n_cols":44,"rows_kept":54,"cut":false,"hidden":false,"merged":[[52,29,52,30],[52,3,52,13],[52,14,52,16],[52,17,52,19],[52,20,52,22],[52,23,52,25],[52,26,52,28],[53,14,53,16],[53,17,53,19],[53,20,53,22],[53,23,53,25],[53,26,53,28],[50,37,50,41],[51,14,51,16],[51,17,51,19],[51,20,51,22],[51,23,51,25],[51,26,51,28],[51,32,51,34],[51,37,51,41],[50,29,50,30],[49,3,49,34],[50,14,50,16],[50,17,50,19],[50,20,50,22],[50,23,50,25],[50,26,50,28],[50,32,50,34],[51,29,51,30],[50,3,50,13],[47,4,48,13],[47,14,47,16],[47,17,47,19],[47,20,47,22],[47,23,47,25],[47,26,47,28],[47,32,47,34],[46,14,46,16],[47,37,47,41],[48,14,48,16],[48,17,48,19],[48,20,48,22],[48,23,48,25],[48,26,48,28],[48,32,48,34],[48,37,48,41],[48,29,48,30],[46,29,46,30],[47,29,47,30],[45,4,46,13],[45,14,45,16],[45,17,45,19],[45,20,45,22],[46,32,46,34],[46,37,46,41],[45,32,45,34],[45,37,45,41],[43,4,44,13],[43,29,43,30],[44,29,44,30],[45,29,45,30],[43,32,43,34],[43,37,43,41],[46,17,46,19],[46,20,46,22],[46,23,46,25],[46,26,46,28],[44,26,44,28],[44,32,44,34],[45,23,45,25],[45,26,45,28],[44,37,44,41],[43,14,43,16],[43,17,43,19],[43,20,43,22],[43,23,43,25],[43,26,43,28],[44,14,44,16],[44,17,44,19],[44,20,44,22],[44,23,44,25],[41,4,42,13],[41,14,41,16],[41,17,41,19],[41,20,41,22],[41,23,41,25],[41,26,41,28],[41,32,41,34],[40,14,40,16],[41,37,41,41],[42,14,42,16],[42,17,42,19],[42,20,42,22],[42,23,42,25],[42,26,42,28],[42,32,42,34],[42,37,42,41],[41,29,41,30],[42,29,42,30],[40,29,40,30],[40,17,40,19],[40,20,40,22],[40,23,40,25],[40,26,40,28],[39,4,40,13],[39,14,39,16],[39,17,39,19],[39,20,39,22],[39,23,39,25],[40,32,40,34],[40,37,40,41],[39,29,39,30],[39,26,39,28],[39,32,39,34],[39,37,39,41],[37,32,37,34],[37,37,37,41],[38,14,38,16],[38,17,38,19],[38,20,38,22],[38,23,38,25],[38,26,38,28],[38,32,38,34],[37,4,38,13],[37,14,37,16],[37,17,37,19],[37,20,37,22],[37,23,37,25],[37,26,37,28],[37,29,37,30],[38,29,38,30],[38,37,38,41],[35,4,36,13],[35,14,35,16],[35,17,35,19],[35,20,35,22],[35,23,35,25],[35,26,35,28],[35,32,35,34],[34,14,34,16],[35,37,35,41],[36,14,36,16],[36,17,36,19],[36,20,36,22],[36,23,36,25],[36,26,36,28],[36,32,36,34],[36,37,36,41],[35,29,35,30],[36,29,36,30],[34,29,34,30],[34,17,34,19],[34,20,34,22],[34,23,34,25],[34,26,34,28],[33,4,34,13],[33,14,33,16],[33,17,33,19],[33,20,33,22],[33,23,33,25],[34,32,34,34],[34,37,34,41],[32,29,32,30],[33,29,33,30],[31,4,32,13],[31,14,31,16],[31,17,31,19],[31,20,31,22],[31,23,31,25],[31,26,31,28],[33,26,33,28],[33,32,33,34],[33,37,33,41],[31,32,31,34],[31,37,31,41],[32,14,32,16],[32,17,32,19],[32,20,32,22],[32,23,32,25],[32,26,32,28],[32,37,32,41],[29,4,30,13],[29,14,29,16],[29,17,29,19],[29,20,29,22],[29,23,29,25],[29,26,29,28],[29,32,29,34],[31,29,31,30],[29,37,29,41],[30,14,30,16],[30,17,30,19],[30,20,30,22],[30,23,30,25],[30,26,30,28],[30,32,30,34],[30,37,30,41],[27,4,28,13],[27,14,27,16],[27,17,27,19],[27,20,27,22],[27,23,27,25],[27,26,27,28],[32,32,32,34],[29,29,29,30],[30,29,30,30],[28,37,28,41],[26,29,26,30],[27,29,27,30],[27,32,27,34],[27,37,27,41],[25,32,25,34],[25,37,25,41],[26,14,26,16],[26,17,26,19],[26,20,26,22],[26,23,26,25],[26,26,26,28],[26,32,26,34],[25,29,25,30],[26,37,26,41],[28,14,28,16],[28,17,28,19],[28,29,28,30],[28,32,28,34],[28,20,28,22],[28,23,28,25],[28,26,28,28],[23,29,23,30],[20,29,20,30],[21,32,22,34],[25,4,26,13],[25,14,25,16],[25,17,25,19],[25,20,25,22],[25,23,25,25],[25,26,25,28],[24,29,24,30],[23,4,24,13],[23,17,23,19],[23,20,23,22],[23,23,23,25],[23,26,23,28],[22,3,22,13],[21,31,22,31],[21,29,22,30],[20,32,20,34],[19,43,19,50],[20,3,20,13],[20,14,22,16],[20,17,20,19],[20,20,20,22],[20,23,20,25],[20,26,20,28],[21,3,21,13],[21,17,22,19],[21,20,22,22],[21,23,22,25],[21,26,22,28],[20,43,43,50],[23,32,23,34],[23,37,23,41],[24,14,24,16],[24,17,24,19],[24,20,24,22],[24,23,24,25],[20,37,22,41],[24,26,24,28],[24,32,24,34],[24,37,24,41],[23,14,23,16],[1,1,7,1],[1,32,1,34],[9,1,13,1],[9,3,9,7],[9,8,9,34],[5,11,7,28],[1,30,1,31],[10,8,10,34],[11,3,11,7],[11,8,11,17],[11,24,11,34],[13,3,13,34],[14,0,19,1],[14,3,14,34],[15,3,15,34],[16,3,16,34],[17,3,17,34],[18,3,18,34],[19,3,19,34],[11,18,11,23],[12,8,12,17],[12,18,12,23],[12,24,12,34]]}
[]
[null,"Use the tab key to move through the cells that require entry.",null,"State of California",null,null,null,null,null,null,null,null,null,null,null,null,null,null,null,null,null,null,null,null,null,null,null,null,null,"Contract No.",{"$f":"'Goal 1 Workplan'!P3","v":0}]
[]
[null,null,null,"Department of Community Services and Development",null,null,null,null,null,null,null,null,null,null,null,null,null,null,null,null,null,null,null," ",null,null,null,null,null," "]
[]
[null,null,null,"CSBG/NPI Programs Report",null,null,null,null,null,null,null,"CSBG/NPI Programs Report",null,null,null,null,null,null,null,null,null,null,null,null,null,null,null,null,null,null,{"$f":"'Goal 1 Reporting'!AB6","v":0}]
[]
[null,null,null,"CSD 801 (Rev.8/16)"]
[]
[null,"Use the goal 1 tab to enter information into this block of cells.  ",null,"Contractor Name:",null,null,null,null,{"$f":"'Goal 1 Workplan'!J11","v":0}]
[null,null,null,"Contact Person and Title:",null,null,null,null,{"$f":"'Goal 1 Workplan'!J12","v":0}]
[null,null,null,"Phone Number:",null,null,null,null,{"$f":"'Goal 1 Workplan'!J13","v":0},null,null,null,null,null,null,null,null,null,"Ext. Number:",null,null,null,null,null,{"$f":"'Goal 1 Workplan'!N13","v":0}]
[null,null,null,"E-mail Address:",null,null,null,null,{"$f":"'Goal 1 Workplan'!J14","v":0},null,null,null,null,null,null,null,null,null,"Fax Number:",null,null,null,null,null,{"$f":"'Goal 1 Workplan'!N14","v":0}]
[]
[null,null,null,"Goal 4:  Partnerships among supporters and providers of services to low-income people are achieved."]
[null,null,null,"NPI 4.1:  Expanding Opportunities through Community-Wide Partnerships"]
[null,null,null,"Problem Statement:  (If additional space is needed, please attach a separate sheet.)"]
[null,null,null,{"$f":"'Goal 4 Workplan'!D18","v":0}]
[null,null,null,"Program Activities and Delivery Strategies:  (If additional space is needed, please attach a separate sheet.)"]
[null,null,null,{"$f":"'Goal 4 Workplan'!D20","v":0},null,null,null,null,null,null,null,null,null,null,null,null,null,null,null,null,null,null,null,null,null,null,null,null,null,null,null,null,null,null,null,null,null,null,null,null,null,null,null,"REPORTING PERIOD"]
[null,"See NPI Instruction Manual, pages 32-34",null,"National Performance\nIndicator 4.1",null,null,null,null,null,null,null,null,null,null,"Reporting Period",null,null,"I",null,null,"II",null,null,"III",null,null,"IV",null,null,"V",null,"VI",null,null,null,null,null,null,null,null,null,null,null,"Annual Report\nDue January 20th of every year.\n\nReporting Period\nJanuary 1 - December 31\n\nHow to Complete\nFill in the Tan cells that are \napplicable to your workplan. \n(Note: the Light Gray \"Column I\" \nautomatically populates from the Workplan tab)\n\nHow to Submit Annual Report\nUpon completion of report, \nthis workbook should be \nE-MAILED to the following address\nCSBGReports@csd.ca.gov\nand copy your assigned Field Representative.\n"]
[null,null,null,"Expanding Opportunities Through Community-Wide Partnerships",null,null,null,null,null,null,null,null,null,null,null,null,null,"Number of Organizations Expected to Achieve in Reporting Period\n(#)",null,null,"Number of Partnerships Expected to Achieve in Reporting Period\n(#)",null,null,"Number of Organizations in Reporting Period\n(#)",null,null,"Number of Partnerships in Reporting Period\n(#)\n",null,null,"Explanations Required\n(III/I=V)\n\n(Report on explanation tab)",null,"Explanations Required\n(IV/II=VI)\n\n(Report on explanation tab)"]
[null,null,null,"\nThe number of organizations, both public and private, that Community Action actively works with to expand resources and opportunities in order to achieve family and community outcomes."]
[null,null,null,"A.","Non-Profit",null,null,null,null,null,null,null,null,null,"Annual",null,null,{"$f":"'Goal 4 Workplan'!P24","v":0},null,null,{"$f":"'Goal 4 Workplan'!R24","v":0},null,null,null,null,null,null,null,null,{"$f":"IF(R24=X24,\"\",IF(X24=0,\"\",IF(X24/R24<80%,\"Explanation\",IF(X24/R24>120%,\"Explanation\",\"\"))))","v":""},null,{"$f":"IF(U24=AA24,\"\",IF(AA24=0,\"\",IF(AA24/U24<80%,\"Explanation\",IF(AA24/U24>120%,\"Explanation\",\"\"))))","v":""}]
[null,null,null,null,null,null,null,null,null,null,null,null,null,null,null,null,null,{"$f":"'Goal 4 Workplan'!P25","v":0},null,null,{"$f":"'Goal 4 Workplan'!R25","v":0},null,null,null,null,null,null,null,null,{"$f":"IF(R25=X25,\"\",IF(X25=0,\"\",IF(X25/R25<80%,\"Explanation\",IF(X25/R25>120%,\"Explanation\",\"\"))))","v":""},null,{"$f":"IF(U25=AA25,\"\",IF(AA25=0,\"\",IF(AA25/U25<80%,\"Explanation\",IF(AA25/U25>120%,\"Explanation\",\"\"))))","v":""}]
[null,null,null,"B.","Faith Based",null,null,null,null,null,null,null,null,null,"Annual",null,null,{"$f":"'Goal 4 Workplan'!P26","v":0},null,null,{"$f":"'Goal 4 Workplan'!R26","v":0},null,null,null,null,null,null,null,null,{"$f":"IF(R26=X26,\"\",IF(X26=0,\"\",IF(X26/R26<80%,\"Explanation\",IF(X26/R26>120%,\"Explanation\",\"\"))))","v":""},null,{"$f":"IF(U26=AA26,\"\",IF(AA26=0,\"\",IF(AA26/U26<80%,\"Explanation\",IF(AA26/U26>120%,\"Explanation\",\"\"))))","v":""}]
[null,null,null,null,null,null,null,null,null,null,null,null,null,null,null,null,null,{"$f":"'Goal 4 Workplan'!P27","v":0},null,null,{"$f":"'Goal 4 Workplan'!R27","v":0},null,null,null,null,null,null,null,null,"",null,""]
[null,null,null,"C.","Local Government",null,null,null,null,null,null,null,null,null,"Annual",null,null,{"$f":"'Goal 4 Workplan'!P28","v":0},null,null,{"$f":"'Goal 4 Workplan'!R28","v":0},null,null,null,null,null,null,null,null,"",null,""]
[null,null,null,null,null,null,null,null,null,null,null,null,null,null,null,null,null,{"$f":"'Goal 4 Workplan'!P29","v":0},null,null,{"$f":"'Goal 4 Workplan'!R29","v":0},null,null,null,null,null,null,null,null,"",null,""]
[null,null,null,"D.","State Government",null,null,null,null,null,null,null,null,null,"Annual",null,null,{"$f":"'Goal 4 Workplan'!P30","v":0},null,null,{"$f":"'Goal 4 Workplan'!R30","v":0},null,null,null,null,null,null,null,null,"",null,""]
[null,null,null,null,null,null,null,null,null,null,null,null,null,null,null,null,null,{"$f":"'Goal 4 Workplan'!P31","v":0},null,null,{"$f":"'Goal 4 Workplan'!R31","v":0},null,null,null,null,null,null,null,null,"",null,""]
[null,null,null,"E.","Federal Government",null,null,null,null,null,null,null,null,null,"Annual",null,null,{"$f":"'Goal 4 Workplan'!P32","v":0},null,null,{"$f":"'Goal 4 Workplan'!R32","v":0},null,null,null,null,null,null,null,null,"",null,""]
[null,null,null,null,null,null,null,null,null,null,null,null,null,null,null,null,null,{"$f":"'Goal 4 Workplan'!P33","v":0},null,null,{"$f":"'Goal 4 Workplan'!R33","v":0},null,null,null,null,null,null,null,null,"",null,""]
[null,null,null,"F.","For-Profit Business or Corporation",null,null,null,null,null,null,null,null,null,"Annual",null,null,{"$f":"'Goal 4 Workplan'!P34","v":0},null,null,{"$f":"'Goal 4 Workplan'!R34","v":0},null,null,null,null,null,null,null,null,"",null,""]
[null,null,null,null,null,null,null,null,null,null,null,null,null,null,null,null,null,{"$f":"'Goal 4 Workplan'!P35","v":0},null,null,{"$f":"'Goal 4 Workplan'!R35","v":0},null,null,null,null,null,null,null,null,"",null,""]
[null,null,null,"G.","Consortiums/Collaboration",null,null,null,null,null,null,null,null,null,"Annual",null,null,{"$f":"'Goal 4 Workplan'!P36","v":0},null,null,{"$f":"'Goal 4 Workplan'!R36","v":0},null,null,null,null,null,null,null,null,"",null,""]
[null,null,null,null,null,null,null,null,null,null,null,null,null,null,null,null,null,{"$f":"'Goal 4 Workplan'!P37","v":0},null,null,{"$f":"'Goal 4 Workplan'!R37","v":0},null,null,null,null,null,null,null,null,"",null,""]
[null,null,null,"H.","Housing Consortiums/Collaboration",null,null,null,null,null,null,null,null,null,"Annual",null,null,{"$f":"'Goal 4 Workplan'!P38","v":0},null,null,{"$f":"'Goal 4 Workplan'!R38","v":0},null,null,null,null,null,null,null,null,"",null,""]
[null,null,null,null,null,null,null,null,null,null,null,null,null,null,null,null,null,{"$f":"'Goal 4 Workplan'!P39","v":0},null,null,{"$f":"'Goal 4 Workplan'!R39","v":0},null,null,null,null,null,null,null,null,"",null,""]
[null,null,null,"I.","School Districts",null,null,null,null,null,null,null,null,null,"Annual",null,null,{"$f":"'Goal 4 Workplan'!P40","v":0},null,null,{"$f":"'Goal 4 Workplan'!R40","v":0},null,null,null,null,null,null,null,null,"",null,""]
[null,null,null,null,null,null,null,null,null,null,null,null,null,null,null,null,null,{"$f":"'Goal 4 Workplan'!P41","v":0},null,null,{"$f":"'Goal 4 Workplan'!R41","v":0},null,null,null,null,null,null,null,null,"",null,""]
[null,null,null,"J.","Institutions of postsecondary education/training",null,null,null,null,null,null,null,null,null,"Annual",null,null,{"$f":"'Goal 4 Workplan'!P42","v":0},null,null,{"$f":"'Goal 4 Workplan'!R42","v":0},null,null,null,null,null,null,null,null,"",null,""]
[null,null,null,null,null,null,null,null,null,null,null,null,null,null,null,null,null,{"$f":"'Goal 4 Workplan'!P43","v":0},null,null,{"$f":"'Goal 4 Workplan'!R43","v":0},null,null,null,null,null,null,null,null,"",null,""]
[null,null,null,"K.","Financial/Banking Institutions",null,null,null,null,null,null,null,null,null,"Annual",null,null,{"$f":"'Goal 4 Workplan'!P44","v":0},null,null,{"$f":"'Goal 4 Workplan'!R44","v":0},null,null,null,null,null,null,null,null,"",null,""]
[null,null,null,null,null,null,null,null,null,null,null,null,null,null,null,null,null,{"$f":"'Goal 4 Workplan'!P45","v":0},null,null,{"$f":"'Goal 4 Workplan'!R45","v":0},null,null,null,null,null,null,null,null,"",null,""]
[null,null,null,"L.","Health Service Institutions",null,null,null,null,null,null,null,null,null,"Annual",null,null,{"$f":"'Goal 4 Workplan'!P46","v":0},null,null,{"$f":"'Goal 4 Workplan'!R46","v":0},null,null,null,null,null,null,null,null,"",null,""]
[null,null,null,null,null,null,null,null,null,null,null,null,null,null,null,null,null,{"$f":"'Goal 4 Workplan'!P47","v":0},null,null,{"$f":"'Goal 4 Workplan'!R47","v":0},null,null,null,null,null,null,null,null,"",null,""]
[null,null,null,"M.","State wide associations or collaborations",null,null,null,null,null,null,null,null,null,"Annual",null,null,{"$f":"'Goal 4 Workplan'!P48","v":0},null,null,{"$f":"'Goal 4 Workplan'!R48","v":0},null,null,null,null,null,null,null,null,"",null,""]
[null,null,null,null,null,null,null,null,null,null,null,null,null,null,null,null,null,{"$f":"'Goal 4 Workplan'!P49","v":0},null,null,{"$f":"'Goal 4 Workplan'!R49","v":0},null,null,null,null,null,null,null,null,"",null,""]
[null,null,null,"In the rows below, please add other types of partners with which your CAA has formed relationships that were not captured above. "]
[null,null,null,{"$f":"SUM('Goal 4 Workplan'!D51:L52)","v":0},null,null,null,null,null,null,null,null,null,null,"Annual",null,null,{"$f":"'Goal 4 Workplan'!P51","v":0},null,null,{"$f":"'Goal 4 Workplan'!R51","v":0},null,null,null,null,null,null,null,null,{"$f":"IF(R51=X51,\"\",IF(X51=0,\"\",IF(X51/R51<80%,\"Explanation\",IF(X51/R51>120%,\"Explanation\",\"\"))))","v":""},null,""]
[null,null,null,null,null,null,null,null,null,null,null,null,null,null,null,null,null,{"$f":"'Goal 4 Workplan'!P52","v":0},null,null,{"$f":"'Goal 4 Workplan'!R52","v":0},null,null,null,null,null,null,null,null,{"$f":"IF(R52=X52,\"\",IF(X52=0,\"\",IF(X52/R52<80%,\"Explanation\",IF(X52/R52>120%,\"Explanation\",\"\"))))","v":""},null,""]
[null,null,null,"The total number of organizations CAAs work with to promote family and community outcomes (automatically calculates)",null,null,null,null,null,null,null,null,null,null,"Annual",null,null,{"$f":"SUM(R24+R26+R28+R30+R32+R34+R36+R38+R40+R42+R44+R46+R48+R51)","v":0},null,null,{"$f":"SUM(U24+U26+U28+U30+U32+U34+U36+U38+U40+U42+U44+U46+U48+U51)","v":0},null,null,{"$f":"SUM(X24+X26+X28+X30+X32+X34+X36+X38+X40+X42+X44+X46+X48+X51)","v":0},null,null,{"$f":"SUM(AA24+AA26+AA28+AA30+AA32+AA34+AA36+AA38+AA40+AA42+AA44+AA46+AA48+AA51)","v":0}]
[null,null,null,null,null,null,null,null,null,null,null,null,null,null,null,null,null,{"$f":"SUM(R25+R27+R29+R31+R33+R35+R37+R39+R41+R43+R45+R47+R49+R52)","v":0},null,null,{"$f":"SUM(U25+U27+U29+U31++U35+U37+U39+U41+U43+U45+U47+U49+U52+U33)","v":0},null,null,{"$f":"SUM(X25+X27+X29+X31+X33+X35+X39+X41+X37+X43+X45+X47+X49+X52)","v":0},null,null,{"$f":"SUM(AA25+AA27+AA29+AA31+AA33+AA35+AA37+AA39+AA41+AA43+AA45+AA47+AA49+AA52)","v":0}]

{"sheet":"Goal 5 Reporting","index":14,"n_rows":41,"n_cols":38,"rows_kept":41,"cut":false,"hidden":false,"merged":[[18,37,18,44],[40,31,40,35],[30,31,30,35],[31,31,31,35],[32,31,32,35],[33,31,33,35],[34,31,34,35],[35,31,35,35],[36,31,36,35],[19,31,21,35],[22,31,22,35],[23,31,23,35],[24,31,24,35],[25,31,25,35],[26,31,26,35],[27,31,27,35],[28,31,28,35],[38,3,38,28],[39,14,39,16],[39,17,39,19],[39,20,39,22],[39,23,39,25],[39,26,39,28],[29,31,29,35],[40,23,40,25],[40,26,40,28],[40,14,40,16],[40,17,40,19],[40,20,40,22],[36,14,36,16],[36,17,36,19],[37,31,37,35],[39,31,39,35],[36,20,36,22],[36,23,36,25],[36,26,36,28],[37,14,37,16],[37,17,37,19],[37,20,37,22],[37,23,37,25],[37,26,37,28],[13,3,13,28],[14,3,14,28],[16,3,16,28],[15,3,15,19],[17,3,17,19],[34,4,34,8],[34,14,34,16],[34,17,34,19],[34,20,34,22],[34,23,34,25],[34,26,34,28],[29,14,29,16],[29,17,29,19],[29,20,29,22],[29,23,29,25],[29,26,29,28],[30,14,30,16],[30,17,30,19],[30,20,30,22],[30,23,30,25],[30,26,30,28],[31,14,31,16],[31,17,31,19],[31,20,31,22],[35,14,35,16],[35,17,35,19],[35,20,35,22],[35,23,35,25],[35,26,35,28],[32,14,32,16],[32,17,32,19],[32,20,32,22],[32,23,32,25],[32,26,32,28],[33,14,33,16],[33,17,33,19],[33,20,33,22],[33,23,33,25],[33,26,33,28],[31,23,31,25],[31,26,31,28],[27,14,27,16],[27,17,27,19],[27,20,27,22],[27,23,27,25],[27,26,27,28],[28,14,28,16],[28,17,28,19],[28,20,28,22],[28,23,28,25],[28,26,28,28],[25,14,25,16],[25,17,25,19],[25,20,25,22],[25,23,25,25],[25,26,25,28],[26,14,26,16],[26,17,26,19],[26,20,26,22],[26,23,26,25],[26,26,26,28],[23,14,23,16],[23,17,23,19],[23,20,23,22],[23,23,23,25],[23,26,23,28],[24,14,24,16],[24,17,24,19],[24,20,24,22],[24,23,24,25],[24,26,24,28],[20,20,21,22],[20,23,21,25],[20,26,21,28],[21,3,21,13],[22,4,22,13],[22,14,22,16],[22,17,22,19],[22,20,22,22],[22,23,22,25],[22,26,22,28],[39,3,39,13],[19,37,39,44],[19,1,21,1],[1,26,1,27],[5,11,7,18],[9,3,9,7],[9,8,9,25],[10,8,10,25],[11,3,11,7],[11,8,11,17],[11,18,11,20],[11,21,11,25],[12,8,12,17],[12,18,12,20],[12,21,12,25],[19,3,19,13],[19,14,21,16],[19,17,19,19],[19,20,19,22],[19,23,19,25],[18,3,18,28],[19,26,19,28],[20,3,20,13],[20,17,21,19]]}
[]
[null,null,null,"State of California",null,null,null,null,null,null,null,null,null,null,null,null,null,null,null,null,null,null,null,null,"Contract No.",null,{"$f":"'Goal 1 Workplan'!P3","v":0}]
[]
[null,null,null,"Department of Community Services and Development",null,null,null,null,null,null,null,null,null,null,null,null,null,null,null,null,null,null,null," "]
[]
[null,null,null,"CSBG/NPI Programs Report",null,null,null,null,null,null,null,"CSBG/NPI Programs Report",null,null,null,null,null,null,null,null,null,null,null,null,{"$f":"'Goal 1 Reporting'!AB6","v":0}]
[]
[null,null,null,"CSD 801 (Rev.8/16)"]
[]
[null,null,null,"Contractor Name:",null,null,null,null,{"$f":"'Goal 1 Workplan'!J11","v":0}]
[null,null,null,"Contact Person and Title:",null,null,null,null,{"$f":"'Goal 1 Workplan'!J12","v":0}]
[null,null,null,"Phone Number:",null,null,null,null,{"$f":"'Goal 1 Workplan'!J13","v":0},null,null,null,null,null,null,null,null,null,"Ext. Number:",null,null,{"$f":"'Goal 1 Workplan'!N13","v":0}]
[null,null,null,"E-mail Address:",null,null,null,null,{"$f":"'Goal 1 Workplan'!J14","v":0},null,null,null,null,null,null,null,null,null,"Fax Number:",null,null,{"$f":"'Goal 1 Workplan'!N14","v":0}]
[null,null,null,"Goal 5:  Agencies increase their capacity to achieve results."]
[null,null,null,"NPI 5.1:  Agency Development"]
[null,null,null,"Problem Statement: (If additional space is needed, please attach a separate sheet.)"]
[null,null,null,{"$f":"'Goal 5 Workplan'!D16","v":0}]
[null,null,null,"Program Activities and Delivery Strategies: (If additional space is needed, please attach a separate sheet."]
[null,null,null,{"$f":"'Goal 5 Workplan'!D18","v":0},null,null,null,null,null,null,null,null,null,null,null,null,null,null,null,null,null,null,null,null,null,null,null,null,null,null,null,null,null,null,null,null,null,"REPORTING PERIOD"]
[null,"See NPI Instruction Manual, pages 35-36",null,"National Performance\n Indicator 5.1",null,null,null,null,null,null,null,null,null,null,"Reporting Period",null,null,"I",null,null,"II",null,null,"III",null,null,"IV",null,null,null,null,"NPI Analysis",null,null,null,null,null,"Annual Report\nDue January 20th of every year.\n\nReporting Period\nJanuary 1 - December 31\n\nHow to Complete\nFill in the Tan cells that are \napplicable to your workplan. \n(Note: the Light Gray \"Column I\" \nautomatically populates from the Workplan tab)\n\nHow to Submit Annual Report\nUpon completion of report, \nthis workbook should be \nE-MAILED to the following address\nCSBGReports@csd.ca.gov\nand copy your assigned Field Representative.\n"]
[null,null,null,"Agency Development",null,null,null,null,null,null,null,null,null,null,null,null,null,"Number of Resources in Agency Expected to Achieve in Reporting Period\n(#)",null,null,"Number of Resources in Agency in Reporting Period\n(#)",null,null,"Percentage Achieving Outcome in Reporting Period \n(II/I=III)\n(%)",null,null,"Explanations Required\n\n(Report on explanation tab)"]
[null,null,null,"The number of human capital resources available to Community Action that increase agency capacity to achieve family and community outcomes, as measured by one or more of the following:"]
[null,null,null,"A. ","Number of Certified Community Action Professionals",null,null,null,null,null,null,null,null,null,"Annual",null,null,{"$f":"'Goal 5 Workplan'!R22","v":0},null,null,null,null,null,{"$f":"IF(R23=\"\",\"\",IF(R23=0,\"\",IF(U23=\"\",\"\",IF(U23=R23,\"100%\",IF(R23=U23,,(U23/R23))))))","v":""},null,null,{"$f":"IF(R23=U23,\"\",IF(U23=0,\"\",IF(U23/R23<80%,\"Explanation\",IF(U23/R23>120%,\"Explanation\",\"\"))))","v":""}]
[null,null,null,null,null,null,null,null,null,null,null,null,null,null,"Annual",null,null,{"$f":"'Goal 5 Workplan'!R23","v":0},null,null,null,null,null,{"$f":"IF(R24=\"\",\"\",IF(R24=0,\"\",IF(U24=\"\",\"\",IF(U24=0,\"\",IF(U24=R24,\"100%\",IF(R24=U24,,(U24/R24)))))))","v":""},null,null,{"$f":"IF(R24=U24,\"\",IF(U24=0,\"\",IF(U24/R24<80%,\"Explanation\",IF(U24/R24>120%,\"Explanation\",\"\"))))","v":""}]
[null,null,null,"B.","Number of Nationally Certified ROMA Trainers",null,null,null,null,null,null,null,null,null,"Annual",null,null,{"$f":"'Goal 5 Workplan'!R24","v":0},null,null,null,null,null,{"$f":"IF(R25=\"\",\"\",IF(R25=0,\"\",IF(U25=\"\",\"\",IF(U25=R25,\"100%\",IF(R25=U25,,(U25/R25))))))","v":""},null,null,{"$f":"IF(R25=U25,\"\",IF(U25=0,\"\",IF(U25/R25<80%,\"Explanation\",IF(U25/R25>120%,\"Explanation\",\"\"))))","v":""}]
[null,null,null,null,null,null,null,null,null,null,null,null,null,null,"Annual",null,null,{"$f":"'Goal 5 Workplan'!R25","v":0},null,null,null,null,null,{"$f":"IF(R26=\"\",\"\",IF(R26=0,\"\",IF(U26=\"\",\"\",IF(U26=0,\"\",IF(U26=R26,\"100%\",IF(R26=U26,,(U26/R26)))))))","v":""},null,null,{"$f":"IF(R26=U26,\"\",IF(U26=0,\"\",IF(U26/R26<80%,\"Explanation\",IF(U26/R26>120%,\"Explanation\",\"\"))))","v":""}]
[null,null,null,"C.","Number of Family Development Certified Trainers",null,null,null,null,null,null,null,null,null,"Annual",null,null,{"$f":"'Goal 5 Workplan'!R26","v":0},null,null,null,null,null,{"$f":"IF(R27=\"\",\"\",IF(R27=0,\"\",IF(U27=\"\",\"\",IF(U27=R27,\"100%\",IF(R27=U27,,(U27/R27))))))","v":""},null,null,""]
[null,null,null,null,null,null,null,null,null,null,null,null,null,null,"Annual",null,null,{"$f":"'Goal 5 Workplan'!R27","v":0},null,null,null,null,null,{"$f":"IF(R28=\"\",\"\",IF(R28=0,\"\",IF(U28=\"\",\"\",IF(U28=0,\"\",IF(U28=R28,\"100%\",IF(R28=U28,,(U28/R28)))))))","v":""},null,null,""]
[null,null,null,"D.","Number of Child Development Certified Trainers",null,null,null,null,null,null,null,null,null,"Annual",null,null,{"$f":"'Goal 5 Workplan'!R28","v":0},null,null,null,null,null,{"$f":"IF(R29=\"\",\"\",IF(R29=0,\"\",IF(U29=\"\",\"\",IF(U29=R29,\"100%\",IF(R29=U29,,(U29/R29))))))","v":""},null,null,""]
[null,null,null,null,null,null,null,null,null,null,null,null,null,null,"Annual",null,null,{"$f":"'Goal 5 Workplan'!R29","v":0},null,null,null,null,null,{"$f":"IF(R30=\"\",\"\",IF(R30=0,\"\",IF(U30=\"\",\"\",IF(U30=0,\"\",IF(U30=R30,\"100%\",IF(R30=U30,,(U30/R30)))))))","v":""},null,null,""]
[null,null,null,"E.","Number of staff attending trainings",null,null,null,null,null,null,null,null,null,"Annual",null,null,{"$f":"'Goal 5 Workplan'!R30","v":0},null,null,null,null,null,{"$f":"IF(R31=\"\",\"\",IF(R31=0,\"\",IF(U31=\"\",\"\",IF(U31=R31,\"100%\",IF(R31=U31,,(U31/R31))))))","v":""},null,null,""]
[null,null,null,null,null,null,null,null,null,null,null,null,null,null,"Annual",null,null,{"$f":"'Goal 5 Workplan'!R31","v":0},null,null,null,null,null,{"$f":"IF(R32=\"\",\"\",IF(R32=0,\"\",IF(U32=\"\",\"\",IF(U32=0,\"\",IF(U32=R32,\"100%\",IF(R32=U32,,(U32/R32)))))))","v":""},null,null,""]
[null,null,null,"F.","Number of Board Members attending trainings",null,null,null,null,null,null,null,null,null,"Annual",null,null,{"$f":"'Goal 5 Workplan'!R32","v":0},null,null,null,null,null,{"$f":"IF(R33=\"\",\"\",IF(R33=0,\"\",IF(U33=\"\",\"\",IF(U33=R33,\"100%\",IF(R33=U33,,(U33/R33))))))","v":""},null,null,""]
[null,null,null,null,null,null,null,null,null,null,null,null,null,null,"Annual",null,null,{"$f":"'Goal 5 Workplan'!R33","v":0},null,null,null,null,null,{"$f":"IF(R34=\"\",\"\",IF(R34=0,\"\",IF(U34=\"\",\"\",IF(U34=0,\"\",IF(U34=R34,\"100%\",IF(R34=U34,,(U34/R34)))))))","v":""},null,null,""]
[null,null,null,"G.","Hours of staff in trainings",null,null,null,null,null,null,null,null,null,"Annual",null,null,{"$f":"'Goal 5 Workplan'!R34","v":0},null,null,null,null,null,{"$f":"IF(R35=\"\",\"\",IF(R35=0,\"\",IF(U35=\"\",\"\",IF(U35=R35,\"100%\",IF(R35=U35,,(U35/R35))))))","v":""},null,null,""]
[null,null,null,null,null,null,null,null,null,null,null,null,null,null,"Annual",null,null,{"$f":"'Goal 5 Workplan'!R35","v":0},null,null,null,null,null,{"$f":"IF(R36=\"\",\"\",IF(R36=0,\"\",IF(U36=\"\",\"\",IF(U36=0,\"\",IF(U36=R36,\"100%\",IF(R36=U36,,(U36/R36)))))))","v":""},null,null,""]
[null,null,null,"H.","Hours of Board Members in trainings",null,null,null,null,null,null,null,null,null,"Annual",null,null,{"$f":"'Goal 5 Workplan'!R36","v":0},null,null,null,null,null,{"$f":"IF(R37=\"\",\"\",IF(R37=0,\"\",IF(U37=\"\",\"\",IF(U37=R37,\"100%\",IF(R37=U37,,(U37/R37))))))","v":""},null,null,""]
[null,null,null,null,null,null,null,null,null,null,null,null,null,null,"Annual",null,null,{"$f":"'Goal 5 Workplan'!R37","v":0},null,null,null,null,null,{"$f":"IF(R38=\"\",\"\",IF(R38=0,\"\",IF(U38=\"\",\"\",IF(U38=0,\"\",IF(U38=R38,\"100%\",IF(R38=U38,,(U38/R38)))))))","v":""},null,null,""]
[null,null,null,"In the rows below, please include any additional indicators that were not captured above. "]
[null,null,null,{"$f":"'Goal 5 Workplan'!D39","v":0},null,null,null,null,null,null,null,null,null,null,"Annual",null,null,{"$f":"'Goal 5 Workplan'!R39","v":0},null,null,null,null,null,{"$f":"IF(R40=\"\",\"\",IF(R40=0,\"\",IF(U40=\"\",\"\",IF(U40=R40,\"100%\",IF(R40=U40,,(U40/R40))))))","v":""},null,null,{"$f":"IF(R40=U40,\"\",IF(U40=0,\"\",IF(U40/R40<80%,\"Explanation\",IF(U40/R40>120%,\"Explanation\",\"\"))))","v":""}]
[null,null,null,null,null,null,null,null,null,null,null,null,null,null,"Annual",null,null,{"$f":"'Goal 5 Workplan'!R40","v":0},null,null,null,null,null,{"$f":"IF(R41=\"\",\"\",IF(R41=0,\"\",IF(U41=\"\",\"\",IF(U41=0,\"\",IF(U41=R41,\"100%\",IF(R41=U41,,(U41/R41)))))))","v":""},null,null,{"$f":"IF(R41=U41,\"\",IF(U41=0,\"\",IF(U41/R41<80%,\"Explanation\",IF(U41/R41>120%,\"Explanation\",\"\"))))","v":""}]

{"sheet":"Goal 6 Reporting","index":15,"n_rows":170,"n_cols":41,"rows_kept":170,"cut":false,"hidden":false,"merged":[[93,34,93,38],[106,31,106,33],[106,34,106,38],[70,4,70,12],[56,4,56,12],[58,4,58,12],[36,19,36,21],[36,22,36,24],[36,25,36,27],[36,28,36,30],[102,31,102,33],[102,34,102,38],[103,31,103,33],[103,34,103,38],[71,31,71,33],[73,31,73,33],[74,31,74,33],[73,34,73,38],[89,31,89,33],[89,34,89,38],[90,31,90,33],[90,34,90,38],[104,13,104,15],[38,3,38,15],[29,5,30,15],[29,16,29,18],[29,19,29,21],[29,22,29,24],[29,25,29,27],[31,28,31,30],[29,28,29,30],[30,16,30,18],[30,19,30,21],[30,22,30,24],[30,25,30,27],[30,28,30,30],[35,28,35,30],[35,16,35,18],[36,16,36,18],[35,22,35,24],[138,34,138,38],[112,34,112,38],[123,31,123,33],[123,34,123,38],[87,34,87,38],[88,31,88,33],[88,34,88,38],[60,31,60,33],[61,31,61,33],[70,31,70,33],[134,31,134,33],[134,34,134,38],[76,3,76,30],[77,3,77,30],[78,3,78,30],[79,3,79,30],[112,31,112,33],[74,22,74,24],[111,22,111,24],[93,31,93,33],[19,40,19,47],[139,31,139,33],[139,34,139,38],[129,31,129,33],[129,34,129,38],[130,31,130,33],[130,34,130,38],[131,31,131,33],[131,34,131,38],[104,31,104,33],[104,34,104,38],[108,31,108,33],[108,34,108,38],[109,31,109,33],[109,34,109,38],[111,31,111,33],[111,34,111,38],[91,34,91,38],[92,31,92,33],[92,34,92,38],[74,34,74,38],[86,31,86,33],[86,34,86,38],[87,31,87,33],[166,34,166,38],[161,34,161,38],[162,34,162,38],[163,34,163,38],[165,34,165,38],[68,31,68,33],[62,34,62,38],[63,34,63,38],[64,34,64,38],[65,34,65,38],[66,34,66,38],[67,34,67,38],[62,31,62,33],[63,31,63,33],[64,31,64,33],[95,31,95,33],[95,34,95,38],[96,31,96,33],[96,34,96,38],[100,31,100,33],[100,34,100,38],[101,31,101,33],[101,34,101,38],[91,31,91,33],[143,31,143,33],[143,34,143,38],[120,34,122,38],[121,31,122,33],[135,31,135,33],[140,31,140,33],[140,34,140,38],[135,34,135,38],[136,31,136,33],[136,34,136,38],[137,31,137,33],[137,34,137,38],[138,31,138,33],[107,31,107,33],[107,34,107,38],[97,31,97,33],[97,34,97,38],[98,31,98,33],[98,34,98,38],[99,31,99,33],[99,34,99,38],[142,34,142,38],[160,34,160,38],[154,34,154,38],[155,34,155,38],[151,34,153,38],[120,31,120,33],[127,31,127,33],[127,34,127,38],[128,31,128,33],[128,34,128,38],[132,31,132,33],[132,34,132,38],[133,31,133,33],[133,34,133,38],[124,31,124,33],[124,34,124,38],[125,31,125,33],[125,34,125,38],[126,31,126,33],[126,34,126,38],[142,31,142,33],[156,34,156,38],[157,34,157,38],[158,34,158,38],[159,34,159,38],[20,34,22,38],[47,31,47,33],[47,34,49,38],[48,31,49,33],[82,31,82,33],[82,34,84,38],[83,31,84,33],[31,34,31,38],[32,34,32,38],[38,34,38,38],[39,34,39,38],[71,34,71,38],[68,34,68,38],[69,34,69,38],[70,34,70,38],[25,34,25,38],[26,34,26,38],[27,34,27,38],[28,34,28,38],[23,34,23,38],[24,34,24,38],[51,31,51,33],[52,31,52,33],[53,31,53,33],[29,34,29,38],[30,34,30,38],[50,31,50,33],[65,31,65,33],[66,31,66,33],[67,31,67,33],[69,31,69,33],[52,34,52,38],[53,34,53,38],[54,34,54,38],[55,34,55,38],[60,34,60,38],[61,34,61,38],[50,34,50,38],[51,34,51,38],[33,16,33,18],[33,5,34,15],[34,16,34,18],[33,19,33,21],[35,19,35,21],[33,3,34,4],[33,22,33,24],[33,25,33,27],[34,19,34,21],[34,22,34,24],[35,25,35,27],[111,25,111,27],[108,28,108,30],[109,13,109,15],[54,31,54,33],[55,31,55,33],[94,31,94,38],[110,31,110,38],[34,25,34,27],[34,28,34,30],[43,3,43,21],[41,3,41,30],[109,28,109,30],[108,13,108,15],[108,16,108,18],[108,19,108,21],[108,22,108,24],[108,25,108,27],[111,16,111,18],[111,19,111,21],[106,22,106,24],[106,25,106,27],[106,28,106,30],[107,19,107,21],[103,28,103,30],[33,28,33,30],[115,3,115,30],[116,3,116,30],[117,3,117,30],[118,3,118,30],[108,4,109,12],[111,28,111,30],[112,13,112,15],[112,16,112,18],[112,19,112,21],[112,22,112,24],[112,25,112,27],[112,28,112,30],[107,22,107,24],[107,25,107,27],[107,28,107,30],[110,3,110,30],[111,13,111,15],[113,3,113,30],[44,3,44,30],[109,16,109,18],[109,19,109,21],[109,22,109,24],[109,25,109,27],[119,3,119,30],[145,3,145,30],[146,3,146,30],[147,3,147,30],[148,3,148,30],[114,3,114,30],[158,25,158,27],[158,28,158,30],[157,25,157,27],[157,28,157,30],[154,4,155,15],[154,16,154,18],[154,19,154,21],[154,22,154,24],[142,25,142,27],[143,13,143,15],[143,16,143,18],[143,19,143,21],[143,22,143,24],[143,25,143,27],[139,4,140,12],[155,28,155,30],[139,22,139,24],[139,25,139,27],[165,22,165,24],[165,25,165,27],[165,28,165,30],[159,19,159,21],[159,25,159,27],[159,28,159,30],[160,16,160,18],[160,19,160,21],[160,22,160,24],[160,25,160,27],[160,28,160,30],[161,25,161,27],[161,28,161,30],[161,19,161,21],[161,22,161,24],[164,3,164,27],[158,4,159,15],[166,16,166,18],[166,19,166,21],[166,22,166,24],[166,25,166,27],[141,3,141,30],[142,28,142,30],[166,28,166,30],[165,16,165,18],[165,19,165,21],[162,4,163,15],[162,16,162,18],[162,19,162,21],[162,22,162,24],[162,25,162,27],[159,16,159,18],[162,28,162,30],[159,22,159,24],[163,16,163,18],[163,19,163,21],[163,22,163,24],[163,25,163,27],[163,28,163,30],[161,16,161,18],[160,4,161,15],[156,4,157,15],[156,16,156,18],[157,16,157,18],[158,16,158,18],[158,19,158,21],[158,22,158,24],[157,19,157,21],[157,22,157,24],[156,19,156,21],[156,22,156,24],[156,25,156,27],[156,28,156,30],[154,28,154,30],[155,16,155,18],[155,19,155,21],[155,22,155,24],[155,25,155,27],[142,13,142,15],[151,28,151,30],[152,3,152,15],[152,19,153,21],[152,22,153,24],[152,25,153,27],[152,28,153,30],[153,3,153,15],[150,3,150,30],[142,16,142,18],[142,19,142,21],[142,22,142,24],[154,25,154,27],[143,28,143,30],[151,3,151,15],[151,16,153,18],[151,19,151,21],[151,22,151,24],[151,25,151,27],[149,3,149,30],[137,4,138,12],[137,13,137,15],[137,16,137,18],[137,19,137,21],[137,22,137,24],[137,25,137,27],[137,28,137,30],[138,13,138,15],[138,16,138,18],[138,19,138,21],[138,22,138,24],[138,25,138,27],[138,28,138,30],[139,28,139,30],[140,13,140,15],[140,16,140,18],[140,19,140,21],[140,22,140,24],[140,25,140,27],[140,28,140,30],[139,13,139,15],[139,16,139,18],[139,19,139,21],[135,4,136,12],[135,13,135,15],[135,16,135,18],[135,19,135,21],[135,22,135,24],[135,25,135,27],[135,28,135,30],[136,13,136,15],[136,16,136,18],[136,19,136,21],[136,22,136,24],[136,25,136,27],[136,28,136,30],[133,4,134,12],[133,13,133,15],[133,16,133,18],[133,19,133,21],[133,22,133,24],[133,25,133,27],[133,28,133,30],[134,13,134,15],[134,16,134,18],[134,19,134,21],[134,22,134,24],[134,25,134,27],[134,28,134,30],[131,4,132,12],[131,13,131,15],[131,16,131,18],[131,19,131,21],[131,22,131,24],[131,25,131,27],[131,28,131,30],[132,13,132,15],[132,16,132,18],[132,19,132,21],[132,22,132,24],[132,25,132,27],[132,28,132,30],[129,4,130,12],[129,13,129,15],[129,16,129,18],[129,19,129,21],[129,22,129,24],[129,25,129,27],[129,28,129,30],[130,13,130,15],[130,16,130,18],[130,19,130,21],[130,22,130,24],[130,25,130,27],[130,28,130,30],[127,4,128,12],[127,13,127,15],[127,16,127,18],[127,19,127,21],[127,22,127,24],[127,25,127,27],[127,28,127,30],[128,13,128,15],[128,16,128,18],[128,19,128,21],[128,22,128,24],[128,25,128,27],[128,28,128,30],[125,4,126,12],[125,13,125,15],[125,16,125,18],[125,19,125,21],[125,22,125,24],[125,25,125,27],[125,28,125,30],[126,13,126,15],[126,16,126,18],[126,19,126,21],[126,22,126,24],[126,25,126,27],[126,28,126,30],[123,4,124,12],[123,13,123,15],[123,16,123,18],[123,19,123,21],[123,22,123,24],[123,25,123,27],[123,28,123,30],[124,13,124,15],[124,16,124,18],[124,19,124,21],[124,22,124,24],[124,25,124,27],[124,28,124,30],[120,28,120,30],[121,3,121,12],[121,16,122,18],[121,19,122,21],[121,22,122,24],[121,25,122,27],[121,28,122,30],[122,3,122,12],[120,3,120,12],[120,13,122,15],[120,16,120,18],[120,19,120,21],[120,22,120,24],[120,25,120,27],[100,28,100,30],[104,16,104,18],[104,19,104,21],[104,22,104,24],[104,25,104,27],[104,28,104,30],[105,3,105,30],[107,13,107,15],[107,16,107,18],[103,13,103,15],[103,16,103,18],[103,19,103,21],[106,13,106,15],[106,16,106,18],[106,19,106,21],[106,4,107,12],[103,22,103,24],[103,25,103,27],[103,4,104,12],[101,4,102,12],[99,13,99,15],[99,16,99,18],[99,19,99,21],[99,22,99,24],[99,25,99,27],[99,28,99,30],[101,22,101,24],[101,25,101,27],[100,13,100,15],[100,16,100,18],[100,19,100,21],[100,22,100,24],[100,25,100,27],[101,28,101,30],[102,13,102,15],[102,16,102,18],[102,19,102,21],[102,22,102,24],[102,25,102,27],[102,28,102,30],[101,13,101,15],[101,16,101,18],[101,19,101,21],[97,13,97,15],[97,16,97,18],[97,19,97,21],[97,22,97,24],[97,25,97,27],[97,28,97,30],[98,13,98,15],[98,16,98,18],[98,19,98,21],[98,22,98,24],[98,25,98,27],[98,28,98,30],[95,22,95,24],[95,25,95,27],[95,28,95,30],[96,13,96,15],[96,16,96,18],[96,19,96,21],[96,22,96,24],[96,25,96,27],[96,28,96,30],[92,13,92,15],[92,16,92,18],[92,19,92,21],[92,22,92,24],[92,25,92,27],[92,28,92,30],[93,13,93,15],[93,16,93,18],[93,19,93,21],[93,22,93,24],[93,25,93,27],[93,28,93,30],[88,28,88,30],[89,13,89,15],[89,16,89,18],[89,19,89,21],[89,22,89,24],[89,25,89,27],[89,28,89,30],[90,28,90,30],[91,13,91,15],[91,16,91,18],[91,19,91,21],[91,22,91,24],[91,25,91,27],[91,28,91,30],[90,13,90,15],[90,16,90,18],[90,19,90,21],[88,13,88,15],[88,16,88,18],[88,19,88,21],[88,22,88,24],[88,25,88,27],[88,4,89,12],[90,22,90,24],[90,25,90,27],[90,4,91,12],[85,3,85,30],[81,3,81,30],[82,3,82,12],[82,13,84,15],[82,16,82,18],[82,19,82,21],[82,22,82,24],[82,25,82,27],[86,22,86,24],[86,25,86,27],[86,4,87,12],[83,19,84,21],[83,22,84,24],[83,25,84,27],[86,28,86,30],[87,13,87,15],[87,16,87,18],[87,19,87,21],[87,22,87,24],[87,25,87,27],[87,28,87,30],[86,13,86,15],[86,16,86,18],[86,19,86,21],[71,25,71,27],[72,3,72,30],[71,28,71,30],[82,28,82,30],[83,3,83,12],[83,16,84,18],[73,16,73,18],[73,19,73,21],[73,22,73,24],[73,25,73,27],[74,25,74,27],[74,28,74,30],[83,28,84,30],[84,3,84,12],[80,3,80,30],[73,28,73,30],[74,13,74,15],[74,16,74,18],[74,19,74,21],[73,13,73,15],[68,4,69,12],[68,13,68,15],[68,16,68,18],[68,19,68,21],[68,22,68,24],[68,25,68,27],[70,25,70,27],[70,28,70,30],[71,13,71,15],[68,28,68,30],[69,13,69,15],[69,16,69,18],[69,19,69,21],[69,22,69,24],[69,25,69,27],[69,28,69,30],[70,13,70,15],[70,16,70,18],[70,19,70,21],[70,22,70,24],[71,16,71,18],[71,19,71,21],[71,22,71,24],[66,4,67,12],[66,13,66,15],[66,16,66,18],[66,19,66,21],[66,22,66,24],[66,25,66,27],[66,28,66,30],[67,13,67,15],[67,16,67,18],[67,19,67,21],[67,22,67,24],[67,25,67,27],[67,28,67,30],[64,4,65,12],[64,13,64,15],[64,16,64,18],[64,19,64,21],[64,22,64,24],[64,25,64,27],[64,28,64,30],[65,13,65,15],[65,16,65,18],[65,19,65,21],[65,22,65,24],[65,25,65,27],[65,28,65,30],[62,4,63,12],[62,13,62,15],[62,16,62,18],[62,19,62,21],[62,22,62,24],[62,25,62,27],[62,28,62,30],[63,13,63,15],[63,16,63,18],[63,19,63,21],[63,22,63,24],[63,25,63,27],[63,28,63,30],[60,4,61,12],[60,13,60,15],[60,16,60,18],[60,19,60,21],[60,22,60,24],[60,25,60,27],[60,28,60,30],[61,13,61,15],[61,16,61,18],[61,19,61,21],[61,22,61,24],[61,25,61,27],[61,28,61,30],[58,13,58,15],[55,28,55,30],[56,13,56,15],[37,1,38,1],[37,3,37,30],[38,16,38,18],[38,19,38,21],[38,22,38,24],[38,25,38,27],[38,28,38,30],[39,16,39,18],[39,19,39,21],[39,22,39,24],[39,25,39,27],[39,28,39,30],[52,16,52,18],[52,19,52,21],[52,22,52,24],[52,25,52,27],[52,28,52,30],[46,3,46,30],[47,3,47,12],[47,13,49,15],[47,16,47,18],[32,28,32,30],[27,16,27,18],[27,19,27,21],[27,22,27,24],[27,25,27,27],[27,28,27,30],[28,3,28,4],[28,16,28,18],[28,19,28,21],[28,22,28,24],[28,25,28,27],[28,28,28,30],[31,3,32,4],[31,5,32,15],[31,16,31,18],[31,19,31,21],[31,22,31,24],[31,25,31,27],[32,16,32,18],[32,19,32,21],[32,22,32,24],[32,25,32,27],[27,3,27,5],[29,3,30,4],[25,4,26,15],[25,16,25,18],[25,19,25,21],[25,22,25,24],[25,25,25,27],[25,28,25,30],[26,16,26,18],[26,19,26,21],[26,22,26,24],[26,25,26,27],[26,28,26,30],[23,28,23,30],[24,16,24,18],[24,19,24,21],[24,22,24,24],[24,25,24,27],[24,28,24,30],[20,28,20,30],[21,25,22,27],[21,3,21,15],[21,19,22,21],[21,22,22,24],[22,3,22,15],[21,28,22,30],[23,4,24,15],[23,16,23,18],[23,19,23,21],[23,22,23,24],[23,25,23,27],[1,1,7,1],[1,25,1,27],[1,28,1,29],[5,11,7,20],[8,3,8,30],[9,1,12,1],[9,3,9,7],[11,3,11,7],[11,8,11,20],[9,8,9,30],[11,24,11,30],[12,24,12,30],[10,3,10,7],[10,8,10,30],[13,3,13,30],[20,3,20,15],[20,16,22,18],[12,3,12,7],[12,8,12,20],[20,19,20,21],[20,22,20,24],[20,25,20,27],[16,3,16,21],[18,3,18,21],[14,3,14,30],[15,3,15,30],[17,3,17,30],[19,3,19,30],[73,3,73,12],[94,3,94,30],[95,13,95,15],[95,16,95,18],[95,19,95,21],[47,28,47,30],[48,3,48,12],[48,16,49,18],[48,19,49,21],[48,22,49,24],[48,25,49,27],[48,28,49,30],[49,3,49,12],[50,4,51,12],[50,13,50,15],[50,16,50,18],[50,19,50,21],[50,22,50,24],[50,25,50,27],[53,13,53,15],[53,16,53,18],[53,19,53,21],[53,22,53,24],[53,25,53,27],[53,28,53,30],[54,4,55,12],[54,13,54,15],[54,16,54,18],[54,19,54,21],[54,22,54,24],[54,25,54,27],[54,28,54,30],[55,13,55,15],[55,16,55,18],[55,19,55,21],[55,22,55,24],[55,25,55,27],[52,13,52,15],[111,3,111,12],[142,3,142,12],[165,3,165,15],[35,3,35,15],[20,40,28,47],[41,1,42,1],[45,3,45,28],[92,4,93,12],[95,4,96,12],[97,4,98,12],[99,4,100,12],[42,3,42,30],[47,19,47,21],[47,22,47,24],[47,25,47,27],[50,28,50,30],[51,13,51,15],[51,16,51,18],[51,19,51,21],[51,22,51,24],[51,25,51,27],[51,28,51,30],[52,4,53,12]]}
[]
[null,"Use the tab key to move through the cells that require entry.",null,"State of California",null,null,null,null,null,null,null,null,null,null,null,null,null,null,null,null,null,null,null,null,null,"Contract No.",null,null,{"$f":"'Goal 1 Workplan'!P3","v":0}]
[]
[null,null,null,"Department of Community Services and Development",null,null,null,null,null,null,null,null,null,null,null,null,null,null,null,null," ",null,null,null,null," "]
[]
[null,null,null,"CSBG/NPI Programs Report",null,null,null,null,null,null,null,"CSBG/NPI Programs Report",null,null,null,null,null,null,null,null,null,null,null,null,null,null,{"$f":"'Goal 1 Reporting'!AB6","v":0}]
[]
[null,null,null,"CSD 801 (Rev.8/16)"]
[]
[null,"Use the goal 1 tab to enter information into this block of cells.  ",null,"Contractor Name:",null,null,null,null,{"$f":"'Goal 1 Workplan'!J11","v":0}]
[null,null,null,"Contact Person and Title:",null,null,null,null,{"$f":"'Goal 1 Workplan'!J12","v":0}]
[null,null,null,"Phone Number:",null,null,null,null,{"$f":"'Goal 1 Workplan'!J13","v":0},null,null,null,null,null,null,null,null,null,null,null,null,"Ext. Number: ",null,null,{"$f":"'Goal 1 Workplan'!N13","v":0}]
[null,null,null,"E-mail Address:",null,null,null,null,{"$f":"'Goal 1 Workplan'!J14","v":0},null,null,null,null,null,null,null,null,null,null,null,null,"Fax Number:",null,null,{"$f":"'Goal 1 Workplan'!N14","v":0}]
[]
[null,null,null,"Goal 6:  Low-income people, especially vulnerable populations, achieve their potential by strengthening family and other supportive environments."]
[null,null,null,"NPI 6.1:  Independent Living"]
[null,null,null,"Problem Statement:  (If additional space is needed, please attach a separate sheet.)"]
[null,null,null,{"$f":"'Goal 6 Workplan'!D18","v":0}]
[null,null,null,"Program Activities and Delivery Strategies:  (If additional space is needed, please attach a separate sheet.)"]
[null,null,null,{"$f":"'Goal 6 Workplan'!D20","v":0},null,null,null,null,null,null,null,null,null,null,null,null,null,null,null,null,null,null,null,null,null,null,null,null,null,null,null,null,null,null,null,null,null,null,null,null,"REPORTING PERIOD"]
[null,"See NPI Instruction Manual, pages 37-40",null,"National Performance\nIndicator 6.1",null,null,null,null,null,null,null,null,null,null,null,null,"Reporting Period",null,null,"I",null,null,"II",null,null,"III",null,null,"IV",null,null,null,null,null,"NPI Analysis",null,null,null,null,null,"Annual Report\nDue January 20th of every year.\n\nReporting Period\nJanuary 1 - December 31\n\nHow to Complete\nFill in the Tan cells that are \napplicable to your workplan. \n(Note: the Light Gray \"Column I\" \nautomatically populates from the Workplan tab)\n\nHow to Submit Annual Report\nUpon completion of report, \nthis workbook should be \nE-MAILED to the following address\nCSBGReports@csd.ca.gov\nand copy your assigned Field Representative.\n"]
[null,null,null,"Independent Living",null,null,null,null,null,null,null,null,null,null,null,null,null,null,null,"Number of Vulnerable Individuals Living Independently Expected to be Served in Reporting Period\n(#)",null,null,"Number of Vulnerable Individuals Living Independently in Reporting Period\n(#)",null,null,"Percentage Achieving Outcome in Reporting Period \n(II/I=III)\n(%)",null,null,"Explanations Required\n\n(Report on explanation tab)"]
[null,null,null,"\nThe number of vulnerable individuals receiving services from Community Action who maintain an independent living situation as a result of those services:"]
[null,null,null,"A.","Senior Citizens (seniors can be reported twice, once under Senior Citizens and again, if they are disabled, under Individuals with Disabilities, ages 55-over.)",null,null,null,null,null,null,null,null,null,null,null,"Annual",null,null,{"$f":"'Goal 6 Workplan'!T24","v":0},null,null,null,null,null,{"$f":"IF(T24=\"\",\"\",IF(T24=0,\"\",IF(W24=\"\",\"\",IF(W24=T24,\"100%\",IF(T24=W24,,(W24/T24))))))","v":""},null,null,{"$f":"IF(T24=W24,\"\",IF(W24=0,\"\",IF(W24/T24<80%,\"Explanation\",IF(W24/T24>120%,\"Explanation\",\"\"))))","v":""}]
[null,null,null,null,null,null,null,null,null,null,null,null,null,null,null,null,null,null,null,{"$f":"'Goal 6 Workplan'!T25","v":0},null,null,null,null,null,{"$f":"IF(T25=\"\",\"\",IF(T25=0,\"\",IF(W25=\"\",\"\",IF(W25=0,\"\",IF(W25=T25,\"100%\",IF(T25=W25,,(W25/T25)))))))","v":""},null,null,{"$f":"IF(T25=W25,\"\",IF(W25=0,\"\",IF(W25/T25<80%,\"Explanation\",IF(W25/T25>120%,\"Explanation\",\"\"))))","v":""}]
[null,null,null,"B.","Individuals with Disabilities ",null,null,null,null,null,null,null,null,null,null,null,null,null,null,null,null,null,null,null,null,{"$f":"IF(T26=\"\",\"\",IF(T26=0,\"\",IF(W26=\"\",\"\",IF(W26=T26,\"100%\",IF(T26=W26,,(W26/T26))))))","v":""},null,null,""]
[null,null,null,null,null,null,null,null,null,null,null,null,null,null,null,null,null,null,null,null,null,null,null,null,null,null,null,null,""]
[null,null,null,"Ages: ",null,null,null,null,null,null,null,null,null,null,null,null,null,null,null,{"$f":"'Goal 6 Workplan'!T28:V28","v":0},null,null,null,null,null,"",null,null,""]
[null,null,null,"a.",null,"0-17",null,null,null,null,null,null,null,null,null,null,"Annual",null,null,{"$f":"'Goal 6 Workplan'!T29:V29","v":0},null,null,null,null,null,{"$f":"IF(T29=\"\",\"\",IF(T29=0,\"\",IF(W29=\"\",\"\",IF(W29=0,\"\",IF(W29=T29,\"100%\",IF(T29=W29,,(W29/T29)))))))","v":""},null,null,""]
[null,null,null,"b.",null,"18-54",null,null,null,null,null,null,null,null,null,null,"Annual",null,null,{"$f":"'Goal 6 Workplan'!T30:V30","v":0},null,null,null,null,null,"",null,null,""]
[null,null,null,null,null,null,null,null,null,null,null,null,null,null,null,null,null,null,null,{"$f":"'Goal 6 Workplan'!T31:V31","v":0},null,null,null,null,null,{"$f":"IF(T31=\"\",\"\",IF(T31=0,\"\",IF(W31=\"\",\"\",IF(W31=0,\"\",IF(W31=T31,\"100%\",IF(T31=W31,,(W31/T31)))))))","v":""},null,null,""]
[null,null,null,"c.",null,"55-over",null,null,null,null,null,null,null,null,null,null,"Annual",null,null,{"$f":"'Goal 6 Workplan'!T32:V32","v":0},null,null,null,null,null,"",null,null,""]
[null,null,null,null,null,null,null,null,null,null,null,null,null,null,null,null,null,null,null,{"$f":"'Goal 6 Workplan'!T33:V33","v":0},null,null,null,null,null,{"$f":"IF(T33=\"\",\"\",IF(T33=0,\"\",IF(W33=\"\",\"\",IF(W33=0,\"\",IF(W33=T33,\"100%\",IF(T33=W33,,(W33/T33)))))))","v":""},null,null,""]
[null,null,null,"d.",null,"Age Unknown",null,null,null,null,null,null,null,null,null,null,"Annual",null,null,{"$f":"'Goal 6 Workplan'!T34:V34","v":0},null,null,null,null,null,{"$f":"IF(T34=\"\",\"\",IF(T34=0,\"\",IF(W34=\"\",\"\",IF(W34=0,\"\",IF(W34=T34,\"100%\",IF(T34=W34,,(W34/T34)))))))","v":""},null,null,{"$f":"IF(T34=W34,\"\",IF(W34=0,\"\",IF(W34/T34<80%,\"Explanation\",IF(W34/T34>120%,\"Explanation\",\"\"))))","v":""}]
[null,null,null,null,null,null,null,null,null,null,null,null,null,null,null,null,null,null,null,{"$f":"'Goal 6 Workplan'!T35:V35","v":0},null,null,null,null,null,{"$f":"IF(T35=\"\",\"\",IF(T35=0,\"\",IF(W35=\"\",\"\",IF(W35=0,\"\",IF(W35=T35,\"100%\",IF(T35=W35,,(W35/T35)))))))","v":""},null,null,{"$f":"IF(T35=W35,\"\",IF(W35=0,\"\",IF(W35/T35<80%,\"Explanation\",IF(W35/T35>120%,\"Explanation\",\"\"))))","v":""}]
[null,null,null,"TOTAL Individuals with Disabilities (automatically calculates)",null,null,null,null,null,null,null,null,null,null,null,null,"Annual",null,null,{"$f":"SUM(T29+T30+T32+T34)","v":0},null,null,{"$f":"SUM(W29+W30+W32+W34)","v":0},null,null,{"$f":"IF(T36=\"\",\"\",IF(T36=0,\"\",IF(W36=\"\",\"\",IF(W36=0,\"\",IF(W36=T36,\"100%\",IF(T36=W36,,(W36/T36)))))))","v":""},null,null,{"$f":"IF(T36=W36,\"\",IF(W36=0,\"\",IF(W36/T36<80%,\"Explanation\",IF(W36/T36>120%,\"Explanation\",\"\"))))","v":""}]
[null,null,null,null,null,null,null,null,null,null,null,null,null,null,null,null,null,null,null,{"$f":"SUM(T29+T31+T33+T35)","v":0},null,null,{"$f":"SUM(W29+W31+W33+W35)","v":0},null,null,{"$f":"IF(T37=\"\",\"\",IF(T37=0,\"\",IF(W37=\"\",\"\",IF(W37=0,\"\",IF(W37=T37,\"100%\",IF(T37=W37,,(W37/T37)))))))","v":""},null,null,{"$f":"IF(T37=W37,\"\",IF(W37=0,\"\",IF(W37/T37<80%,\"Explanation\",IF(W37/T37>120%,\"Explanation\",\"\"))))","v":""}]
[null,null,null,"In the rows below, please include any additional indicators for NPI 6.1 that were not captured above."]
[null,null,null,{"$f":"'Goal 6 Workplan'!D39","v":0},null,null,null,null,null,null,null,null,null,null,null,null,"Annual",null,null,{"$f":"'Goal 6 Workplan'!T39:V39","v":0},null,null,null,null,null,{"$f":"IF(T39=\"\",\"\",IF(T39=0,\"\",IF(W39=\"\",\"\",IF(W39=T39,\"100%\",IF(T39=W39,,(W39/T39))))))","v":""},null,null,{"$f":"IF(T39=W39,\"\",IF(W39=0,\"\",IF(W39/T39<80%,\"Explanation\",IF(W39/T39>120%,\"Explanation\",\"\"))))","v":""}]
[null,null,null,null,null,null,null,null,null,null,null,null,null,null,null,null,null,null,null,{"$f":"'Goal 6 Workplan'!T40:V40","v":0},null,null,null,null,null,{"$f":"IF(T40=\"\",\"\",IF(T40=0,\"\",IF(W40=\"\",\"\",IF(W40=0,\"\",IF(W40=T40,\"100%\",IF(T40=W40,,(W40/T40)))))))","v":""},null,null,{"$f":"IF(T40=W40,\"\",IF(W40=0,\"\",IF(W40/T40<80%,\"Explanation\",IF(W40/T40>120%,\"Explanation\",\"\"))))","v":""}]
[]
[null,"See NPI Instruction Manual, pages 41-45",null,"Goal 6:  Low-income people, especially vulnerable populations, achieve their potential by strengthening family and other supportive environments."]
[null,null,null,"NPI 6.2:  Emergency Assistance"]
[null,null,null,"Problem Statement:  (If additional space is needed, please attach a separate sheet.)"]
[null,null,null,{"$f":"'Goal 6 Workplan'!D45","v":0}]
[null,null,null,"Program Activities and Delivery Strategies:  (If additional space is needed, please attach a separate sheet.)"]
[null,null,null,{"$f":"'Goal 6 Workplan'!D48","v":0}]
[null,null,null,"National Performance\nIndicator 6.2",null,null,null,null,null,null,null,null,null,"Reporting Period",null,null,"I",null,null,"II",null,null,"III",null,null,"IV",null,null,"V",null,null,"CSD Review",null,null,"NPI Analysis"]
[null,null,null,"Emergency Assistance",null,null,null,null,null,null,null,null,null,null,null,null,"Number of Individuals Seeking Assistance Projected to be Served  in Reporting Period\n(#)",null,null,"Number of Individuals Seeking Assistance in Reporting Period\n(#)",null,null,"Number of Individuals Receiving Assistance in Reporting Period\n(#)",null,null,"Percentage Achieving Outcome in Reporting Period \n(III/I=IV)\n(%)",null,null,"Explanations Required\n\n(Report on explanation tab)",null,null,"Column 3 >/= Column 2"]
[null,null,null,"\nThe number of low-income individuals served by Community Action who sought emergency assistance and the number of those individuals for whom assistance was provided, including such service as:"]
[null,null,null,"A.","Emergency Food\n",null,null,null,null,null,null,null,null,"Annual",null,null,{"$f":"'Goal 6 Workplan'!T52","v":0},null,null,null,null,null,null,null,null,{"$f":"IF(Q51=\"\",\"\",IF(Q51=0,\"\",IF(W51=\"\",\"\",IF(W51=Q51,\"100%\",IF(Q51=W51,,(W51/Q51))))))","v":""},null,null,{"$f":"IF(Q51=W51,\"\",IF(W51=0,\"\",IF(W51/Q51<80%,\"Explanation\",IF(W51/Q51>120%,\"Explanation\",\"\"))))","v":""},null,null,{"$f":"IF(W51>T51,\"Receiving > Seeking\",IF(W51=T51,\"\",IF(W51<T51,\"\",IF(W51=0,\"\",IF(T51=0,\"\")))))","v":""}]
[null,null,null,null,null,null,null,null,null,null,null,null,null,null,null,null,{"$f":"'Goal 6 Workplan'!T53","v":0},null,null,null,null,null,null,null,null,{"$f":"IF(Q52=\"\",\"\",IF(Q52=0,\"\",IF(W52=\"\",\"\",IF(W52=Q52,\"100%\",IF(Q52=W52,,(W52/Q52))))))","v":""},null,null,"",null,null,{"$f":"IF(W52>T52,\"Receiving > Seeking\",IF(W52=T52,\"\",IF(W52<T52,\"\",IF(W52=0,\"\",IF(T52=0,\"\")))))","v":""}]
[null,null,null,"B.","Emergency fuel or utility payments funded by LIHEAP or other public and private funding sources",null,null,null,null,null,null,null,null,"Annual",null,null,{"$f":"'Goal 6 Workplan'!T54","v":0},null,null,null,null,null,null,null,null,"",null,null,"",null,null,""]
[null,null,null,null,null,null,null,null,null,null,null,null,null,null,null,null,{"$f":"'Goal 6 Workplan'!T55","v":0},null,null,null,null,null,null,null,null,"",null,null,"",null,null,""]
[null,null,null,"C.","Emergency Rent or Mortgage Assistance\n",null,null,null,null,null,null,null,null,"Annual",null,null,{"$f":"'Goal 6 Workplan'!T56","v":0},null,null,null,null,null,null,null,null,"",null,null,"",null,null,""]
[null,null,null,null,null,null,null,null,null,null,null,null,null,null,null,null,{"$f":"'Goal 6 Workplan'!T57","v":0},null,null,null,null,null,null,null,null,"",null,null,"",null,null,""]
[null,null,null,"D.","Emergency Car or Home Repair (i.e. structural appliance, heating systems, etc.)",null,null,null,null,null,null,null,null,"Annual",null,null,{"$f":"'Goal 6 Workplan'!T58","v":0},null,null,null,null,null,null,null,null,"",null,null,"",null,null,""]
[null,null,null,null,null,null,null,null,null,null,null,null,null,null,null,null,{"$f":"'Goal 6 Workplan'!T59","v":0},null,null,null,null,null,null,null,null,"",null,null,"",null,null,""]
[null,null,null,"E.","Emergency Temporary Shelter",null,null,null,null,null,null,null,null,"Annual",null,null,{"$f":"'Goal 6 Workplan'!T60","v":0},null,null,null,null,null,null,null,null,"",null,null,"",null,null,""]
[null,null,null,null,null,null,null,null,null,null,null,null,null,null,null,null,{"$f":"'Goal 6 Workplan'!T61","v":0},null,null,null,null,null,null,null,null,"",null,null,"",null,null,""]
[null,null,null,"F.","Emergency  Medical Care",null,null,null,null,null,null,null,null,"Annual",null,null,{"$f":"'Goal 6 Workplan'!T62","v":0},null,null,null,null,null,null,null,null,"",null,null,"",null,null,""]
[null,null,null,null,null,null,null,null,null,null,null,null,null,null,null,null,{"$f":"'Goal 6 Workplan'!T63","v":0},null,null,null,null,null,null,null,null,"",null,null,"",null,null,""]
[null,null,null,"G.","Emergency Protection from Violence",null,null,null,null,null,null,null,null,"Annual",null,null,{"$f":"'Goal 6 Workplan'!T64","v":0},null,null,null,null,null,null,null,null,"",null,null,"",null,null,""]
[null,null,null,null,null,null,null,null,null,null,null,null,null,null,null,null,{"$f":"'Goal 6 Workplan'!T65","v":0},null,null,null,null,null,null,null,null,"",null,null,"",null,null,""]
[null,null,null,"H.","Emergency Legal Assistance",null,null,null,null,null,null,null,null,"Annual",null,null,{"$f":"'Goal 6 Workplan'!T66","v":0},null,null,null,null,null,null,null,null,"",null,null,"",null,null,""]
[null,null,null,null,null,null,null,null,null,null,null,null,null,null,null,null,{"$f":"'Goal 6 Workplan'!T67","v":0},null,null,null,null,null,null,null,null,"",null,null,"",null,null,""]
[null,null,null,"I.","Emergency Transportation",null,null,null,null,null,null,null,null,"Annual",null,null,{"$f":"'Goal 6 Workplan'!T68","v":0},null,null,null,null,null,null,null,null,"",null,null,"",null,null,""]
[null,null,null,null,null,null,null,null,null,null,null,null,null,null,null,null,{"$f":"'Goal 6 Workplan'!T69","v":0},null,null,null,null,null,null,null,null,"",null,null,"",null,null,""]
[null,null,null,"J","Emergency Disaster Relief",null,null,null,null,null,null,null,null,"Annual",null,null,{"$f":"'Goal 6 Workplan'!T70","v":0},null,null,null,null,null,null,null,null,"",null,null,"",null,null,""]
[null,null,null,null,null,null,null,null,null,null,null,null,null,null,null,null,{"$f":"'Goal 6 Workplan'!T71","v":0},null,null,null,null,null,null,null,null,"",null,null,"",null,null,""]
[null,null,null,"K","Emergency Clothing",null,null,null,null,null,null,null,null,"Annual",null,null,{"$f":"'Goal 6 Workplan'!T72","v":0},null,null,null,null,null,null,null,null,"",null,null,"",null,null,""]
[null,null,null,null,null,null,null,null,null,null,null,null,null,null,null,null,{"$f":"'Goal 6 Workplan'!T73","v":0},null,null,null,null,null,null,null,null,"",null,null,"",null,null,""]
[null,null,null,"In the rows below, please include any additional indicators for NPI 6.2 that were not captured above."]
[null,null,null,{"$f":"'Goal 6 Workplan'!D75","v":0},null,null,null,null,null,null,null,null,null,"Annual",null,null,{"$f":"'Goal 6 Workplan'!T75","v":0},null,null,null,null,null,null,null,null,{"$f":"IF(Q74=\"\",\"\",IF(Q74=0,\"\",IF(W74=\"\",\"\",IF(W74=Q74,\"100%\",IF(Q74=W74,,(W74/Q74))))))","v":""},null,null,{"$f":"IF(Q74=W74,\"\",IF(W74=0,\"\",IF(W74/Q74<80%,\"Explanation\",IF(W74/Q74>120%,\"Explanation\",\"\"))))","v":""},null,null,{"$f":"IF(W74>T74,\"Receiving > Seeking\",IF(W74=T74,\"\",IF(W74<T74,\"\",IF(W74=0,\"\",IF(T74=0,\"\")))))","v":""}]
[null,null,null,null,null,null,null,null,null,null,null,null,null,null,null,null,{"$f":"'Goal 6 Workplan'!T76","v":0},null,null,null,null,null,null,null,null,{"$f":"IF(Q75=\"\",\"\",IF(Q75=0,\"\",IF(W75=\"\",\"\",IF(W75=Q75,\"100%\",IF(Q75=W75,,(W75/Q75))))))","v":""},null,null,{"$f":"IF(Q75=W75,\"\",IF(W75=0,\"\",IF(W75/Q75<80%,\"Explanation\",IF(W75/Q75>120%,\"Explanation\",\"\"))))","v":""},null,null,{"$f":"IF(W75>T75,\"Receiving > Seeking\",IF(W75=T75,\"\",IF(W75<T75,\"\",IF(W75=0,\"\",IF(T75=0,\"\")))))","v":""}]
[]
[null,null,null,"Goal 6:  Low-income people, especially vulnerable populations, achieve their potential by strengthening family and other supportive environments."]
[null,null,null,"NPI 6.3:  Child and Family Development"]
[null,null,null,"Problem Statement:  (If additional space is needed, please attach a separate sheet.)"]
[null,null,null,{"$f":"'Goal 6 Workplan'!D81","v":0}]
[null,null,null,"Program Activities and Delivery Strategies:  (If additional space is needed, please attach a separate sheet.)"]
[null,null,null,{"$f":"'Goal 6 Workplan'!D83","v":0}]
[null,"See NPI Instruction Manual, pages 46-50",null,"National Performance\nIndicator 6.3",null,null,null,null,null,null,null,null,null,"Reporting Period",null,null,"I",null,null,"II",null,null,"III",null,null,"IV",null,null,"V",null,null,"CSD Review",null,null,"NPI Analysis"]
[null,null,null,"Child and Family Development",null,null,null,null,null,null,null,null,null,null,null,null,"Number of Participants Expected to Achieve Outcome in Reporting Period\n(#)",null,null,"Number of Participants Enrolled in Program(s) in Reporting Period\n(#)",null,null,"Number of Participants Achieving Outcome in Reporting Period\n(#) \n",null,null,"Percentage Achieving Outcome in Reporting Period \n(III/I=IV)\n(%)",null,null,"Explanations Required\n\n(Report on explanation tab)",null,null,"Column 3 >/= Column 2"]
[null,null,null,"The number and percentage of all infants, children, youth, parents, and other adults participating in developmental or enrichment programs that achieve program goals, as measured by one or more of the following:"]
[null,null,null," INFANTS & CHILDREN"]
[null,null,null,"A.   ","Infants and children obtain age appropriate immunizations, medical, and dental care ",null,null,null,null,null,null,null,null,"Annual",null,null,{"$f":"'Goal 6 Workplan'!T88","v":0},null,null,null,null,null,null,null,null,{"$f":"IF(Q87=\"\",\"\",IF(Q87=0,\"\",IF(W87=\"\",\"\",IF(W87=Q87,\"100%\",IF(Q87=W87,,(W87/Q87))))))","v":""},null,null,{"$f":"IF(Q87=W87,\"\",IF(W87=0,\"\",IF(W87/Q87<80%,\"Explanation\",IF(W87/Q87>120%,\"Explanation\",\"\"))))","v":""},null,null,{"$f":"IF(W87>T87,\"Achieving > Enrolled\",IF(W87=T87,\"\",IF(W87<T87,\"\",IF(W87=0,\"\",IF(T87=0,\"\")))))","v":""}]
[null,null,null,null,null,null,null,null,null,null,null,null,null,null,null,null,{"$f":"'Goal 6 Workplan'!T89","v":0},null,null,null,null,null,null,null,null,"",null,null,"",null,null,""]
[null,null,null,"B.","Infant and child health and physical development are improved as a result of adequate nutrition ",null,null,null,null,null,null,null,null,"Annual",null,null,{"$f":"'Goal 6 Workplan'!T90","v":0},null,null,null,null,null,null,null,null,"",null,null,"",null,null,""]
[null,null,null,null,null,null,null,null,null,null,null,null,null,null,null,null,{"$f":"'Goal 6 Workplan'!T91","v":0},null,null,null,null,null,null,null,null,"",null,null,"",null,null,""]
[null,null,null,"C.  ","Children participate in pre-school activities to develop school readiness skills",null,null,null,null,null,null,null,null,"Annual",null,null,{"$f":"'Goal 6 Workplan'!T92","v":0},null,null,null,null,null,null,null,null,"",null,null,"",null,null,""]
[null,null,null,null,null,null,null,null,null,null,null,null,null,null,null,null,{"$f":"'Goal 6 Workplan'!T93","v":0},null,null,null,null,null,null,null,null,"",null,null,"",null,null,""]
[null,null,null,"D.   ","Children who participate in pre-school activities are developmentally ready to enter Kindergarten or 1st Grade ",null,null,null,null,null,null,null,null,"Annual",null,null,{"$f":"'Goal 6 Workplan'!T94","v":0},null,null,null,null,null,null,null,null,{"$f":"IF(Q93=\"\",\"\",IF(Q93=0,\"\",IF(W93=\"\",\"\",IF(W93=Q93,\"100%\",IF(Q93=W93,,(W93/Q93))))))","v":""},null,null,{"$f":"IF(Q93=W93,\"\",IF(W93=0,\"\",IF(W93/Q93<80%,\"Explanation\",IF(W93/Q93>120%,\"Explanation\",\"\"))))","v":""},null,null,{"$f":"IF(W93>T93,\"Achieving > Enrolled\",IF(W93=T93,\"\",IF(W93<T93,\"\",IF(W93=0,\"\",IF(T93=0,\"\")))))","v":""}]
[null,null,null,null,null,null,null,null,null,null,null,null,null,null,null,null,{"$f":"'Goal 6 Workplan'!T95","v":0},null,null,null,null,null,null,null,null,{"$f":"IF(Q94=\"\",\"\",IF(Q94=0,\"\",IF(W94=\"\",\"\",IF(W94=Q94,\"100%\",IF(Q94=W94,,(W94/Q94))))))","v":""},null,null,{"$f":"IF(Q94=W94,\"\",IF(W94=0,\"\",IF(W94/Q94<80%,\"Explanation\",IF(W94/Q94>120%,\"Explanation\",\"\"))))","v":""},null,null,{"$f":"IF(W94>T94,\"Achieving > Enrolled\",IF(W94=T94,\"\",IF(W94<T94,\"\",IF(W94=0,\"\",IF(T94=0,\"\")))))","v":""}]
[null,null,null," YOUTH"]
[null,null,null,"E.  Youth improve health and physical development ","Youth improve health and physical development ",null,null,null,null,null,null,null,null,"Annual",null,null,{"$f":"'Goal 6 Workplan'!T97","v":0},null,null,null,null,null,null,null,null,{"$f":"IF(Q96=\"\",\"\",IF(Q96=0,\"\",IF(W96=\"\",\"\",IF(W96=Q96,\"100%\",IF(Q96=W96,,(W96/Q96))))))","v":""},null,null,{"$f":"IF(Q96=W96,\"\",IF(W96=0,\"\",IF(W96/Q96<80%,\"Explanation\",IF(W96/Q96>120%,\"Explanation\",\"\"))))","v":""},null,null,{"$f":"IF(W96>T96,\"Achieving > Enrolled\",IF(W96=T96,\"\",IF(W96<T96,\"\",IF(W96=0,\"\",IF(T96=0,\"\")))))","v":""}]
[null,null,null,null,null,null,null,null,null,null,null,null,null,null,null,null,{"$f":"'Goal 6 Workplan'!T98","v":0},null,null,null,null,null,null,null,null,{"$f":"IF(Q97=\"\",\"\",IF(Q97=0,\"\",IF(W97=\"\",\"\",IF(W97=Q97,\"100%\",IF(Q97=W97,,(W97/Q97))))))","v":""},null,null,"",null,null,{"$f":"IF(W97>T97,\"Achieving > Enrolled\",IF(W97=T97,\"\",IF(W97<T97,\"\",IF(W97=0,\"\",IF(T97=0,\"\")))))","v":""}]
[null,null,null,"F.  ","Youth improve social/emotional development ",null,null,null,null,null,null,null,null,"Annual",null,null,{"$f":"'Goal 6 Workplan'!T99","v":0},null,null,null,null,null,null,null,null,"",null,null,"",null,null,""]
[null,null,null,null,null,null,null,null,null,null,null,null,null,null,null,null,{"$f":"'Goal 6 Workplan'!T100","v":0},null,null,null,null,null,null,null,null,"",null,null,"",null,null,""]
[null,null,null,"G.  ","Youth avoid risk-taking behavior for a defined period of time ",null,null,null,null,null,null,null,null,"Annual",null,null,{"$f":"'Goal 6 Workplan'!T101","v":0},null,null,null,null,null,null,null,null,"",null,null,"",null,null,""]
[null,null,null,null,null,null,null,null,null,null,null,null,null,null,null,null,{"$f":"'Goal 6 Workplan'!T102","v":0},null,null,null,null,null,null,null,null,"",null,null,"",null,null,""]
[null,null,null,"H.  ","Youth have reduced involvement with criminal justice system ",null,null,null,null,null,null,null,null,"Annual",null,null,{"$f":"'Goal 6 Workplan'!T103","v":0},null,null,null,null,null,null,null,null,"",null,null,"",null,null,""]
[null,null,null,null,null,null,null,null,null,null,null,null,null,null,null,null,{"$f":"'Goal 6 Workplan'!T104","v":0},null,null,null,null,null,null,null,null,"",null,null,"",null,null,""]
[null,null,null,"I.  ","Youth increase academic, athletic, or social skills for school success ",null,null,null,null,null,null,null,null,"Annual",null,null,{"$f":"'Goal 6 Workplan'!T105","v":0},null,null,null,null,null,null,null,null,"",null,null,"",null,null,""]
[null,null,null,null,null,null,null,null,null,null,null,null,null,null,null,null,{"$f":"'Goal 6 Workplan'!T106","v":0},null,null,null,null,null,null,null,null,"",null,null,"",null,null,""]
[null,null,null,"PARENTS AND OTHER ADULTS"]
[null,null,null,"J.  ","Parents and other adults learn and exhibit  improved parenting skills",null,null,null,null,null,null,null,null,"Annual",null,null,{"$f":"'Goal 6 Workplan'!T108","v":0},null,null,null,null,null,null,null,null,{"$f":"IF(Q107=\"\",\"\",IF(Q107=0,\"\",IF(W107=\"\",\"\",IF(W107=Q107,\"100%\",IF(Q107=W107,,(W107/Q107))))))","v":""},null,null,{"$f":"IF(Q107=W107,\"\",IF(W107=0,\"\",IF(W107/Q107<80%,\"Explanation\",IF(W107/Q107>120%,\"Explanation\",\"\"))))","v":""},null,null,{"$f":"IF(W107>T107,\"Achieving > Enrolled\",IF(W107=T107,\"\",IF(W107<T107,\"\",IF(W107=0,\"\",IF(T107=0,\"\")))))","v":""}]
[null,null,null,null,null,null,null,null,null,null,null,null,null,null,null,null,{"$f":"'Goal 6 Workplan'!T109","v":0},null,null,null,null,null,null,null,null,{"$f":"IF(Q108=\"\",\"\",IF(Q108=0,\"\",IF(W108=\"\",\"\",IF(W108=Q108,\"100%\",IF(Q108=W108,,(W108/Q108))))))","v":""},null,null,{"$f":"IF(Q108=W108,\"\",IF(W108=0,\"\",IF(W108/Q108<80%,\"Explanation\",IF(W108/Q108>120%,\"Explanation\",\"\"))))","v":""},null,null,{"$f":"IF(W108>T108,\"Achieving > Enrolled\",IF(W108=T108,\"\",IF(W108<T108,\"\",IF(W108=0,\"\",IF(T108=0,\"\")))))","v":""}]
[null,null,null,"K.  ","Parents and other adults learn and exhibit improved family functioning skills",null,null,null,null,null,null,null,null,"Annual",null,null,{"$f":"'Goal 6 Workplan'!T110","v":0},null,null,null,null,null,null,null,null,{"$f":"IF(Q109=\"\",\"\",IF(Q109=0,\"\",IF(W109=\"\",\"\",IF(W109=Q109,\"100%\",IF(Q109=W109,,(W109/Q109))))))","v":""},null,null,{"$f":"IF(Q109=W109,\"\",IF(W109=0,\"\",IF(W109/Q109<80%,\"Explanation\",IF(W109/Q109>120%,\"Explanation\",\"\"))))","v":""},null,null,{"$f":"IF(W109>T109,\"Achieving > Enrolled\",IF(W109=T109,\"\",IF(W109<T109,\"\",IF(W109=0,\"\",IF(T109=0,\"\")))))","v":""}]
[null,null,null,null,null,null,null,null,null,null,null,null,null,null,null,null,{"$f":"'Goal 6 Workplan'!T111","v":0},null,null,null,null,null,null,null,null,{"$f":"IF(Q110=\"\",\"\",IF(Q110=0,\"\",IF(W110=\"\",\"\",IF(W110=Q110,\"100%\",IF(Q110=W110,,(W110/Q110))))))","v":""},null,null,{"$f":"IF(Q110=W110,\"\",IF(W110=0,\"\",IF(W110/Q110<80%,\"Explanation\",IF(W110/Q110>120%,\"Explanation\",\"\"))))","v":""},null,null,{"$f":"IF(W110>T110,\"Achieving > Enrolled\",IF(W110=T110,\"\",IF(W110<T110,\"\",IF(W110=0,\"\",IF(T110=0,\"\")))))","v":""}]
[null,null,null,"In the rows below, please include any additional indicators for NPI 6.3 that were not captured above."]
[null,null,null,{"$f":"'Goal 6 Workplan'!D113","v":0},null,null,null,null,null,null,null,null,null,"Annual",null,null,{"$f":"'Goal 6 Workplan'!T113","v":0},null,null,null,null,null,null,null,null,{"$f":"IF(Q112=\"\",\"\",IF(Q112=0,\"\",IF(W112=\"\",\"\",IF(W112=Q112,\"100%\",IF(Q112=W112,,(W112/Q112))))))","v":""},null,null,{"$f":"IF(Q112=W112,\"\",IF(W112=0,\"\",IF(W112/Q112<80%,\"Explanation\",IF(W112/Q112>120%,\"Explanation\",\"\"))))","v":""},null,null,{"$f":"IF(W112>T112,\"Achieving > Enrolled\",IF(W112=T112,\"\",IF(W112<T112,\"\",IF(W112=0,\"\",IF(T112=0,\"\")))))","v":""}]
[null,null,null,null,null,null,null,null,null,null,null,null,null,null,null,null,{"$f":"'Goal 6 Workplan'!T114","v":0},null,null,null,null,null,null,null,null,{"$f":"IF(Q113=\"\",\"\",IF(Q113=0,\"\",IF(W113=\"\",\"\",IF(W113=Q113,\"100%\",IF(Q113=W113,,(W113/Q113))))))","v":""},null,null,{"$f":"IF(Q113=W113,\"\",IF(W113=0,\"\",IF(W113/Q113<80%,\"Explanation\",IF(W113/Q113>120%,\"Explanation\",\"\"))))","v":""},null,null,{"$f":"IF(W113>T113,\"Achieving > Enrolled\",IF(W113=T113,\"\",IF(W113<T113,\"\",IF(W113=0,\"\",IF(T113=0,\"\")))))","v":""}]
[]
[null,null,null,"Goal 6:  Low-income people, especially vulnerable populations, achieve their potential by strengthening family and other supportive environments."]
[null,null,null,"NPI 6.4:  Family Supports"]
[null,null,null,"Problem Statement:  (If additional space is needed, please attach a separate sheet.)"]
[null,null,null,{"$f":"'Goal 6 Workplan'!D119","v":0}]
[null,null,null,"Program Activities and Delivery Strategies:  (If additional space is needed, please attach a separate sheet.)"]
[null,null,null,{"$f":"'Goal 6 Workplan'!D121","v":0}]
[null,"See NPI Instruction Manual, pages 51-54",null,"National Performance\nIndicator 6.4",null,null,null,null,null,null,null,null,null,"Reporting Period",null,null,"I",null,null,"II",null,null,"III",null,null,"IV",null,null,"V",null,null,"CSD Review",null,null,"NPI Analysis"]
[null,null,null,"Family Supports (Seniors, Disabled and Caregivers)",null,null,null,null,null,null,null,null,null,null,null,null,"Number of Participants Expected to Achieve Outcome in Reporting Period\n(#)",null,null,"Number of Participants Enrolled in Program(s) in Reporting Period\n(#)",null,null,"Number of Participants Achieving Outcome in Reporting Period\n(#) \n",null,null,"Percentage Achieving Outcome in Reporting Period \n(III/I=IV)\n(%)",null,null,"Explanations Required\n\n(Report on explanation tab)",null,null,"Column 3 >/= Column 2"]
[null,null,null,"Low-income people who are unable to work, especially seniors, adults with disabilities, and caregivers, for whom barriers to family stability are reduced or eliminated, as measured by one or more of the following:"]
[null,null,null,"A.","Enrolled children in before or after school programs",null,null,null,null,null,null,null,null,"Annual",null,null,{"$f":"'Goal 6 Workplan'!T125","v":0},null,null,null,null,null,null,null,null,{"$f":"IF(Q124=\"\",\"\",IF(Q124=0,\"\",IF(W124=\"\",\"\",IF(W124=Q124,\"100%\",IF(Q124=W124,,(W124/Q124))))))","v":""},null,null,{"$f":"IF(Q124=W124,\"\",IF(W124=0,\"\",IF(W124/Q124<80%,\"Explanation\",IF(W124/Q124>120%,\"Explanation\",\"\"))))","v":""},null,null,{"$f":"IF(W124>T124,\"Achieving > Enrolled\",IF(W124=T124,\"\",IF(W124<T124,\"\",IF(W124=0,\"\",IF(T124=0,\"\")))))","v":""}]
[null,null,null,null,null,null,null,null,null,null,null,null,null,null,null,null,{"$f":"'Goal 6 Workplan'!T126","v":0},null,null,null,null,null,null,null,null,{"$f":"IF(Q125=\"\",\"\",IF(Q125=0,\"\",IF(W125=\"\",\"\",IF(W125=Q125,\"100%\",IF(Q125=W125,,(W125/Q125))))))","v":""},null,null,"",null,null,{"$f":"IF(W125>T125,\"Achieving > Enrolled\",IF(W125=T125,\"\",IF(W125<T125,\"\",IF(W125=0,\"\",IF(T125=0,\"\")))))","v":""}]
[null,null,null,"B.","Obtained care for child or other dependent",null,null,null,null,null,null,null,null,"Annual",null,null,{"$f":"'Goal 6 Workplan'!T127","v":0},null,null,null,null,null,null,null,null,"",null,null,"",null,null,""]
[null,null,null,null,null,null,null,null,null,null,null,null,null,null,null,null,{"$f":"'Goal 6 Workplan'!T128","v":0},null,null,null,null,null,null,null,null,"",null,null,"",null,null,""]
[null,null,null,"C.","Obtained access to reliable transportation and/or driver's license",null,null,null,null,null,null,null,null,"Annual",null,null,{"$f":"'Goal 6 Workplan'!T129","v":0},null,null,null,null,null,null,null,null,"",null,null,"",null,null,""]
[null,null,null,null,null,null,null,null,null,null,null,null,null,null,null,null,{"$f":"'Goal 6 Workplan'!T130","v":0},null,null,null,null,null,null,null,null,"",null,null,"",null,null,""]
[null,null,null,"D.","Obtained health care services for themselves and/or family member",null,null,null,null,null,null,null,null,"Annual",null,null,{"$f":"'Goal 6 Workplan'!T131","v":0},null,null,null,null,null,null,null,null,"",null,null,"",null,null,""]
[null,null,null,null,null,null,null,null,null,null,null,null,null,null,null,null,{"$f":"'Goal 6 Workplan'!T132","v":0},null,null,null,null,null,null,null,null,"",null,null,"",null,null,""]
[null,null,null,"E.","Obtained and/or maintained safe and affordable housing",null,null,null,null,null,null,null,null,"Annual",null,null,{"$f":"'Goal 6 Workplan'!T133","v":0},null,null,null,null,null,null,null,null,"",null,null,"",null,null,""]
[null,null,null,null,null,null,null,null,null,null,null,null,null,null,null,null,{"$f":"'Goal 6 Workplan'!T134","v":0},null,null,null,null,null,null,null,null,"",null,null,"",null,null,""]
[null,null,null,"F. ","Obtained food assistance",null,null,null,null,null,null,null,null,"Annual",null,null,{"$f":"'Goal 6 Workplan'!T135","v":0},null,null,null,null,null,null,null,null,"",null,null,"",null,null,""]
[null,null,null,null,null,null,null,null,null,null,null,null,null,null,null,null,{"$f":"'Goal 6 Workplan'!T136","v":0},null,null,null,null,null,null,null,null,"",null,null,"",null,null,""]
[null,null,null,"G. ","Obtained non-emergency LIHEAP energy assistance",null,null,null,null,null,null,null,null,"Annual",null,null,{"$f":"'Goal 6 Workplan'!T137","v":0},null,null,null,null,null,null,null,null,"",null,null,"",null,null,""]
[null,null,null,null,null,null,null,null,null,null,null,null,null,null,null,null,{"$f":"'Goal 6 Workplan'!T138","v":0},null,null,null,null,null,null,null,null,"",null,null,"",null,null,""]
[null,null,null,"H.","Obtained non-emergency WX energy assistance",null,null,null,null,null,null,null,null,"Annual",null,null,{"$f":"'Goal 6 Workplan'!T139","v":0},null,null,null,null,null,null,null,null,"",null,null,"",null,null,""]
[null,null,null,null,null,null,null,null,null,null,null,null,null,null,null,null,{"$f":"'Goal 6 Workplan'!T140","v":0},null,null,null,null,null,null,null,null,"",null,null,"",null,null,""]
[null,null,null,"I. ","Obtained other non-emergency energy assistance. (State/local/private energy programs. Do Not Include LIHEAP or WX)",null,null,null,null,null,null,null,null,"Annual",null,null,{"$f":"'Goal 6 Workplan'!T141","v":0},null,null,null,null,null,null,null,null,"",null,null,"",null,null,""]
[null,null,null,null,null,null,null,null,null,null,null,null,null,null,null,null,{"$f":"'Goal 6 Workplan'!T142","v":0},null,null,null,null,null,null,null,null,"",null,null,"",null,null,""]
[null,null,null,"In the rows below, please include any additional indicators for NPI 6.4 that were not captured above."]
[null,null,null,{"$f":"'Goal 6 Workplan'!D144","v":0},null,null,null,null,null,null,null,null,null,"Annual",null,null,{"$f":"'Goal 6 Workplan'!T144","v":0},null,null,null,null,null,null,null,null,{"$f":"IF(Q143=\"\",\"\",IF(Q143=0,\"\",IF(W143=\"\",\"\",IF(W143=Q143,\"100%\",IF(Q143=W143,,(W143/Q143))))))","v":""},null,null,{"$f":"IF(Q143=W143,\"\",IF(W143=0,\"\",IF(W143/Q143<80%,\"Explanation\",IF(W143/Q143>120%,\"Explanation\",\"\"))))","v":""},null,null,{"$f":"IF(W143>T143,\"Achieving > Enrolled\",IF(W143=T143,\"\",IF(W143<T143,\"\",IF(W143=0,\"\",IF(T143=0,\"\")))))","v":""}]
[null,null,null,null,null,null,null,null,null,null,null,null,null,null,null,null,{"$f":"'Goal 6 Workplan'!T145","v":0},null,null,null,null,null,null,null,null,{"$f":"IF(Q144=\"\",\"\",IF(Q144=0,\"\",IF(W144=\"\",\"\",IF(W144=Q144,\"100%\",IF(Q144=W144,,(W144/Q144))))))","v":""},null,null,{"$f":"IF(Q144=W144,\"\",IF(W144=0,\"\",IF(W144/Q144<80%,\"Explanation\",IF(W144/Q144>120%,\"Explanation\",\"\"))))","v":""},null,null,{"$f":"IF(W144>T144,\"Achieving > Enrolled\",IF(W144=T144,\"\",IF(W144<T144,\"\",IF(W144=0,\"\",IF(T144=0,\"\")))))","v":""}]
[]
[null,null,null,"Goal 6:  Low-income people, especially vulnerable populations, achieve their potential by strengthening family and other supportive environments."]
[null,null,null,"NPI 6.5:  Service Counts"]
[null,null,null,"Problem Statement:  (If additional space is needed, please attach a separate sheet.)"]
[null,null,null,{"$f":"'Goal 6 Workplan'!D151","v":0}]
[null,null,null,"Program Activities and Delivery Strategies:  (If additional space is needed, please attach a separate sheet.)"]
[null,null,null,{"$f":"'Goal 6 Workplan'!D153","v":0}]
[null,"See NPI Instruction Manual, pages 55-57",null,"National Performance\nIndicator 6.5",null,null,null,null,null,null,null,null,null,null,null,null,"Reporting Period",null,null,"I",null,null,"II",null,null,"III",null,null,"IV",null,null,null,null,null,"NPI Analysis"]
[null,null,null,"Service Counts",null,null,null,null,null,null,null,null,null,null,null,null,null,null,null,"Number of Services Expected in Reporting Period\n(#)",null,null,"Number of Services in Reporting Period\n(#)",null,null,"Percentage Achieving Outcome in Reporting Period \n(II/I=III)\n(%)",null,null,"Explanations Required\n\n(Report on explanation tab)"]
[null,null,null,"The number of services provided to low-income individuals and/or families, as measured by one or more of the following:"]
[null,null,null,"A.","Food Boxes",null,null,null,null,null,null,null,null,null,null,null,"Annual",null,null,{"$f":"'Goal 6 Workplan'!T157","v":0},null,null,null,null,null,{"$f":"IF(T155=\"\",\"\",IF(T155=0,\"\",IF(W155=\"\",\"\",IF(W155=T155,\"100%\",IF(T155=W155,,(W155/T155))))))","v":""},null,null,{"$f":"IF(T155=W155,\"\",IF(W155=0,\"\",IF(W155/T155<80%,\"Explanation\",IF(W155/T155>120%,\"Explanation\",\"\"))))","v":""}]
[null,null,null,null,null,null,null,null,null,null,null,null,null,null,null,null,null,null,null,{"$f":"'Goal 6 Workplan'!T158","v":0},null,null,null,null,null,{"$f":"IF(T156=\"\",\"\",IF(T156=0,\"\",IF(W156=\"\",\"\",IF(W156=0,\"\",IF(W156=T156,\"100%\",IF(T156=W156,,(W156/T156)))))))","v":""},null,null,{"$f":"IF(T156=W156,\"\",IF(W156=0,\"\",IF(W156/T156<80%,\"Explanation\",IF(W156/T156>120%,\"Explanation\",\"\"))))","v":""}]
[null,null,null,"B.","Pounds of Food",null,null,null,null,null,null,null,null,null,null,null,"Annual",null,null,{"$f":"'Goal 6 Workplan'!T159","v":0},null,null,null,null,null,{"$f":"IF(T157=\"\",\"\",IF(T157=0,\"\",IF(W157=\"\",\"\",IF(W157=T157,\"100%\",IF(T157=W157,,(W157/T157))))))","v":""},null,null,""]
[null,null,null,null,null,null,null,null,null,null,null,null,null,null,null,null,null,null,null,{"$f":"'Goal 6 Workplan'!T160","v":0},null,null,null,null,null,"",null,null,""]
[null,null,null,"C.","Units of Clothing",null,null,null,null,null,null,null,null,null,null,null,"Annual",null,null,{"$f":"'Goal 6 Workplan'!T161","v":0},null,null,null,null,null,{"$f":"IF(T159=\"\",\"\",IF(T159=0,\"\",IF(W159=\"\",\"\",IF(W159=T159,\"100%\",IF(T159=W159,,(W159/T159))))))","v":""},null,null,""]
[null,null,null,null,null,null,null,null,null,null,null,null,null,null,null,null,null,null,null,{"$f":"'Goal 6 Workplan'!T162","v":0},null,null,null,null,null,"",null,null,""]
[null,null,null,"D.","Rides Provided",null,null,null,null,null,null,null,null,null,null,null,"Annual",null,null,{"$f":"'Goal 6 Workplan'!T163","v":0},null,null,null,null,null,"",null,null,""]
[null,null,null,null,null,null,null,null,null,null,null,null,null,null,null,null,null,null,null,{"$f":"'Goal 6 Workplan'!T164","v":0},null,null,null,null,null,"",null,null,""]
[null,null,null,"E.","Information and Referral Calls",null,null,null,null,null,null,null,null,null,null,null,"Annual",null,null,{"$f":"'Goal 6 Workplan'!T165","v":0},null,null,null,null,null,"",null,null,""]
[null,null,null,null,null,null,null,null,null,null,null,null,null,null,null,null,null,null,null,{"$f":"'Goal 6 Workplan'!T166","v":0},null,null,null,null,null,"",null,null,""]
[null,null,null,"In the rows below, please include any additional indicators for NPI 6.5 that were not captured above."]
[null,null,null,{"$f":"'Goal 6 Workplan'!D168","v":0},null,null,null,null,null,null,null,null,null,null,null,null,"Annual",null,null,{"$f":"'Goal 6 Workplan'!T168","v":0},null,null,null,null,null,{"$f":"IF(T166=\"\",\"\",IF(T166=0,\"\",IF(W166=\"\",\"\",IF(W166=T166,\"100%\",IF(T166=W166,,(W166/T166))))))","v":""},null,null,{"$f":"IF(T166=W166,\"\",IF(W166=0,\"\",IF(W166/T166<80%,\"Explanation\",IF(W166/T166>120%,\"Explanation\",\"\"))))","v":""}]
[null,null,null,null,null,null,null,null,null,null,null,null,null,null,null,null,null,null,null,{"$f":"'Goal 6 Workplan'!T169","v":0},null,null,null,null,null,{"$f":"IF(T167=\"\",\"\",IF(T167=0,\"\",IF(W167=\"\",\"\",IF(W167=0,\"\",IF(W167=T167,\"100%\",IF(T167=W167,,(W167/T167)))))))","v":""},null,null,{"$f":"IF(T167=W167,\"\",IF(W167=0,\"\",IF(W167/T167<80%,\"Explanation\",IF(W167/T167>120%,\"Explanation\",\"\"))))","v":""}]
[]
[]
[null,null,null,null,null,null,null,null,null,null,null,null,null,null,null,null,null,null,null,null,null,null,null,null,null,null,null,null,null,null,null,null,null,null,"  "]

{"sheet":"Goal 6 Reporting reverse I & II","index":16,"n_rows":170,"n_cols":41,"rows_kept":170,"cut":false,"hidden":true,"merged":[[166,34,166,38],[164,3,164,27],[165,3,166,15],[165,16,165,18],[165,19,165,21],[165,22,165,24],[165,25,165,27],[94,19,94,21],[94,16,94,18],[94,22,94,24],[165,28,165,30],[165,34,165,38],[166,16,166,18],[166,19,166,21],[166,22,166,24],[166,25,166,27],[166,28,166,30],[162,4,163,15],[162,16,162,18],[162,19,162,21],[162,22,162,24],[162,25,162,27],[162,28,162,30],[162,34,162,38],[163,16,163,18],[163,19,163,21],[163,22,163,24],[163,25,163,27],[163,28,163,30],[163,34,163,38],[160,4,161,15],[160,16,160,18],[160,19,160,21],[160,22,160,24],[160,25,160,27],[160,28,160,30],[160,34,160,38],[161,16,161,18],[161,19,161,21],[161,22,161,24],[161,25,161,27],[161,28,161,30],[161,34,161,38],[158,4,159,15],[158,16,158,18],[158,19,158,21],[158,22,158,24],[158,25,158,27],[158,28,158,30],[158,34,158,38],[159,16,159,18],[159,19,159,21],[159,22,159,24],[159,25,159,27],[159,28,159,30],[159,34,159,38],[156,4,157,15],[156,16,156,18],[156,19,156,21],[156,22,156,24],[156,25,156,27],[156,28,156,30],[156,34,156,38],[157,16,157,18],[157,19,157,21],[157,22,157,24],[157,25,157,27],[157,28,157,30],[157,34,157,38],[154,4,155,15],[154,16,154,18],[154,19,154,21],[154,22,154,24],[154,25,154,27],[154,28,154,30],[154,34,154,38],[155,16,155,18],[155,19,155,21],[155,22,155,24],[155,25,155,27],[155,28,155,30],[155,34,155,38],[151,34,153,38],[152,3,152,15],[152,19,153,21],[152,22,153,24],[152,25,153,27],[152,28,153,30],[153,3,153,15],[151,3,151,15],[151,16,153,18],[151,19,151,21],[151,22,151,24],[151,25,151,27],[151,28,151,30],[145,3,145,30],[146,3,146,30],[147,3,147,30],[148,3,148,30],[149,3,149,30],[150,3,150,30],[142,34,142,38],[143,13,143,15],[143,16,143,18],[143,19,143,21],[143,22,143,24],[143,25,143,27],[143,28,143,30],[143,31,143,33],[143,34,143,38],[141,3,141,30],[142,3,143,12],[142,13,142,15],[142,16,142,18],[142,19,142,21],[142,22,142,24],[142,25,142,27],[142,28,142,30],[142,31,142,33],[139,4,140,12],[139,13,139,15],[139,16,139,18],[139,19,139,21],[139,22,139,24],[139,25,139,27],[139,28,139,30],[139,31,139,33],[139,34,139,38],[140,13,140,15],[140,16,140,18],[140,19,140,21],[140,22,140,24],[140,25,140,27],[140,28,140,30],[140,31,140,33],[140,34,140,38],[137,4,138,12],[137,13,137,15],[137,16,137,18],[137,19,137,21],[137,22,137,24],[137,25,137,27],[137,28,137,30],[137,31,137,33],[137,34,137,38],[138,13,138,15],[138,16,138,18],[138,19,138,21],[138,22,138,24],[138,25,138,27],[138,28,138,30],[138,31,138,33],[138,34,138,38],[135,4,136,12],[135,13,135,15],[135,16,135,18],[135,19,135,21],[135,22,135,24],[135,25,135,27],[135,28,135,30],[135,31,135,33],[135,34,135,38],[136,13,136,15],[136,16,136,18],[136,19,136,21],[136,22,136,24],[136,25,136,27],[136,28,136,30],[136,31,136,33],[136,34,136,38],[133,4,134,12],[133,13,133,15],[133,16,133,18],[133,19,133,21],[133,22,133,24],[133,25,133,27],[133,28,133,30],[133,31,133,33],[133,34,133,38],[134,13,134,15],[134,16,134,18],[134,19,134,21],[134,22,134,24],[134,25,134,27],[134,28,134,30],[134,31,134,33],[134,34,134,38],[131,4,132,12],[131,13,131,15],[131,16,131,18],[131,19,131,21],[131,22,131,24],[131,25,131,27],[131,28,131,30],[131,31,131,33],[131,34,131,38],[132,13,132,15],[132,16,132,18],[132,19,132,21],[132,22,132,24],[132,25,132,27],[132,28,132,30],[132,31,132,33],[132,34,132,38],[129,4,130,12],[129,13,129,15],[129,16,129,18],[129,19,129,21],[129,22,129,24],[129,25,129,27],[129,28,129,30],[129,31,129,33],[129,34,129,38],[130,13,130,15],[130,16,130,18],[130,19,130,21],[130,22,130,24],[130,25,130,27],[130,28,130,30],[130,31,130,33],[130,34,130,38],[127,4,128,12],[127,13,127,15],[127,16,127,18],[127,19,127,21],[127,22,127,24],[127,25,127,27],[127,28,127,30],[127,31,127,33],[127,34,127,38],[128,13,128,15],[128,16,128,18],[128,19,128,21],[128,22,128,24],[128,25,128,27],[128,28,128,30],[128,31,128,33],[128,34,128,38],[125,4,126,12],[125,13,125,15],[125,16,125,18],[125,19,125,21],[125,22,125,24],[125,25,125,27],[125,28,125,30],[125,31,125,33],[125,34,125,38],[126,13,126,15],[126,16,126,18],[126,19,126,21],[126,22,126,24],[126,25,126,27],[126,28,126,30],[126,31,126,33],[126,34,126,38],[123,4,124,12],[123,13,123,15],[123,16,123,18],[123,19,123,21],[123,22,123,24],[123,25,123,27],[123,28,123,30],[123,31,123,33],[123,34,123,38],[124,13,124,15],[124,16,124,18],[124,19,124,21],[124,22,124,24],[124,25,124,27],[124,28,124,30],[124,31,124,33],[124,34,124,38],[120,31,120,33],[120,34,122,38],[121,3,121,12],[121,16,122,18],[121,19,122,21],[121,22,122,24],[121,25,122,27],[121,28,122,30],[121,31,122,33],[122,3,122,12],[113,3,113,30],[114,3,114,30],[115,3,115,30],[116,3,116,30],[117,3,117,30],[118,3,118,30],[119,3,119,30],[120,3,120,12],[120,13,122,15],[120,16,120,18],[120,19,120,21],[120,22,120,24],[120,25,120,27],[120,28,120,30],[110,3,110,30],[110,31,110,38],[111,3,112,12],[111,13,111,15],[111,16,111,18],[111,19,111,21],[111,22,111,24],[111,25,111,27],[111,28,111,30],[111,31,111,33],[111,34,111,38],[112,13,112,15],[112,16,112,18],[112,19,112,21],[112,22,112,24],[112,25,112,27],[112,28,112,30],[112,31,112,33],[112,34,112,38],[107,31,107,33],[107,34,107,38],[108,4,109,12],[108,13,108,15],[108,16,108,18],[108,19,108,21],[108,22,108,24],[108,25,108,27],[108,28,108,30],[108,31,108,33],[108,34,108,38],[109,13,109,15],[109,16,109,18],[109,19,109,21],[109,22,109,24],[109,25,109,27],[109,28,109,30],[109,31,109,33],[109,34,109,38],[104,13,104,15],[104,16,104,18],[104,19,104,21],[104,22,104,24],[104,25,104,27],[104,28,104,30],[104,31,104,33],[104,34,104,38],[106,4,107,12],[106,13,106,15],[106,16,106,18],[106,19,106,21],[106,22,106,24],[106,25,106,27],[106,28,106,30],[106,31,106,33],[103,4,104,12],[106,34,106,38],[107,13,107,15],[107,16,107,18],[107,19,107,21],[107,22,107,24],[107,25,107,27],[107,28,107,30],[102,34,102,38],[100,31,100,33],[100,34,100,38],[101,28,101,30],[101,31,101,33],[103,13,103,15],[103,16,103,18],[103,19,103,21],[103,22,103,24],[103,25,103,27],[101,34,101,38],[102,13,102,15],[102,16,102,18],[102,19,102,21],[102,22,102,24],[103,28,103,30],[103,31,103,33],[103,34,103,38],[101,4,102,12],[101,13,101,15],[101,16,101,18],[101,19,101,21],[101,22,101,24],[101,25,101,27],[102,25,102,27],[102,28,102,30],[102,31,102,33],[99,4,100,12],[99,13,99,15],[99,16,99,18],[99,19,99,21],[99,22,99,24],[99,25,99,27],[99,28,99,30],[99,31,99,33],[99,34,99,38],[100,13,100,15],[100,16,100,18],[100,19,100,21],[100,22,100,24],[100,25,100,27],[100,28,100,30],[97,4,98,12],[97,13,97,15],[97,16,97,18],[97,19,97,21],[97,22,97,24],[97,25,97,27],[97,28,97,30],[97,31,97,33],[97,34,97,38],[98,13,98,15],[98,16,98,18],[98,19,98,21],[98,22,98,24],[98,25,98,27],[98,28,98,30],[98,31,98,33],[98,34,98,38],[94,31,94,38],[95,4,96,12],[95,13,95,15],[95,16,95,18],[95,19,95,21],[95,22,95,24],[95,25,95,27],[95,28,95,30],[95,31,95,33],[95,34,95,38],[96,13,96,15],[96,16,96,18],[96,19,96,21],[96,22,96,24],[96,25,96,27],[96,28,96,30],[96,31,96,33],[96,34,96,38],[92,4,93,12],[92,13,92,15],[92,16,92,18],[92,19,92,21],[92,22,92,24],[92,25,92,27],[92,28,92,30],[92,31,92,33],[92,34,92,38],[93,13,93,15],[93,16,93,18],[93,19,93,21],[93,22,93,24],[93,25,93,27],[93,28,93,30],[93,31,93,33],[93,34,93,38],[90,4,91,12],[90,13,90,15],[90,16,90,18],[90,19,90,21],[90,22,90,24],[90,25,90,27],[90,28,90,30],[90,31,90,33],[90,34,90,38],[91,13,91,15],[91,16,91,18],[91,19,91,21],[91,22,91,24],[91,25,91,27],[91,28,91,30],[91,31,91,33],[91,34,91,38],[88,4,89,12],[88,13,88,15],[88,16,88,18],[88,19,88,21],[88,22,88,24],[88,25,88,27],[88,28,88,30],[88,31,88,33],[88,34,88,38],[89,13,89,15],[89,16,89,18],[89,19,89,21],[89,22,89,24],[89,25,89,27],[89,28,89,30],[89,31,89,33],[89,34,89,38],[86,34,86,38],[87,13,87,15],[87,16,87,18],[87,19,87,21],[87,22,87,24],[87,25,87,27],[87,28,87,30],[87,31,87,33],[87,34,87,38],[85,3,85,30],[86,4,87,12],[86,13,86,15],[86,16,86,18],[86,19,86,21],[86,22,86,24],[86,25,86,27],[86,28,86,30],[86,31,86,33],[82,31,82,33],[82,34,84,38],[83,3,83,12],[83,16,84,18],[83,19,84,21],[83,22,84,24],[83,25,84,27],[83,28,84,30],[83,31,84,33],[76,3,76,30],[77,3,77,30],[78,3,78,30],[79,3,79,30],[80,3,80,30],[81,3,81,30],[82,3,82,12],[82,13,84,15],[82,16,82,18],[82,19,82,21],[82,22,82,24],[82,25,82,27],[84,3,84,12],[82,28,82,30],[73,34,73,38],[74,13,74,15],[74,16,74,18],[74,19,74,21],[74,22,74,24],[74,25,74,27],[74,28,74,30],[74,31,74,33],[74,34,74,38],[72,3,72,30],[73,3,74,12],[73,13,73,15],[73,16,73,18],[73,19,73,21],[73,22,73,24],[73,25,73,27],[73,28,73,30],[73,31,73,33],[70,4,71,12],[70,13,70,15],[70,16,70,18],[70,19,70,21],[70,22,70,24],[70,25,70,27],[70,28,70,30],[70,31,70,33],[70,34,70,38],[71,13,71,15],[71,16,71,18],[71,19,71,21],[71,22,71,24],[71,25,71,27],[71,28,71,30],[71,31,71,33],[71,34,71,38],[68,4,69,12],[68,13,68,15],[68,16,68,18],[68,19,68,21],[68,22,68,24],[68,25,68,27],[68,28,68,30],[68,31,68,33],[68,34,68,38],[69,13,69,15],[69,16,69,18],[69,19,69,21],[69,22,69,24],[69,25,69,27],[69,28,69,30],[69,31,69,33],[69,34,69,38],[66,4,67,12],[66,13,66,15],[66,16,66,18],[66,19,66,21],[66,22,66,24],[66,25,66,27],[66,28,66,30],[66,31,66,33],[66,34,66,38],[67,13,67,15],[67,16,67,18],[67,19,67,21],[67,22,67,24],[67,25,67,27],[67,28,67,30],[67,31,67,33],[67,34,67,38],[64,4,65,12],[64,13,64,15],[64,16,64,18],[64,19,64,21],[64,22,64,24],[64,25,64,27],[64,28,64,30],[64,31,64,33],[64,34,64,38],[65,13,65,15],[65,16,65,18],[65,19,65,21],[65,22,65,24],[65,25,65,27],[65,28,65,30],[65,31,65,33],[65,34,65,38],[62,4,63,12],[62,13,62,15],[62,16,62,18],[62,19,62,21],[62,22,62,24],[62,25,62,27],[62,28,62,30],[62,31,62,33],[62,34,62,38],[63,13,63,15],[63,16,63,18],[63,19,63,21],[63,22,63,24],[63,25,63,27],[63,28,63,30],[63,31,63,33],[63,34,63,38],[60,4,61,12],[60,13,60,15],[60,16,60,18],[60,19,60,21],[60,22,60,24],[60,25,60,27],[60,28,60,30],[60,31,60,33],[60,34,60,38],[61,13,61,15],[61,16,61,18],[61,19,61,21],[61,22,61,24],[61,25,61,27],[61,28,61,30],[61,31,61,33],[61,34,61,38],[58,4,59,12],[58,13,58,15],[58,16,58,18],[58,19,58,21],[58,22,58,24],[58,25,58,27],[58,28,58,30],[58,31,58,33],[58,34,58,38],[59,13,59,15],[59,16,59,18],[59,19,59,21],[59,22,59,24],[59,25,59,27],[59,28,59,30],[59,31,59,33],[59,34,59,38],[56,4,57,12],[56,13,56,15],[56,16,56,18],[56,19,56,21],[56,22,56,24],[56,25,56,27],[56,28,56,30],[56,31,56,33],[56,34,56,38],[57,13,57,15],[57,16,57,18],[57,19,57,21],[57,22,57,24],[57,25,57,27],[57,28,57,30],[57,31,57,33],[57,34,57,38],[54,4,55,12],[54,13,54,15],[54,16,54,18],[54,19,54,21],[54,22,54,24],[54,25,54,27],[54,28,54,30],[54,31,54,33],[54,34,54,38],[55,13,55,15],[55,16,55,18],[55,19,55,21],[55,22,55,24],[55,25,55,27],[55,28,55,30],[55,31,55,33],[55,34,55,38],[52,4,53,12],[52,13,52,15],[52,16,52,18],[52,19,52,21],[52,22,52,24],[52,25,52,27],[52,28,52,30],[52,31,52,33],[52,34,52,38],[53,13,53,15],[53,16,53,18],[53,19,53,21],[53,22,53,24],[53,25,53,27],[53,28,53,30],[53,31,53,33],[53,34,53,38],[50,4,51,12],[50,13,50,15],[50,16,50,18],[50,19,50,21],[50,22,50,24],[50,25,50,27],[50,28,50,30],[50,31,50,33],[50,34,50,38],[51,13,51,15],[51,16,51,18],[51,19,51,21],[51,22,51,24],[51,25,51,27],[51,28,51,30],[51,31,51,33],[51,34,51,38],[47,31,47,33],[47,34,49,38],[48,3,48,12],[48,16,49,18],[48,19,49,21],[48,22,49,24],[48,25,49,27],[48,28,49,30],[48,31,49,33],[49,3,49,12],[41,1,42,1],[41,3,41,30],[42,3,42,30],[43,3,43,21],[44,3,44,30],[45,3,45,28],[46,3,46,30],[47,3,47,12],[47,13,49,15],[47,16,47,18],[47,19,47,21],[47,22,47,24],[47,25,47,27],[47,28,47,30],[38,34,38,38],[39,16,39,18],[39,19,39,21],[39,22,39,24],[39,25,39,27],[39,28,39,30],[39,34,39,38],[35,16,35,18],[35,19,35,21],[35,22,35,24],[35,25,35,27],[35,28,35,30],[36,16,36,18],[36,19,36,21],[36,22,36,24],[36,25,36,27],[36,28,36,30],[37,1,38,1],[37,3,37,30],[38,3,39,15],[38,16,38,18],[38,19,38,21],[38,22,38,24],[38,25,38,27],[38,28,38,30],[35,3,36,15],[33,3,34,4],[33,5,34,15],[33,16,33,18],[33,19,33,21],[33,22,33,24],[33,25,33,27],[33,28,33,30],[34,16,34,18],[34,19,34,21],[34,22,34,24],[34,25,34,27],[34,28,34,30],[31,5,32,15],[31,16,31,18],[31,19,31,21],[31,22,31,24],[31,25,31,27],[31,28,31,30],[31,34,31,38],[32,16,32,18],[32,19,32,21],[32,22,32,24],[32,25,32,27],[32,28,32,30],[32,34,32,38],[28,34,28,38],[27,3,27,5],[27,16,27,18],[27,19,27,21],[27,22,27,24],[27,25,27,27],[27,28,27,30],[27,34,27,38],[29,3,30,4],[29,5,30,15],[29,16,29,18],[29,19,29,21],[29,22,29,24],[29,25,29,27],[29,28,29,30],[29,34,29,38],[30,16,30,18],[30,19,30,21],[30,22,30,24],[30,25,30,27],[30,28,30,30],[30,34,30,38],[23,34,23,38],[24,16,24,18],[24,19,24,21],[24,34,24,38],[19,40,19,47],[19,3,19,30],[26,34,26,38],[25,22,25,24],[25,25,25,27],[25,28,25,30],[25,34,25,38],[26,19,26,21],[26,22,26,24],[26,25,26,27],[26,28,26,30],[25,4,26,15],[20,3,20,15],[20,16,22,18],[20,19,20,21],[20,22,20,24],[20,25,20,27],[20,28,20,30],[20,34,22,38],[20,40,25,47],[25,19,25,21],[23,22,23,24],[23,25,23,27],[23,28,23,30],[24,22,24,24],[24,25,24,27],[24,28,24,30],[105,3,105,27],[21,28,22,30],[22,3,22,15],[23,4,24,15],[23,16,23,18],[23,19,23,21],[21,3,21,15],[21,19,22,21],[21,22,22,24],[21,25,22,27],[28,3,28,4],[28,16,28,18],[28,19,28,21],[28,22,28,24],[28,25,28,27],[28,28,28,30],[31,3,32,4],[13,3,13,30],[14,3,14,30],[15,3,15,30],[16,3,16,21],[17,3,17,30],[18,3,18,21],[26,16,26,18],[1,1,7,1],[1,25,1,27],[1,28,1,29],[5,11,7,20],[8,3,8,30],[9,1,12,1],[9,3,9,7],[9,8,9,30],[10,3,10,7],[10,8,10,30],[11,3,11,7],[11,8,11,20],[11,24,11,30],[12,3,12,7],[12,8,12,20],[12,24,12,30],[25,16,25,18]]}
[]
[null,"Use the tab key to move through the cells that require entry.",null,"State of California",null,null,null,null,null,null,null,null,null,null,null,null,null,null,null,null,null,null,null,null,null,"Contract No.",null,null,{"$f":"'Goal 1 Workplan'!P3","v":0}]
[]
[null,null,null,"Department of Community Services and Development",null,null,null,null,null,null,null,null,null,null,null,null,null,null,null,null," ",null,null,null,null," ",{"$f":"'Goal 1 Reporting'!AB4","v":0},"Mid-Year Report (Jan-June)"]
[]
[null,null,null,"CSBG/NPI Programs Report",null,null,null,null,null,null,null,"CSBG/NPI Programs Report",null,null,null,null,null,null,null,null,null,null,null,null,null,null,{"$f":"'Goal 1 Reporting'!AB6","v":0},"Annual Report (Jan-Dec)"]
[]
[null,null,null,"CSD 801 (Rev.4/13)"]
[]
[null,"Use the goal 1 tab to enter information into this block of cells.  ",null,"Contractor Name:",null,null,null,null,{"$f":"'Goal 1 Workplan'!J11","v":0}]
[null,null,null,"Contact Person and Title:",null,null,null,null,{"$f":"'Goal 1 Workplan'!J12","v":0}]
[null,null,null,"Phone Number:",null,null,null,null,{"$f":"'Goal 1 Workplan'!J13","v":0},null,null,null,null,null,null,null,null,null,null,null,null,"Ext. Number: ",null,null,{"$f":"'Goal 1 Workplan'!N13","v":0}]
[null,null,null,"E-mail Address:",null,null,null,null,{"$f":"'Goal 1 Workplan'!J14","v":0},null,null,null,null,null,null,null,null,null,null,null,null,"Fax Number:",null,null,{"$f":"'Goal 1 Workplan'!N14","v":0}]
[]
[null,null,null,"Goal 6:  Low-income people, especially vulnerable populations, achieve their potential by strengthening family and other supportive environments."]
[null,null,null,"NPI 6.1:  Independent Living"]
[null,null,null,"Problem Statement:  (If additional space is needed, please attach a separate sheet.)"]
[null,null,null,{"$f":"'Goal 6 Workplan'!D151:V151","v":0}]
[null,null,null,"Program Activities and Delivery Strategies:  (If additional space is needed, please attach a separate sheet.)"]
[null,null,null,{"$f":"'Goal 6 Workplan'!D153:V153","v":0},null,null,null,null,null,null,null,null,null,null,null,null,null,null,null,null,null,null,null,null,null,null,null,null,null,null,null,null,null,null,null,null,null,null,null,null,"REPORTING PERIODS"]
[null,"See NPI Instruction Manual, pages 37-40",null,"National Performance\nIndicator 6.1",null,null,null,null,null,null,null,null,null,null,null,null,"Reporting Period",null,null,"I",null,null,"II",null,null,"III",null,null,"IV",null,null,null,null,null,"NPI Analysis",null,null,null,null,null,"Mid-Year \n(January - June)\nComplete GREY area in remaining columns\n\nAnnual \n(Cumulative: January - December)\nComplete BLUE area in remaining columns\n\nUpon completion of \nEACH reporting period \nthis workbook should be \nE-MAILED \nto the following address\nCSBGReports@csd.ca.gov"]
[null,null,null,"Independent Living",null,null,null,null,null,null,null,null,null,null,null,null,null,null,null,"Number of Vulnerable Individuals Living Independently Expected to be Served in Reporting Period\n(#)",null,null,"Number of Vulnerable Individuals Living Independently in Reporting Period\n(#)",null,null,"Percentage Achieving Outcome in Reporting Period \n(II/I=III)\n(%)",null,null,"Explanations Required\n\n(Report on explanation tab)"]
[null,null,null,"\nThe number of vulnerable individuals receiving services from Community Action who maintain an independent living situation as a result of those services:"]
[null,null,null,"A.","Senior Citizens (seniors can be reported twice, once under Senior Citizens and again, if they are disabled, under Individuals with Disabilities, ages 55-over.)",null,null,null,null,null,null,null,null,null,null,null,"Mid-Year",null,null,{"$f":"'Goal 6 Reporting'!T24:V24","v":0},null,null,{"$f":"'Goal 6 Reporting'!W24:Y24","v":0},null,null,{"$f":"IF(T24=\"\",\"\",IF(T24=0,\"\",IF(W24=\"\",\"\",IF(W24=T24,\"100%\",IF(T24=W24,,(W24/T24))))))","v":""},null,null,{"$f":"IF(T24=W24,\"\",IF(W24=0,\"\",IF(W24/T24<80%,\"Explanation\",IF(W24/T24>120%,\"Explanation\",\"\"))))","v":""}]
[null,null,null,null,null,null,null,null,null,null,null,null,null,null,null,null,"Annual",null,null,{"$f":"'Goal 6 Reporting'!T25:V25","v":0},null,null,{"$f":"'Goal 6 Reporting'!W25:Y25","v":0},null,null,{"$f":"IF(T25=\"\",\"\",IF(T25=0,\"\",IF(W25=\"\",\"\",IF(W25=0,\"\",IF(W25=T25,\"100%\",IF(T25=W25,,(W25/T25)))))))","v":""},null,null,{"$f":"IF(T25=W25,\"\",IF(W25=0,\"\",IF(W25/T25<80%,\"Explanation\",IF(W25/T25>120%,\"Explanation\",\"\"))))","v":""}]
[null,null,null,"B.","Individuals with Disabilities ",null,null,null,null,null,null,null,null,null,null,null,null,null,null,null,null,null,null,null,null,{"$f":"IF(T26=\"\",\"\",IF(T26=0,\"\",IF(W26=\"\",\"\",IF(W26=T26,\"100%\",IF(T26=W26,,(W26/T26))))))","v":""},null,null,""]
[null,null,null,null,null,null,null,null,null,null,null,null,null,null,null,null,null,null,null,null,null,null,null,null,null,null,null,null,""]
[null,null,null,"Ages: ",null,null,null,null,null,null,null,null,null,null,null,null,"Mid-Year",null,null,{"$f":"'Goal 6 Reporting'!T28:V28","v":0},null,null,{"$f":"'Goal 6 Reporting'!W28:Y28","v":0},null,null,"",null,null,""]
[null,null,null,"a.",null,"0-17",null,null,null,null,null,null,null,null,null,null,"Annual",null,null,{"$f":"'Goal 6 Reporting'!T29:V29","v":0},null,null,{"$f":"'Goal 6 Reporting'!W29:Y29","v":0},null,null,{"$f":"IF(T29=\"\",\"\",IF(T29=0,\"\",IF(W29=\"\",\"\",IF(W29=0,\"\",IF(W29=T29,\"100%\",IF(T29=W29,,(W29/T29)))))))","v":""},null,null,""]
[null,null,null,"b.",null,"18-54",null,null,null,null,null,null,null,null,null,null,"Mid-Year",null,null,{"$f":"'Goal 6 Reporting'!T30:V30","v":0},null,null,{"$f":"'Goal 6 Reporting'!W30:Y30","v":0},null,null,"",null,null,""]
[null,null,null,null,null,null,null,null,null,null,null,null,null,null,null,null,"Annual",null,null,{"$f":"'Goal 6 Reporting'!T31:V31","v":0},null,null,{"$f":"'Goal 6 Reporting'!W31:Y31","v":0},null,null,{"$f":"IF(T31=\"\",\"\",IF(T31=0,\"\",IF(W31=\"\",\"\",IF(W31=0,\"\",IF(W31=T31,\"100%\",IF(T31=W31,,(W31/T31)))))))","v":""},null,null,""]
[null,null,null,"c.",null,"55-over",null,null,null,null,null,null,null,null,null,null,"Mid-Year",null,null,{"$f":"'Goal 6 Reporting'!T32:V32","v":0},null,null,{"$f":"'Goal 6 Reporting'!W32:Y32","v":0},null,null,"",null,null,""]
[null,null,null,null,null,null,null,null,null,null,null,null,null,null,null,null,"Annual",null,null,{"$f":"'Goal 6 Reporting'!T33:V33","v":0},null,null,{"$f":"'Goal 6 Reporting'!W33:Y33","v":0},null,null,{"$f":"IF(T33=\"\",\"\",IF(T33=0,\"\",IF(W33=\"\",\"\",IF(W33=0,\"\",IF(W33=T33,\"100%\",IF(T33=W33,,(W33/T33)))))))","v":""},null,null,""]
[null,null,null,"d.",null,"Age Unknown",null,null,null,null,null,null,null,null,null,null,"Mid-Year",null,null,{"$f":"'Goal 6 Reporting'!T34:V34","v":0},null,null,{"$f":"'Goal 6 Reporting'!W34:Y34","v":0},null,null,{"$f":"IF(T34=\"\",\"\",IF(T34=0,\"\",IF(W34=\"\",\"\",IF(W34=0,\"\",IF(W34=T34,\"100%\",IF(T34=W34,,(W34/T34)))))))","v":""},null,null,{"$f":"IF(T34=W34,\"\",IF(W34=0,\"\",IF(W34/T34<80%,\"Explanation\",IF(W34/T34>120%,\"Explanation\",\"\"))))","v":""}]
[null,null,null,null,null,null,null,null,null,null,null,null,null,null,null,null,"Annual",null,null,{"$f":"'Goal 6 Reporting'!T35:V35","v":0},null,null,{"$f":"'Goal 6 Reporting'!W35:Y35","v":0},null,null,{"$f":"IF(T35=\"\",\"\",IF(T35=0,\"\",IF(W35=\"\",\"\",IF(W35=0,\"\",IF(W35=T35,\"100%\",IF(T35=W35,,(W35/T35)))))))","v":""},null,null,{"$f":"IF(T35=W35,\"\",IF(W35=0,\"\",IF(W35/T35<80%,\"Explanation\",IF(W35/T35>120%,\"Explanation\",\"\"))))","v":""}]
[null,null,null,"TOTAL Individuals with Disabilities (automatically calculates)",null,null,null,null,null,null,null,null,null,null,null,null,"Mid-Year",null,null,{"$f":"SUM(T28+T30+T32+T34)","v":0},null,null,{"$f":"SUM(W28+W30+W32+W34)","v":0},null,null,{"$f":"IF(T36=\"\",\"\",IF(T36=0,\"\",IF(W36=\"\",\"\",IF(W36=0,\"\",IF(W36=T36,\"100%\",IF(T36=W36,,(W36/T36)))))))","v":""},null,null,{"$f":"IF(T36=W36,\"\",IF(W36=0,\"\",IF(W36/T36<80%,\"Explanation\",IF(W36/T36>120%,\"Explanation\",\"\"))))","v":""}]
[null,null,null,null,null,null,null,null,null,null,null,null,null,null,null,null,"Annual",null,null,{"$f":"SUM(T29+T31+T33+T35)","v":0},null,null,{"$f":"SUM(W29+W31+W33+W35)","v":0},null,null,{"$f":"IF(T37=\"\",\"\",IF(T37=0,\"\",IF(W37=\"\",\"\",IF(W37=0,\"\",IF(W37=T37,\"100%\",IF(T37=W37,,(W37/T37)))))))","v":""},null,null,{"$f":"IF(T37=W37,\"\",IF(W37=0,\"\",IF(W37/T37<80%,\"Explanation\",IF(W37/T37>120%,\"Explanation\",\"\"))))","v":""}]
[null,null,null,"In the rows below, please include any additional indicators for NPI 6.1 that were not captured above."]
[null,null,null,{"$f":"'Goal 6 Workplan'!D39","v":0},null,null,null,null,null,null,null,null,null,null,null,null,"Mid-Year",null,null,{"$f":"'Goal 6 Reporting'!T39:V39","v":0},null,null,{"$f":"'Goal 6 Reporting'!W39:Y39","v":0},null,null,{"$f":"IF(T39=\"\",\"\",IF(T39=0,\"\",IF(W39=\"\",\"\",IF(W39=T39,\"100%\",IF(T39=W39,,(W39/T39))))))","v":""},null,null,{"$f":"IF(T39=W39,\"\",IF(W39=0,\"\",IF(W39/T39<80%,\"Explanation\",IF(W39/T39>120%,\"Explanation\",\"\"))))","v":""}]
[null,null,null,null,null,null,null,null,null,null,null,null,null,null,null,null,"Annual",null,null,{"$f":"'Goal 6 Reporting'!T40:V40","v":0},null,null,{"$f":"'Goal 6 Reporting'!W40:Y40","v":0},null,null,{"$f":"IF(T40=\"\",\"\",IF(T40=0,\"\",IF(W40=\"\",\"\",IF(W40=0,\"\",IF(W40=T40,\"100%\",IF(T40=W40,,(W40/T40)))))))","v":""},null,null,{"$f":"IF(T40=W40,\"\",IF(W40=0,\"\",IF(W40/T40<80%,\"Explanation\",IF(W40/T40>120%,\"Explanation\",\"\"))))","v":""}]
[]
[null,"See NPI Instruction Manual, pages 41-45",null,"Goal 6:  Low-income people, especially vulnerable populations, achieve their potential by strengthening family and other supportive environments."]
[null,null,null,"NPI 6.2:  Emergency Assistance"]
[null,null,null,"Problem Statement:  (If additional space is needed, please attach a separate sheet.)"]
[null,null,null,{"$f":"'Goal 6 Workplan'!D45","v":0}]
[null,null,null,"Program Activities and Delivery Strategies:  (If additional space is needed, please attach a separate sheet.)"]
[null,null,null,{"$f":"'Goal 6 Workplan'!D48","v":0}]
[null,null,null,"National Performance\nIndicator 6.2",null,null,null,null,null,null,null,null,null,"Reporting Period",null,null,"I",null,null,"II",null,null,"III",null,null,"IV",null,null,"V",null,null,"CSD Review",null,null,"NPI Analysis"]
[null,null,null,"Emergency Assistance",null,null,null,null,null,null,null,null,null,null,null,null,"Number of Individuals Seeking Assistance Projected to be Served  in Reporting Period\n(#)",null,null,"Number of Individuals Seeking Assistance in Reporting Period\n(#)",null,null,"Number of Individuals Receiving Assistance in Reporting Period\n(#)",null,null,"Percentage Achieving Outcome in Reporting Period \n(III/I=IV)\n(%)",null,null,"Explanations Required\n\n(Report on explanation tab)",null,null,"Column 3 >/= Column 2"]
[null,null,null,"\nThe number of low-income individuals served by Community Action who sought emergency assistance and the number of those individuals for whom assistance was provided, including such service as:"]
[null,null,null,"A.","Emergency Food\n",null,null,null,null,null,null,null,null,"Mid-Year",null,null,{"$f":"'Goal 6 Workplan'!T52","v":0},null,null,{"$f":"'Goal 6 Reporting'!T51:V51","v":0},null,null,{"$f":"'Goal 6 Reporting'!W51:Y51","v":0},null,null,{"$f":"IF(Q51=\"\",\"\",IF(Q51=0,\"\",IF(W51=\"\",\"\",IF(W51=Q51,\"100%\",IF(Q51=W51,,(W51/Q51))))))","v":""},null,null,{"$f":"IF(Q51=W51,\"\",IF(W51=0,\"\",IF(W51/Q51<80%,\"Explanation\",IF(W51/Q51>120%,\"Explanation\",\"\"))))","v":""},null,null,{"$f":"IF(W51>T51,\"Receiving > Seeking\",IF(W51=T51,\"\",IF(W51<T51,\"\",IF(W51=0,\"\",IF(T51=0,\"\")))))","v":""}]
[null,null,null,null,null,null,null,null,null,null,null,null,null,"Annual",null,null,{"$f":"'Goal 6 Workplan'!T53","v":0},null,null,{"$f":"'Goal 6 Reporting'!T52:V52","v":0},null,null,{"$f":"'Goal 6 Reporting'!W52:Y52","v":0},null,null,{"$f":"IF(Q52=\"\",\"\",IF(Q52=0,\"\",IF(W52=\"\",\"\",IF(W52=Q52,\"100%\",IF(Q52=W52,,(W52/Q52))))))","v":""},null,null,"",null,null,{"$f":"IF(W52>T52,\"Receiving > Seeking\",IF(W52=T52,\"\",IF(W52<T52,\"\",IF(W52=0,\"\",IF(T52=0,\"\")))))","v":""}]
[null,null,null,"B.","Emergency fuel or utility payments funded by LIHEAP or other public and private funding sources",null,null,null,null,null,null,null,null,"Mid-Year",null,null,{"$f":"'Goal 6 Workplan'!T54","v":0},null,null,{"$f":"'Goal 6 Reporting'!T53:V53","v":0},null,null,{"$f":"'Goal 6 Reporting'!W53:Y53","v":0},null,null,"",null,null,"",null,null,""]
[null,null,null,null,null,null,null,null,null,null,null,null,null,"Annual",null,null,{"$f":"'Goal 6 Workplan'!T55","v":0},null,null,{"$f":"'Goal 6 Reporting'!T54:V54","v":0},null,null,{"$f":"'Goal 6 Reporting'!W54:Y54","v":0},null,null,"",null,null,"",null,null,""]
[null,null,null,"C.","Emergency Rent or Mortgage Assistance\n",null,null,null,null,null,null,null,null,"Mid-Year",null,null,{"$f":"'Goal 6 Workplan'!T56","v":0},null,null,{"$f":"'Goal 6 Reporting'!T55:V55","v":0},null,null,{"$f":"'Goal 6 Reporting'!W55:Y55","v":0},null,null,"",null,null,"",null,null,""]
[null,null,null,null,null,null,null,null,null,null,null,null,null,"Annual",null,null,{"$f":"'Goal 6 Workplan'!T57","v":0},null,null,{"$f":"'Goal 6 Reporting'!T56:V56","v":0},null,null,{"$f":"'Goal 6 Reporting'!W56:Y56","v":0},null,null,"",null,null,"",null,null,""]
[null,null,null,"D.","Emergency Car or Home Repair (i.e. structural appliance, heating systems, etc.)",null,null,null,null,null,null,null,null,"Mid-Year",null,null,{"$f":"'Goal 6 Workplan'!T58","v":0},null,null,{"$f":"'Goal 6 Reporting'!T57:V57","v":0},null,null,{"$f":"'Goal 6 Reporting'!W57:Y57","v":0},null,null,"",null,null,"",null,null,""]
[null,null,null,null,null,null,null,null,null,null,null,null,null,"Annual",null,null,{"$f":"'Goal 6 Workplan'!T59","v":0},null,null,{"$f":"'Goal 6 Reporting'!T58:V58","v":0},null,null,{"$f":"'Goal 6 Reporting'!W58:Y58","v":0},null,null,"",null,null,"",null,null,""]
[null,null,null,"E.","Emergency Temporary Shelter",null,null,null,null,null,null,null,null,"Mid-Year",null,null,{"$f":"'Goal 6 Workplan'!T60","v":0},null,null,{"$f":"'Goal 6 Reporting'!T59:V59","v":0},null,null,{"$f":"'Goal 6 Reporting'!W59:Y59","v":0},null,null,"",null,null,"",null,null,""]
[null,null,null,null,null,null,null,null,null,null,null,null,null,"Annual",null,null,{"$f":"'Goal 6 Workplan'!T61","v":0},null,null,{"$f":"'Goal 6 Reporting'!T60:V60","v":0},null,null,{"$f":"'Goal 6 Reporting'!W60:Y60","v":0},null,null,"",null,null,"",null,null,""]
[null,null,null,"F.","Emergency  Medical Care",null,null,null,null,null,null,null,null,"Mid-Year",null,null,{"$f":"'Goal 6 Workplan'!T62","v":0},null,null,{"$f":"'Goal 6 Reporting'!T61:V61","v":0},null,null,{"$f":"'Goal 6 Reporting'!W61:Y61","v":0},null,null,"",null,null,"",null,null,""]
[null,null,null,null,null,null,null,null,null,null,null,null,null,"Annual",null,null,{"$f":"'Goal 6 Workplan'!T63","v":0},null,null,{"$f":"'Goal 6 Reporting'!T62:V62","v":0},null,null,{"$f":"'Goal 6 Reporting'!W62:Y62","v":0},null,null,"",null,null,"",null,null,""]
[null,null,null,"G.","Emergency Protection from Violence",null,null,null,null,null,null,null,null,"Mid-Year",null,null,{"$f":"'Goal 6 Workplan'!T64","v":0},null,null,{"$f":"'Goal 6 Reporting'!T63:V63","v":0},null,null,{"$f":"'Goal 6 Reporting'!W63:Y63","v":0},null,null,"",null,null,"",null,null,""]
[null,null,null,null,null,null,null,null,null,null,null,null,null,"Annual",null,null,{"$f":"'Goal 6 Workplan'!T65","v":0},null,null,{"$f":"'Goal 6 Reporting'!T64:V64","v":0},null,null,{"$f":"'Goal 6 Reporting'!W64:Y64","v":0},null,null,"",null,null,"",null,null,""]
[null,null,null,"H.","Emergency Legal Assistance",null,null,null,null,null,null,null,null,"Mid-Year",null,null,{"$f":"'Goal 6 Workplan'!T66","v":0},null,null,{"$f":"'Goal 6 Reporting'!T65:V65","v":0},null,null,{"$f":"'Goal 6 Reporting'!W65:Y65","v":0},null,null,"",null,null,"",null,null,""]
[null,null,null,null,null,null,null,null,null,null,null,null,null,"Annual",null,null,{"$f":"'Goal 6 Workplan'!T67","v":0},null,null,{"$f":"'Goal 6 Reporting'!T66:V66","v":0},null,null,{"$f":"'Goal 6 Reporting'!W66:Y66","v":0},null,null,"",null,null,"",null,null,""]
[null,null,null,"I.","Emergency Transportation",null,null,null,null,null,null,null,null,"Mid-Year",null,null,{"$f":"'Goal 6 Workplan'!T68","v":0},null,null,{"$f":"'Goal 6 Reporting'!T67:V67","v":0},null,null,{"$f":"'Goal 6 Reporting'!W67:Y67","v":0},null,null,"",null,null,"",null,null,""]
[null,null,null,null,null,null,null,null,null,null,null,null,null,"Annual",null,null,{"$f":"'Goal 6 Workplan'!T69","v":0},null,null,{"$f":"'Goal 6 Reporting'!T68:V68","v":0},null,null,{"$f":"'Goal 6 Reporting'!W68:Y68","v":0},null,null,"",null,null,"",null,null,""]
[null,null,null,"J","Emergency Disaster Relief",null,null,null,null,null,null,null,null,"Mid-Year",null,null,{"$f":"'Goal 6 Workplan'!T70","v":0},null,null,{"$f":"'Goal 6 Reporting'!T69:V69","v":0},null,null,{"$f":"'Goal 6 Reporting'!W69:Y69","v":0},null,null,"",null,null,"",null,null,""]
[null,null,null,null,null,null,null,null,null,null,null,null,null,"Annual",null,null,{"$f":"'Goal 6 Workplan'!T71","v":0},null,null,{"$f":"'Goal 6 Reporting'!T70:V70","v":0},null,null,{"$f":"'Goal 6 Reporting'!W70:Y70","v":0},null,null,"",null,null,"",null,null,""]
[null,null,null,"K","Emergency Clothing",null,null,null,null,null,null,null,null,"Mid-Year",null,null,{"$f":"'Goal 6 Workplan'!T72","v":0},null,null,{"$f":"'Goal 6 Reporting'!T71:V71","v":0},null,null,{"$f":"'Goal 6 Reporting'!W71:Y71","v":0},null,null,"",null,null,"",null,null,""]
[null,null,null,null,null,null,null,null,null,null,null,null,null,"Annual",null,null,{"$f":"'Goal 6 Workplan'!T73","v":0},null,null,{"$f":"'Goal 6 Reporting'!T72:V72","v":0},null,null,{"$f":"'Goal 6 Reporting'!W72:Y72","v":0},null,null,"",null,null,"",null,null,""]
[null,null,null,"In the rows below, please include any additional indicators for NPI 6.2 that were not captured above."]
[null,null,null,{"$f":"'Goal 6 Workplan'!D75","v":0},null,null,null,null,null,null,null,null,null,"Mid-Year",null,null,{"$f":"'Goal 6 Workplan'!T75","v":0},null,null,{"$f":"'Goal 6 Reporting'!T74:V74","v":0},null,null,{"$f":"'Goal 6 Reporting'!W74:Y74","v":0},null,null,{"$f":"IF(Q74=\"\",\"\",IF(Q74=0,\"\",IF(W74=\"\",\"\",IF(W74=Q74,\"100%\",IF(Q74=W74,,(W74/Q74))))))","v":""},null,null,{"$f":"IF(Q74=W74,\"\",IF(W74=0,\"\",IF(W74/Q74<80%,\"Explanation\",IF(W74/Q74>120%,\"Explanation\",\"\"))))","v":""},null,null,{"$f":"IF(W74>T74,\"Receiving > Seeking\",IF(W74=T74,\"\",IF(W74<T74,\"\",IF(W74=0,\"\",IF(T74=0,\"\")))))","v":""}]
[null,null,null,null,null,null,null,null,null,null,null,null,null,"Annual",null,null,{"$f":"'Goal 6 Workplan'!T76","v":0},null,null,{"$f":"'Goal 6 Reporting'!T75:V75","v":0},null,null,{"$f":"'Goal 6 Reporting'!W75:Y75","v":0},null,null,{"$f":"IF(Q75=\"\",\"\",IF(Q75=0,\"\",IF(W75=\"\",\"\",IF(W75=Q75,\"100%\",IF(Q75=W75,,(W75/Q75))))))","v":""},null,null,{"$f":"IF(Q75=W75,\"\",IF(W75=0,\"\",IF(W75/Q75<80%,\"Explanation\",IF(W75/Q75>120%,\"Explanation\",\"\"))))","v":""},null,null,{"$f":"IF(W75>T75,\"Receiving > Seeking\",IF(W75=T75,\"\",IF(W75<T75,\"\",IF(W75=0,\"\",IF(T75=0,\"\")))))","v":""}]
[]
[null,null,null,"Goal 6:  Low-income people, especially vulnerable populations, achieve their potential by strengthening family and other supportive environments."]
[null,null,null,"NPI 6.3:  Child and Family Development"]
[null,null,null,"Problem Statement:  (If additional space is needed, please attach a separate sheet.)"]
[null,null,null,{"$f":"'Goal 6 Workplan'!D81","v":0}]
[null,null,null,"Program Activities and Delivery Strategies:  (If additional space is needed, please attach a separate sheet.)"]
[null,null,null,{"$f":"'Goal 6 Workplan'!D83","v":0}]
[null,"See NPI Instruction Manual, pages 46-50",null,"National Performance\nIndicator 6.3",null,null,null,null,null,null,null,null,null,"Reporting Period",null,null,"I",null,null,"II",null,null,"III",null,null,"IV",null,null,"V",null,null,"CSD Review",null,null,"NPI Analysis"]
[null,null,null,"Child and Family Development",null,null,null,null,null,null,null,null,null,null,null,null,"Number of Participants Enrolled in Program(s) in Reporting Period\n(#)",null,null,"Number of Participants Expected to Achieve Outcome in Reporting Period\n(#)",null,null,"Number of Participants Achieving Outcome in Reporting Period\n(#) \n",null,null,"Percentage Achieving Outcome in Reporting Period \n(III/II=IV)\n(%)",null,null,"Explanations Required\n\n(Report on explanation tab)",null,null,"Column 3 >/= Column 2"]
[null,null,null,"The number and percentage of all infants, children, youth, parents, and other adults participating in developmental or enrichment programs that achieve program goals, as measured by one or more of the following:"]
[null,null,null," INFANTS & CHILDREN"]
[null,null,null,"A.   "," Infants and children obtain age appropriate immunizations, medical, and dental care ",null,null,null,null,null,null,null,null,"Mid-Year",null,null,{"$f":"'Goal 6 Reporting'!T87","v":0},null,null,{"$f":"'Goal 6 Workplan'!T88","v":0},null,null,{"$f":"'Goal 6 Reporting'!W87:Y87","v":0},null,null,{"$f":"IF(T87=\"\",\"\",IF(T87=0,\"\",IF(W87=\"\",\"\",IF(W87=T87,\"100%\",IF(T87=W87,,(W87/T87))))))","v":""},null,null,{"$f":"IF(T87=W87,\"\",IF(W87=0,\"\",IF(W87/T87<80%,\"Explanation\",IF(W87/T87>120%,\"Explanation\",\"\"))))","v":""},null,null,{"$f":"IF(W87>T87,\"Achieving > Enrolled\",IF(W87=T87,\"\",IF(W87<T87,\"\",IF(W87=0,\"\",IF(T87=0,\"\")))))","v":""}]
[null,null,null,null,null,null,null,null,null,null,null,null,null,"Annual ",null,null,{"$f":"'Goal 6 Reporting'!T88","v":0},null,null,{"$f":"'Goal 6 Workplan'!T89","v":0},null,null,{"$f":"'Goal 6 Reporting'!W88:Y88","v":0},null,null,{"$f":"IF(T88=\"\",\"\",IF(T88=0,\"\",IF(W88=\"\",\"\",IF(W88=T88,\"100%\",IF(T88=W88,,(W88/T88))))))","v":""},null,null,{"$f":"IF(T88=W88,\"\",IF(W88=0,\"\",IF(W88/T88<80%,\"Explanation\",IF(W88/T88>120%,\"Explanation\",\"\"))))","v":""},null,null,""]
[null,null,null,"B.","Infant and child health and physical development are improved as a result of adequate nutrition ",null,null,null,null,null,null,null,null,"Mid-Year",null,null,{"$f":"'Goal 6 Reporting'!T89","v":0},null,null,{"$f":"'Goal 6 Workplan'!T90","v":0},null,null,{"$f":"'Goal 6 Reporting'!W89:Y89","v":0},null,null,"",null,null,"",null,null,""]
[null,null,null,null,null,null,null,null,null,null,null,null,null,"Annual ",null,null,{"$f":"'Goal 6 Reporting'!T90","v":0},null,null,{"$f":"'Goal 6 Workplan'!T91","v":0},null,null,{"$f":"'Goal 6 Reporting'!W90:Y90","v":0},null,null,"",null,null,"",null,null,""]
[null,null,null,"C.  ","Children participate in pre-school activities to develop school readiness skills",null,null,null,null,null,null,null,null,"Mid-Year",null,null,{"$f":"'Goal 6 Reporting'!T91","v":0},null,null,{"$f":"'Goal 6 Workplan'!T92","v":0},null,null,{"$f":"'Goal 6 Reporting'!W91:Y91","v":0},null,null,"",null,null,"",null,null,""]
[null,null,null,null,null,null,null,null,null,null,null,null,null,"Annual ",null,null,{"$f":"'Goal 6 Reporting'!T92","v":0},null,null,{"$f":"'Goal 6 Workplan'!T93","v":0},null,null,{"$f":"'Goal 6 Reporting'!W92:Y92","v":0},null,null,"",null,null,"",null,null,""]
[null,null,null,"D.   ","Children who participate in pre-school activities are developmentally ready to enter Kindergarten or 1st Grade ",null,null,null,null,null,null,null,null,"Mid-Year",null,null,{"$f":"'Goal 6 Reporting'!T93","v":0},null,null,{"$f":"'Goal 6 Workplan'!T94","v":0},null,null,{"$f":"'Goal 6 Reporting'!W93:Y93","v":0},null,null,"",null,null,"",null,null,{"$f":"IF(W93>T93,\"Achieving > Enrolled\",IF(W93=T93,\"\",IF(W93<T93,\"\",IF(W93=0,\"\",IF(T93=0,\"\")))))","v":""}]
[null,null,null,null,null,null,null,null,null,null,null,null,null,"Annual ",null,null,{"$f":"'Goal 6 Reporting'!T94","v":0},null,null,{"$f":"'Goal 6 Workplan'!T95","v":0},null,null,{"$f":"'Goal 6 Reporting'!W94:Y94","v":0},null,null,"",null,null,"",null,null,{"$f":"IF(W94>T94,\"Achieving > Enrolled\",IF(W94=T94,\"\",IF(W94<T94,\"\",IF(W94=0,\"\",IF(T94=0,\"\")))))","v":""}]
[null,null,null," YOUTH",null,null,null,null,null,null,null,null,null,null,null,null,{"$f":"'Goal 6 Reporting'!T95","v":0},null,null,{"$f":"'Goal 6 Workplan'!T96","v":0},null,null,{"$f":"'Goal 6 Reporting'!W95:Y95","v":0}]
[null,null,null,"E.  Youth improve health and physical development "," Youth improve health and physical development ",null,null,null,null,null,null,null,null,"Mid-Year",null,null,{"$f":"'Goal 6 Reporting'!T96","v":0},null,null,{"$f":"'Goal 6 Workplan'!T97","v":0},null,null,{"$f":"'Goal 6 Reporting'!W96:Y96","v":0},null,null,{"$f":"IF(T96=\"\",\"\",IF(T96=0,\"\",IF(W96=\"\",\"\",IF(W96=T96,\"100%\",IF(T96=W96,,(W96/T96))))))","v":""},null,null,{"$f":"IF(Q96=W96,\"\",IF(W96=0,\"\",IF(W96/Q96<80%,\"Explanation\",IF(W96/Q96>120%,\"Explanation\",\"\"))))","v":""},null,null,{"$f":"IF(W96>T96,\"Achieving > Enrolled\",IF(W96=T96,\"\",IF(W96<T96,\"\",IF(W96=0,\"\",IF(T96=0,\"\")))))","v":""}]
[null,null,null,null,null,null,null,null,null,null,null,null,null,"Annual ",null,null,{"$f":"'Goal 6 Reporting'!T97","v":0},null,null,{"$f":"'Goal 6 Workplan'!T98","v":0},null,null,{"$f":"'Goal 6 Reporting'!W97:Y97","v":0},null,null,{"$f":"IF(T97=\"\",\"\",IF(T97=0,\"\",IF(W97=\"\",\"\",IF(W97=T97,\"100%\",IF(T97=W97,,(W97/T97))))))","v":""},null,null,{"$f":"IF(Q97=W97,\"\",IF(W97=0,\"\",IF(W97/Q97<80%,\"Explanation\",IF(W97/Q97>120%,\"Explanation\",\"\"))))","v":""},null,null,{"$f":"IF(W97>T97,\"Achieving > Enrolled\",IF(W97=T97,\"\",IF(W97<T97,\"\",IF(W97=0,\"\",IF(T97=0,\"\")))))","v":""}]
[null,null,null,"F.  ","Youth improve social/emotional development ",null,null,null,null,null,null,null,null,"Mid-Year",null,null,{"$f":"'Goal 6 Reporting'!T98","v":0},null,null,{"$f":"'Goal 6 Workplan'!T99","v":0},null,null,{"$f":"'Goal 6 Reporting'!W98:Y98","v":0},null,null,"",null,null,"",null,null,""]
[null,null,null,null,null,null,null,null,null,null,null,null,null,"Annual ",null,null,{"$f":"'Goal 6 Reporting'!T99","v":0},null,null,{"$f":"'Goal 6 Workplan'!T100","v":0},null,null,{"$f":"'Goal 6 Reporting'!W99:Y99","v":0},null,null,"",null,null,"",null,null,""]
[null,null,null,"G.  "," Youth avoid risk-taking behavior for a defined period of time ",null,null,null,null,null,null,null,null,"Mid-Year",null,null,{"$f":"'Goal 6 Reporting'!T100","v":0},null,null,{"$f":"'Goal 6 Workplan'!T101","v":0},null,null,{"$f":"'Goal 6 Reporting'!W100:Y100","v":0},null,null,"",null,null,"",null,null,""]
[null,null,null,null,null,null,null,null,null,null,null,null,null,"Annual ",null,null,{"$f":"'Goal 6 Reporting'!T101","v":0},null,null,{"$f":"'Goal 6 Workplan'!T102","v":0},null,null,{"$f":"'Goal 6 Reporting'!W101:Y101","v":0},null,null,"",null,null,"",null,null,""]
[null,null,null,"H.  ","Youth have reduced involvement with criminal justice system ",null,null,null,null,null,null,null,null,"Mid-Year",null,null,{"$f":"'Goal 6 Reporting'!T102","v":0},null,null,{"$f":"'Goal 6 Workplan'!T103","v":0},null,null,{"$f":"'Goal 6 Reporting'!W102:Y102","v":0},null,null,"",null,null,"",null,null,""]
[null,null,null,null,null,null,null,null,null,null,null,null,null,"Annual ",null,null,{"$f":"'Goal 6 Reporting'!T103","v":0},null,null,{"$f":"'Goal 6 Workplan'!T104","v":0},null,null,{"$f":"'Goal 6 Reporting'!W103:Y103","v":0},null,null,"",null,null,"",null,null,""]
[null,null,null,"I.  ","Youth increase academic, athletic, or social skills for school success ",null,null,null,null,null,null,null,null,"Mid-Year",null,null,{"$f":"'Goal 6 Reporting'!T104","v":0},null,null,{"$f":"'Goal 6 Workplan'!T105","v":0},null,null,{"$f":"'Goal 6 Reporting'!W104:Y104","v":0},null,null,"",null,null,"",null,null,""]
[null,null,null,null,null,null,null,null,null,null,null,null,null,"Annual ",null,null,{"$f":"'Goal 6 Reporting'!T105","v":0},null,null,{"$f":"'Goal 6 Workplan'!T106","v":0},null,null,{"$f":"'Goal 6 Reporting'!W105:Y105","v":0},null,null,"",null,null,"",null,null,""]
[null,null,null,"PARENTS AND OTHER ADULTS"]
[null,null,null,"J.  ","Parents and other adults learn and exhibit  improved parenting skills",null,null,null,null,null,null,null,null,"Mid-Year",null,null,{"$f":"'Goal 6 Reporting'!T107","v":0},null,null,{"$f":"'Goal 6 Workplan'!T108","v":0},null,null,{"$f":"'Goal 6 Reporting'!W107:Y107","v":0},null,null,{"$f":"IF(T107=\"\",\"\",IF(T107=0,\"\",IF(W107=\"\",\"\",IF(W107=T107,\"100%\",IF(T107=W107,,(W107/T107))))))","v":""},null,null,{"$f":"IF(T107=W107,\"\",IF(W107=0,\"\",IF(W107/T107<80%,\"Explanation\",IF(W107/T107>120%,\"Explanation\",\"\"))))","v":""},null,null,{"$f":"IF(W107>T107,\"Achieving > Enrolled\",IF(W107=T107,\"\",IF(W107<T107,\"\",IF(W107=0,\"\",IF(T107=0,\"\")))))","v":""}]
[null,null,null,null,null,null,null,null,null,null,null,null,null,"Annual ",null,null,{"$f":"'Goal 6 Reporting'!T108","v":0},null,null,{"$f":"'Goal 6 Workplan'!T109","v":0},null,null,{"$f":"'Goal 6 Reporting'!W108:Y108","v":0},null,null,{"$f":"IF(T108=\"\",\"\",IF(T108=0,\"\",IF(W108=\"\",\"\",IF(W108=T108,\"100%\",IF(T108=W108,,(W108/T108))))))","v":""},null,null,{"$f":"IF(T108=W108,\"\",IF(W108=0,\"\",IF(W108/T108<80%,\"Explanation\",IF(W108/T108>120%,\"Explanation\",\"\"))))","v":""},null,null,{"$f":"IF(W108>T108,\"Achieving > Enrolled\",IF(W108=T108,\"\",IF(W108<T108,\"\",IF(W108=0,\"\",IF(T108=0,\"\")))))","v":""}]
[null,null,null,"K.  ","Parents and other adults learn and exhibit improved family functioning skills",null,null,null,null,null,null,null,null,"Mid-Year",null,null,{"$f":"'Goal 6 Reporting'!T109","v":0},null,null,{"$f":"'Goal 6 Workplan'!T110","v":0},null,null,{"$f":"'Goal 6 Reporting'!W109:Y109","v":0},null,null,{"$f":"IF(T109=\"\",\"\",IF(T109=0,\"\",IF(W109=\"\",\"\",IF(W109=T109,\"100%\",IF(T109=W109,,(W109/T109))))))","v":""},null,null,{"$f":"IF(T109=W109,\"\",IF(W109=0,\"\",IF(W109/T109<80%,\"Explanation\",IF(W109/T109>120%,\"Explanation\",\"\"))))","v":""},null,null,{"$f":"IF(W109>T109,\"Achieving > Enrolled\",IF(W109=T109,\"\",IF(W109<T109,\"\",IF(W109=0,\"\",IF(T109=0,\"\")))))","v":""}]
[null,null,null,null,null,null,null,null,null,null,null,null,null,"Annual ",null,null,{"$f":"'Goal 6 Reporting'!T110","v":0},null,null,{"$f":"'Goal 6 Workplan'!T111","v":0},null,null,{"$f":"'Goal 6 Reporting'!W110:Y110","v":0},null,null,{"$f":"IF(T110=\"\",\"\",IF(T110=0,\"\",IF(W110=\"\",\"\",IF(W110=T110,\"100%\",IF(T110=W110,,(W110/T110))))))","v":""},null,null,{"$f":"IF(T110=W110,\"\",IF(W110=0,\"\",IF(W110/T110<80%,\"Explanation\",IF(W110/T110>120%,\"Explanation\",\"\"))))","v":""},null,null,{"$f":"IF(W110>T110,\"Achieving > Enrolled\",IF(W110=T110,\"\",IF(W110<T110,\"\",IF(W110=0,\"\",IF(T110=0,\"\")))))","v":""}]
[null,null,null,"In the rows below, please include any additional indicators for NPI 6.3 that were not captured above."]
[null,null,null,{"$f":"'Goal 6 Workplan'!D113","v":0},null,null,null,null,null,null,null,null,null,"Mid-Year",null,null,{"$f":"'Goal 6 Reporting'!T112","v":0},null,null,{"$f":"'Goal 6 Workplan'!T113","v":0},null,null,{"$f":"'Goal 6 Reporting'!W112:Y112","v":0},null,null,{"$f":"IF(T112=\"\",\"\",IF(T112=0,\"\",IF(W112=\"\",\"\",IF(W112=T112,\"100%\",IF(T112=W112,,(W112/T112))))))","v":""},null,null,{"$f":"IF(T112=W112,\"\",IF(W112=0,\"\",IF(W112/T112<80%,\"Explanation\",IF(W112/T112>120%,\"Explanation\",\"\"))))","v":""},null,null,{"$f":"IF(W112>T112,\"Achieving > Enrolled\",IF(W112=T112,\"\",IF(W112<T112,\"\",IF(W112=0,\"\",IF(T112=0,\"\")))))","v":""}]
[null,null,null,null,null,null,null,null,null,null,null,null,null,"Annual ",null,null,{"$f":"'Goal 6 Reporting'!T113","v":0},null,null,{"$f":"'Goal 6 Workplan'!T114","v":0},null,null,{"$f":"'Goal 6 Reporting'!W113:Y113","v":0},null,null,{"$f":"IF(T113=\"\",\"\",IF(T113=0,\"\",IF(W113=\"\",\"\",IF(W113=T113,\"100%\",IF(T113=W113,,(W113/T113))))))","v":""},null,null,{"$f":"IF(T113=W113,\"\",IF(W113=0,\"\",IF(W113/T113<80%,\"Explanation\",IF(W113/T113>120%,\"Explanation\",\"\"))))","v":""},null,null,{"$f":"IF(W113>T113,\"Achieving > Enrolled\",IF(W113=T113,\"\",IF(W113<T113,\"\",IF(W113=0,\"\",IF(T113=0,\"\")))))","v":""}]
[]
[null,null,null,"Goal 6:  Low-income people, especially vulnerable populations, achieve their potential by strengthening family and other supportive environments."]
[null,null,null,"NPI 6.4:  Family Supports"]
[null,null,null,"Problem Statement:  (If additional space is needed, please attach a separate sheet.)"]
[null,null,null,{"$f":"'Goal 6 Workplan'!D119","v":0}]
[null,null,null,"Program Activities and Delivery Strategies:  (If additional space is needed, please attach a separate sheet.)"]
[null,null,null,{"$f":"'Goal 6 Workplan'!D121","v":0}]
[null,"See NPI Instruction Manual, pages 51-54",null,"National Performance\nIndicator 6.4",null,null,null,null,null,null,null,null,null,"Reporting Period",null,null,"I",null,null,"II",null,null,"III",null,null,"IV",null,null,"V",null,null,"CSD Review",null,null,"NPI Analysis"]
[null,null,null,"Family Supports (Seniors, Disabled and Caregivers)",null,null,null,null,null,null,null,null,null,null,null,null,"Number of Participants Expected to Achieve Outcome in Reporting Period\n(#)",null,null,"Number of Participants Enrolled in Program(s) in Reporting Period\n(#)",null,null,"Number of Participants Achieving Outcome in Reporting Period\n(#) \n",null,null,"Percentage Achieving Outcome in Reporting Period \n(III/I=IV)\n(%)",null,null,"Explanations Required\n\n(Report on explanation tab)",null,null,"Column 3 >/= Column 2"]
[null,null,null,"Low-income people who are unable to work, especially seniors, adults with disabilities, and caregivers, for whom barriers to family stability are reduced or eliminated, as measured by one or more of the following:"]
[null,null,null,"A.","Enrolled children in before or after school programs",null,null,null,null,null,null,null,null,"Mid-Year",null,null,{"$f":"'Goal 6 Reporting'!Q124:S124","v":0},null,null,{"$f":"'Goal 6 Reporting'!T124:V124","v":0},null,null,{"$f":"'Goal 6 Reporting'!W124:Y124","v":0},null,null,{"$f":"IF(Q124=\"\",\"\",IF(Q124=0,\"\",IF(W124=\"\",\"\",IF(W124=Q124,\"100%\",IF(Q124=W124,,(W124/Q124))))))","v":""},null,null,{"$f":"IF(Q124=W124,\"\",IF(W124=0,\"\",IF(W124/Q124<80%,\"Explanation\",IF(W124/Q124>120%,\"Explanation\",\"\"))))","v":""},null,null,{"$f":"IF(W124>T124,\"Achieving > Enrolled\",IF(W124=T124,\"\",IF(W124<T124,\"\",IF(W124=0,\"\",IF(T124=0,\"\")))))","v":""}]
[null,null,null,null,null,null,null,null,null,null,null,null,null,"Annual ",null,null,{"$f":"'Goal 6 Reporting'!Q125:S125","v":0},null,null,{"$f":"'Goal 6 Reporting'!T125:V125","v":0},null,null,{"$f":"'Goal 6 Reporting'!W125:Y125","v":0},null,null,{"$f":"IF(Q125=\"\",\"\",IF(Q125=0,\"\",IF(W125=\"\",\"\",IF(W125=Q125,\"100%\",IF(Q125=W125,,(W125/Q125))))))","v":""},null,null,"",null,null,{"$f":"IF(W125>T125,\"Achieving > Enrolled\",IF(W125=T125,\"\",IF(W125<T125,\"\",IF(W125=0,\"\",IF(T125=0,\"\")))))","v":""}]
[null,null,null,"B.","Obtained care for child or other dependent",null,null,null,null,null,null,null,null,"Mid-Year",null,null,{"$f":"'Goal 6 Reporting'!Q126:S126","v":0},null,null,{"$f":"'Goal 6 Reporting'!T126:V126","v":0},null,null,{"$f":"'Goal 6 Reporting'!W126:Y126","v":0},null,null,"",null,null,"",null,null,""]
[null,null,null,null,null,null,null,null,null,null,null,null,null,"Annual ",null,null,{"$f":"'Goal 6 Reporting'!Q127:S127","v":0},null,null,{"$f":"'Goal 6 Reporting'!T127:V127","v":0},null,null,{"$f":"'Goal 6 Reporting'!W127:Y127","v":0},null,null,"",null,null,"",null,null,""]
[null,null,null,"C.","Obtained access to reliable transportation and/or driver's license",null,null,null,null,null,null,null,null,"Mid-Year",null,null,{"$f":"'Goal 6 Reporting'!Q128:S128","v":0},null,null,{"$f":"'Goal 6 Reporting'!T128:V128","v":0},null,null,{"$f":"'Goal 6 Reporting'!W128:Y128","v":0},null,null,"",null,null,"",null,null,""]
[null,null,null,null,null,null,null,null,null,null,null,null,null,"Annual ",null,null,{"$f":"'Goal 6 Reporting'!Q129:S129","v":0},null,null,{"$f":"'Goal 6 Reporting'!T129:V129","v":0},null,null,{"$f":"'Goal 6 Reporting'!W129:Y129","v":0},null,null,"",null,null,"",null,null,""]
[null,null,null,"D.","Obtained health care services for themselves or family member",null,null,null,null,null,null,null,null,"Mid-Year",null,null,{"$f":"'Goal 6 Reporting'!Q130:S130","v":0},null,null,{"$f":"'Goal 6 Reporting'!T130:V130","v":0},null,null,{"$f":"'Goal 6 Reporting'!W130:Y130","v":0},null,null,"",null,null,"",null,null,""]
[null,null,null,null,null,null,null,null,null,null,null,null,null,"Annual ",null,null,{"$f":"'Goal 6 Reporting'!Q131:S131","v":0},null,null,{"$f":"'Goal 6 Reporting'!T131:V131","v":0},null,null,{"$f":"'Goal 6 Reporting'!W131:Y131","v":0},null,null,"",null,null,"",null,null,""]
[null,null,null,"E.","Obtained and/or maintained safe and affordable housing",null,null,null,null,null,null,null,null,"Mid-Year",null,null,{"$f":"'Goal 6 Reporting'!Q132:S132","v":0},null,null,{"$f":"'Goal 6 Reporting'!T132:V132","v":0},null,null,{"$f":"'Goal 6 Reporting'!W132:Y132","v":0},null,null,"",null,null,"",null,null,""]
[null,null,null,null,null,null,null,null,null,null,null,null,null,"Annual ",null,null,{"$f":"'Goal 6 Reporting'!Q133:S133","v":0},null,null,{"$f":"'Goal 6 Reporting'!T133:V133","v":0},null,null,{"$f":"'Goal 6 Reporting'!W133:Y133","v":0},null,null,"",null,null,"",null,null,""]
[null,null,null,"F. ","Obtained food assistance",null,null,null,null,null,null,null,null,"Mid-Year",null,null,{"$f":"'Goal 6 Reporting'!Q134:S134","v":0},null,null,{"$f":"'Goal 6 Reporting'!T134:V134","v":0},null,null,{"$f":"'Goal 6 Reporting'!W134:Y134","v":0},null,null,"",null,null,"",null,null,""]
[null,null,null,null,null,null,null,null,null,null,null,null,null,"Annual ",null,null,{"$f":"'Goal 6 Reporting'!Q135:S135","v":0},null,null,{"$f":"'Goal 6 Reporting'!T135:V135","v":0},null,null,{"$f":"'Goal 6 Reporting'!W135:Y135","v":0},null,null,"",null,null,"",null,null,""]
[null,null,null,"G. ","Obtained non-emergency LIHEAP energy assistance",null,null,null,null,null,null,null,null,"Mid-Year",null,null,{"$f":"'Goal 6 Reporting'!Q136:S136","v":0},null,null,{"$f":"'Goal 6 Reporting'!T136:V136","v":0},null,null,{"$f":"'Goal 6 Reporting'!W136:Y136","v":0},null,null,"",null,null,"",null,null,""]
[null,null,null,null,null,null,null,null,null,null,null,null,null,"Annual ",null,null,{"$f":"'Goal 6 Reporting'!Q137:S137","v":0},null,null,{"$f":"'Goal 6 Reporting'!T137:V137","v":0},null,null,{"$f":"'Goal 6 Reporting'!W137:Y137","v":0},null,null,"",null,null,"",null,null,""]
[null,null,null,"H.","Obtained non-emergency WX energy assistance",null,null,null,null,null,null,null,null,"Mid-Year",null,null,{"$f":"'Goal 6 Reporting'!Q138:S138","v":0},null,null,{"$f":"'Goal 6 Reporting'!T138:V138","v":0},null,null,{"$f":"'Goal 6 Reporting'!W138:Y138","v":0},null,null,"",null,null,"",null,null,""]
[null,null,null,null,null,null,null,null,null,null,null,null,null,"Annual ",null,null,{"$f":"'Goal 6 Reporting'!Q139:S139","v":0},null,null,{"$f":"'Goal 6 Reporting'!T139:V139","v":0},null,null,{"$f":"'Goal 6 Reporting'!W139:Y139","v":0},null,null,"",null,null,"",null,null,""]
[null,null,null,"I. ","Obtained other non-emergency energy assistance. (State/local/private energy programs. Do Not Include LIHEAP or WX)",null,null,null,null,null,null,null,null,"Mid-Year",null,null,{"$f":"'Goal 6 Reporting'!Q140:S140","v":0},null,null,{"$f":"'Goal 6 Reporting'!T140:V140","v":0},null,null,{"$f":"'Goal 6 Reporting'!W140:Y140","v":0},null,null,"",null,null,"",null,null,""]
[null,null,null,null,null,null,null,null,null,null,null,null,null,"Annual ",null,null,{"$f":"'Goal 6 Reporting'!Q141:S141","v":0},null,null,{"$f":"'Goal 6 Reporting'!T141:V141","v":0},null,null,{"$f":"'Goal 6 Reporting'!W141:Y141","v":0},null,null,"",null,null,"",null,null,""]
[null,null,null,"In the rows below, please include any additional indicators for NPI 6.4 that were not captured above."]
[null,null,null,{"$f":"'Goal 6 Workplan'!D144","v":0},null,null,null,null,null,null,null,null,null,"Mid-Year",null,null,{"$f":"'Goal 6 Reporting'!Q143:S143","v":0},null,null,{"$f":"'Goal 6 Reporting'!T143:V143","v":0},null,null,{"$f":"'Goal 6 Reporting'!W143:Y143","v":0},null,null,{"$f":"IF(Q143=\"\",\"\",IF(Q143=0,\"\",IF(W143=\"\",\"\",IF(W143=Q143,\"100%\",IF(Q143=W143,,(W143/Q143))))))","v":""},null,null,{"$f":"IF(Q143=W143,\"\",IF(W143=0,\"\",IF(W143/Q143<80%,\"Explanation\",IF(W143/Q143>120%,\"Explanation\",\"\"))))","v":""},null,null,{"$f":"IF(W143>T143,\"Achieving > Enrolled\",IF(W143=T143,\"\",IF(W143<T143,\"\",IF(W143=0,\"\",IF(T143=0,\"\")))))","v":""}]
[null,null,null,null,null,null,null,null,null,null,null,null,null,"Annual ",null,null,{"$f":"'Goal 6 Reporting'!Q144:S144","v":0},null,null,{"$f":"'Goal 6 Reporting'!T144:V144","v":0},null,null,{"$f":"'Goal 6 Reporting'!W144:Y144","v":0},null,null,{"$f":"IF(Q144=\"\",\"\",IF(Q144=0,\"\",IF(W144=\"\",\"\",IF(W144=Q144,\"100%\",IF(Q144=W144,,(W144/Q144))))))","v":""},null,null,{"$f":"IF(Q144=W144,\"\",IF(W144=0,\"\",IF(W144/Q144<80%,\"Explanation\",IF(W144/Q144>120%,\"Explanation\",\"\"))))","v":""},null,null,{"$f":"IF(W144>T144,\"Achieving > Enrolled\",IF(W144=T144,\"\",IF(W144<T144,\"\",IF(W144=0,\"\",IF(T144=0,\"\")))))","v":""}]
[]
[null,null,null,"Goal 6:  Low-income people, especially vulnerable populations, achieve their potential by strengthening family and other supportive environments."]
[null,null,null,"NPI 6.5:  Service Counts"]
[null,null,null,"Problem Statement:  (If additional space is needed, please attach a separate sheet.)"]
[null,null,null,{"$f":"'Goal 6 Workplan'!D151","v":0}]
[null,null,null,"Program Activities and Delivery Strategies:  (If additional space is needed, please attach a separate sheet.)"]
[null,null,null,{"$f":"'Goal 6 Workplan'!D153","v":0}]
[null,"See NPI Instruction Manual, pages 55-57",null,"National Performance\nIndicator 6.5",null,null,null,null,null,null,null,null,null,null,null,null,"Reporting Period",null,null,"I",null,null,"II",null,null,"III",null,null,"IV",null,null,null,null,null,"NPI Analysis"]
[null,null,null,"Service Counts",null,null,null,null,null,null,null,null,null,null,null,null,null,null,null,"Number of Services Expected in Reporting Period\n(#)",null,null,"Number of Services in Reporting Period\n(#)",null,null,"Percentage Achieving Outcome in Reporting Period \n(II/I=III)\n(%)",null,null,"Explanations Required\n\n(Report on explanation tab)"]
[null,null,null,"The number of services provided to low-income individuals and/or families, as measured by one or more of the following:"]
[null,null,null,"A.","Food Boxes",null,null,null,null,null,null,null,null,null,null,null,"Mid-Year",null,null,{"$f":"'Goal 6 Reporting'!T155:V155","v":0},null,null,{"$f":"'Goal 6 Reporting'!W155:Y155","v":0},null,null,null,null,null,{"$f":"IF(T155=W155,\"\",IF(W155=0,\"\",IF(W155/T155<80%,\"Explanation\",IF(W155/T155>120%,\"Explanation\",\"\"))))","v":""}]
[null,null,null,null,null,null,null,null,null,null,null,null,null,null,null,null,"Annual ",null,null,{"$f":"'Goal 6 Reporting'!T156:V156","v":0},null,null,{"$f":"'Goal 6 Reporting'!W156:Y156","v":0},null,null,{"$f":"IF(T156=\"\",\"\",IF(T156=0,\"\",IF(W156=\"\",\"\",IF(W156=0,\"\",IF(W156=T156,\"100%\",IF(T156=W156,,(W156/T156)))))))","v":""},null,null,{"$f":"IF(T156=W156,\"\",IF(W156=0,\"\",IF(W156/T156<80%,\"Explanation\",IF(W156/T156>120%,\"Explanation\",\"\"))))","v":""}]
[null,null,null,"B.","Pounds of Food",null,null,null,null,null,null,null,null,null,null,null,"Mid-Year",null,null,{"$f":"'Goal 6 Reporting'!T157:V157","v":0},null,null,{"$f":"'Goal 6 Reporting'!W157:Y157","v":0},null,null,{"$f":"IF(T157=\"\",\"\",IF(T157=0,\"\",IF(W157=\"\",\"\",IF(W157=T157,\"100%\",IF(T157=W157,,(W157/T157))))))","v":""},null,null,""]
[null,null,null,null,null,null,null,null,null,null,null,null,null,null,null,null,"Annual ",null,null,{"$f":"'Goal 6 Reporting'!T158:V158","v":0},null,null,{"$f":"'Goal 6 Reporting'!W158:Y158","v":0},null,null,"",null,null,""]
[null,null,null,"C.","Units of Clothing",null,null,null,null,null,null,null,null,null,null,null,"Mid-Year",null,null,{"$f":"'Goal 6 Reporting'!T159:V159","v":0},null,null,{"$f":"'Goal 6 Reporting'!W159:Y159","v":0},null,null,"",null,null,""]
[null,null,null,null,null,null,null,null,null,null,null,null,null,null,null,null,"Annual ",null,null,{"$f":"'Goal 6 Reporting'!T160:V160","v":0},null,null,{"$f":"'Goal 6 Reporting'!W160:Y160","v":0},null,null,"",null,null,""]
[null,null,null,"D.","Rides Provided",null,null,null,null,null,null,null,null,null,null,null,"Mid-Year",null,null,{"$f":"'Goal 6 Reporting'!T161:V161","v":0},null,null,{"$f":"'Goal 6 Reporting'!W161:Y161","v":0},null,null,"",null,null,""]
[null,null,null,null,null,null,null,null,null,null,null,null,null,null,null,null,"Annual ",null,null,{"$f":"'Goal 6 Reporting'!T162:V162","v":0},null,null,{"$f":"'Goal 6 Reporting'!W162:Y162","v":0},null,null,"",null,null,""]
[null,null,null,"E.","Information and Referral Calls",null,null,null,null,null,null,null,null,null,null,null,"Mid-Year",null,null,{"$f":"'Goal 6 Reporting'!T163:V163","v":0},null,null,{"$f":"'Goal 6 Reporting'!W163:Y163","v":0},null,null,"",null,null,""]
[null,null,null,null,null,null,null,null,null,null,null,null,null,null,null,null,"Annual ",null,null,{"$f":"'Goal 6 Reporting'!T164:V164","v":0},null,null,{"$f":"'Goal 6 Reporting'!W164:Y164","v":0},null,null,"",null,null,""]
[null,null,null,"In the rows below, please include any additional indicators for NPI 6.5 that were not captured above."]
[null,null,null,{"$f":"'Goal 6 Workplan'!D168","v":0},null,null,null,null,null,null,null,null,null,null,null,null,"Mid-Year",null,null,{"$f":"'Goal 6 Reporting'!T166:V166","v":0},null,null,{"$f":"'Goal 6 Reporting'!W166:Y166","v":0},null,null,{"$f":"IF(T166=\"\",\"\",IF(T166=0,\"\",IF(W166=\"\",\"\",IF(W166=T166,\"100%\",IF(T166=W166,,(W166/T166))))))","v":""},null,null,{"$f":"IF(T166=W166,\"\",IF(W166=0,\"\",IF(W166/T166<80%,\"Explanation\",IF(W166/T166>120%,\"Explanation\",\"\"))))","v":""}]
[null,null,null,null,null,null,null,null,null,null,null,null,null,null,null,null,"Annual ",null,null,{"$f":"'Goal 6 Reporting'!T167:V167","v":0},null,null,{"$f":"'Goal 6 Reporting'!W167:Y167","v":0},null,null,{"$f":"IF(T167=\"\",\"\",IF(T167=0,\"\",IF(W167=\"\",\"\",IF(W167=0,\"\",IF(W167=T167,\"100%\",IF(T167=W167,,(W167/T167)))))))","v":""},null,null,{"$f":"IF(T167=W167,\"\",IF(W167=0,\"\",IF(W167/T167<80%,\"Explanation\",IF(W167/T167>120%,\"Explanation\",\"\"))))","v":""}]
[]
[]
[null,null,null,null,null,null,null,null,null,null,null,null,null,null,null,null,null,null,null,null,null,null,null,null,null,null,null,null,null,null,null,null,null,null,"  "]

{"sheet":"Explanations Required Annual","index":17,"n_rows":19,"n_cols":25,"rows_kept":19,"cut":false,"hidden":false,"merged":[[39,6,39,14],[40,6,40,14],[41,6,41,14],[30,15,30,25],[29,15,29,25],[31,15,31,25],[32,15,32,25],[33,15,33,25],[34,15,34,25],[35,15,35,25],[36,15,36,25],[37,15,37,25],[38,15,38,25],[39,15,39,25],[40,15,40,25],[41,15,41,25],[34,6,34,14],[35,6,35,14],[36,6,36,14],[37,6,37,14],[38,6,38,14],[29,6,29,14],[30,6,30,14],[31,6,31,14],[32,6,32,14],[33,6,33,14],[1,1,8,1],[12,21,12,25],[12,18,12,20],[12,8,12,17],[3,24,3,25],[8,3,8,25],[10,1,13,1],[10,8,10,25],[13,18,13,20],[13,8,13,17],[11,8,11,25],[17,3,17,25],[14,3,14,25],[15,3,15,25],[13,21,13,25],[20,3,20,5],[18,3,18,5],[19,3,19,5],[16,3,16,25],[18,6,18,14],[18,15,18,25],[19,6,19,14],[20,6,20,14],[19,15,19,25],[20,15,20,25],[40,3,40,5],[41,3,41,5],[30,3,30,5],[31,3,31,5],[32,3,32,5],[33,3,33,5],[34,3,34,5],[36,3,36,5],[37,3,37,5],[38,3,38,5],[39,3,39,5],[35,3,35,5],[29,3,29,5],[18,1,26,1],[21,6,21,14],[22,6,22,14],[23,6,23,14],[24,6,24,14],[21,3,21,5],[22,3,22,5],[23,3,23,5],[27,6,27,14],[28,6,28,14],[24,3,24,5],[25,3,25,5],[26,3,26,5],[27,3,27,5],[28,3,28,5],[25,6,25,14],[26,6,26,14],[24,15,24,25],[25,15,25,25],[26,15,26,25],[27,15,27,25],[28,15,28,25],[22,15,22,25],[21,15,21,25],[23,15,23,25]]}
[]
[null,"Use the tab key to move through the cells that require entry.",null,"State of California"]
[]
[null,null,null,"Department of Community Services and Development",null,null,null,null,null,null,null,null,null,null,null,null,null,null,null,null," ","Contract No.",null,null,{"$f":"'Goal 1 Workplan'!P3","v":0}]
[]
[null,null,null,"CSBG/NPI Programs Report"]
[null,null,null,null,null,null,null,null,null,null,null,null,null,null,null,null,null,null,null,null,null,{"$f":"'Goal 1 Reporting'!AB6","v":0}]
[null,null,null,"CSD 801 (Rev. 8/16)",null,null,null,null,null,null,null,null,null,null,null,null,null,null,null,null,null,{"$f":"'Goal 1 Reporting'!AB6","v":0}]
[]
[]
[null,"Use the goal 1 tab to enter information into this block of cells.  ",null,"Contractor Name:",null,null,null,null,{"$f":" 'Goal 1 Workplan'!J11","v":0}]
[null,null,null,"Contact Person and Title:",null,null,null,null,{"$f":"'Goal 1 Workplan'!J12","v":0}]
[null,null,null,"Phone Number:",null,null,null,null,{"$f":"'Goal 1 Workplan'!J13","v":0},null,null,null,null,null,null,null,null,null,"Ext. Number:",null,null,{"$f":"'Goal 1 Workplan'!N13","v":0}]
[null,null,null,"E-mail Address:",null,null,null,null,{"$f":"'Goal 1 Workplan'!J14","v":0},null,null,null,null,null,null,null,null,null,"Fax Number:",null,null,{"$f":"'Goal 1 Workplan'!N14","v":0}]
[]
[null,null,null,"Annual NPI Explanations"]
[]
[null,null,null,"This space is to record an explanation for not meeting or exceeding your projections. This information should includes any program changes, achievement trends or reductions or additions in funding. In addition, this space is available to provide any significant narrative information for national goals."]
[null,"If all of your TEXT is not visible:\n\nHold down ALT key and hit ENTER at various points throughout your narrative.\n\nTo add an additional Explanations Tab: place the curser on the \"Explanation Required Annual\" tab, right click, a drop down menu will appear select move or copy, then check the box create a copy, select OK and the additional tab will appear.",null,"NPI ",null,null,"Select the reason from the dropdown menu",null,null,null,null,null,null,null,null,"Add a brief explanation (optional)"]

{"sheet":"Review Sheet for Field Reps","index":18,"n_rows":59,"n_cols":28,"rows_kept":59,"cut":false,"hidden":true,"merged":[[17,3,17,25],[1,1,8,1],[3,24,3,25],[3,26,3,27],[8,3,8,25],[10,1,13,1],[10,8,10,25],[11,8,11,25],[12,8,12,17],[12,18,12,20],[12,21,12,25],[13,8,13,17],[13,18,13,20],[13,21,13,25],[15,6,15,14],[16,6,16,14],[18,3,18,25],[19,3,19,27],[20,1,24,1],[20,3,20,5],[20,6,20,25],[21,3,21,5],[21,6,21,25],[22,3,22,5],[22,6,22,25],[23,3,23,5],[23,6,23,25],[24,3,24,5],[24,6,24,25],[25,6,25,25],[27,3,27,5],[27,6,27,25],[28,3,28,5],[28,6,28,25],[26,3,26,5],[26,6,26,25],[25,3,25,5],[29,3,29,5],[29,6,29,25],[30,3,30,5],[30,6,30,25],[31,3,31,5],[31,6,31,25],[32,3,32,5],[32,6,32,25],[33,3,33,5],[33,6,33,25],[34,3,34,5],[34,6,34,25],[35,3,35,5],[35,6,35,25],[36,3,36,5],[36,6,36,25],[37,3,37,5],[37,6,37,25],[38,3,38,5],[38,6,38,25],[39,3,39,5],[39,6,39,25],[40,3,40,5],[40,6,40,25],[41,3,41,5],[41,6,41,25],[42,3,42,5],[42,6,42,25],[43,3,43,5],[43,6,43,25],[44,3,44,5],[44,6,44,25],[45,3,45,5],[45,6,45,25],[46,3,46,5],[46,6,46,25],[47,3,47,5],[47,6,47,25],[57,8,58,16],[57,19,58,24],[48,3,48,5],[48,6,48,25],[49,3,49,5],[49,6,49,25],[50,3,50,5],[50,6,50,25],[51,3,51,27],[52,3,52,27],[53,7,54,16],[53,19,54,24],[56,3,56,27]]}
[]
[null,"Use the tab key to move through the cells that require entry.",null,"State of California"]
[]
[null,null,null,"Department of Community Services and Development",null,null,null,null,null,null,null,null,null,null,null,null,null,null,null,null," ",null,null,null,"Contract No.",null,{"$f":"'Goal 1 Workplan'!P3","v":0}]
[]
[null,null,null,"CSBG/NPI Programs Review Form",null,null,null,null,null,null,null,null,null,null,null,null,null,null,null,null,null,null,null,null,null,null,"Mid-Year Report (Jan-June)"]
[]
[null,null,null,"CSD 801 (Rev.4/13)",null,null,null,null,null,null,null,null,null,null,null,null,null,null,null,null,null,null,null,null,null,null,"Annual Report (Jan-Dec)"]
[]
[null,null,null,null,null,null,null,null,null,null,null,null,null,null,null,null,null,null,null,null,null,null,null,null,null,null,"Other"]
[null,"Use the goal 1 tab to enter information into this block of cells.  ",null,"Contractor Name:",null,null,null,null,{"$f":"'Goal 1 Workplan'!J11","v":0}]
[null,null,null,"Contact Person and Title:",null,null,null,null,{"$f":"'Goal 1 Workplan'!J12","v":0}]
[null,null,null,"Phone Number:",null,null,null,null,{"$f":"'Goal 1 Workplan'!J13","v":0},null,null,null,null,null,null,null,null,null,"Ext. Number:",null,null,{"$f":"'Goal 1 Workplan'!N13","v":0}]
[null,null,null,"E-mail Address:",null,null,null,null,{"$f":"'Goal 1 Workplan'!J14","v":0},null,null,null,null,null,null,null,null,null,"Fax Number:",null,null,{"$f":"'Goal 1 Workplan'!N14","v":0}]
[]
[null,null,null,"ANALYST:"]
[null,null,null,"REVIEW DATE:"]
[]
[]
[null,null,null,"Please utilize this portion to capture questions that need further clarification with the NPIs, including but not limited to, missing projections, blank outcomes or over/under exceeded outcomes. If there were questions identified during the review, identify the question and how it was resolved. provide the date agency was contacted to resolve issue. If agency is required to submit a revision to a particular indicator mark \"X\" in the column \"NPI Revision Submitted'."]
[null,"If all of your TEXT is not visible:\n\nHold down ALT key and hit ENTER at various points throughout your narrative.",null,"Identify Each Indicator",null,null,"Identified Questions and Resolutions",null,null,null,null,null,null,null,null,null,null,null,null,null,null,null,null,null,null,null,"Date Contacted Agency ","NPI Revision Submitted"]
[null,null,null,"Example\nNPI 1.1.A.",null,null,"Question Identified: Blank spaces with projection provided\n\nResolution: agency omitted the data in error - data provided ",null,null,null,null,null,null,null,null,null,null,null,null,null,null,null,null,null,null,null,"2013-02-01","2013-02-15"]
[]
[]
[]
[]
[]
[]
[]
[]
[]
[]
[]
[]
[]
[]
[]
[]
[]
[]
[]
[]
[]
[]
[]
[]
[]
[]
[]
[]
[]
[]
[null,null,null,"The Field Representative certifies the National Performance Indicators have been thoroughly reviewed and any deficiencies have been resolved."]
[]
[null,null,null,"Field Representative:",null,null,null,null,null,null,null,null,null,null,null,null,null,"Date:"]
[]
[null,null,null,"The Field Operations Manager concurs with the Field Representative's review of the National Performance Indicators(NPI-CSD 801) Programs Review."]
[]
[null,null,null,"Field Operations Manager:",null,null,null,null,null,null,null,null,null,null,null,null,null,"Date:"]

{"sheet":"list","index":19,"n_rows":24,"n_cols":1,"rows_kept":24,"cut":false,"hidden":true,"merged":[]}
["List of possible explanations"]
[]
["Due to loss of contractor"]
["Due to loss of funding"]
["Due to loss of program"]
["Due to loss of staff "]
["Due to projected incorrectly, explain in next column"]
["Due to enrollment and achieving periods, explain in next column "]
["Due to agency achieved more than projected , explain in next column"]
["Due to new funding "]
["Due to additional funding"]
["Due to new data collection system"]
["Due to increase enrollment "]
["Due to no data collected, explain why in next column"]
["Due to no tracking system in place to track outcomes, explain in next column how you are going to start tracking"]
["Due to restructuring of program, explain in next column"]
["Due to relocation of program, explain in next column"]
["Due to end of program, explain in next column"]
["Due to new strategy to increase enrollment, explain in next column"]
["Due to new referral process, which took longer to enroll clients"]
["Due to fewer children within preschool age limit"]
["Due to more parents able to utilize program"]
["Due to hiring more staff which increased services"]
["Other: enter what other is in the next column and explain."]

{"sheet":"Sheet1","index":20,"n_rows":17,"n_cols":3,"rows_kept":17,"cut":false,"hidden":true,"merged":[]}
[]
["helpful hints"]
[null,1.1000000000000001,"If you report achieve data on 1.1 you must report the dollar amount. If no dollars amount reported please explain."]
[null,1.2]
[null,1.3,"If you report achieve data on 1.1 you must report the dollar amount. If no dollars amount reported please explain."]
[null,2.1,"one to many (one project or initatives to many opportunities (to help count list all projects or iniatives)"]
[null,2.2000000000000002,"one to many (one project or initatives to many opportunities (to help count list all projects or iniatives)"]
[null,2.2999999999999998,"All volunteer hours - all agencies should report volunteer hours because of tripartite board. If do not report any volunteer hours you, please exaplain.  Volunteer hrs should be higher or equal to 3.1"]
[null,3.1,"Low income only volunteer hours - should have volunteer hours for low-income because of tripartite board. This number should not be higher than 2.3"]
[null,4.0999999999999996,"Should report at least one for State because of partnership with CSD."]
[null,"5.1 B","ROMA Trainers - for everyone that is listed you must attach a copy of the ROMA certificate or this will not be included in the CSBGIS data."]
[null,"6.1.A","This number should also be reported on the 295 7.g.h  .If 6.1.A - exceeds the data report on the 295 please verify that this is correct and provide an explanation why."]
[null,"6.1.B","This number should also be reported on the 295 10.b. If 6.1.B exceeds the data report on the 295 please verify that this is correct and provide an explanation why."]
[]
["common errors"]
[null,"Mid-year report should not be higher than the annual report"]
[null," "]